{"text_format":"1","workbook":"xlsx","n_sheets":2,"sheets":["BD Sociodemográfica","Consultas"],"not_rendered":{"charts":0,"images":3,"macros":1,"external_links":3,"defined_names":88,"comments":0,"pivot_tables":0},"unopened":[],"bounds":{"document_bytes":16777216,"sheet_cells":100000,"rows_first":2000,"rows_last":500,"rows_between":2000,"halvings":0,"cell_chars":16384,"cell_head_chars":4096},"cells_cut":0,"cells_raw":0,"read":"whole","date_system":"1900"}

{"sheet":"BD Sociodemográfica","index":0,"n_rows":5951,"n_cols":52,"rows_kept":1125,"cut":true,"hidden":false,"merged":[],"bounds":{"rows_first":500,"rows_last":125,"rows_between":500,"halvings":2}}
["Nombres y Apellidos","Documento de identidad","Grupo étnico","Fecha nacimiento","Rango edad","Género","Estado civil","Escolaridad","Ocupación","Municipio donde vive","Estrado vivienda","Tipo de vivienda","Zona de vivienda","Personas con que vive","Grupo familiar","Cabeza de familia","# de hijos","# de personas que dependen económicamente","Municipio donde trabaja","Área de trabajo","Antigüedad en la organización","Cargo","Antigüedad en el cargo","# de colaboradores a cargo","Tipo de contrato","Tipo de salario","Rango salario","Horas de trabajo","Turno de trabajo","Días de descanso al mes","Medios de transporte para ir al trabajo","Tiempo de traslado casa - trabajo","Intereses o actividades de preferencia","Posesión de mascota","Medios de comunicación para que la organización remita información","Participación en redes sociales","Horas de sueño en semana","Horas de sueño fines de semana","Ronca con frecuencia","Familiares dicen que ronca","Dificultad para dormir","Contacto de emergencia","Parentesco contacto emergencia","Teléfono fijo contacto emergencia","Disponibilidad llamadas al fijo","Teléfono móvil contacto emergencia","Disponibilidad llamadas al móvil","Municipio donde vive contacto emergencia","Agrupador 1","Agrupador 2","Agrupador 3","Nombres y Apellidos"]
["Juan David  Villa Romero ",1087996780,"Mestizo","Sun Dec 10 19:00:00 COT 2017","Menos de 20 años","Masculino","Soltero (a)","Especialización","DIRECTOR","DOSQUEBRADAS - RISARALDA",4,"Familiar","Urbana","Padres | Hermanos","Usted, padres y hermanos (si los hay)","Si",0,0,"DOSQUEBRADAS - RISARALDA","Mixto","Menos de 1 año","Jefatura - tiene personal a cargo","Menos de 1 año","Más de 50","Término indefinido","Fijo","Más de 5 salarios mínimos","9 a 10","Diurno","De 7 a 8","Bus | Taxi | Sistema de transporte masivo (Transmilenio, Metro, Mío, entre otros) | Carro propio","De media, a una hora","Deportes | Escuchar música | Actividades sociales familia/amigos","No","Correo electrónico","Ninguna","De 6 a 7","De 6 a 7","Si","Si","Si","JAVIER VILLA","PADRE",3365517,"Nocturno y fines de semana",3103450389,"Diurno - nocturno","DOSQUEBRADAS - RISARALDA","Administrativa ","Administrativa ","Administrativa ",{"$f":"IF(COUNTBLANK(Sociodemograficos[[#This Row],[Nombres y Apellidos]])=0,Sociodemograficos[[#This Row],[Nombres y Apellidos]],\"\")","v":"Juan David  Villa Romero "}]
["Jose Jair  Serna Mendoza",10127282,"Mestizo","Mon Jun 09 19:00:00 COT 1969","46 - 50 años","Masculino","Unión libre","Especialización","PROFESIONAL - AREA ADMINISTRATIVA","DOSQUEBRADAS - RISARALDA",2,"Propia","Urbana","Padres | Hijo | Pareja","Usted, cónyuge e hijos (si los hay) con abuelos, tíos, primos y otros parientes","Si",1,4,"DOSQUEBRADAS - RISARALDA","Operativa","1 - 4 años","Jefatura - tiene personal a cargo","1 - 4 años","11 a 15","Término indefinido","Fijo","Más de 5 salarios mínimos","9 a 10","Diurno","De 7 a 8","Bus | Taxi | Sistema de transporte masivo (Transmilenio, Metro, Mío, entre otros)","Menos de media hora","Deportes | Cine | Actividades sociales familia/amigos","Si","Correo electrónico","Facebook | Twitter","De 6 a 7","De 7 a 8","Si","Si","Si","DIANA GRACIELA ALZATE ACEVEDO","CONYUGE",3420168,"Diurno - nocturno",3146661469,"Diurno - nocturno","DOSQUEBRADAS - RISARALDA","Administrativa ","Administrativa ","Administrativa ",{"$f":"IF(COUNTBLANK(Sociodemograficos[[#This Row],[Nombres y Apellidos]])=0,Sociodemograficos[[#This Row],[Nombres y Apellidos]],\"\")","v":"Jose Jair  Serna Mendoza"}]
["Blanca Nidia  Ramirez Osorio",24635200,"Mestizo","Fri May 10 19:00:00 COT 1968","46 - 50 años","Femenino","Casado (a)","Especialización","ASESOR CONTROL INTERNO","PEREIRA - RISARALDA",4,"En arriendo","Urbana","Hijo","Usted y sus hijos","Si",2,2,"DOSQUEBRADAS - RISARALDA","Administrativa","Más de 13 años","Profesional, analista","4 - 7 años","No tiene colaboradores a cargo","Término indefinido","Fijo","Más de 5 salarios mínimos","11 a 12","Diurno","De 7 a 8","Bus | Sistema de transporte masivo (Transmilenio, Metro, Mío, entre otros)","De media, a una hora","Canto / Instrumento / Baile | Viajar | Leer","Si","Correo electrónico","Facebook","Menos de 6","De 6 a 7","Si","Si","Si","DAMIANA MARCELA MEJIA RAMIREZ","HIJA",0,"Diurno",3172857797,"Diurno","PEREIRA - RISARALDA","Administrativa ","Administrativa ","Administrativa ",{"$f":"IF(COUNTBLANK(Sociodemograficos[[#This Row],[Nombres y Apellidos]])=0,Sociodemograficos[[#This Row],[Nombres y Apellidos]],\"\")","v":"Blanca Nidia  Ramirez Osorio"}]
["Maria Nancy Romero Murillo ",24389307,"Blanco","Thu Jun 03 19:00:00 COT 1965","51 - 55 años","Femenino","Unión libre","Profesional","PROFESIONAL UNIVERSITARIO - AREA TECNICO","DOSQUEBRADAS - RISARALDA",3,"Propia","Urbana","Cónyugue | Hijo","Usted, cónyugue e hijos (si los hay)","Si",2,2,"DOSQUEBRADAS - RISARALDA","Operativa","Más de 13 años","Profesional, analista","Más de 13 años","No tiene colaboradores a cargo","Término indefinido","Fijo","Entre 3 y 4 salarios mínimos","9 a 10","Diurno","De 7 a 8","Bus","Menos de media hora","Viajar | Caminar | Actividades de voluntariado","Si","Correo electrónico","Ninguna","De 6 a 7","De 7 a 8","No","No","No","JAIRO DE JESUS LOPEZ ","CONYUGE",3308174,"Diurno - nocturno",3136145733,"Diurno - nocturno","DOSQUEBRADAS - RISARALDA","Técnica","Técnica","Técnica",{"$f":"IF(COUNTBLANK(Sociodemograficos[[#This Row],[Nombres y Apellidos]])=0,Sociodemograficos[[#This Row],[Nombres y Apellidos]],\"\")","v":"Maria Nancy Romero Murillo "}]
["Rigoberto   Lopera Muñoz",14896615,"Blanco","Fri Apr 06 19:00:00 COT 1973","41 - 45 años","Masculino","Divorciado (a)","Profesional","PROFESIONAL UNIVERSITARIO- AREA TECNICA","DOSQUEBRADAS - RISARALDA",4,"Propia","Urbana","Solo(a)","Vive solo(a)","Si",0,0,"DOSQUEBRADAS - RISARALDA","Operativa","1 - 4 años","Profesional, analista","1 - 4 años","No tiene colaboradores a cargo","Término indefinido","Fijo","Entre 3 y 4 salarios mínimos","11 a 12","Diurno","De 7 a 8","Carro propio","De media, a una hora","Deportes | Viajar | Televisión","No","Correo electrónico","Otros","De 6 a 7","De 7 a 8","No","No","No","LUEZ ELENA LOPERA","HERMANA","(032) 2392284","Diurno - nocturno",3122583319,"Diurno - nocturno","BUGA - VALLE DEL CAUCA","Técnica","Técnica","Técnica",{"$f":"IF(COUNTBLANK(Sociodemograficos[[#This Row],[Nombres y Apellidos]])=0,Sociodemograficos[[#This Row],[Nombres y Apellidos]],\"\")","v":"Rigoberto   Lopera Muñoz"}]
["Luis Fernando  Arango Alvarez ",1088273051,"Blanco","Fri Mar 08 19:00:00 COT 1991","26 - 30 años","Masculino","Soltero (a)","Especialización","SUBDIRECTOR TECNICO","DOSQUEBRADAS - RISARALDA",3,"Familiar","Urbana","Padres","Usted y sus hijos","No",1,1,"DOSQUEBRADAS - RISARALDA","Operativa","Menos de 1 año","Jefatura - tiene personal a cargo","Menos de 1 año","41 a 50","Término indefinido","Fijo","Más de 5 salarios mínimos","9 a 10","Diurno","De 7 a 8","Carro propio","Menos de media hora","Deportes | Viajar | Cine","Si","Correo electrónico","Ninguna","De 7 a 8","De 7 a 8","No","Si","Si","JOSE FERNANDO ARANGO DUQUE","PADRE",3426465,"Diurno - nocturno",3122875757,"Diurno - nocturno","DOSQUEBRADAS - RISARALDA","Técnica","Técnica","Técnica",{"$f":"IF(COUNTBLANK(Sociodemograficos[[#This Row],[Nombres y Apellidos]])=0,Sociodemograficos[[#This Row],[Nombres y Apellidos]],\"\")","v":"Luis Fernando  Arango Alvarez "}]
["Sandra Milena  Franco Bermudez",42136044,"Blanco","Sun Nov 09 19:00:00 COT 1980","36 - 40 años","Femenino","Casado (a)","Profesional","PROFESINAL UNIVERSITARIO - AREA ADMINISTRATIVA","DOSQUEBRADAS - RISARALDA",4,"Propia","Urbana","Cónyugue | Hijo","Usted, cónyugue e hijos (si los hay)","No",2,2,"DOSQUEBRADAS - RISARALDA","Administrativa","Menos de 1 año","Profesional, analista","Menos de 1 año","No tiene colaboradores a cargo","Término indefinido","Fijo","Entre 3 y 4 salarios mínimos","9 a 10","Diurno","De 7 a 8","Bus | Carro propio","Menos de media hora","Artes | Deportes | Actividades sociales familia/amigos","No","Llamadas","Facebook","Menos de 6","De 6 a 7","No","No","Si","OSCAR FABIO GAVIRIA ACEVEDO","CONYUGE",0,"Diurno",3174719933,"Diurno","DOSQUEBRADAS - RISARALDA","Administrativa ","Administrativa ","Administrativa ",{"$f":"IF(COUNTBLANK(Sociodemograficos[[#This Row],[Nombres y Apellidos]])=0,Sociodemograficos[[#This Row],[Nombres y Apellidos]],\"\")","v":"Sandra Milena  Franco Bermudez"}]
["Hugo Mario  Ramirez Jimenez",10014774,"Blanco","Sat Jul 07 19:00:00 COT 1979","36 - 40 años","Masculino","Unión libre","Profesional","TECNICO OPERATIVO - AREA TECNICA","PEREIRA - RISARALDA",3,"Familiar","Rural","Cónyugue | Padres | Hijo | Hermanos","Usted, cónyuge e hijos (si los hay) con abuelos, tíos, primos y otros parientes","Si",1,4,"DOSQUEBRADAS - RISARALDA","Operativa","1 - 4 años","Profesional, analista","1 - 4 años","No tiene colaboradores a cargo","Término indefinido","Fijo","Entre 3 y 4 salarios mínimos","9 a 10","Diurno","De 7 a 8","Carro propio","De media, a una hora","Gastronomía | Deportes | Televisión","Si","Correo electrónico","Facebook","Menos de 6","De 6 a 7","Si","Si","Si","ERIKA POSADA","CONYUGE",0,"Diurno",3105128110,"Diurno - nocturno","PEREIRA - RISARALDA","Técnica","Técnica","Técnica",{"$f":"IF(COUNTBLANK(Sociodemograficos[[#This Row],[Nombres y Apellidos]])=0,Sociodemograficos[[#This Row],[Nombres y Apellidos]],\"\")","v":"Hugo Mario  Ramirez Jimenez"}]
["Andrea Marcela  Vasquez Lopez",1087989175,"Blanco","Thu Apr 06 19:00:00 COT 2017","Menos de 20 años","Femenino","Soltero (a)","Bachillerato","SIN DATO","DOSQUEBRADAS - RISARALDA",3,"Familiar","Urbana","Familiares","Usted, padres, hermanos (si los hay) con abuelos, tíos, primos y otros parientes","No",1,1,"DOSQUEBRADAS - RISARALDA","Administrativa","1 - 4 años","Auxiliar, asistente administrativo, asistente técnico","1 - 4 años","No tiene colaboradores a cargo","Término indefinido","Fijo","Entre 1 y 2 salarios mínimos","9 a 10","Diurno","De 3 a 4","Caminando","Menos de media hora","Viajar | Leer | Cine","Si","Correo electrónico","Facebook","Menos de 6","De 8 a 9","No","No","No","MARIA PATRICIA LOPEZ ARIAS","HERMANA",0,"Diurno",3168589118,"Diurno - nocturno","DOSQUEBRADAS - RISARALDA","Administrativa ","Administrativa ","Administrativa ",{"$f":"IF(COUNTBLANK(Sociodemograficos[[#This Row],[Nombres y Apellidos]])=0,Sociodemograficos[[#This Row],[Nombres y Apellidos]],\"\")","v":"Andrea Marcela  Vasquez Lopez"}]
["Beatriz Elena  Salazar Tabares",42118103,"Blanco","Tue May 07 19:00:00 COT 1974","41 - 45 años","Femenino","Unión libre","Profesional","TECNICO ADMINISTRATIVO","DOSQUEBRADAS - RISARALDA",3,"Propia","Urbana","Padres | Hijo","Usted, cónyuge e hijos (si los hay) con abuelos, tíos, primos y otros parientes","Si",3,5,"DOSQUEBRADAS - RISARALDA","Administrativa","Más de 13 años","Técnico, tecnólogo","Más de 13 años","No tiene colaboradores a cargo","Término indefinido","Fijo","Entre 1 y 2 salarios mínimos","9 a 10","Diurno","De 7 a 8","Moto","Menos de media hora","Deportes | Escuchar música | Actividades sociales familia/amigos","Si","Correo electrónico","Facebook","Menos de 6","De 6 a 7","No","No","No","DANIEL LEONARDO RAMIREZ SALAZAR","HIJO",3423571,"Diurno - nocturno",3113013546,"Diurno - nocturno","DOSQUEBRADAS - RISARALDA","Administrativa ","Administrativa ","Administrativa ",{"$f":"IF(COUNTBLANK(Sociodemograficos[[#This Row],[Nombres y Apellidos]])=0,Sociodemograficos[[#This Row],[Nombres y Apellidos]],\"\")","v":"Beatriz Elena  Salazar Tabares"}]
["Yolanda  Florez Mendoza",42059255,"Blanco","Sat Jun 09 19:00:00 COT 1962","51 - 55 años","Femenino","Casado (a)","Profesional","SECRETARIA EJECUTIVA","DOSQUEBRADAS - RISARALDA",2,"Propia","Urbana","Cónyugue | Hijo","Usted, cónyugue e hijos (si los hay)","No",2,2,"DOSQUEBRADAS - RISARALDA","Administrativa","Más de 13 años","Profesional, analista","Más de 13 años","No tiene colaboradores a cargo","Término indefinido","Una parte fija y otra variable","Entre 3 y 4 salarios mínimos","9 a 10","Diurno","De 1 a 2","Carro propio | Caminando","Menos de media hora","Caminar | Leer | Actividades sociales familia/amigos","Si","Correo electrónico | Llamadas","Facebook","De 6 a 7","De 6 a 7","Si","Si","Si","RICARDO SALDARRIAGA YEPEZ","CONYUGE",3285277,"Diurno - nocturno",3127112065,"Diurno","DOSQUEBRADAS - RISARALDA","Administrativa ","Administrativa ","Administrativa ",{"$f":"IF(COUNTBLANK(Sociodemograficos[[#This Row],[Nombres y Apellidos]])=0,Sociodemograficos[[#This Row],[Nombres y Apellidos]],\"\")","v":"Yolanda  Florez Mendoza"}]
["Sandra Milena  Ramirez Montoya",42146453,"Blanco","Mon Nov 01 19:00:00 COT 1982","31 - 35 años","Femenino","Unión libre","Técnico","SECRETARIA AREA TECNICA","DOSQUEBRADAS - RISARALDA",3,"Familiar","Urbana","Cónyugue | Padres | Hijo | Familiares","Usted, cónyuge e hijos (si los hay) con abuelos, tíos, primos y otros parientes","Si",1,3,"DOSQUEBRADAS - RISARALDA","Operativa","1 - 4 años","Auxiliar, asistente administrativo, asistente técnico","1 - 4 años","No tiene colaboradores a cargo","Término indefinido","Fijo","Entre 1 y 2 salarios mínimos","9 a 10","Diurno","De 7 a 8","Carro de un compañero de trabajo","Menos de media hora","Gastronomía | Cine | Actividades sociales familia/amigos","No","Correo electrónico","Facebook","De 6 a 7","De 6 a 7","Si","Si","Si","JHON FREDY GALEANO LOPEZ","CONYUGE",3429309,"Diurno - nocturno",3207593254,"Diurno - nocturno","DOSQUEBRADAS - RISARALDA","Técnica","Técnica","Técnica",{"$f":"IF(COUNTBLANK(Sociodemograficos[[#This Row],[Nombres y Apellidos]])=0,Sociodemograficos[[#This Row],[Nombres y Apellidos]],\"\")","v":"Sandra Milena  Ramirez Montoya"}]
["Jose Libardo Nieto Londoño",15903377,"Blanco","Tue May 31 19:00:00 COT 1960","56 - 60 años","Masculino","Casado (a)","Técnico","APOYO AL  ÁREA ADMINISTRATIVA","SANTA ROSA DE CABAL - RISARALDA",2,"En arriendo","Urbana","Cónyugue | Hijo","Usted, cónyugue e hijos (si los hay)","Si",0,3,"DOSQUEBRADAS - RISARALDA","Administrativa","Menos de 1 año","Auxiliar, asistente administrativo, asistente técnico","Menos de 1 año","No tiene colaboradores a cargo","Término indefinido","Fijo","Entre 1 y 2 salarios mínimos","9 a 10","Diurno","De 7 a 8","Moto","Menos de media hora","Escuchar música","Si","Correo electrónico","Facebook","Más de 9","De 8 a 9","Si","Si","No","SIN DATO","CONYUGE",0,"Diurno",3125288382,"Diurno | Nocturno y fines de semana","SANTA ROSA DE CABAL - RISARALDA","Administrativa ","Administrativa ","Administrativa ",{"$f":"IF(COUNTBLANK(Sociodemograficos[[#This Row],[Nombres y Apellidos]])=0,Sociodemograficos[[#This Row],[Nombres y Apellidos]],\"\")","v":"Jose Libardo Nieto Londoño"}]
["Dora  Pulido De Loaiza",42054248,"Blanco","Sun Mar 05 19:00:00 COT 1961","56 - 60 años","Femenino","Casado (a)","Bachillerato","SERVICIOS GENERALES","DOSQUEBRADAS - RISARALDA",3,"Propia","Urbana","Cónyugue | Hijo","Usted, cónyugue e hijos (si los hay)","Si",3,4,"DOSQUEBRADAS - RISARALDA","Administrativa","1 - 4 años","Operario, operador, ayudante, servicios generales","1 - 4 años","No tiene colaboradores a cargo","Término indefinido","Fijo","Un salario mínimo","9 a 10","Diurno","De 3 a 4","Bus | Moto","Menos de media hora","Gastronomía | Caminar | Televisión","Si","Llamadas","Facebook","Menos de 6","Menos de 6","Si","Si","Si","SIN DATO","CONYUGE",0,"Diurno",0,"Diurno","DOSQUEBRADAS - RISARALDA","Administrativa ","Administrativa ","Administrativa ",{"$f":"IF(COUNTBLANK(Sociodemograficos[[#This Row],[Nombres y Apellidos]])=0,Sociodemograficos[[#This Row],[Nombres y Apellidos]],\"\")","v":"Dora  Pulido De Loaiza"}]
["",null,null,null,null,null,null,null,null,null,null,null,null,null,null,null,null,null,null,null,null,null,null,null,null,null,null,null,null,null,null,null,null,null,null,null,null,null,null,null,null,null,null,null,null,null,null,null,"","","",{"$f":"IF(COUNTBLANK(Sociodemograficos[[#This Row],[Nombres y Apellidos]])=0,Sociodemograficos[[#This Row],[Nombres y Apellidos]],\"\")","v":""}]
["",null,null,null,null,null,null,null,null,null,null,null,null,null,null,null,null,null,null,null,null,null,null,null,null,null,null,null,null,null,null,null,null,null,null,null,null,null,null,null,null,null,null,null,null,null,null,null,"","","",{"$f":"IF(COUNTBLANK(Sociodemograficos[[#This Row],[Nombres y Apellidos]])=0,Sociodemograficos[[#This Row],[Nombres y Apellidos]],\"\")","v":""}]
["",null,null,null,null,null,null,null,null,null,null,null,null,null,null,null,null,null,null,null,null,null,null,null,null,null,null,null,null,null,null,null,null,null,null,null,null,null,null,null,null,null,null,null,null,null,null,null,"","","",{"$f":"IF(COUNTBLANK(Sociodemograficos[[#This Row],[Nombres y Apellidos]])=0,Sociodemograficos[[#This Row],[Nombres y Apellidos]],\"\")","v":""}]
["",null,null,null,null,null,null,null,null,null,null,null,null,null,null,null,null,null,null,null,null,null,null,null,null,null,null,null,null,null,null,null,null,null,null,null,null,null,null,null,null,null,null,null,null,null,null,null,"","","",{"$f":"IF(COUNTBLANK(Sociodemograficos[[#This Row],[Nombres y Apellidos]])=0,Sociodemograficos[[#This Row],[Nombres y Apellidos]],\"\")","v":""}]
["",null,null,null,null,null,null,null,null,null,null,null,null,null,null,null,null,null,null,null,null,null,null,null,null,null,null,null,null,null,null,null,null,null,null,null,null,null,null,null,null,null,null,null,null,null,null,null,"","","",{"$f":"IF(COUNTBLANK(Sociodemograficos[[#This Row],[Nombres y Apellidos]])=0,Sociodemograficos[[#This Row],[Nombres y Apellidos]],\"\")","v":""}]
["",null,null,null,null,null,null,null,null,null,null,null,null,null,null,null,null,null,null,null,null,null,null,null,null,null,null,null,null,null,null,null,null,null,null,null,null,null,null,null,null,null,null,null,null,null,null,null,"","","",{"$f":"IF(COUNTBLANK(Sociodemograficos[[#This Row],[Nombres y Apellidos]])=0,Sociodemograficos[[#This Row],[Nombres y Apellidos]],\"\")","v":""}]
["",null,null,null,null,null,null,null,null,null,null,null,null,null,null,null,null,null,null,null,null,null,null,null,null,null,null,null,null,null,null,null,null,null,null,null,null,null,null,null,null,null,null,null,null,null,null,null,"","","",{"$f":"IF(COUNTBLANK(Sociodemograficos[[#This Row],[Nombres y Apellidos]])=0,Sociodemograficos[[#This Row],[Nombres y Apellidos]],\"\")","v":""}]
["",null,null,null,null,null,null,null,null,null,null,null,null,null,null,null,null,null,null,null,null,null,null,null,null,null,null,null,null,null,null,null,null,null,null,null,null,null,null,null,null,null,null,null,null,null,null,null,"","","",{"$f":"IF(COUNTBLANK(Sociodemograficos[[#This Row],[Nombres y Apellidos]])=0,Sociodemograficos[[#This Row],[Nombres y Apellidos]],\"\")","v":""}]
["",null,null,null,null,null,null,null,null,null,null,null,null,null,null,null,null,null,null,null,null,null,null,null,null,null,null,null,null,null,null,null,null,null,null,null,null,null,null,null,null,null,null,null,null,null,null,null,"","","",{"$f":"IF(COUNTBLANK(Sociodemograficos[[#This Row],[Nombres y Apellidos]])=0,Sociodemograficos[[#This Row],[Nombres y Apellidos]],\"\")","v":""}]
["",null,null,null,null,null,null,null,null,null,null,null,null,null,null,null,null,null,null,null,null,null,null,null,null,null,null,null,null,null,null,null,null,null,null,null,null,null,null,null,null,null,null,null,null,null,null,null,"","","",{"$f":"IF(COUNTBLANK(Sociodemograficos[[#This Row],[Nombres y Apellidos]])=0,Sociodemograficos[[#This Row],[Nombres y Apellidos]],\"\")","v":""}]
["",null,null,null,null,null,null,null,null,null,null,null,null,null,null,null,null,null,null,null,null,null,null,null,null,null,null,null,null,null,null,null,null,null,null,null,null,null,null,null,null,null,null,null,null,null,null,null,"","","",{"$f":"IF(COUNTBLANK(Sociodemograficos[[#This Row],[Nombres y Apellidos]])=0,Sociodemograficos[[#This Row],[Nombres y Apellidos]],\"\")","v":""}]
["",null,null,null,null,null,null,null,null,null,null,null,null,null,null,null,null,null,null,null,null,null,null,null,null,null,null,null,null,null,null,null,null,null,null,null,null,null,null,null,null,null,null,null,null,null,null,null,"","","",{"$f":"IF(COUNTBLANK(Sociodemograficos[[#This Row],[Nombres y Apellidos]])=0,Sociodemograficos[[#This Row],[Nombres y Apellidos]],\"\")","v":""}]
["",null,null,null,null,null,null,null,null,null,null,null,null,null,null,null,null,null,null,null,null,null,null,null,null,null,null,null,null,null,null,null,null,null,null,null,null,null,null,null,null,null,null,null,null,null,null,null,"","","",{"$f":"IF(COUNTBLANK(Sociodemograficos[[#This Row],[Nombres y Apellidos]])=0,Sociodemograficos[[#This Row],[Nombres y Apellidos]],\"\")","v":""}]
["",null,null,null,null,null,null,null,null,null,null,null,null,null,null,null,null,null,null,null,null,null,null,null,null,null,null,null,null,null,null,null,null,null,null,null,null,null,null,null,null,null,null,null,null,null,null,null,"","","",{"$f":"IF(COUNTBLANK(Sociodemograficos[[#This Row],[Nombres y Apellidos]])=0,Sociodemograficos[[#This Row],[Nombres y Apellidos]],\"\")","v":""}]
["",null,null,null,null,null,null,null,null,null,null,null,null,null,null,null,null,null,null,null,null,null,null,null,null,null,null,null,null,null,null,null,null,null,null,null,null,null,null,null,null,null,null,null,null,null,null,null,"","","",{"$f":"IF(COUNTBLANK(Sociodemograficos[[#This Row],[Nombres y Apellidos]])=0,Sociodemograficos[[#This Row],[Nombres y Apellidos]],\"\")","v":""}]
["",null,null,null,null,null,null,null,null,null,null,null,null,null,null,null,null,null,null,null,null,null,null,null,null,null,null,null,null,null,null,null,null,null,null,null,null,null,null,null,null,null,null,null,null,null,null,null,"","","",{"$f":"IF(COUNTBLANK(Sociodemograficos[[#This Row],[Nombres y Apellidos]])=0,Sociodemograficos[[#This Row],[Nombres y Apellidos]],\"\")","v":""}]
["",null,null,null,null,null,null,null,null,null,null,null,null,null,null,null,null,null,null,null,null,null,null,null,null,null,null,null,null,null,null,null,null,null,null,null,null,null,null,null,null,null,null,null,null,null,null,null,"","","",{"$f":"IF(COUNTBLANK(Sociodemograficos[[#This Row],[Nombres y Apellidos]])=0,Sociodemograficos[[#This Row],[Nombres y Apellidos]],\"\")","v":""}]
["",null,null,null,null,null,null,null,null,null,null,null,null,null,null,null,null,null,null,null,null,null,null,null,null,null,null,null,null,null,null,null,null,null,null,null,null,null,null,null,null,null,null,null,null,null,null,null,"","","",{"$f":"IF(COUNTBLANK(Sociodemograficos[[#This Row],[Nombres y Apellidos]])=0,Sociodemograficos[[#This Row],[Nombres y Apellidos]],\"\")","v":""}]
["",null,null,null,null,null,null,null,null,null,null,null,null,null,null,null,null,null,null,null,null,null,null,null,null,null,null,null,null,null,null,null,null,null,null,null,null,null,null,null,null,null,null,null,null,null,null,null,"","","",{"$f":"IF(COUNTBLANK(Sociodemograficos[[#This Row],[Nombres y Apellidos]])=0,Sociodemograficos[[#This Row],[Nombres y Apellidos]],\"\")","v":""}]
["",null,null,null,null,null,null,null,null,null,null,null,null,null,null,null,null,null,null,null,null,null,null,null,null,null,null,null,null,null,null,null,null,null,null,null,null,null,null,null,null,null,null,null,null,null,null,null,"","","",{"$f":"IF(COUNTBLANK(Sociodemograficos[[#This Row],[Nombres y Apellidos]])=0,Sociodemograficos[[#This Row],[Nombres y Apellidos]],\"\")","v":""}]
["",null,null,null,null,null,null,null,null,null,null,null,null,null,null,null,null,null,null,null,null,null,null,null,null,null,null,null,null,null,null,null,null,null,null,null,null,null,null,null,null,null,null,null,null,null,null,null,"","","",{"$f":"IF(COUNTBLANK(Sociodemograficos[[#This Row],[Nombres y Apellidos]])=0,Sociodemograficos[[#This Row],[Nombres y Apellidos]],\"\")","v":""}]
["",null,null,null,null,null,null,null,null,null,null,null,null,null,null,null,null,null,null,null,null,null,null,null,null,null,null,null,null,null,null,null,null,null,null,null,null,null,null,null,null,null,null,null,null,null,null,null,"","","",{"$f":"IF(COUNTBLANK(Sociodemograficos[[#This Row],[Nombres y Apellidos]])=0,Sociodemograficos[[#This Row],[Nombres y Apellidos]],\"\")","v":""}]
["",null,null,null,null,null,null,null,null,null,null,null,null,null,null,null,null,null,null,null,null,null,null,null,null,null,null,null,null,null,null,null,null,null,null,null,null,null,null,null,null,null,null,null,null,null,null,null,"","","",{"$f":"IF(COUNTBLANK(Sociodemograficos[[#This Row],[Nombres y Apellidos]])=0,Sociodemograficos[[#This Row],[Nombres y Apellidos]],\"\")","v":""}]
["",null,null,null,null,null,null,null,null,null,null,null,null,null,null,null,null,null,null,null,null,null,null,null,null,null,null,null,null,null,null,null,null,null,null,null,null,null,null,null,null,null,null,null,null,null,null,null,"","","",{"$f":"IF(COUNTBLANK(Sociodemograficos[[#This Row],[Nombres y Apellidos]])=0,Sociodemograficos[[#This Row],[Nombres y Apellidos]],\"\")","v":""}]
["",null,null,null,null,null,null,null,null,null,null,null,null,null,null,null,null,null,null,null,null,null,null,null,null,null,null,null,null,null,null,null,null,null,null,null,null,null,null,null,null,null,null,null,null,null,null,null,"","","",{"$f":"IF(COUNTBLANK(Sociodemograficos[[#This Row],[Nombres y Apellidos]])=0,Sociodemograficos[[#This Row],[Nombres y Apellidos]],\"\")","v":""}]
["",null,null,null,null,null,null,null,null,null,null,null,null,null,null,null,null,null,null,null,null,null,null,null,null,null,null,null,null,null,null,null,null,null,null,null,null,null,null,null,null,null,null,null,null,null,null,null,"","","",{"$f":"IF(COUNTBLANK(Sociodemograficos[[#This Row],[Nombres y Apellidos]])=0,Sociodemograficos[[#This Row],[Nombres y Apellidos]],\"\")","v":""}]
["",null,null,null,null,null,null,null,null,null,null,null,null,null,null,null,null,null,null,null,null,null,null,null,null,null,null,null,null,null,null,null,null,null,null,null,null,null,null,null,null,null,null,null,null,null,null,null,"","","",{"$f":"IF(COUNTBLANK(Sociodemograficos[[#This Row],[Nombres y Apellidos]])=0,Sociodemograficos[[#This Row],[Nombres y Apellidos]],\"\")","v":""}]
["",null,null,null,null,null,null,null,null,null,null,null,null,null,null,null,null,null,null,null,null,null,null,null,null,null,null,null,null,null,null,null,null,null,null,null,null,null,null,null,null,null,null,null,null,null,null,null,"","","",{"$f":"IF(COUNTBLANK(Sociodemograficos[[#This Row],[Nombres y Apellidos]])=0,Sociodemograficos[[#This Row],[Nombres y Apellidos]],\"\")","v":""}]
["",null,null,null,null,null,null,null,null,null,null,null,null,null,null,null,null,null,null,null,null,null,null,null,null,null,null,null,null,null,null,null,null,null,null,null,null,null,null,null,null,null,null,null,null,null,null,null,"","","",{"$f":"IF(COUNTBLANK(Sociodemograficos[[#This Row],[Nombres y Apellidos]])=0,Sociodemograficos[[#This Row],[Nombres y Apellidos]],\"\")","v":""}]
["",null,null,null,null,null,null,null,null,null,null,null,null,null,null,null,null,null,null,null,null,null,null,null,null,null,null,null,null,null,null,null,null,null,null,null,null,null,null,null,null,null,null,null,null,null,null,null,"","","",{"$f":"IF(COUNTBLANK(Sociodemograficos[[#This Row],[Nombres y Apellidos]])=0,Sociodemograficos[[#This Row],[Nombres y Apellidos]],\"\")","v":""}]
["",null,null,null,null,null,null,null,null,null,null,null,null,null,null,null,null,null,null,null,null,null,null,null,null,null,null,null,null,null,null,null,null,null,null,null,null,null,null,null,null,null,null,null,null,null,null,null,"","","",{"$f":"IF(COUNTBLANK(Sociodemograficos[[#This Row],[Nombres y Apellidos]])=0,Sociodemograficos[[#This Row],[Nombres y Apellidos]],\"\")","v":""}]
["",null,null,null,null,null,null,null,null,null,null,null,null,null,null,null,null,null,null,null,null,null,null,null,null,null,null,null,null,null,null,null,null,null,null,null,null,null,null,null,null,null,null,null,null,null,null,null,"","","",{"$f":"IF(COUNTBLANK(Sociodemograficos[[#This Row],[Nombres y Apellidos]])=0,Sociodemograficos[[#This Row],[Nombres y Apellidos]],\"\")","v":""}]
["",null,null,null,null,null,null,null,null,null,null,null,null,null,null,null,null,null,null,null,null,null,null,null,null,null,null,null,null,null,null,null,null,null,null,null,null,null,null,null,null,null,null,null,null,null,null,null,"","","",{"$f":"IF(COUNTBLANK(Sociodemograficos[[#This Row],[Nombres y Apellidos]])=0,Sociodemograficos[[#This Row],[Nombres y Apellidos]],\"\")","v":""}]
["",null,null,null,null,null,null,null,null,null,null,null,null,null,null,null,null,null,null,null,null,null,null,null,null,null,null,null,null,null,null,null,null,null,null,null,null,null,null,null,null,null,null,null,null,null,null,null,"","","",{"$f":"IF(COUNTBLANK(Sociodemograficos[[#This Row],[Nombres y Apellidos]])=0,Sociodemograficos[[#This Row],[Nombres y Apellidos]],\"\")","v":""}]
["",null,null,null,null,null,null,null,null,null,null,null,null,null,null,null,null,null,null,null,null,null,null,null,null,null,null,null,null,null,null,null,null,null,null,null,null,null,null,null,null,null,null,null,null,null,null,null,"","","",{"$f":"IF(COUNTBLANK(Sociodemograficos[[#This Row],[Nombres y Apellidos]])=0,Sociodemograficos[[#This Row],[Nombres y Apellidos]],\"\")","v":""}]
["",null,null,null,null,null,null,null,null,null,null,null,null,null,null,null,null,null,null,null,null,null,null,null,null,null,null,null,null,null,null,null,null,null,null,null,null,null,null,null,null,null,null,null,null,null,null,null,"","","",{"$f":"IF(COUNTBLANK(Sociodemograficos[[#This Row],[Nombres y Apellidos]])=0,Sociodemograficos[[#This Row],[Nombres y Apellidos]],\"\")","v":""}]
["",null,null,null,null,null,null,null,null,null,null,null,null,null,null,null,null,null,null,null,null,null,null,null,null,null,null,null,null,null,null,null,null,null,null,null,null,null,null,null,null,null,null,null,null,null,null,null,"","","",{"$f":"IF(COUNTBLANK(Sociodemograficos[[#This Row],[Nombres y Apellidos]])=0,Sociodemograficos[[#This Row],[Nombres y Apellidos]],\"\")","v":""}]
["",null,null,null,null,null,null,null,null,null,null,null,null,null,null,null,null,null,null,null,null,null,null,null,null,null,null,null,null,null,null,null,null,null,null,null,null,null,null,null,null,null,null,null,null,null,null,null,"","","",{"$f":"IF(COUNTBLANK(Sociodemograficos[[#This Row],[Nombres y Apellidos]])=0,Sociodemograficos[[#This Row],[Nombres y Apellidos]],\"\")","v":""}]
["",null,null,null,null,null,null,null,null,null,null,null,null,null,null,null,null,null,null,null,null,null,null,null,null,null,null,null,null,null,null,null,null,null,null,null,null,null,null,null,null,null,null,null,null,null,null,null,"","","",{"$f":"IF(COUNTBLANK(Sociodemograficos[[#This Row],[Nombres y Apellidos]])=0,Sociodemograficos[[#This Row],[Nombres y Apellidos]],\"\")","v":""}]
["",null,null,null,null,null,null,null,null,null,null,null,null,null,null,null,null,null,null,null,null,null,null,null,null,null,null,null,null,null,null,null,null,null,null,null,null,null,null,null,null,null,null,null,null,null,null,null,"","","",{"$f":"IF(COUNTBLANK(Sociodemograficos[[#This Row],[Nombres y Apellidos]])=0,Sociodemograficos[[#This Row],[Nombres y Apellidos]],\"\")","v":""}]
["",null,null,null,null,null,null,null,null,null,null,null,null,null,null,null,null,null,null,null,null,null,null,null,null,null,null,null,null,null,null,null,null,null,null,null,null,null,null,null,null,null,null,null,null,null,null,null,"","","",{"$f":"IF(COUNTBLANK(Sociodemograficos[[#This Row],[Nombres y Apellidos]])=0,Sociodemograficos[[#This Row],[Nombres y Apellidos]],\"\")","v":""}]
["",null,null,null,null,null,null,null,null,null,null,null,null,null,null,null,null,null,null,null,null,null,null,null,null,null,null,null,null,null,null,null,null,null,null,null,null,null,null,null,null,null,null,null,null,null,null,null,"","","",{"$f":"IF(COUNTBLANK(Sociodemograficos[[#This Row],[Nombres y Apellidos]])=0,Sociodemograficos[[#This Row],[Nombres y Apellidos]],\"\")","v":""}]
["",null,null,null,null,null,null,null,null,null,null,null,null,null,null,null,null,null,null,null,null,null,null,null,null,null,null,null,null,null,null,null,null,null,null,null,null,null,null,null,null,null,null,null,null,null,null,null,"","","",{"$f":"IF(COUNTBLANK(Sociodemograficos[[#This Row],[Nombres y Apellidos]])=0,Sociodemograficos[[#This Row],[Nombres y Apellidos]],\"\")","v":""}]
["",null,null,null,null,null,null,null,null,null,null,null,null,null,null,null,null,null,null,null,null,null,null,null,null,null,null,null,null,null,null,null,null,null,null,null,null,null,null,null,null,null,null,null,null,null,null,null,"","","",{"$f":"IF(COUNTBLANK(Sociodemograficos[[#This Row],[Nombres y Apellidos]])=0,Sociodemograficos[[#This Row],[Nombres y Apellidos]],\"\")","v":""}]
["",null,null,null,null,null,null,null,null,null,null,null,null,null,null,null,null,null,null,null,null,null,null,null,null,null,null,null,null,null,null,null,null,null,null,null,null,null,null,null,null,null,null,null,null,null,null,null,"","","",{"$f":"IF(COUNTBLANK(Sociodemograficos[[#This Row],[Nombres y Apellidos]])=0,Sociodemograficos[[#This Row],[Nombres y Apellidos]],\"\")","v":""}]
["",null,null,null,null,null,null,null,null,null,null,null,null,null,null,null,null,null,null,null,null,null,null,null,null,null,null,null,null,null,null,null,null,null,null,null,null,null,null,null,null,null,null,null,null,null,null,null,"","","",{"$f":"IF(COUNTBLANK(Sociodemograficos[[#This Row],[Nombres y Apellidos]])=0,Sociodemograficos[[#This Row],[Nombres y Apellidos]],\"\")","v":""}]
["",null,null,null,null,null,null,null,null,null,null,null,null,null,null,null,null,null,null,null,null,null,null,null,null,null,null,null,null,null,null,null,null,null,null,null,null,null,null,null,null,null,null,null,null,null,null,null,"","","",{"$f":"IF(COUNTBLANK(Sociodemograficos[[#This Row],[Nombres y Apellidos]])=0,Sociodemograficos[[#This Row],[Nombres y Apellidos]],\"\")","v":""}]
["",null,null,null,null,null,null,null,null,null,null,null,null,null,null,null,null,null,null,null,null,null,null,null,null,null,null,null,null,null,null,null,null,null,null,null,null,null,null,null,null,null,null,null,null,null,null,null,"","","",{"$f":"IF(COUNTBLANK(Sociodemograficos[[#This Row],[Nombres y Apellidos]])=0,Sociodemograficos[[#This Row],[Nombres y Apellidos]],\"\")","v":""}]
["",null,null,null,null,null,null,null,null,null,null,null,null,null,null,null,null,null,null,null,null,null,null,null,null,null,null,null,null,null,null,null,null,null,null,null,null,null,null,null,null,null,null,null,null,null,null,null,"","","",{"$f":"IF(COUNTBLANK(Sociodemograficos[[#This Row],[Nombres y Apellidos]])=0,Sociodemograficos[[#This Row],[Nombres y Apellidos]],\"\")","v":""}]
["",null,null,null,null,null,null,null,null,null,null,null,null,null,null,null,null,null,null,null,null,null,null,null,null,null,null,null,null,null,null,null,null,null,null,null,null,null,null,null,null,null,null,null,null,null,null,null,"","","",{"$f":"IF(COUNTBLANK(Sociodemograficos[[#This Row],[Nombres y Apellidos]])=0,Sociodemograficos[[#This Row],[Nombres y Apellidos]],\"\")","v":""}]
["",null,null,null,null,null,null,null,null,null,null,null,null,null,null,null,null,null,null,null,null,null,null,null,null,null,null,null,null,null,null,null,null,null,null,null,null,null,null,null,null,null,null,null,null,null,null,null,"","","",{"$f":"IF(COUNTBLANK(Sociodemograficos[[#This Row],[Nombres y Apellidos]])=0,Sociodemograficos[[#This Row],[Nombres y Apellidos]],\"\")","v":""}]
["",null,null,null,null,null,null,null,null,null,null,null,null,null,null,null,null,null,null,null,null,null,null,null,null,null,null,null,null,null,null,null,null,null,null,null,null,null,null,null,null,null,null,null,null,null,null,null,"","","",{"$f":"IF(COUNTBLANK(Sociodemograficos[[#This Row],[Nombres y Apellidos]])=0,Sociodemograficos[[#This Row],[Nombres y Apellidos]],\"\")","v":""}]
["",null,null,null,null,null,null,null,null,null,null,null,null,null,null,null,null,null,null,null,null,null,null,null,null,null,null,null,null,null,null,null,null,null,null,null,null,null,null,null,null,null,null,null,null,null,null,null,"","","",{"$f":"IF(COUNTBLANK(Sociodemograficos[[#This Row],[Nombres y Apellidos]])=0,Sociodemograficos[[#This Row],[Nombres y Apellidos]],\"\")","v":""}]
["",null,null,null,null,null,null,null,null,null,null,null,null,null,null,null,null,null,null,null,null,null,null,null,null,null,null,null,null,null,null,null,null,null,null,null,null,null,null,null,null,null,null,null,null,null,null,null,"","","",{"$f":"IF(COUNTBLANK(Sociodemograficos[[#This Row],[Nombres y Apellidos]])=0,Sociodemograficos[[#This Row],[Nombres y Apellidos]],\"\")","v":""}]
["",null,null,null,null,null,null,null,null,null,null,null,null,null,null,null,null,null,null,null,null,null,null,null,null,null,null,null,null,null,null,null,null,null,null,null,null,null,null,null,null,null,null,null,null,null,null,null,"","","",{"$f":"IF(COUNTBLANK(Sociodemograficos[[#This Row],[Nombres y Apellidos]])=0,Sociodemograficos[[#This Row],[Nombres y Apellidos]],\"\")","v":""}]
["",null,null,null,null,null,null,null,null,null,null,null,null,null,null,null,null,null,null,null,null,null,null,null,null,null,null,null,null,null,null,null,null,null,null,null,null,null,null,null,null,null,null,null,null,null,null,null,"","","",{"$f":"IF(COUNTBLANK(Sociodemograficos[[#This Row],[Nombres y Apellidos]])=0,Sociodemograficos[[#This Row],[Nombres y Apellidos]],\"\")","v":""}]
["",null,null,null,null,null,null,null,null,null,null,null,null,null,null,null,null,null,null,null,null,null,null,null,null,null,null,null,null,null,null,null,null,null,null,null,null,null,null,null,null,null,null,null,null,null,null,null,"","","",{"$f":"IF(COUNTBLANK(Sociodemograficos[[#This Row],[Nombres y Apellidos]])=0,Sociodemograficos[[#This Row],[Nombres y Apellidos]],\"\")","v":""}]
["",null,null,null,null,null,null,null,null,null,null,null,null,null,null,null,null,null,null,null,null,null,null,null,null,null,null,null,null,null,null,null,null,null,null,null,null,null,null,null,null,null,null,null,null,null,null,null,"","","",{"$f":"IF(COUNTBLANK(Sociodemograficos[[#This Row],[Nombres y Apellidos]])=0,Sociodemograficos[[#This Row],[Nombres y Apellidos]],\"\")","v":""}]
["",null,null,null,null,null,null,null,null,null,null,null,null,null,null,null,null,null,null,null,null,null,null,null,null,null,null,null,null,null,null,null,null,null,null,null,null,null,null,null,null,null,null,null,null,null,null,null,"","","",{"$f":"IF(COUNTBLANK(Sociodemograficos[[#This Row],[Nombres y Apellidos]])=0,Sociodemograficos[[#This Row],[Nombres y Apellidos]],\"\")","v":""}]
["",null,null,null,null,null,null,null,null,null,null,null,null,null,null,null,null,null,null,null,null,null,null,null,null,null,null,null,null,null,null,null,null,null,null,null,null,null,null,null,null,null,null,null,null,null,null,null,"","","",{"$f":"IF(COUNTBLANK(Sociodemograficos[[#This Row],[Nombres y Apellidos]])=0,Sociodemograficos[[#This Row],[Nombres y Apellidos]],\"\")","v":""}]
["",null,null,null,null,null,null,null,null,null,null,null,null,null,null,null,null,null,null,null,null,null,null,null,null,null,null,null,null,null,null,null,null,null,null,null,null,null,null,null,null,null,null,null,null,null,null,null,"","","",{"$f":"IF(COUNTBLANK(Sociodemograficos[[#This Row],[Nombres y Apellidos]])=0,Sociodemograficos[[#This Row],[Nombres y Apellidos]],\"\")","v":""}]
["",null,null,null,null,null,null,null,null,null,null,null,null,null,null,null,null,null,null,null,null,null,null,null,null,null,null,null,null,null,null,null,null,null,null,null,null,null,null,null,null,null,null,null,null,null,null,null,"","","",{"$f":"IF(COUNTBLANK(Sociodemograficos[[#This Row],[Nombres y Apellidos]])=0,Sociodemograficos[[#This Row],[Nombres y Apellidos]],\"\")","v":""}]
["",null,null,null,null,null,null,null,null,null,null,null,null,null,null,null,null,null,null,null,null,null,null,null,null,null,null,null,null,null,null,null,null,null,null,null,null,null,null,null,null,null,null,null,null,null,null,null,"","","",{"$f":"IF(COUNTBLANK(Sociodemograficos[[#This Row],[Nombres y Apellidos]])=0,Sociodemograficos[[#This Row],[Nombres y Apellidos]],\"\")","v":""}]
["",null,null,null,null,null,null,null,null,null,null,null,null,null,null,null,null,null,null,null,null,null,null,null,null,null,null,null,null,null,null,null,null,null,null,null,null,null,null,null,null,null,null,null,null,null,null,null,"","","",{"$f":"IF(COUNTBLANK(Sociodemograficos[[#This Row],[Nombres y Apellidos]])=0,Sociodemograficos[[#This Row],[Nombres y Apellidos]],\"\")","v":""}]
["",null,null,null,null,null,null,null,null,null,null,null,null,null,null,null,null,null,null,null,null,null,null,null,null,null,null,null,null,null,null,null,null,null,null,null,null,null,null,null,null,null,null,null,null,null,null,null,"","","",{"$f":"IF(COUNTBLANK(Sociodemograficos[[#This Row],[Nombres y Apellidos]])=0,Sociodemograficos[[#This Row],[Nombres y Apellidos]],\"\")","v":""}]
["",null,null,null,null,null,null,null,null,null,null,null,null,null,null,null,null,null,null,null,null,null,null,null,null,null,null,null,null,null,null,null,null,null,null,null,null,null,null,null,null,null,null,null,null,null,null,null,"","","",{"$f":"IF(COUNTBLANK(Sociodemograficos[[#This Row],[Nombres y Apellidos]])=0,Sociodemograficos[[#This Row],[Nombres y Apellidos]],\"\")","v":""}]
["",null,null,null,null,null,null,null,null,null,null,null,null,null,null,null,null,null,null,null,null,null,null,null,null,null,null,null,null,null,null,null,null,null,null,null,null,null,null,null,null,null,null,null,null,null,null,null,"","","",{"$f":"IF(COUNTBLANK(Sociodemograficos[[#This Row],[Nombres y Apellidos]])=0,Sociodemograficos[[#This Row],[Nombres y Apellidos]],\"\")","v":""}]
["",null,null,null,null,null,null,null,null,null,null,null,null,null,null,null,null,null,null,null,null,null,null,null,null,null,null,null,null,null,null,null,null,null,null,null,null,null,null,null,null,null,null,null,null,null,null,null,"","","",{"$f":"IF(COUNTBLANK(Sociodemograficos[[#This Row],[Nombres y Apellidos]])=0,Sociodemograficos[[#This Row],[Nombres y Apellidos]],\"\")","v":""}]
["",null,null,null,null,null,null,null,null,null,null,null,null,null,null,null,null,null,null,null,null,null,null,null,null,null,null,null,null,null,null,null,null,null,null,null,null,null,null,null,null,null,null,null,null,null,null,null,"","","",{"$f":"IF(COUNTBLANK(Sociodemograficos[[#This Row],[Nombres y Apellidos]])=0,Sociodemograficos[[#This Row],[Nombres y Apellidos]],\"\")","v":""}]
["",null,null,null,null,null,null,null,null,null,null,null,null,null,null,null,null,null,null,null,null,null,null,null,null,null,null,null,null,null,null,null,null,null,null,null,null,null,null,null,null,null,null,null,null,null,null,null,"","","",{"$f":"IF(COUNTBLANK(Sociodemograficos[[#This Row],[Nombres y Apellidos]])=0,Sociodemograficos[[#This Row],[Nombres y Apellidos]],\"\")","v":""}]
["",null,null,null,null,null,null,null,null,null,null,null,null,null,null,null,null,null,null,null,null,null,null,null,null,null,null,null,null,null,null,null,null,null,null,null,null,null,null,null,null,null,null,null,null,null,null,null,"","","",{"$f":"IF(COUNTBLANK(Sociodemograficos[[#This Row],[Nombres y Apellidos]])=0,Sociodemograficos[[#This Row],[Nombres y Apellidos]],\"\")","v":""}]
["",null,null,null,null,null,null,null,null,null,null,null,null,null,null,null,null,null,null,null,null,null,null,null,null,null,null,null,null,null,null,null,null,null,null,null,null,null,null,null,null,null,null,null,null,null,null,null,"","","",{"$f":"IF(COUNTBLANK(Sociodemograficos[[#This Row],[Nombres y Apellidos]])=0,Sociodemograficos[[#This Row],[Nombres y Apellidos]],\"\")","v":""}]
["",null,null,null,null,null,null,null,null,null,null,null,null,null,null,null,null,null,null,null,null,null,null,null,null,null,null,null,null,null,null,null,null,null,null,null,null,null,null,null,null,null,null,null,null,null,null,null,"","","",{"$f":"IF(COUNTBLANK(Sociodemograficos[[#This Row],[Nombres y Apellidos]])=0,Sociodemograficos[[#This Row],[Nombres y Apellidos]],\"\")","v":""}]
["",null,null,null,null,null,null,null,null,null,null,null,null,null,null,null,null,null,null,null,null,null,null,null,null,null,null,null,null,null,null,null,null,null,null,null,null,null,null,null,null,null,null,null,null,null,null,null,"","","",{"$f":"IF(COUNTBLANK(Sociodemograficos[[#This Row],[Nombres y Apellidos]])=0,Sociodemograficos[[#This Row],[Nombres y Apellidos]],\"\")","v":""}]
["",null,null,null,null,null,null,null,null,null,null,null,null,null,null,null,null,null,null,null,null,null,null,null,null,null,null,null,null,null,null,null,null,null,null,null,null,null,null,null,null,null,null,null,null,null,null,null,"","","",{"$f":"IF(COUNTBLANK(Sociodemograficos[[#This Row],[Nombres y Apellidos]])=0,Sociodemograficos[[#This Row],[Nombres y Apellidos]],\"\")","v":""}]
["",null,null,null,null,null,null,null,null,null,null,null,null,null,null,null,null,null,null,null,null,null,null,null,null,null,null,null,null,null,null,null,null,null,null,null,null,null,null,null,null,null,null,null,null,null,null,null,"","","",{"$f":"IF(COUNTBLANK(Sociodemograficos[[#This Row],[Nombres y Apellidos]])=0,Sociodemograficos[[#This Row],[Nombres y Apellidos]],\"\")","v":""}]
["",null,null,null,null,null,null,null,null,null,null,null,null,null,null,null,null,null,null,null,null,null,null,null,null,null,null,null,null,null,null,null,null,null,null,null,null,null,null,null,null,null,null,null,null,null,null,null,"","","",{"$f":"IF(COUNTBLANK(Sociodemograficos[[#This Row],[Nombres y Apellidos]])=0,Sociodemograficos[[#This Row],[Nombres y Apellidos]],\"\")","v":""}]
["",null,null,null,null,null,null,null,null,null,null,null,null,null,null,null,null,null,null,null,null,null,null,null,null,null,null,null,null,null,null,null,null,null,null,null,null,null,null,null,null,null,null,null,null,null,null,null,"","","",{"$f":"IF(COUNTBLANK(Sociodemograficos[[#This Row],[Nombres y Apellidos]])=0,Sociodemograficos[[#This Row],[Nombres y Apellidos]],\"\")","v":""}]
["",null,null,null,null,null,null,null,null,null,null,null,null,null,null,null,null,null,null,null,null,null,null,null,null,null,null,null,null,null,null,null,null,null,null,null,null,null,null,null,null,null,null,null,null,null,null,null,"","","",{"$f":"IF(COUNTBLANK(Sociodemograficos[[#This Row],[Nombres y Apellidos]])=0,Sociodemograficos[[#This Row],[Nombres y Apellidos]],\"\")","v":""}]
["",null,null,null,null,null,null,null,null,null,null,null,null,null,null,null,null,null,null,null,null,null,null,null,null,null,null,null,null,null,null,null,null,null,null,null,null,null,null,null,null,null,null,null,null,null,null,null,"","","",{"$f":"IF(COUNTBLANK(Sociodemograficos[[#This Row],[Nombres y Apellidos]])=0,Sociodemograficos[[#This Row],[Nombres y Apellidos]],\"\")","v":""}]
["",null,null,null,null,null,null,null,null,null,null,null,null,null,null,null,null,null,null,null,null,null,null,null,null,null,null,null,null,null,null,null,null,null,null,null,null,null,null,null,null,null,null,null,null,null,null,null,"","","",{"$f":"IF(COUNTBLANK(Sociodemograficos[[#This Row],[Nombres y Apellidos]])=0,Sociodemograficos[[#This Row],[Nombres y Apellidos]],\"\")","v":""}]
["",null,null,null,null,null,null,null,null,null,null,null,null,null,null,null,null,null,null,null,null,null,null,null,null,null,null,null,null,null,null,null,null,null,null,null,null,null,null,null,null,null,null,null,null,null,null,null,"","","",{"$f":"IF(COUNTBLANK(Sociodemograficos[[#This Row],[Nombres y Apellidos]])=0,Sociodemograficos[[#This Row],[Nombres y Apellidos]],\"\")","v":""}]
["",null,null,null,null,null,null,null,null,null,null,null,null,null,null,null,null,null,null,null,null,null,null,null,null,null,null,null,null,null,null,null,null,null,null,null,null,null,null,null,null,null,null,null,null,null,null,null,"","","",{"$f":"IF(COUNTBLANK(Sociodemograficos[[#This Row],[Nombres y Apellidos]])=0,Sociodemograficos[[#This Row],[Nombres y Apellidos]],\"\")","v":""}]
["",null,null,null,null,null,null,null,null,null,null,null,null,null,null,null,null,null,null,null,null,null,null,null,null,null,null,null,null,null,null,null,null,null,null,null,null,null,null,null,null,null,null,null,null,null,null,null,"","","",{"$f":"IF(COUNTBLANK(Sociodemograficos[[#This Row],[Nombres y Apellidos]])=0,Sociodemograficos[[#This Row],[Nombres y Apellidos]],\"\")","v":""}]
["",null,null,null,null,null,null,null,null,null,null,null,null,null,null,null,null,null,null,null,null,null,null,null,null,null,null,null,null,null,null,null,null,null,null,null,null,null,null,null,null,null,null,null,null,null,null,null,"","","",{"$f":"IF(COUNTBLANK(Sociodemograficos[[#This Row],[Nombres y Apellidos]])=0,Sociodemograficos[[#This Row],[Nombres y Apellidos]],\"\")","v":""}]
["",null,null,null,null,null,null,null,null,null,null,null,null,null,null,null,null,null,null,null,null,null,null,null,null,null,null,null,null,null,null,null,null,null,null,null,null,null,null,null,null,null,null,null,null,null,null,null,"","","",{"$f":"IF(COUNTBLANK(Sociodemograficos[[#This Row],[Nombres y Apellidos]])=0,Sociodemograficos[[#This Row],[Nombres y Apellidos]],\"\")","v":""}]
["",null,null,null,null,null,null,null,null,null,null,null,null,null,null,null,null,null,null,null,null,null,null,null,null,null,null,null,null,null,null,null,null,null,null,null,null,null,null,null,null,null,null,null,null,null,null,null,"","","",{"$f":"IF(COUNTBLANK(Sociodemograficos[[#This Row],[Nombres y Apellidos]])=0,Sociodemograficos[[#This Row],[Nombres y Apellidos]],\"\")","v":""}]
["",null,null,null,null,null,null,null,null,null,null,null,null,null,null,null,null,null,null,null,null,null,null,null,null,null,null,null,null,null,null,null,null,null,null,null,null,null,null,null,null,null,null,null,null,null,null,null,"","","",{"$f":"IF(COUNTBLANK(Sociodemograficos[[#This Row],[Nombres y Apellidos]])=0,Sociodemograficos[[#This Row],[Nombres y Apellidos]],\"\")","v":""}]
["",null,null,null,null,null,null,null,null,null,null,null,null,null,null,null,null,null,null,null,null,null,null,null,null,null,null,null,null,null,null,null,null,null,null,null,null,null,null,null,null,null,null,null,null,null,null,null,"","","",{"$f":"IF(COUNTBLANK(Sociodemograficos[[#This Row],[Nombres y Apellidos]])=0,Sociodemograficos[[#This Row],[Nombres y Apellidos]],\"\")","v":""}]
["",null,null,null,null,null,null,null,null,null,null,null,null,null,null,null,null,null,null,null,null,null,null,null,null,null,null,null,null,null,null,null,null,null,null,null,null,null,null,null,null,null,null,null,null,null,null,null,"","","",{"$f":"IF(COUNTBLANK(Sociodemograficos[[#This Row],[Nombres y Apellidos]])=0,Sociodemograficos[[#This Row],[Nombres y Apellidos]],\"\")","v":""}]
["",null,null,null,null,null,null,null,null,null,null,null,null,null,null,null,null,null,null,null,null,null,null,null,null,null,null,null,null,null,null,null,null,null,null,null,null,null,null,null,null,null,null,null,null,null,null,null,"","","",{"$f":"IF(COUNTBLANK(Sociodemograficos[[#This Row],[Nombres y Apellidos]])=0,Sociodemograficos[[#This Row],[Nombres y Apellidos]],\"\")","v":""}]
["",null,null,null,null,null,null,null,null,null,null,null,null,null,null,null,null,null,null,null,null,null,null,null,null,null,null,null,null,null,null,null,null,null,null,null,null,null,null,null,null,null,null,null,null,null,null,null,"","","",{"$f":"IF(COUNTBLANK(Sociodemograficos[[#This Row],[Nombres y Apellidos]])=0,Sociodemograficos[[#This Row],[Nombres y Apellidos]],\"\")","v":""}]
["",null,null,null,null,null,null,null,null,null,null,null,null,null,null,null,null,null,null,null,null,null,null,null,null,null,null,null,null,null,null,null,null,null,null,null,null,null,null,null,null,null,null,null,null,null,null,null,"","","",{"$f":"IF(COUNTBLANK(Sociodemograficos[[#This Row],[Nombres y Apellidos]])=0,Sociodemograficos[[#This Row],[Nombres y Apellidos]],\"\")","v":""}]
["",null,null,null,null,null,null,null,null,null,null,null,null,null,null,null,null,null,null,null,null,null,null,null,null,null,null,null,null,null,null,null,null,null,null,null,null,null,null,null,null,null,null,null,null,null,null,null,"","","",{"$f":"IF(COUNTBLANK(Sociodemograficos[[#This Row],[Nombres y Apellidos]])=0,Sociodemograficos[[#This Row],[Nombres y Apellidos]],\"\")","v":""}]
["",null,null,null,null,null,null,null,null,null,null,null,null,null,null,null,null,null,null,null,null,null,null,null,null,null,null,null,null,null,null,null,null,null,null,null,null,null,null,null,null,null,null,null,null,null,null,null,"","","",{"$f":"IF(COUNTBLANK(Sociodemograficos[[#This Row],[Nombres y Apellidos]])=0,Sociodemograficos[[#This Row],[Nombres y Apellidos]],\"\")","v":""}]
["",null,null,null,null,null,null,null,null,null,null,null,null,null,null,null,null,null,null,null,null,null,null,null,null,null,null,null,null,null,null,null,null,null,null,null,null,null,null,null,null,null,null,null,null,null,null,null,"","","",{"$f":"IF(COUNTBLANK(Sociodemograficos[[#This Row],[Nombres y Apellidos]])=0,Sociodemograficos[[#This Row],[Nombres y Apellidos]],\"\")","v":""}]
["",null,null,null,null,null,null,null,null,null,null,null,null,null,null,null,null,null,null,null,null,null,null,null,null,null,null,null,null,null,null,null,null,null,null,null,null,null,null,null,null,null,null,null,null,null,null,null,"","","",{"$f":"IF(COUNTBLANK(Sociodemograficos[[#This Row],[Nombres y Apellidos]])=0,Sociodemograficos[[#This Row],[Nombres y Apellidos]],\"\")","v":""}]
["",null,null,null,null,null,null,null,null,null,null,null,null,null,null,null,null,null,null,null,null,null,null,null,null,null,null,null,null,null,null,null,null,null,null,null,null,null,null,null,null,null,null,null,null,null,null,null,"","","",{"$f":"IF(COUNTBLANK(Sociodemograficos[[#This Row],[Nombres y Apellidos]])=0,Sociodemograficos[[#This Row],[Nombres y Apellidos]],\"\")","v":""}]
["",null,null,null,null,null,null,null,null,null,null,null,null,null,null,null,null,null,null,null,null,null,null,null,null,null,null,null,null,null,null,null,null,null,null,null,null,null,null,null,null,null,null,null,null,null,null,null,"","","",{"$f":"IF(COUNTBLANK(Sociodemograficos[[#This Row],[Nombres y Apellidos]])=0,Sociodemograficos[[#This Row],[Nombres y Apellidos]],\"\")","v":""}]
["",null,null,null,null,null,null,null,null,null,null,null,null,null,null,null,null,null,null,null,null,null,null,null,null,null,null,null,null,null,null,null,null,null,null,null,null,null,null,null,null,null,null,null,null,null,null,null,"","","",{"$f":"IF(COUNTBLANK(Sociodemograficos[[#This Row],[Nombres y Apellidos]])=0,Sociodemograficos[[#This Row],[Nombres y Apellidos]],\"\")","v":""}]
["",null,null,null,null,null,null,null,null,null,null,null,null,null,null,null,null,null,null,null,null,null,null,null,null,null,null,null,null,null,null,null,null,null,null,null,null,null,null,null,null,null,null,null,null,null,null,null,"","","",{"$f":"IF(COUNTBLANK(Sociodemograficos[[#This Row],[Nombres y Apellidos]])=0,Sociodemograficos[[#This Row],[Nombres y Apellidos]],\"\")","v":""}]
["",null,null,null,null,null,null,null,null,null,null,null,null,null,null,null,null,null,null,null,null,null,null,null,null,null,null,null,null,null,null,null,null,null,null,null,null,null,null,null,null,null,null,null,null,null,null,null,"","","",{"$f":"IF(COUNTBLANK(Sociodemograficos[[#This Row],[Nombres y Apellidos]])=0,Sociodemograficos[[#This Row],[Nombres y Apellidos]],\"\")","v":""}]
["",null,null,null,null,null,null,null,null,null,null,null,null,null,null,null,null,null,null,null,null,null,null,null,null,null,null,null,null,null,null,null,null,null,null,null,null,null,null,null,null,null,null,null,null,null,null,null,"","","",{"$f":"IF(COUNTBLANK(Sociodemograficos[[#This Row],[Nombres y Apellidos]])=0,Sociodemograficos[[#This Row],[Nombres y Apellidos]],\"\")","v":""}]
["",null,null,null,null,null,null,null,null,null,null,null,null,null,null,null,null,null,null,null,null,null,null,null,null,null,null,null,null,null,null,null,null,null,null,null,null,null,null,null,null,null,null,null,null,null,null,null,"","","",{"$f":"IF(COUNTBLANK(Sociodemograficos[[#This Row],[Nombres y Apellidos]])=0,Sociodemograficos[[#This Row],[Nombres y Apellidos]],\"\")","v":""}]
["",null,null,null,null,null,null,null,null,null,null,null,null,null,null,null,null,null,null,null,null,null,null,null,null,null,null,null,null,null,null,null,null,null,null,null,null,null,null,null,null,null,null,null,null,null,null,null,"","","",{"$f":"IF(COUNTBLANK(Sociodemograficos[[#This Row],[Nombres y Apellidos]])=0,Sociodemograficos[[#This Row],[Nombres y Apellidos]],\"\")","v":""}]
["",null,null,null,null,null,null,null,null,null,null,null,null,null,null,null,null,null,null,null,null,null,null,null,null,null,null,null,null,null,null,null,null,null,null,null,null,null,null,null,null,null,null,null,null,null,null,null,"","","",{"$f":"IF(COUNTBLANK(Sociodemograficos[[#This Row],[Nombres y Apellidos]])=0,Sociodemograficos[[#This Row],[Nombres y Apellidos]],\"\")","v":""}]
["",null,null,null,null,null,null,null,null,null,null,null,null,null,null,null,null,null,null,null,null,null,null,null,null,null,null,null,null,null,null,null,null,null,null,null,null,null,null,null,null,null,null,null,null,null,null,null,"","","",{"$f":"IF(COUNTBLANK(Sociodemograficos[[#This Row],[Nombres y Apellidos]])=0,Sociodemograficos[[#This Row],[Nombres y Apellidos]],\"\")","v":""}]
["",null,null,null,null,null,null,null,null,null,null,null,null,null,null,null,null,null,null,null,null,null,null,null,null,null,null,null,null,null,null,null,null,null,null,null,null,null,null,null,null,null,null,null,null,null,null,null,"","","",{"$f":"IF(COUNTBLANK(Sociodemograficos[[#This Row],[Nombres y Apellidos]])=0,Sociodemograficos[[#This Row],[Nombres y Apellidos]],\"\")","v":""}]
["",null,null,null,null,null,null,null,null,null,null,null,null,null,null,null,null,null,null,null,null,null,null,null,null,null,null,null,null,null,null,null,null,null,null,null,null,null,null,null,null,null,null,null,null,null,null,null,"","","",{"$f":"IF(COUNTBLANK(Sociodemograficos[[#This Row],[Nombres y Apellidos]])=0,Sociodemograficos[[#This Row],[Nombres y Apellidos]],\"\")","v":""}]
["",null,null,null,null,null,null,null,null,null,null,null,null,null,null,null,null,null,null,null,null,null,null,null,null,null,null,null,null,null,null,null,null,null,null,null,null,null,null,null,null,null,null,null,null,null,null,null,"","","",{"$f":"IF(COUNTBLANK(Sociodemograficos[[#This Row],[Nombres y Apellidos]])=0,Sociodemograficos[[#This Row],[Nombres y Apellidos]],\"\")","v":""}]
["",null,null,null,null,null,null,null,null,null,null,null,null,null,null,null,null,null,null,null,null,null,null,null,null,null,null,null,null,null,null,null,null,null,null,null,null,null,null,null,null,null,null,null,null,null,null,null,"","","",{"$f":"IF(COUNTBLANK(Sociodemograficos[[#This Row],[Nombres y Apellidos]])=0,Sociodemograficos[[#This Row],[Nombres y Apellidos]],\"\")","v":""}]
["",null,null,null,null,null,null,null,null,null,null,null,null,null,null,null,null,null,null,null,null,null,null,null,null,null,null,null,null,null,null,null,null,null,null,null,null,null,null,null,null,null,null,null,null,null,null,null,"","","",{"$f":"IF(COUNTBLANK(Sociodemograficos[[#This Row],[Nombres y Apellidos]])=0,Sociodemograficos[[#This Row],[Nombres y Apellidos]],\"\")","v":""}]
["",null,null,null,null,null,null,null,null,null,null,null,null,null,null,null,null,null,null,null,null,null,null,null,null,null,null,null,null,null,null,null,null,null,null,null,null,null,null,null,null,null,null,null,null,null,null,null,"","","",{"$f":"IF(COUNTBLANK(Sociodemograficos[[#This Row],[Nombres y Apellidos]])=0,Sociodemograficos[[#This Row],[Nombres y Apellidos]],\"\")","v":""}]
["",null,null,null,null,null,null,null,null,null,null,null,null,null,null,null,null,null,null,null,null,null,null,null,null,null,null,null,null,null,null,null,null,null,null,null,null,null,null,null,null,null,null,null,null,null,null,null,"","","",{"$f":"IF(COUNTBLANK(Sociodemograficos[[#This Row],[Nombres y Apellidos]])=0,Sociodemograficos[[#This Row],[Nombres y Apellidos]],\"\")","v":""}]
["",null,null,null,null,null,null,null,null,null,null,null,null,null,null,null,null,null,null,null,null,null,null,null,null,null,null,null,null,null,null,null,null,null,null,null,null,null,null,null,null,null,null,null,null,null,null,null,"","","",{"$f":"IF(COUNTBLANK(Sociodemograficos[[#This Row],[Nombres y Apellidos]])=0,Sociodemograficos[[#This Row],[Nombres y Apellidos]],\"\")","v":""}]
["",null,null,null,null,null,null,null,null,null,null,null,null,null,null,null,null,null,null,null,null,null,null,null,null,null,null,null,null,null,null,null,null,null,null,null,null,null,null,null,null,null,null,null,null,null,null,null,"","","",{"$f":"IF(COUNTBLANK(Sociodemograficos[[#This Row],[Nombres y Apellidos]])=0,Sociodemograficos[[#This Row],[Nombres y Apellidos]],\"\")","v":""}]
["",null,null,null,null,null,null,null,null,null,null,null,null,null,null,null,null,null,null,null,null,null,null,null,null,null,null,null,null,null,null,null,null,null,null,null,null,null,null,null,null,null,null,null,null,null,null,null,"","","",{"$f":"IF(COUNTBLANK(Sociodemograficos[[#This Row],[Nombres y Apellidos]])=0,Sociodemograficos[[#This Row],[Nombres y Apellidos]],\"\")","v":""}]
["",null,null,null,null,null,null,null,null,null,null,null,null,null,null,null,null,null,null,null,null,null,null,null,null,null,null,null,null,null,null,null,null,null,null,null,null,null,null,null,null,null,null,null,null,null,null,null,"","","",{"$f":"IF(COUNTBLANK(Sociodemograficos[[#This Row],[Nombres y Apellidos]])=0,Sociodemograficos[[#This Row],[Nombres y Apellidos]],\"\")","v":""}]
["",null,null,null,null,null,null,null,null,null,null,null,null,null,null,null,null,null,null,null,null,null,null,null,null,null,null,null,null,null,null,null,null,null,null,null,null,null,null,null,null,null,null,null,null,null,null,null,"","","",{"$f":"IF(COUNTBLANK(Sociodemograficos[[#This Row],[Nombres y Apellidos]])=0,Sociodemograficos[[#This Row],[Nombres y Apellidos]],\"\")","v":""}]
["",null,null,null,null,null,null,null,null,null,null,null,null,null,null,null,null,null,null,null,null,null,null,null,null,null,null,null,null,null,null,null,null,null,null,null,null,null,null,null,null,null,null,null,null,null,null,null,"","","",{"$f":"IF(COUNTBLANK(Sociodemograficos[[#This Row],[Nombres y Apellidos]])=0,Sociodemograficos[[#This Row],[Nombres y Apellidos]],\"\")","v":""}]
["",null,null,null,null,null,null,null,null,null,null,null,null,null,null,null,null,null,null,null,null,null,null,null,null,null,null,null,null,null,null,null,null,null,null,null,null,null,null,null,null,null,null,null,null,null,null,null,"","","",{"$f":"IF(COUNTBLANK(Sociodemograficos[[#This Row],[Nombres y Apellidos]])=0,Sociodemograficos[[#This Row],[Nombres y Apellidos]],\"\")","v":""}]
["",null,null,null,null,null,null,null,null,null,null,null,null,null,null,null,null,null,null,null,null,null,null,null,null,null,null,null,null,null,null,null,null,null,null,null,null,null,null,null,null,null,null,null,null,null,null,null,"","","",{"$f":"IF(COUNTBLANK(Sociodemograficos[[#This Row],[Nombres y Apellidos]])=0,Sociodemograficos[[#This Row],[Nombres y Apellidos]],\"\")","v":""}]
["",null,null,null,null,null,null,null,null,null,null,null,null,null,null,null,null,null,null,null,null,null,null,null,null,null,null,null,null,null,null,null,null,null,null,null,null,null,null,null,null,null,null,null,null,null,null,null,"","","",{"$f":"IF(COUNTBLANK(Sociodemograficos[[#This Row],[Nombres y Apellidos]])=0,Sociodemograficos[[#This Row],[Nombres y Apellidos]],\"\")","v":""}]
["",null,null,null,null,null,null,null,null,null,null,null,null,null,null,null,null,null,null,null,null,null,null,null,null,null,null,null,null,null,null,null,null,null,null,null,null,null,null,null,null,null,null,null,null,null,null,null,"","","",{"$f":"IF(COUNTBLANK(Sociodemograficos[[#This Row],[Nombres y Apellidos]])=0,Sociodemograficos[[#This Row],[Nombres y Apellidos]],\"\")","v":""}]
["",null,null,null,null,null,null,null,null,null,null,null,null,null,null,null,null,null,null,null,null,null,null,null,null,null,null,null,null,null,null,null,null,null,null,null,null,null,null,null,null,null,null,null,null,null,null,null,"","","",{"$f":"IF(COUNTBLANK(Sociodemograficos[[#This Row],[Nombres y Apellidos]])=0,Sociodemograficos[[#This Row],[Nombres y Apellidos]],\"\")","v":""}]
["",null,null,null,null,null,null,null,null,null,null,null,null,null,null,null,null,null,null,null,null,null,null,null,null,null,null,null,null,null,null,null,null,null,null,null,null,null,null,null,null,null,null,null,null,null,null,null,"","","",{"$f":"IF(COUNTBLANK(Sociodemograficos[[#This Row],[Nombres y Apellidos]])=0,Sociodemograficos[[#This Row],[Nombres y Apellidos]],\"\")","v":""}]
["",null,null,null,null,null,null,null,null,null,null,null,null,null,null,null,null,null,null,null,null,null,null,null,null,null,null,null,null,null,null,null,null,null,null,null,null,null,null,null,null,null,null,null,null,null,null,null,"","","",{"$f":"IF(COUNTBLANK(Sociodemograficos[[#This Row],[Nombres y Apellidos]])=0,Sociodemograficos[[#This Row],[Nombres y Apellidos]],\"\")","v":""}]
["",null,null,null,null,null,null,null,null,null,null,null,null,null,null,null,null,null,null,null,null,null,null,null,null,null,null,null,null,null,null,null,null,null,null,null,null,null,null,null,null,null,null,null,null,null,null,null,"","","",{"$f":"IF(COUNTBLANK(Sociodemograficos[[#This Row],[Nombres y Apellidos]])=0,Sociodemograficos[[#This Row],[Nombres y Apellidos]],\"\")","v":""}]
["",null,null,null,null,null,null,null,null,null,null,null,null,null,null,null,null,null,null,null,null,null,null,null,null,null,null,null,null,null,null,null,null,null,null,null,null,null,null,null,null,null,null,null,null,null,null,null,"","","",{"$f":"IF(COUNTBLANK(Sociodemograficos[[#This Row],[Nombres y Apellidos]])=0,Sociodemograficos[[#This Row],[Nombres y Apellidos]],\"\")","v":""}]
["",null,null,null,null,null,null,null,null,null,null,null,null,null,null,null,null,null,null,null,null,null,null,null,null,null,null,null,null,null,null,null,null,null,null,null,null,null,null,null,null,null,null,null,null,null,null,null,"","","",{"$f":"IF(COUNTBLANK(Sociodemograficos[[#This Row],[Nombres y Apellidos]])=0,Sociodemograficos[[#This Row],[Nombres y Apellidos]],\"\")","v":""}]
["",null,null,null,null,null,null,null,null,null,null,null,null,null,null,null,null,null,null,null,null,null,null,null,null,null,null,null,null,null,null,null,null,null,null,null,null,null,null,null,null,null,null,null,null,null,null,null,"","","",{"$f":"IF(COUNTBLANK(Sociodemograficos[[#This Row],[Nombres y Apellidos]])=0,Sociodemograficos[[#This Row],[Nombres y Apellidos]],\"\")","v":""}]
["",null,null,null,null,null,null,null,null,null,null,null,null,null,null,null,null,null,null,null,null,null,null,null,null,null,null,null,null,null,null,null,null,null,null,null,null,null,null,null,null,null,null,null,null,null,null,null,"","","",{"$f":"IF(COUNTBLANK(Sociodemograficos[[#This Row],[Nombres y Apellidos]])=0,Sociodemograficos[[#This Row],[Nombres y Apellidos]],\"\")","v":""}]
["",null,null,null,null,null,null,null,null,null,null,null,null,null,null,null,null,null,null,null,null,null,null,null,null,null,null,null,null,null,null,null,null,null,null,null,null,null,null,null,null,null,null,null,null,null,null,null,"","","",{"$f":"IF(COUNTBLANK(Sociodemograficos[[#This Row],[Nombres y Apellidos]])=0,Sociodemograficos[[#This Row],[Nombres y Apellidos]],\"\")","v":""}]
["",null,null,null,null,null,null,null,null,null,null,null,null,null,null,null,null,null,null,null,null,null,null,null,null,null,null,null,null,null,null,null,null,null,null,null,null,null,null,null,null,null,null,null,null,null,null,null,"","","",{"$f":"IF(COUNTBLANK(Sociodemograficos[[#This Row],[Nombres y Apellidos]])=0,Sociodemograficos[[#This Row],[Nombres y Apellidos]],\"\")","v":""}]
["",null,null,null,null,null,null,null,null,null,null,null,null,null,null,null,null,null,null,null,null,null,null,null,null,null,null,null,null,null,null,null,null,null,null,null,null,null,null,null,null,null,null,null,null,null,null,null,"","","",{"$f":"IF(COUNTBLANK(Sociodemograficos[[#This Row],[Nombres y Apellidos]])=0,Sociodemograficos[[#This Row],[Nombres y Apellidos]],\"\")","v":""}]
["",null,null,null,null,null,null,null,null,null,null,null,null,null,null,null,null,null,null,null,null,null,null,null,null,null,null,null,null,null,null,null,null,null,null,null,null,null,null,null,null,null,null,null,null,null,null,null,"","","",{"$f":"IF(COUNTBLANK(Sociodemograficos[[#This Row],[Nombres y Apellidos]])=0,Sociodemograficos[[#This Row],[Nombres y Apellidos]],\"\")","v":""}]
["",null,null,null,null,null,null,null,null,null,null,null,null,null,null,null,null,null,null,null,null,null,null,null,null,null,null,null,null,null,null,null,null,null,null,null,null,null,null,null,null,null,null,null,null,null,null,null,"","","",{"$f":"IF(COUNTBLANK(Sociodemograficos[[#This Row],[Nombres y Apellidos]])=0,Sociodemograficos[[#This Row],[Nombres y Apellidos]],\"\")","v":""}]
["",null,null,null,null,null,null,null,null,null,null,null,null,null,null,null,null,null,null,null,null,null,null,null,null,null,null,null,null,null,null,null,null,null,null,null,null,null,null,null,null,null,null,null,null,null,null,null,"","","",{"$f":"IF(COUNTBLANK(Sociodemograficos[[#This Row],[Nombres y Apellidos]])=0,Sociodemograficos[[#This Row],[Nombres y Apellidos]],\"\")","v":""}]
["",null,null,null,null,null,null,null,null,null,null,null,null,null,null,null,null,null,null,null,null,null,null,null,null,null,null,null,null,null,null,null,null,null,null,null,null,null,null,null,null,null,null,null,null,null,null,null,"","","",{"$f":"IF(COUNTBLANK(Sociodemograficos[[#This Row],[Nombres y Apellidos]])=0,Sociodemograficos[[#This Row],[Nombres y Apellidos]],\"\")","v":""}]
["",null,null,null,null,null,null,null,null,null,null,null,null,null,null,null,null,null,null,null,null,null,null,null,null,null,null,null,null,null,null,null,null,null,null,null,null,null,null,null,null,null,null,null,null,null,null,null,"","","",{"$f":"IF(COUNTBLANK(Sociodemograficos[[#This Row],[Nombres y Apellidos]])=0,Sociodemograficos[[#This Row],[Nombres y Apellidos]],\"\")","v":""}]
["",null,null,null,null,null,null,null,null,null,null,null,null,null,null,null,null,null,null,null,null,null,null,null,null,null,null,null,null,null,null,null,null,null,null,null,null,null,null,null,null,null,null,null,null,null,null,null,"","","",{"$f":"IF(COUNTBLANK(Sociodemograficos[[#This Row],[Nombres y Apellidos]])=0,Sociodemograficos[[#This Row],[Nombres y Apellidos]],\"\")","v":""}]
["",null,null,null,null,null,null,null,null,null,null,null,null,null,null,null,null,null,null,null,null,null,null,null,null,null,null,null,null,null,null,null,null,null,null,null,null,null,null,null,null,null,null,null,null,null,null,null,"","","",{"$f":"IF(COUNTBLANK(Sociodemograficos[[#This Row],[Nombres y Apellidos]])=0,Sociodemograficos[[#This Row],[Nombres y Apellidos]],\"\")","v":""}]
["",null,null,null,null,null,null,null,null,null,null,null,null,null,null,null,null,null,null,null,null,null,null,null,null,null,null,null,null,null,null,null,null,null,null,null,null,null,null,null,null,null,null,null,null,null,null,null,"","","",{"$f":"IF(COUNTBLANK(Sociodemograficos[[#This Row],[Nombres y Apellidos]])=0,Sociodemograficos[[#This Row],[Nombres y Apellidos]],\"\")","v":""}]
["",null,null,null,null,null,null,null,null,null,null,null,null,null,null,null,null,null,null,null,null,null,null,null,null,null,null,null,null,null,null,null,null,null,null,null,null,null,null,null,null,null,null,null,null,null,null,null,"","","",{"$f":"IF(COUNTBLANK(Sociodemograficos[[#This Row],[Nombres y Apellidos]])=0,Sociodemograficos[[#This Row],[Nombres y Apellidos]],\"\")","v":""}]
["",null,null,null,null,null,null,null,null,null,null,null,null,null,null,null,null,null,null,null,null,null,null,null,null,null,null,null,null,null,null,null,null,null,null,null,null,null,null,null,null,null,null,null,null,null,null,null,"","","",{"$f":"IF(COUNTBLANK(Sociodemograficos[[#This Row],[Nombres y Apellidos]])=0,Sociodemograficos[[#This Row],[Nombres y Apellidos]],\"\")","v":""}]
["",null,null,null,null,null,null,null,null,null,null,null,null,null,null,null,null,null,null,null,null,null,null,null,null,null,null,null,null,null,null,null,null,null,null,null,null,null,null,null,null,null,null,null,null,null,null,null,"","","",{"$f":"IF(COUNTBLANK(Sociodemograficos[[#This Row],[Nombres y Apellidos]])=0,Sociodemograficos[[#This Row],[Nombres y Apellidos]],\"\")","v":""}]
["",null,null,null,null,null,null,null,null,null,null,null,null,null,null,null,null,null,null,null,null,null,null,null,null,null,null,null,null,null,null,null,null,null,null,null,null,null,null,null,null,null,null,null,null,null,null,null,"","","",{"$f":"IF(COUNTBLANK(Sociodemograficos[[#This Row],[Nombres y Apellidos]])=0,Sociodemograficos[[#This Row],[Nombres y Apellidos]],\"\")","v":""}]
["",null,null,null,null,null,null,null,null,null,null,null,null,null,null,null,null,null,null,null,null,null,null,null,null,null,null,null,null,null,null,null,null,null,null,null,null,null,null,null,null,null,null,null,null,null,null,null,"","","",{"$f":"IF(COUNTBLANK(Sociodemograficos[[#This Row],[Nombres y Apellidos]])=0,Sociodemograficos[[#This Row],[Nombres y Apellidos]],\"\")","v":""}]
["",null,null,null,null,null,null,null,null,null,null,null,null,null,null,null,null,null,null,null,null,null,null,null,null,null,null,null,null,null,null,null,null,null,null,null,null,null,null,null,null,null,null,null,null,null,null,null,"","","",{"$f":"IF(COUNTBLANK(Sociodemograficos[[#This Row],[Nombres y Apellidos]])=0,Sociodemograficos[[#This Row],[Nombres y Apellidos]],\"\")","v":""}]
["",null,null,null,null,null,null,null,null,null,null,null,null,null,null,null,null,null,null,null,null,null,null,null,null,null,null,null,null,null,null,null,null,null,null,null,null,null,null,null,null,null,null,null,null,null,null,null,"","","",{"$f":"IF(COUNTBLANK(Sociodemograficos[[#This Row],[Nombres y Apellidos]])=0,Sociodemograficos[[#This Row],[Nombres y Apellidos]],\"\")","v":""}]
["",null,null,null,null,null,null,null,null,null,null,null,null,null,null,null,null,null,null,null,null,null,null,null,null,null,null,null,null,null,null,null,null,null,null,null,null,null,null,null,null,null,null,null,null,null,null,null,"","","",{"$f":"IF(COUNTBLANK(Sociodemograficos[[#This Row],[Nombres y Apellidos]])=0,Sociodemograficos[[#This Row],[Nombres y Apellidos]],\"\")","v":""}]
["",null,null,null,null,null,null,null,null,null,null,null,null,null,null,null,null,null,null,null,null,null,null,null,null,null,null,null,null,null,null,null,null,null,null,null,null,null,null,null,null,null,null,null,null,null,null,null,"","","",{"$f":"IF(COUNTBLANK(Sociodemograficos[[#This Row],[Nombres y Apellidos]])=0,Sociodemograficos[[#This Row],[Nombres y Apellidos]],\"\")","v":""}]
["",null,null,null,null,null,null,null,null,null,null,null,null,null,null,null,null,null,null,null,null,null,null,null,null,null,null,null,null,null,null,null,null,null,null,null,null,null,null,null,null,null,null,null,null,null,null,null,"","","",{"$f":"IF(COUNTBLANK(Sociodemograficos[[#This Row],[Nombres y Apellidos]])=0,Sociodemograficos[[#This Row],[Nombres y Apellidos]],\"\")","v":""}]
["",null,null,null,null,null,null,null,null,null,null,null,null,null,null,null,null,null,null,null,null,null,null,null,null,null,null,null,null,null,null,null,null,null,null,null,null,null,null,null,null,null,null,null,null,null,null,null,"","","",{"$f":"IF(COUNTBLANK(Sociodemograficos[[#This Row],[Nombres y Apellidos]])=0,Sociodemograficos[[#This Row],[Nombres y Apellidos]],\"\")","v":""}]
["",null,null,null,null,null,null,null,null,null,null,null,null,null,null,null,null,null,null,null,null,null,null,null,null,null,null,null,null,null,null,null,null,null,null,null,null,null,null,null,null,null,null,null,null,null,null,null,"","","",{"$f":"IF(COUNTBLANK(Sociodemograficos[[#This Row],[Nombres y Apellidos]])=0,Sociodemograficos[[#This Row],[Nombres y Apellidos]],\"\")","v":""}]
["",null,null,null,null,null,null,null,null,null,null,null,null,null,null,null,null,null,null,null,null,null,null,null,null,null,null,null,null,null,null,null,null,null,null,null,null,null,null,null,null,null,null,null,null,null,null,null,"","","",{"$f":"IF(COUNTBLANK(Sociodemograficos[[#This Row],[Nombres y Apellidos]])=0,Sociodemograficos[[#This Row],[Nombres y Apellidos]],\"\")","v":""}]
["",null,null,null,null,null,null,null,null,null,null,null,null,null,null,null,null,null,null,null,null,null,null,null,null,null,null,null,null,null,null,null,null,null,null,null,null,null,null,null,null,null,null,null,null,null,null,null,"","","",{"$f":"IF(COUNTBLANK(Sociodemograficos[[#This Row],[Nombres y Apellidos]])=0,Sociodemograficos[[#This Row],[Nombres y Apellidos]],\"\")","v":""}]
["",null,null,null,null,null,null,null,null,null,null,null,null,null,null,null,null,null,null,null,null,null,null,null,null,null,null,null,null,null,null,null,null,null,null,null,null,null,null,null,null,null,null,null,null,null,null,null,"","","",{"$f":"IF(COUNTBLANK(Sociodemograficos[[#This Row],[Nombres y Apellidos]])=0,Sociodemograficos[[#This Row],[Nombres y Apellidos]],\"\")","v":""}]
["",null,null,null,null,null,null,null,null,null,null,null,null,null,null,null,null,null,null,null,null,null,null,null,null,null,null,null,null,null,null,null,null,null,null,null,null,null,null,null,null,null,null,null,null,null,null,null,"","","",{"$f":"IF(COUNTBLANK(Sociodemograficos[[#This Row],[Nombres y Apellidos]])=0,Sociodemograficos[[#This Row],[Nombres y Apellidos]],\"\")","v":""}]
["",null,null,null,null,null,null,null,null,null,null,null,null,null,null,null,null,null,null,null,null,null,null,null,null,null,null,null,null,null,null,null,null,null,null,null,null,null,null,null,null,null,null,null,null,null,null,null,"","","",{"$f":"IF(COUNTBLANK(Sociodemograficos[[#This Row],[Nombres y Apellidos]])=0,Sociodemograficos[[#This Row],[Nombres y Apellidos]],\"\")","v":""}]
["",null,null,null,null,null,null,null,null,null,null,null,null,null,null,null,null,null,null,null,null,null,null,null,null,null,null,null,null,null,null,null,null,null,null,null,null,null,null,null,null,null,null,null,null,null,null,null,"","","",{"$f":"IF(COUNTBLANK(Sociodemograficos[[#This Row],[Nombres y Apellidos]])=0,Sociodemograficos[[#This Row],[Nombres y Apellidos]],\"\")","v":""}]
["",null,null,null,null,null,null,null,null,null,null,null,null,null,null,null,null,null,null,null,null,null,null,null,null,null,null,null,null,null,null,null,null,null,null,null,null,null,null,null,null,null,null,null,null,null,null,null,"","","",{"$f":"IF(COUNTBLANK(Sociodemograficos[[#This Row],[Nombres y Apellidos]])=0,Sociodemograficos[[#This Row],[Nombres y Apellidos]],\"\")","v":""}]
["",null,null,null,null,null,null,null,null,null,null,null,null,null,null,null,null,null,null,null,null,null,null,null,null,null,null,null,null,null,null,null,null,null,null,null,null,null,null,null,null,null,null,null,null,null,null,null,"","","",{"$f":"IF(COUNTBLANK(Sociodemograficos[[#This Row],[Nombres y Apellidos]])=0,Sociodemograficos[[#This Row],[Nombres y Apellidos]],\"\")","v":""}]
["",null,null,null,null,null,null,null,null,null,null,null,null,null,null,null,null,null,null,null,null,null,null,null,null,null,null,null,null,null,null,null,null,null,null,null,null,null,null,null,null,null,null,null,null,null,null,null,"","","",{"$f":"IF(COUNTBLANK(Sociodemograficos[[#This Row],[Nombres y Apellidos]])=0,Sociodemograficos[[#This Row],[Nombres y Apellidos]],\"\")","v":""}]
["",null,null,null,null,null,null,null,null,null,null,null,null,null,null,null,null,null,null,null,null,null,null,null,null,null,null,null,null,null,null,null,null,null,null,null,null,null,null,null,null,null,null,null,null,null,null,null,"","","",{"$f":"IF(COUNTBLANK(Sociodemograficos[[#This Row],[Nombres y Apellidos]])=0,Sociodemograficos[[#This Row],[Nombres y Apellidos]],\"\")","v":""}]
["",null,null,null,null,null,null,null,null,null,null,null,null,null,null,null,null,null,null,null,null,null,null,null,null,null,null,null,null,null,null,null,null,null,null,null,null,null,null,null,null,null,null,null,null,null,null,null,"","","",{"$f":"IF(COUNTBLANK(Sociodemograficos[[#This Row],[Nombres y Apellidos]])=0,Sociodemograficos[[#This Row],[Nombres y Apellidos]],\"\")","v":""}]
["",null,null,null,null,null,null,null,null,null,null,null,null,null,null,null,null,null,null,null,null,null,null,null,null,null,null,null,null,null,null,null,null,null,null,null,null,null,null,null,null,null,null,null,null,null,null,null,"","","",{"$f":"IF(COUNTBLANK(Sociodemograficos[[#This Row],[Nombres y Apellidos]])=0,Sociodemograficos[[#This Row],[Nombres y Apellidos]],\"\")","v":""}]
["",null,null,null,null,null,null,null,null,null,null,null,null,null,null,null,null,null,null,null,null,null,null,null,null,null,null,null,null,null,null,null,null,null,null,null,null,null,null,null,null,null,null,null,null,null,null,null,"","","",{"$f":"IF(COUNTBLANK(Sociodemograficos[[#This Row],[Nombres y Apellidos]])=0,Sociodemograficos[[#This Row],[Nombres y Apellidos]],\"\")","v":""}]
["",null,null,null,null,null,null,null,null,null,null,null,null,null,null,null,null,null,null,null,null,null,null,null,null,null,null,null,null,null,null,null,null,null,null,null,null,null,null,null,null,null,null,null,null,null,null,null,"","","",{"$f":"IF(COUNTBLANK(Sociodemograficos[[#This Row],[Nombres y Apellidos]])=0,Sociodemograficos[[#This Row],[Nombres y Apellidos]],\"\")","v":""}]
["",null,null,null,null,null,null,null,null,null,null,null,null,null,null,null,null,null,null,null,null,null,null,null,null,null,null,null,null,null,null,null,null,null,null,null,null,null,null,null,null,null,null,null,null,null,null,null,"","","",{"$f":"IF(COUNTBLANK(Sociodemograficos[[#This Row],[Nombres y Apellidos]])=0,Sociodemograficos[[#This Row],[Nombres y Apellidos]],\"\")","v":""}]
["",null,null,null,null,null,null,null,null,null,null,null,null,null,null,null,null,null,null,null,null,null,null,null,null,null,null,null,null,null,null,null,null,null,null,null,null,null,null,null,null,null,null,null,null,null,null,null,"","","",{"$f":"IF(COUNTBLANK(Sociodemograficos[[#This Row],[Nombres y Apellidos]])=0,Sociodemograficos[[#This Row],[Nombres y Apellidos]],\"\")","v":""}]
["",null,null,null,null,null,null,null,null,null,null,null,null,null,null,null,null,null,null,null,null,null,null,null,null,null,null,null,null,null,null,null,null,null,null,null,null,null,null,null,null,null,null,null,null,null,null,null,"","","",{"$f":"IF(COUNTBLANK(Sociodemograficos[[#This Row],[Nombres y Apellidos]])=0,Sociodemograficos[[#This Row],[Nombres y Apellidos]],\"\")","v":""}]
["",null,null,null,null,null,null,null,null,null,null,null,null,null,null,null,null,null,null,null,null,null,null,null,null,null,null,null,null,null,null,null,null,null,null,null,null,null,null,null,null,null,null,null,null,null,null,null,"","","",{"$f":"IF(COUNTBLANK(Sociodemograficos[[#This Row],[Nombres y Apellidos]])=0,Sociodemograficos[[#This Row],[Nombres y Apellidos]],\"\")","v":""}]
["",null,null,null,null,null,null,null,null,null,null,null,null,null,null,null,null,null,null,null,null,null,null,null,null,null,null,null,null,null,null,null,null,null,null,null,null,null,null,null,null,null,null,null,null,null,null,null,"","","",{"$f":"IF(COUNTBLANK(Sociodemograficos[[#This Row],[Nombres y Apellidos]])=0,Sociodemograficos[[#This Row],[Nombres y Apellidos]],\"\")","v":""}]
["",null,null,null,null,null,null,null,null,null,null,null,null,null,null,null,null,null,null,null,null,null,null,null,null,null,null,null,null,null,null,null,null,null,null,null,null,null,null,null,null,null,null,null,null,null,null,null,"","","",{"$f":"IF(COUNTBLANK(Sociodemograficos[[#This Row],[Nombres y Apellidos]])=0,Sociodemograficos[[#This Row],[Nombres y Apellidos]],\"\")","v":""}]
["",null,null,null,null,null,null,null,null,null,null,null,null,null,null,null,null,null,null,null,null,null,null,null,null,null,null,null,null,null,null,null,null,null,null,null,null,null,null,null,null,null,null,null,null,null,null,null,"","","",{"$f":"IF(COUNTBLANK(Sociodemograficos[[#This Row],[Nombres y Apellidos]])=0,Sociodemograficos[[#This Row],[Nombres y Apellidos]],\"\")","v":""}]
["",null,null,null,null,null,null,null,null,null,null,null,null,null,null,null,null,null,null,null,null,null,null,null,null,null,null,null,null,null,null,null,null,null,null,null,null,null,null,null,null,null,null,null,null,null,null,null,"","","",{"$f":"IF(COUNTBLANK(Sociodemograficos[[#This Row],[Nombres y Apellidos]])=0,Sociodemograficos[[#This Row],[Nombres y Apellidos]],\"\")","v":""}]
["",null,null,null,null,null,null,null,null,null,null,null,null,null,null,null,null,null,null,null,null,null,null,null,null,null,null,null,null,null,null,null,null,null,null,null,null,null,null,null,null,null,null,null,null,null,null,null,"","","",{"$f":"IF(COUNTBLANK(Sociodemograficos[[#This Row],[Nombres y Apellidos]])=0,Sociodemograficos[[#This Row],[Nombres y Apellidos]],\"\")","v":""}]
["",null,null,null,null,null,null,null,null,null,null,null,null,null,null,null,null,null,null,null,null,null,null,null,null,null,null,null,null,null,null,null,null,null,null,null,null,null,null,null,null,null,null,null,null,null,null,null,"","","",{"$f":"IF(COUNTBLANK(Sociodemograficos[[#This Row],[Nombres y Apellidos]])=0,Sociodemograficos[[#This Row],[Nombres y Apellidos]],\"\")","v":""}]
["",null,null,null,null,null,null,null,null,null,null,null,null,null,null,null,null,null,null,null,null,null,null,null,null,null,null,null,null,null,null,null,null,null,null,null,null,null,null,null,null,null,null,null,null,null,null,null,"","","",{"$f":"IF(COUNTBLANK(Sociodemograficos[[#This Row],[Nombres y Apellidos]])=0,Sociodemograficos[[#This Row],[Nombres y Apellidos]],\"\")","v":""}]
["",null,null,null,null,null,null,null,null,null,null,null,null,null,null,null,null,null,null,null,null,null,null,null,null,null,null,null,null,null,null,null,null,null,null,null,null,null,null,null,null,null,null,null,null,null,null,null,"","","",{"$f":"IF(COUNTBLANK(Sociodemograficos[[#This Row],[Nombres y Apellidos]])=0,Sociodemograficos[[#This Row],[Nombres y Apellidos]],\"\")","v":""}]
["",null,null,null,null,null,null,null,null,null,null,null,null,null,null,null,null,null,null,null,null,null,null,null,null,null,null,null,null,null,null,null,null,null,null,null,null,null,null,null,null,null,null,null,null,null,null,null,"","","",{"$f":"IF(COUNTBLANK(Sociodemograficos[[#This Row],[Nombres y Apellidos]])=0,Sociodemograficos[[#This Row],[Nombres y Apellidos]],\"\")","v":""}]
["",null,null,null,null,null,null,null,null,null,null,null,null,null,null,null,null,null,null,null,null,null,null,null,null,null,null,null,null,null,null,null,null,null,null,null,null,null,null,null,null,null,null,null,null,null,null,null,"","","",{"$f":"IF(COUNTBLANK(Sociodemograficos[[#This Row],[Nombres y Apellidos]])=0,Sociodemograficos[[#This Row],[Nombres y Apellidos]],\"\")","v":""}]
["",null,null,null,null,null,null,null,null,null,null,null,null,null,null,null,null,null,null,null,null,null,null,null,null,null,null,null,null,null,null,null,null,null,null,null,null,null,null,null,null,null,null,null,null,null,null,null,"","","",{"$f":"IF(COUNTBLANK(Sociodemograficos[[#This Row],[Nombres y Apellidos]])=0,Sociodemograficos[[#This Row],[Nombres y Apellidos]],\"\")","v":""}]
["",null,null,null,null,null,null,null,null,null,null,null,null,null,null,null,null,null,null,null,null,null,null,null,null,null,null,null,null,null,null,null,null,null,null,null,null,null,null,null,null,null,null,null,null,null,null,null,"","","",{"$f":"IF(COUNTBLANK(Sociodemograficos[[#This Row],[Nombres y Apellidos]])=0,Sociodemograficos[[#This Row],[Nombres y Apellidos]],\"\")","v":""}]
["",null,null,null,null,null,null,null,null,null,null,null,null,null,null,null,null,null,null,null,null,null,null,null,null,null,null,null,null,null,null,null,null,null,null,null,null,null,null,null,null,null,null,null,null,null,null,null,"","","",{"$f":"IF(COUNTBLANK(Sociodemograficos[[#This Row],[Nombres y Apellidos]])=0,Sociodemograficos[[#This Row],[Nombres y Apellidos]],\"\")","v":""}]
["",null,null,null,null,null,null,null,null,null,null,null,null,null,null,null,null,null,null,null,null,null,null,null,null,null,null,null,null,null,null,null,null,null,null,null,null,null,null,null,null,null,null,null,null,null,null,null,"","","",{"$f":"IF(COUNTBLANK(Sociodemograficos[[#This Row],[Nombres y Apellidos]])=0,Sociodemograficos[[#This Row],[Nombres y Apellidos]],\"\")","v":""}]
["",null,null,null,null,null,null,null,null,null,null,null,null,null,null,null,null,null,null,null,null,null,null,null,null,null,null,null,null,null,null,null,null,null,null,null,null,null,null,null,null,null,null,null,null,null,null,null,"","","",{"$f":"IF(COUNTBLANK(Sociodemograficos[[#This Row],[Nombres y Apellidos]])=0,Sociodemograficos[[#This Row],[Nombres y Apellidos]],\"\")","v":""}]
["",null,null,null,null,null,null,null,null,null,null,null,null,null,null,null,null,null,null,null,null,null,null,null,null,null,null,null,null,null,null,null,null,null,null,null,null,null,null,null,null,null,null,null,null,null,null,null,"","","",{"$f":"IF(COUNTBLANK(Sociodemograficos[[#This Row],[Nombres y Apellidos]])=0,Sociodemograficos[[#This Row],[Nombres y Apellidos]],\"\")","v":""}]
["",null,null,null,null,null,null,null,null,null,null,null,null,null,null,null,null,null,null,null,null,null,null,null,null,null,null,null,null,null,null,null,null,null,null,null,null,null,null,null,null,null,null,null,null,null,null,null,"","","",{"$f":"IF(COUNTBLANK(Sociodemograficos[[#This Row],[Nombres y Apellidos]])=0,Sociodemograficos[[#This Row],[Nombres y Apellidos]],\"\")","v":""}]
["",null,null,null,null,null,null,null,null,null,null,null,null,null,null,null,null,null,null,null,null,null,null,null,null,null,null,null,null,null,null,null,null,null,null,null,null,null,null,null,null,null,null,null,null,null,null,null,"","","",{"$f":"IF(COUNTBLANK(Sociodemograficos[[#This Row],[Nombres y Apellidos]])=0,Sociodemograficos[[#This Row],[Nombres y Apellidos]],\"\")","v":""}]
["",null,null,null,null,null,null,null,null,null,null,null,null,null,null,null,null,null,null,null,null,null,null,null,null,null,null,null,null,null,null,null,null,null,null,null,null,null,null,null,null,null,null,null,null,null,null,null,"","","",{"$f":"IF(COUNTBLANK(Sociodemograficos[[#This Row],[Nombres y Apellidos]])=0,Sociodemograficos[[#This Row],[Nombres y Apellidos]],\"\")","v":""}]
["",null,null,null,null,null,null,null,null,null,null,null,null,null,null,null,null,null,null,null,null,null,null,null,null,null,null,null,null,null,null,null,null,null,null,null,null,null,null,null,null,null,null,null,null,null,null,null,"","","",{"$f":"IF(COUNTBLANK(Sociodemograficos[[#This Row],[Nombres y Apellidos]])=0,Sociodemograficos[[#This Row],[Nombres y Apellidos]],\"\")","v":""}]
["",null,null,null,null,null,null,null,null,null,null,null,null,null,null,null,null,null,null,null,null,null,null,null,null,null,null,null,null,null,null,null,null,null,null,null,null,null,null,null,null,null,null,null,null,null,null,null,"","","",{"$f":"IF(COUNTBLANK(Sociodemograficos[[#This Row],[Nombres y Apellidos]])=0,Sociodemograficos[[#This Row],[Nombres y Apellidos]],\"\")","v":""}]
["",null,null,null,null,null,null,null,null,null,null,null,null,null,null,null,null,null,null,null,null,null,null,null,null,null,null,null,null,null,null,null,null,null,null,null,null,null,null,null,null,null,null,null,null,null,null,null,"","","",{"$f":"IF(COUNTBLANK(Sociodemograficos[[#This Row],[Nombres y Apellidos]])=0,Sociodemograficos[[#This Row],[Nombres y Apellidos]],\"\")","v":""}]
["",null,null,null,null,null,null,null,null,null,null,null,null,null,null,null,null,null,null,null,null,null,null,null,null,null,null,null,null,null,null,null,null,null,null,null,null,null,null,null,null,null,null,null,null,null,null,null,"","","",{"$f":"IF(COUNTBLANK(Sociodemograficos[[#This Row],[Nombres y Apellidos]])=0,Sociodemograficos[[#This Row],[Nombres y Apellidos]],\"\")","v":""}]
["",null,null,null,null,null,null,null,null,null,null,null,null,null,null,null,null,null,null,null,null,null,null,null,null,null,null,null,null,null,null,null,null,null,null,null,null,null,null,null,null,null,null,null,null,null,null,null,"","","",{"$f":"IF(COUNTBLANK(Sociodemograficos[[#This Row],[Nombres y Apellidos]])=0,Sociodemograficos[[#This Row],[Nombres y Apellidos]],\"\")","v":""}]
["",null,null,null,null,null,null,null,null,null,null,null,null,null,null,null,null,null,null,null,null,null,null,null,null,null,null,null,null,null,null,null,null,null,null,null,null,null,null,null,null,null,null,null,null,null,null,null,"","","",{"$f":"IF(COUNTBLANK(Sociodemograficos[[#This Row],[Nombres y Apellidos]])=0,Sociodemograficos[[#This Row],[Nombres y Apellidos]],\"\")","v":""}]
["",null,null,null,null,null,null,null,null,null,null,null,null,null,null,null,null,null,null,null,null,null,null,null,null,null,null,null,null,null,null,null,null,null,null,null,null,null,null,null,null,null,null,null,null,null,null,null,"","","",{"$f":"IF(COUNTBLANK(Sociodemograficos[[#This Row],[Nombres y Apellidos]])=0,Sociodemograficos[[#This Row],[Nombres y Apellidos]],\"\")","v":""}]
["",null,null,null,null,null,null,null,null,null,null,null,null,null,null,null,null,null,null,null,null,null,null,null,null,null,null,null,null,null,null,null,null,null,null,null,null,null,null,null,null,null,null,null,null,null,null,null,"","","",{"$f":"IF(COUNTBLANK(Sociodemograficos[[#This Row],[Nombres y Apellidos]])=0,Sociodemograficos[[#This Row],[Nombres y Apellidos]],\"\")","v":""}]
["",null,null,null,null,null,null,null,null,null,null,null,null,null,null,null,null,null,null,null,null,null,null,null,null,null,null,null,null,null,null,null,null,null,null,null,null,null,null,null,null,null,null,null,null,null,null,null,"","","",{"$f":"IF(COUNTBLANK(Sociodemograficos[[#This Row],[Nombres y Apellidos]])=0,Sociodemograficos[[#This Row],[Nombres y Apellidos]],\"\")","v":""}]
["",null,null,null,null,null,null,null,null,null,null,null,null,null,null,null,null,null,null,null,null,null,null,null,null,null,null,null,null,null,null,null,null,null,null,null,null,null,null,null,null,null,null,null,null,null,null,null,"","","",{"$f":"IF(COUNTBLANK(Sociodemograficos[[#This Row],[Nombres y Apellidos]])=0,Sociodemograficos[[#This Row],[Nombres y Apellidos]],\"\")","v":""}]
["",null,null,null,null,null,null,null,null,null,null,null,null,null,null,null,null,null,null,null,null,null,null,null,null,null,null,null,null,null,null,null,null,null,null,null,null,null,null,null,null,null,null,null,null,null,null,null,"","","",{"$f":"IF(COUNTBLANK(Sociodemograficos[[#This Row],[Nombres y Apellidos]])=0,Sociodemograficos[[#This Row],[Nombres y Apellidos]],\"\")","v":""}]
["",null,null,null,null,null,null,null,null,null,null,null,null,null,null,null,null,null,null,null,null,null,null,null,null,null,null,null,null,null,null,null,null,null,null,null,null,null,null,null,null,null,null,null,null,null,null,null,"","","",{"$f":"IF(COUNTBLANK(Sociodemograficos[[#This Row],[Nombres y Apellidos]])=0,Sociodemograficos[[#This Row],[Nombres y Apellidos]],\"\")","v":""}]
["",null,null,null,null,null,null,null,null,null,null,null,null,null,null,null,null,null,null,null,null,null,null,null,null,null,null,null,null,null,null,null,null,null,null,null,null,null,null,null,null,null,null,null,null,null,null,null,"","","",{"$f":"IF(COUNTBLANK(Sociodemograficos[[#This Row],[Nombres y Apellidos]])=0,Sociodemograficos[[#This Row],[Nombres y Apellidos]],\"\")","v":""}]
["",null,null,null,null,null,null,null,null,null,null,null,null,null,null,null,null,null,null,null,null,null,null,null,null,null,null,null,null,null,null,null,null,null,null,null,null,null,null,null,null,null,null,null,null,null,null,null,"","","",{"$f":"IF(COUNTBLANK(Sociodemograficos[[#This Row],[Nombres y Apellidos]])=0,Sociodemograficos[[#This Row],[Nombres y Apellidos]],\"\")","v":""}]
["",null,null,null,null,null,null,null,null,null,null,null,null,null,null,null,null,null,null,null,null,null,null,null,null,null,null,null,null,null,null,null,null,null,null,null,null,null,null,null,null,null,null,null,null,null,null,null,"","","",{"$f":"IF(COUNTBLANK(Sociodemograficos[[#This Row],[Nombres y Apellidos]])=0,Sociodemograficos[[#This Row],[Nombres y Apellidos]],\"\")","v":""}]
["",null,null,null,null,null,null,null,null,null,null,null,null,null,null,null,null,null,null,null,null,null,null,null,null,null,null,null,null,null,null,null,null,null,null,null,null,null,null,null,null,null,null,null,null,null,null,null,"","","",{"$f":"IF(COUNTBLANK(Sociodemograficos[[#This Row],[Nombres y Apellidos]])=0,Sociodemograficos[[#This Row],[Nombres y Apellidos]],\"\")","v":""}]
["",null,null,null,null,null,null,null,null,null,null,null,null,null,null,null,null,null,null,null,null,null,null,null,null,null,null,null,null,null,null,null,null,null,null,null,null,null,null,null,null,null,null,null,null,null,null,null,"","","",{"$f":"IF(COUNTBLANK(Sociodemograficos[[#This Row],[Nombres y Apellidos]])=0,Sociodemograficos[[#This Row],[Nombres y Apellidos]],\"\")","v":""}]
["",null,null,null,null,null,null,null,null,null,null,null,null,null,null,null,null,null,null,null,null,null,null,null,null,null,null,null,null,null,null,null,null,null,null,null,null,null,null,null,null,null,null,null,null,null,null,null,"","","",{"$f":"IF(COUNTBLANK(Sociodemograficos[[#This Row],[Nombres y Apellidos]])=0,Sociodemograficos[[#This Row],[Nombres y Apellidos]],\"\")","v":""}]
["",null,null,null,null,null,null,null,null,null,null,null,null,null,null,null,null,null,null,null,null,null,null,null,null,null,null,null,null,null,null,null,null,null,null,null,null,null,null,null,null,null,null,null,null,null,null,null,"","","",{"$f":"IF(COUNTBLANK(Sociodemograficos[[#This Row],[Nombres y Apellidos]])=0,Sociodemograficos[[#This Row],[Nombres y Apellidos]],\"\")","v":""}]
["",null,null,null,null,null,null,null,null,null,null,null,null,null,null,null,null,null,null,null,null,null,null,null,null,null,null,null,null,null,null,null,null,null,null,null,null,null,null,null,null,null,null,null,null,null,null,null,"","","",{"$f":"IF(COUNTBLANK(Sociodemograficos[[#This Row],[Nombres y Apellidos]])=0,Sociodemograficos[[#This Row],[Nombres y Apellidos]],\"\")","v":""}]
["",null,null,null,null,null,null,null,null,null,null,null,null,null,null,null,null,null,null,null,null,null,null,null,null,null,null,null,null,null,null,null,null,null,null,null,null,null,null,null,null,null,null,null,null,null,null,null,"","","",{"$f":"IF(COUNTBLANK(Sociodemograficos[[#This Row],[Nombres y Apellidos]])=0,Sociodemograficos[[#This Row],[Nombres y Apellidos]],\"\")","v":""}]
["",null,null,null,null,null,null,null,null,null,null,null,null,null,null,null,null,null,null,null,null,null,null,null,null,null,null,null,null,null,null,null,null,null,null,null,null,null,null,null,null,null,null,null,null,null,null,null,"","","",{"$f":"IF(COUNTBLANK(Sociodemograficos[[#This Row],[Nombres y Apellidos]])=0,Sociodemograficos[[#This Row],[Nombres y Apellidos]],\"\")","v":""}]
["",null,null,null,null,null,null,null,null,null,null,null,null,null,null,null,null,null,null,null,null,null,null,null,null,null,null,null,null,null,null,null,null,null,null,null,null,null,null,null,null,null,null,null,null,null,null,null,"","","",{"$f":"IF(COUNTBLANK(Sociodemograficos[[#This Row],[Nombres y Apellidos]])=0,Sociodemograficos[[#This Row],[Nombres y Apellidos]],\"\")","v":""}]
["",null,null,null,null,null,null,null,null,null,null,null,null,null,null,null,null,null,null,null,null,null,null,null,null,null,null,null,null,null,null,null,null,null,null,null,null,null,null,null,null,null,null,null,null,null,null,null,"","","",{"$f":"IF(COUNTBLANK(Sociodemograficos[[#This Row],[Nombres y Apellidos]])=0,Sociodemograficos[[#This Row],[Nombres y Apellidos]],\"\")","v":""}]
["",null,null,null,null,null,null,null,null,null,null,null,null,null,null,null,null,null,null,null,null,null,null,null,null,null,null,null,null,null,null,null,null,null,null,null,null,null,null,null,null,null,null,null,null,null,null,null,"","","",{"$f":"IF(COUNTBLANK(Sociodemograficos[[#This Row],[Nombres y Apellidos]])=0,Sociodemograficos[[#This Row],[Nombres y Apellidos]],\"\")","v":""}]
["",null,null,null,null,null,null,null,null,null,null,null,null,null,null,null,null,null,null,null,null,null,null,null,null,null,null,null,null,null,null,null,null,null,null,null,null,null,null,null,null,null,null,null,null,null,null,null,"","","",{"$f":"IF(COUNTBLANK(Sociodemograficos[[#This Row],[Nombres y Apellidos]])=0,Sociodemograficos[[#This Row],[Nombres y Apellidos]],\"\")","v":""}]
["",null,null,null,null,null,null,null,null,null,null,null,null,null,null,null,null,null,null,null,null,null,null,null,null,null,null,null,null,null,null,null,null,null,null,null,null,null,null,null,null,null,null,null,null,null,null,null,"","","",{"$f":"IF(COUNTBLANK(Sociodemograficos[[#This Row],[Nombres y Apellidos]])=0,Sociodemograficos[[#This Row],[Nombres y Apellidos]],\"\")","v":""}]
["",null,null,null,null,null,null,null,null,null,null,null,null,null,null,null,null,null,null,null,null,null,null,null,null,null,null,null,null,null,null,null,null,null,null,null,null,null,null,null,null,null,null,null,null,null,null,null,"","","",{"$f":"IF(COUNTBLANK(Sociodemograficos[[#This Row],[Nombres y Apellidos]])=0,Sociodemograficos[[#This Row],[Nombres y Apellidos]],\"\")","v":""}]
["",null,null,null,null,null,null,null,null,null,null,null,null,null,null,null,null,null,null,null,null,null,null,null,null,null,null,null,null,null,null,null,null,null,null,null,null,null,null,null,null,null,null,null,null,null,null,null,"","","",{"$f":"IF(COUNTBLANK(Sociodemograficos[[#This Row],[Nombres y Apellidos]])=0,Sociodemograficos[[#This Row],[Nombres y Apellidos]],\"\")","v":""}]
["",null,null,null,null,null,null,null,null,null,null,null,null,null,null,null,null,null,null,null,null,null,null,null,null,null,null,null,null,null,null,null,null,null,null,null,null,null,null,null,null,null,null,null,null,null,null,null,"","","",{"$f":"IF(COUNTBLANK(Sociodemograficos[[#This Row],[Nombres y Apellidos]])=0,Sociodemograficos[[#This Row],[Nombres y Apellidos]],\"\")","v":""}]
["",null,null,null,null,null,null,null,null,null,null,null,null,null,null,null,null,null,null,null,null,null,null,null,null,null,null,null,null,null,null,null,null,null,null,null,null,null,null,null,null,null,null,null,null,null,null,null,"","","",{"$f":"IF(COUNTBLANK(Sociodemograficos[[#This Row],[Nombres y Apellidos]])=0,Sociodemograficos[[#This Row],[Nombres y Apellidos]],\"\")","v":""}]
["",null,null,null,null,null,null,null,null,null,null,null,null,null,null,null,null,null,null,null,null,null,null,null,null,null,null,null,null,null,null,null,null,null,null,null,null,null,null,null,null,null,null,null,null,null,null,null,"","","",{"$f":"IF(COUNTBLANK(Sociodemograficos[[#This Row],[Nombres y Apellidos]])=0,Sociodemograficos[[#This Row],[Nombres y Apellidos]],\"\")","v":""}]
["",null,null,null,null,null,null,null,null,null,null,null,null,null,null,null,null,null,null,null,null,null,null,null,null,null,null,null,null,null,null,null,null,null,null,null,null,null,null,null,null,null,null,null,null,null,null,null,"","","",{"$f":"IF(COUNTBLANK(Sociodemograficos[[#This Row],[Nombres y Apellidos]])=0,Sociodemograficos[[#This Row],[Nombres y Apellidos]],\"\")","v":""}]
["",null,null,null,null,null,null,null,null,null,null,null,null,null,null,null,null,null,null,null,null,null,null,null,null,null,null,null,null,null,null,null,null,null,null,null,null,null,null,null,null,null,null,null,null,null,null,null,"","","",{"$f":"IF(COUNTBLANK(Sociodemograficos[[#This Row],[Nombres y Apellidos]])=0,Sociodemograficos[[#This Row],[Nombres y Apellidos]],\"\")","v":""}]
["",null,null,null,null,null,null,null,null,null,null,null,null,null,null,null,null,null,null,null,null,null,null,null,null,null,null,null,null,null,null,null,null,null,null,null,null,null,null,null,null,null,null,null,null,null,null,null,"","","",{"$f":"IF(COUNTBLANK(Sociodemograficos[[#This Row],[Nombres y Apellidos]])=0,Sociodemograficos[[#This Row],[Nombres y Apellidos]],\"\")","v":""}]
["",null,null,null,null,null,null,null,null,null,null,null,null,null,null,null,null,null,null,null,null,null,null,null,null,null,null,null,null,null,null,null,null,null,null,null,null,null,null,null,null,null,null,null,null,null,null,null,"","","",{"$f":"IF(COUNTBLANK(Sociodemograficos[[#This Row],[Nombres y Apellidos]])=0,Sociodemograficos[[#This Row],[Nombres y Apellidos]],\"\")","v":""}]
["",null,null,null,null,null,null,null,null,null,null,null,null,null,null,null,null,null,null,null,null,null,null,null,null,null,null,null,null,null,null,null,null,null,null,null,null,null,null,null,null,null,null,null,null,null,null,null,"","","",{"$f":"IF(COUNTBLANK(Sociodemograficos[[#This Row],[Nombres y Apellidos]])=0,Sociodemograficos[[#This Row],[Nombres y Apellidos]],\"\")","v":""}]
["",null,null,null,null,null,null,null,null,null,null,null,null,null,null,null,null,null,null,null,null,null,null,null,null,null,null,null,null,null,null,null,null,null,null,null,null,null,null,null,null,null,null,null,null,null,null,null,"","","",{"$f":"IF(COUNTBLANK(Sociodemograficos[[#This Row],[Nombres y Apellidos]])=0,Sociodemograficos[[#This Row],[Nombres y Apellidos]],\"\")","v":""}]
["",null,null,null,null,null,null,null,null,null,null,null,null,null,null,null,null,null,null,null,null,null,null,null,null,null,null,null,null,null,null,null,null,null,null,null,null,null,null,null,null,null,null,null,null,null,null,null,"","","",{"$f":"IF(COUNTBLANK(Sociodemograficos[[#This Row],[Nombres y Apellidos]])=0,Sociodemograficos[[#This Row],[Nombres y Apellidos]],\"\")","v":""}]
["",null,null,null,null,null,null,null,null,null,null,null,null,null,null,null,null,null,null,null,null,null,null,null,null,null,null,null,null,null,null,null,null,null,null,null,null,null,null,null,null,null,null,null,null,null,null,null,"","","",{"$f":"IF(COUNTBLANK(Sociodemograficos[[#This Row],[Nombres y Apellidos]])=0,Sociodemograficos[[#This Row],[Nombres y Apellidos]],\"\")","v":""}]
["",null,null,null,null,null,null,null,null,null,null,null,null,null,null,null,null,null,null,null,null,null,null,null,null,null,null,null,null,null,null,null,null,null,null,null,null,null,null,null,null,null,null,null,null,null,null,null,"","","",{"$f":"IF(COUNTBLANK(Sociodemograficos[[#This Row],[Nombres y Apellidos]])=0,Sociodemograficos[[#This Row],[Nombres y Apellidos]],\"\")","v":""}]
["",null,null,null,null,null,null,null,null,null,null,null,null,null,null,null,null,null,null,null,null,null,null,null,null,null,null,null,null,null,null,null,null,null,null,null,null,null,null,null,null,null,null,null,null,null,null,null,"","","",{"$f":"IF(COUNTBLANK(Sociodemograficos[[#This Row],[Nombres y Apellidos]])=0,Sociodemograficos[[#This Row],[Nombres y Apellidos]],\"\")","v":""}]
["",null,null,null,null,null,null,null,null,null,null,null,null,null,null,null,null,null,null,null,null,null,null,null,null,null,null,null,null,null,null,null,null,null,null,null,null,null,null,null,null,null,null,null,null,null,null,null,"","","",{"$f":"IF(COUNTBLANK(Sociodemograficos[[#This Row],[Nombres y Apellidos]])=0,Sociodemograficos[[#This Row],[Nombres y Apellidos]],\"\")","v":""}]
["",null,null,null,null,null,null,null,null,null,null,null,null,null,null,null,null,null,null,null,null,null,null,null,null,null,null,null,null,null,null,null,null,null,null,null,null,null,null,null,null,null,null,null,null,null,null,null,"","","",{"$f":"IF(COUNTBLANK(Sociodemograficos[[#This Row],[Nombres y Apellidos]])=0,Sociodemograficos[[#This Row],[Nombres y Apellidos]],\"\")","v":""}]
["",null,null,null,null,null,null,null,null,null,null,null,null,null,null,null,null,null,null,null,null,null,null,null,null,null,null,null,null,null,null,null,null,null,null,null,null,null,null,null,null,null,null,null,null,null,null,null,"","","",{"$f":"IF(COUNTBLANK(Sociodemograficos[[#This Row],[Nombres y Apellidos]])=0,Sociodemograficos[[#This Row],[Nombres y Apellidos]],\"\")","v":""}]
["",null,null,null,null,null,null,null,null,null,null,null,null,null,null,null,null,null,null,null,null,null,null,null,null,null,null,null,null,null,null,null,null,null,null,null,null,null,null,null,null,null,null,null,null,null,null,null,"","","",{"$f":"IF(COUNTBLANK(Sociodemograficos[[#This Row],[Nombres y Apellidos]])=0,Sociodemograficos[[#This Row],[Nombres y Apellidos]],\"\")","v":""}]
["",null,null,null,null,null,null,null,null,null,null,null,null,null,null,null,null,null,null,null,null,null,null,null,null,null,null,null,null,null,null,null,null,null,null,null,null,null,null,null,null,null,null,null,null,null,null,null,"","","",{"$f":"IF(COUNTBLANK(Sociodemograficos[[#This Row],[Nombres y Apellidos]])=0,Sociodemograficos[[#This Row],[Nombres y Apellidos]],\"\")","v":""}]
["",null,null,null,null,null,null,null,null,null,null,null,null,null,null,null,null,null,null,null,null,null,null,null,null,null,null,null,null,null,null,null,null,null,null,null,null,null,null,null,null,null,null,null,null,null,null,null,"","","",{"$f":"IF(COUNTBLANK(Sociodemograficos[[#This Row],[Nombres y Apellidos]])=0,Sociodemograficos[[#This Row],[Nombres y Apellidos]],\"\")","v":""}]
["",null,null,null,null,null,null,null,null,null,null,null,null,null,null,null,null,null,null,null,null,null,null,null,null,null,null,null,null,null,null,null,null,null,null,null,null,null,null,null,null,null,null,null,null,null,null,null,"","","",{"$f":"IF(COUNTBLANK(Sociodemograficos[[#This Row],[Nombres y Apellidos]])=0,Sociodemograficos[[#This Row],[Nombres y Apellidos]],\"\")","v":""}]
["",null,null,null,null,null,null,null,null,null,null,null,null,null,null,null,null,null,null,null,null,null,null,null,null,null,null,null,null,null,null,null,null,null,null,null,null,null,null,null,null,null,null,null,null,null,null,null,"","","",{"$f":"IF(COUNTBLANK(Sociodemograficos[[#This Row],[Nombres y Apellidos]])=0,Sociodemograficos[[#This Row],[Nombres y Apellidos]],\"\")","v":""}]
["",null,null,null,null,null,null,null,null,null,null,null,null,null,null,null,null,null,null,null,null,null,null,null,null,null,null,null,null,null,null,null,null,null,null,null,null,null,null,null,null,null,null,null,null,null,null,null,"","","",{"$f":"IF(COUNTBLANK(Sociodemograficos[[#This Row],[Nombres y Apellidos]])=0,Sociodemograficos[[#This Row],[Nombres y Apellidos]],\"\")","v":""}]
["",null,null,null,null,null,null,null,null,null,null,null,null,null,null,null,null,null,null,null,null,null,null,null,null,null,null,null,null,null,null,null,null,null,null,null,null,null,null,null,null,null,null,null,null,null,null,null,"","","",{"$f":"IF(COUNTBLANK(Sociodemograficos[[#This Row],[Nombres y Apellidos]])=0,Sociodemograficos[[#This Row],[Nombres y Apellidos]],\"\")","v":""}]
["",null,null,null,null,null,null,null,null,null,null,null,null,null,null,null,null,null,null,null,null,null,null,null,null,null,null,null,null,null,null,null,null,null,null,null,null,null,null,null,null,null,null,null,null,null,null,null,"","","",{"$f":"IF(COUNTBLANK(Sociodemograficos[[#This Row],[Nombres y Apellidos]])=0,Sociodemograficos[[#This Row],[Nombres y Apellidos]],\"\")","v":""}]
["",null,null,null,null,null,null,null,null,null,null,null,null,null,null,null,null,null,null,null,null,null,null,null,null,null,null,null,null,null,null,null,null,null,null,null,null,null,null,null,null,null,null,null,null,null,null,null,"","","",{"$f":"IF(COUNTBLANK(Sociodemograficos[[#This Row],[Nombres y Apellidos]])=0,Sociodemograficos[[#This Row],[Nombres y Apellidos]],\"\")","v":""}]
["",null,null,null,null,null,null,null,null,null,null,null,null,null,null,null,null,null,null,null,null,null,null,null,null,null,null,null,null,null,null,null,null,null,null,null,null,null,null,null,null,null,null,null,null,null,null,null,"","","",{"$f":"IF(COUNTBLANK(Sociodemograficos[[#This Row],[Nombres y Apellidos]])=0,Sociodemograficos[[#This Row],[Nombres y Apellidos]],\"\")","v":""}]
["",null,null,null,null,null,null,null,null,null,null,null,null,null,null,null,null,null,null,null,null,null,null,null,null,null,null,null,null,null,null,null,null,null,null,null,null,null,null,null,null,null,null,null,null,null,null,null,"","","",{"$f":"IF(COUNTBLANK(Sociodemograficos[[#This Row],[Nombres y Apellidos]])=0,Sociodemograficos[[#This Row],[Nombres y Apellidos]],\"\")","v":""}]
["",null,null,null,null,null,null,null,null,null,null,null,null,null,null,null,null,null,null,null,null,null,null,null,null,null,null,null,null,null,null,null,null,null,null,null,null,null,null,null,null,null,null,null,null,null,null,null,"","","",{"$f":"IF(COUNTBLANK(Sociodemograficos[[#This Row],[Nombres y Apellidos]])=0,Sociodemograficos[[#This Row],[Nombres y Apellidos]],\"\")","v":""}]
["",null,null,null,null,null,null,null,null,null,null,null,null,null,null,null,null,null,null,null,null,null,null,null,null,null,null,null,null,null,null,null,null,null,null,null,null,null,null,null,null,null,null,null,null,null,null,null,"","","",{"$f":"IF(COUNTBLANK(Sociodemograficos[[#This Row],[Nombres y Apellidos]])=0,Sociodemograficos[[#This Row],[Nombres y Apellidos]],\"\")","v":""}]
["",null,null,null,null,null,null,null,null,null,null,null,null,null,null,null,null,null,null,null,null,null,null,null,null,null,null,null,null,null,null,null,null,null,null,null,null,null,null,null,null,null,null,null,null,null,null,null,"","","",{"$f":"IF(COUNTBLANK(Sociodemograficos[[#This Row],[Nombres y Apellidos]])=0,Sociodemograficos[[#This Row],[Nombres y Apellidos]],\"\")","v":""}]
["",null,null,null,null,null,null,null,null,null,null,null,null,null,null,null,null,null,null,null,null,null,null,null,null,null,null,null,null,null,null,null,null,null,null,null,null,null,null,null,null,null,null,null,null,null,null,null,"","","",{"$f":"IF(COUNTBLANK(Sociodemograficos[[#This Row],[Nombres y Apellidos]])=0,Sociodemograficos[[#This Row],[Nombres y Apellidos]],\"\")","v":""}]
["",null,null,null,null,null,null,null,null,null,null,null,null,null,null,null,null,null,null,null,null,null,null,null,null,null,null,null,null,null,null,null,null,null,null,null,null,null,null,null,null,null,null,null,null,null,null,null,"","","",{"$f":"IF(COUNTBLANK(Sociodemograficos[[#This Row],[Nombres y Apellidos]])=0,Sociodemograficos[[#This Row],[Nombres y Apellidos]],\"\")","v":""}]
["",null,null,null,null,null,null,null,null,null,null,null,null,null,null,null,null,null,null,null,null,null,null,null,null,null,null,null,null,null,null,null,null,null,null,null,null,null,null,null,null,null,null,null,null,null,null,null,"","","",{"$f":"IF(COUNTBLANK(Sociodemograficos[[#This Row],[Nombres y Apellidos]])=0,Sociodemograficos[[#This Row],[Nombres y Apellidos]],\"\")","v":""}]
["",null,null,null,null,null,null,null,null,null,null,null,null,null,null,null,null,null,null,null,null,null,null,null,null,null,null,null,null,null,null,null,null,null,null,null,null,null,null,null,null,null,null,null,null,null,null,null,"","","",{"$f":"IF(COUNTBLANK(Sociodemograficos[[#This Row],[Nombres y Apellidos]])=0,Sociodemograficos[[#This Row],[Nombres y Apellidos]],\"\")","v":""}]
["",null,null,null,null,null,null,null,null,null,null,null,null,null,null,null,null,null,null,null,null,null,null,null,null,null,null,null,null,null,null,null,null,null,null,null,null,null,null,null,null,null,null,null,null,null,null,null,"","","",{"$f":"IF(COUNTBLANK(Sociodemograficos[[#This Row],[Nombres y Apellidos]])=0,Sociodemograficos[[#This Row],[Nombres y Apellidos]],\"\")","v":""}]
["",null,null,null,null,null,null,null,null,null,null,null,null,null,null,null,null,null,null,null,null,null,null,null,null,null,null,null,null,null,null,null,null,null,null,null,null,null,null,null,null,null,null,null,null,null,null,null,"","","",{"$f":"IF(COUNTBLANK(Sociodemograficos[[#This Row],[Nombres y Apellidos]])=0,Sociodemograficos[[#This Row],[Nombres y Apellidos]],\"\")","v":""}]
["",null,null,null,null,null,null,null,null,null,null,null,null,null,null,null,null,null,null,null,null,null,null,null,null,null,null,null,null,null,null,null,null,null,null,null,null,null,null,null,null,null,null,null,null,null,null,null,"","","",{"$f":"IF(COUNTBLANK(Sociodemograficos[[#This Row],[Nombres y Apellidos]])=0,Sociodemograficos[[#This Row],[Nombres y Apellidos]],\"\")","v":""}]
["",null,null,null,null,null,null,null,null,null,null,null,null,null,null,null,null,null,null,null,null,null,null,null,null,null,null,null,null,null,null,null,null,null,null,null,null,null,null,null,null,null,null,null,null,null,null,null,"","","",{"$f":"IF(COUNTBLANK(Sociodemograficos[[#This Row],[Nombres y Apellidos]])=0,Sociodemograficos[[#This Row],[Nombres y Apellidos]],\"\")","v":""}]
["",null,null,null,null,null,null,null,null,null,null,null,null,null,null,null,null,null,null,null,null,null,null,null,null,null,null,null,null,null,null,null,null,null,null,null,null,null,null,null,null,null,null,null,null,null,null,null,"","","",{"$f":"IF(COUNTBLANK(Sociodemograficos[[#This Row],[Nombres y Apellidos]])=0,Sociodemograficos[[#This Row],[Nombres y Apellidos]],\"\")","v":""}]
["",null,null,null,null,null,null,null,null,null,null,null,null,null,null,null,null,null,null,null,null,null,null,null,null,null,null,null,null,null,null,null,null,null,null,null,null,null,null,null,null,null,null,null,null,null,null,null,"","","",{"$f":"IF(COUNTBLANK(Sociodemograficos[[#This Row],[Nombres y Apellidos]])=0,Sociodemograficos[[#This Row],[Nombres y Apellidos]],\"\")","v":""}]
["",null,null,null,null,null,null,null,null,null,null,null,null,null,null,null,null,null,null,null,null,null,null,null,null,null,null,null,null,null,null,null,null,null,null,null,null,null,null,null,null,null,null,null,null,null,null,null,"","","",{"$f":"IF(COUNTBLANK(Sociodemograficos[[#This Row],[Nombres y Apellidos]])=0,Sociodemograficos[[#This Row],[Nombres y Apellidos]],\"\")","v":""}]
["",null,null,null,null,null,null,null,null,null,null,null,null,null,null,null,null,null,null,null,null,null,null,null,null,null,null,null,null,null,null,null,null,null,null,null,null,null,null,null,null,null,null,null,null,null,null,null,"","","",{"$f":"IF(COUNTBLANK(Sociodemograficos[[#This Row],[Nombres y Apellidos]])=0,Sociodemograficos[[#This Row],[Nombres y Apellidos]],\"\")","v":""}]
["",null,null,null,null,null,null,null,null,null,null,null,null,null,null,null,null,null,null,null,null,null,null,null,null,null,null,null,null,null,null,null,null,null,null,null,null,null,null,null,null,null,null,null,null,null,null,null,"","","",{"$f":"IF(COUNTBLANK(Sociodemograficos[[#This Row],[Nombres y Apellidos]])=0,Sociodemograficos[[#This Row],[Nombres y Apellidos]],\"\")","v":""}]
["",null,null,null,null,null,null,null,null,null,null,null,null,null,null,null,null,null,null,null,null,null,null,null,null,null,null,null,null,null,null,null,null,null,null,null,null,null,null,null,null,null,null,null,null,null,null,null,"","","",{"$f":"IF(COUNTBLANK(Sociodemograficos[[#This Row],[Nombres y Apellidos]])=0,Sociodemograficos[[#This Row],[Nombres y Apellidos]],\"\")","v":""}]
["",null,null,null,null,null,null,null,null,null,null,null,null,null,null,null,null,null,null,null,null,null,null,null,null,null,null,null,null,null,null,null,null,null,null,null,null,null,null,null,null,null,null,null,null,null,null,null,"","","",{"$f":"IF(COUNTBLANK(Sociodemograficos[[#This Row],[Nombres y Apellidos]])=0,Sociodemograficos[[#This Row],[Nombres y Apellidos]],\"\")","v":""}]
["",null,null,null,null,null,null,null,null,null,null,null,null,null,null,null,null,null,null,null,null,null,null,null,null,null,null,null,null,null,null,null,null,null,null,null,null,null,null,null,null,null,null,null,null,null,null,null,"","","",{"$f":"IF(COUNTBLANK(Sociodemograficos[[#This Row],[Nombres y Apellidos]])=0,Sociodemograficos[[#This Row],[Nombres y Apellidos]],\"\")","v":""}]
["",null,null,null,null,null,null,null,null,null,null,null,null,null,null,null,null,null,null,null,null,null,null,null,null,null,null,null,null,null,null,null,null,null,null,null,null,null,null,null,null,null,null,null,null,null,null,null,"","","",{"$f":"IF(COUNTBLANK(Sociodemograficos[[#This Row],[Nombres y Apellidos]])=0,Sociodemograficos[[#This Row],[Nombres y Apellidos]],\"\")","v":""}]
["",null,null,null,null,null,null,null,null,null,null,null,null,null,null,null,null,null,null,null,null,null,null,null,null,null,null,null,null,null,null,null,null,null,null,null,null,null,null,null,null,null,null,null,null,null,null,null,"","","",{"$f":"IF(COUNTBLANK(Sociodemograficos[[#This Row],[Nombres y Apellidos]])=0,Sociodemograficos[[#This Row],[Nombres y Apellidos]],\"\")","v":""}]
["",null,null,null,null,null,null,null,null,null,null,null,null,null,null,null,null,null,null,null,null,null,null,null,null,null,null,null,null,null,null,null,null,null,null,null,null,null,null,null,null,null,null,null,null,null,null,null,"","","",{"$f":"IF(COUNTBLANK(Sociodemograficos[[#This Row],[Nombres y Apellidos]])=0,Sociodemograficos[[#This Row],[Nombres y Apellidos]],\"\")","v":""}]
["",null,null,null,null,null,null,null,null,null,null,null,null,null,null,null,null,null,null,null,null,null,null,null,null,null,null,null,null,null,null,null,null,null,null,null,null,null,null,null,null,null,null,null,null,null,null,null,"","","",{"$f":"IF(COUNTBLANK(Sociodemograficos[[#This Row],[Nombres y Apellidos]])=0,Sociodemograficos[[#This Row],[Nombres y Apellidos]],\"\")","v":""}]
["",null,null,null,null,null,null,null,null,null,null,null,null,null,null,null,null,null,null,null,null,null,null,null,null,null,null,null,null,null,null,null,null,null,null,null,null,null,null,null,null,null,null,null,null,null,null,null,"","","",{"$f":"IF(COUNTBLANK(Sociodemograficos[[#This Row],[Nombres y Apellidos]])=0,Sociodemograficos[[#This Row],[Nombres y Apellidos]],\"\")","v":""}]
["",null,null,null,null,null,null,null,null,null,null,null,null,null,null,null,null,null,null,null,null,null,null,null,null,null,null,null,null,null,null,null,null,null,null,null,null,null,null,null,null,null,null,null,null,null,null,null,"","","",{"$f":"IF(COUNTBLANK(Sociodemograficos[[#This Row],[Nombres y Apellidos]])=0,Sociodemograficos[[#This Row],[Nombres y Apellidos]],\"\")","v":""}]
["",null,null,null,null,null,null,null,null,null,null,null,null,null,null,null,null,null,null,null,null,null,null,null,null,null,null,null,null,null,null,null,null,null,null,null,null,null,null,null,null,null,null,null,null,null,null,null,"","","",{"$f":"IF(COUNTBLANK(Sociodemograficos[[#This Row],[Nombres y Apellidos]])=0,Sociodemograficos[[#This Row],[Nombres y Apellidos]],\"\")","v":""}]
["",null,null,null,null,null,null,null,null,null,null,null,null,null,null,null,null,null,null,null,null,null,null,null,null,null,null,null,null,null,null,null,null,null,null,null,null,null,null,null,null,null,null,null,null,null,null,null,"","","",{"$f":"IF(COUNTBLANK(Sociodemograficos[[#This Row],[Nombres y Apellidos]])=0,Sociodemograficos[[#This Row],[Nombres y Apellidos]],\"\")","v":""}]
["",null,null,null,null,null,null,null,null,null,null,null,null,null,null,null,null,null,null,null,null,null,null,null,null,null,null,null,null,null,null,null,null,null,null,null,null,null,null,null,null,null,null,null,null,null,null,null,"","","",{"$f":"IF(COUNTBLANK(Sociodemograficos[[#This Row],[Nombres y Apellidos]])=0,Sociodemograficos[[#This Row],[Nombres y Apellidos]],\"\")","v":""}]
["",null,null,null,null,null,null,null,null,null,null,null,null,null,null,null,null,null,null,null,null,null,null,null,null,null,null,null,null,null,null,null,null,null,null,null,null,null,null,null,null,null,null,null,null,null,null,null,"","","",{"$f":"IF(COUNTBLANK(Sociodemograficos[[#This Row],[Nombres y Apellidos]])=0,Sociodemograficos[[#This Row],[Nombres y Apellidos]],\"\")","v":""}]
["",null,null,null,null,null,null,null,null,null,null,null,null,null,null,null,null,null,null,null,null,null,null,null,null,null,null,null,null,null,null,null,null,null,null,null,null,null,null,null,null,null,null,null,null,null,null,null,"","","",{"$f":"IF(COUNTBLANK(Sociodemograficos[[#This Row],[Nombres y Apellidos]])=0,Sociodemograficos[[#This Row],[Nombres y Apellidos]],\"\")","v":""}]
["",null,null,null,null,null,null,null,null,null,null,null,null,null,null,null,null,null,null,null,null,null,null,null,null,null,null,null,null,null,null,null,null,null,null,null,null,null,null,null,null,null,null,null,null,null,null,null,"","","",{"$f":"IF(COUNTBLANK(Sociodemograficos[[#This Row],[Nombres y Apellidos]])=0,Sociodemograficos[[#This Row],[Nombres y Apellidos]],\"\")","v":""}]
["",null,null,null,null,null,null,null,null,null,null,null,null,null,null,null,null,null,null,null,null,null,null,null,null,null,null,null,null,null,null,null,null,null,null,null,null,null,null,null,null,null,null,null,null,null,null,null,"","","",{"$f":"IF(COUNTBLANK(Sociodemograficos[[#This Row],[Nombres y Apellidos]])=0,Sociodemograficos[[#This Row],[Nombres y Apellidos]],\"\")","v":""}]
["",null,null,null,null,null,null,null,null,null,null,null,null,null,null,null,null,null,null,null,null,null,null,null,null,null,null,null,null,null,null,null,null,null,null,null,null,null,null,null,null,null,null,null,null,null,null,null,"","","",{"$f":"IF(COUNTBLANK(Sociodemograficos[[#This Row],[Nombres y Apellidos]])=0,Sociodemograficos[[#This Row],[Nombres y Apellidos]],\"\")","v":""}]
["",null,null,null,null,null,null,null,null,null,null,null,null,null,null,null,null,null,null,null,null,null,null,null,null,null,null,null,null,null,null,null,null,null,null,null,null,null,null,null,null,null,null,null,null,null,null,null,"","","",{"$f":"IF(COUNTBLANK(Sociodemograficos[[#This Row],[Nombres y Apellidos]])=0,Sociodemograficos[[#This Row],[Nombres y Apellidos]],\"\")","v":""}]
["",null,null,null,null,null,null,null,null,null,null,null,null,null,null,null,null,null,null,null,null,null,null,null,null,null,null,null,null,null,null,null,null,null,null,null,null,null,null,null,null,null,null,null,null,null,null,null,"","","",{"$f":"IF(COUNTBLANK(Sociodemograficos[[#This Row],[Nombres y Apellidos]])=0,Sociodemograficos[[#This Row],[Nombres y Apellidos]],\"\")","v":""}]
["",null,null,null,null,null,null,null,null,null,null,null,null,null,null,null,null,null,null,null,null,null,null,null,null,null,null,null,null,null,null,null,null,null,null,null,null,null,null,null,null,null,null,null,null,null,null,null,"","","",{"$f":"IF(COUNTBLANK(Sociodemograficos[[#This Row],[Nombres y Apellidos]])=0,Sociodemograficos[[#This Row],[Nombres y Apellidos]],\"\")","v":""}]
["",null,null,null,null,null,null,null,null,null,null,null,null,null,null,null,null,null,null,null,null,null,null,null,null,null,null,null,null,null,null,null,null,null,null,null,null,null,null,null,null,null,null,null,null,null,null,null,"","","",{"$f":"IF(COUNTBLANK(Sociodemograficos[[#This Row],[Nombres y Apellidos]])=0,Sociodemograficos[[#This Row],[Nombres y Apellidos]],\"\")","v":""}]
["",null,null,null,null,null,null,null,null,null,null,null,null,null,null,null,null,null,null,null,null,null,null,null,null,null,null,null,null,null,null,null,null,null,null,null,null,null,null,null,null,null,null,null,null,null,null,null,"","","",{"$f":"IF(COUNTBLANK(Sociodemograficos[[#This Row],[Nombres y Apellidos]])=0,Sociodemograficos[[#This Row],[Nombres y Apellidos]],\"\")","v":""}]
["",null,null,null,null,null,null,null,null,null,null,null,null,null,null,null,null,null,null,null,null,null,null,null,null,null,null,null,null,null,null,null,null,null,null,null,null,null,null,null,null,null,null,null,null,null,null,null,"","","",{"$f":"IF(COUNTBLANK(Sociodemograficos[[#This Row],[Nombres y Apellidos]])=0,Sociodemograficos[[#This Row],[Nombres y Apellidos]],\"\")","v":""}]
["",null,null,null,null,null,null,null,null,null,null,null,null,null,null,null,null,null,null,null,null,null,null,null,null,null,null,null,null,null,null,null,null,null,null,null,null,null,null,null,null,null,null,null,null,null,null,null,"","","",{"$f":"IF(COUNTBLANK(Sociodemograficos[[#This Row],[Nombres y Apellidos]])=0,Sociodemograficos[[#This Row],[Nombres y Apellidos]],\"\")","v":""}]
["",null,null,null,null,null,null,null,null,null,null,null,null,null,null,null,null,null,null,null,null,null,null,null,null,null,null,null,null,null,null,null,null,null,null,null,null,null,null,null,null,null,null,null,null,null,null,null,"","","",{"$f":"IF(COUNTBLANK(Sociodemograficos[[#This Row],[Nombres y Apellidos]])=0,Sociodemograficos[[#This Row],[Nombres y Apellidos]],\"\")","v":""}]
["",null,null,null,null,null,null,null,null,null,null,null,null,null,null,null,null,null,null,null,null,null,null,null,null,null,null,null,null,null,null,null,null,null,null,null,null,null,null,null,null,null,null,null,null,null,null,null,"","","",{"$f":"IF(COUNTBLANK(Sociodemograficos[[#This Row],[Nombres y Apellidos]])=0,Sociodemograficos[[#This Row],[Nombres y Apellidos]],\"\")","v":""}]
["",null,null,null,null,null,null,null,null,null,null,null,null,null,null,null,null,null,null,null,null,null,null,null,null,null,null,null,null,null,null,null,null,null,null,null,null,null,null,null,null,null,null,null,null,null,null,null,"","","",{"$f":"IF(COUNTBLANK(Sociodemograficos[[#This Row],[Nombres y Apellidos]])=0,Sociodemograficos[[#This Row],[Nombres y Apellidos]],\"\")","v":""}]
["",null,null,null,null,null,null,null,null,null,null,null,null,null,null,null,null,null,null,null,null,null,null,null,null,null,null,null,null,null,null,null,null,null,null,null,null,null,null,null,null,null,null,null,null,null,null,null,"","","",{"$f":"IF(COUNTBLANK(Sociodemograficos[[#This Row],[Nombres y Apellidos]])=0,Sociodemograficos[[#This Row],[Nombres y Apellidos]],\"\")","v":""}]
["",null,null,null,null,null,null,null,null,null,null,null,null,null,null,null,null,null,null,null,null,null,null,null,null,null,null,null,null,null,null,null,null,null,null,null,null,null,null,null,null,null,null,null,null,null,null,null,"","","",{"$f":"IF(COUNTBLANK(Sociodemograficos[[#This Row],[Nombres y Apellidos]])=0,Sociodemograficos[[#This Row],[Nombres y Apellidos]],\"\")","v":""}]
["",null,null,null,null,null,null,null,null,null,null,null,null,null,null,null,null,null,null,null,null,null,null,null,null,null,null,null,null,null,null,null,null,null,null,null,null,null,null,null,null,null,null,null,null,null,null,null,"","","",{"$f":"IF(COUNTBLANK(Sociodemograficos[[#This Row],[Nombres y Apellidos]])=0,Sociodemograficos[[#This Row],[Nombres y Apellidos]],\"\")","v":""}]
["",null,null,null,null,null,null,null,null,null,null,null,null,null,null,null,null,null,null,null,null,null,null,null,null,null,null,null,null,null,null,null,null,null,null,null,null,null,null,null,null,null,null,null,null,null,null,null,"","","",{"$f":"IF(COUNTBLANK(Sociodemograficos[[#This Row],[Nombres y Apellidos]])=0,Sociodemograficos[[#This Row],[Nombres y Apellidos]],\"\")","v":""}]
["",null,null,null,null,null,null,null,null,null,null,null,null,null,null,null,null,null,null,null,null,null,null,null,null,null,null,null,null,null,null,null,null,null,null,null,null,null,null,null,null,null,null,null,null,null,null,null,"","","",{"$f":"IF(COUNTBLANK(Sociodemograficos[[#This Row],[Nombres y Apellidos]])=0,Sociodemograficos[[#This Row],[Nombres y Apellidos]],\"\")","v":""}]
["",null,null,null,null,null,null,null,null,null,null,null,null,null,null,null,null,null,null,null,null,null,null,null,null,null,null,null,null,null,null,null,null,null,null,null,null,null,null,null,null,null,null,null,null,null,null,null,"","","",{"$f":"IF(COUNTBLANK(Sociodemograficos[[#This Row],[Nombres y Apellidos]])=0,Sociodemograficos[[#This Row],[Nombres y Apellidos]],\"\")","v":""}]
["",null,null,null,null,null,null,null,null,null,null,null,null,null,null,null,null,null,null,null,null,null,null,null,null,null,null,null,null,null,null,null,null,null,null,null,null,null,null,null,null,null,null,null,null,null,null,null,"","","",{"$f":"IF(COUNTBLANK(Sociodemograficos[[#This Row],[Nombres y Apellidos]])=0,Sociodemograficos[[#This Row],[Nombres y Apellidos]],\"\")","v":""}]
["",null,null,null,null,null,null,null,null,null,null,null,null,null,null,null,null,null,null,null,null,null,null,null,null,null,null,null,null,null,null,null,null,null,null,null,null,null,null,null,null,null,null,null,null,null,null,null,"","","",{"$f":"IF(COUNTBLANK(Sociodemograficos[[#This Row],[Nombres y Apellidos]])=0,Sociodemograficos[[#This Row],[Nombres y Apellidos]],\"\")","v":""}]
["",null,null,null,null,null,null,null,null,null,null,null,null,null,null,null,null,null,null,null,null,null,null,null,null,null,null,null,null,null,null,null,null,null,null,null,null,null,null,null,null,null,null,null,null,null,null,null,"","","",{"$f":"IF(COUNTBLANK(Sociodemograficos[[#This Row],[Nombres y Apellidos]])=0,Sociodemograficos[[#This Row],[Nombres y Apellidos]],\"\")","v":""}]
["",null,null,null,null,null,null,null,null,null,null,null,null,null,null,null,null,null,null,null,null,null,null,null,null,null,null,null,null,null,null,null,null,null,null,null,null,null,null,null,null,null,null,null,null,null,null,null,"","","",{"$f":"IF(COUNTBLANK(Sociodemograficos[[#This Row],[Nombres y Apellidos]])=0,Sociodemograficos[[#This Row],[Nombres y Apellidos]],\"\")","v":""}]
["",null,null,null,null,null,null,null,null,null,null,null,null,null,null,null,null,null,null,null,null,null,null,null,null,null,null,null,null,null,null,null,null,null,null,null,null,null,null,null,null,null,null,null,null,null,null,null,"","","",{"$f":"IF(COUNTBLANK(Sociodemograficos[[#This Row],[Nombres y Apellidos]])=0,Sociodemograficos[[#This Row],[Nombres y Apellidos]],\"\")","v":""}]
["",null,null,null,null,null,null,null,null,null,null,null,null,null,null,null,null,null,null,null,null,null,null,null,null,null,null,null,null,null,null,null,null,null,null,null,null,null,null,null,null,null,null,null,null,null,null,null,"","","",{"$f":"IF(COUNTBLANK(Sociodemograficos[[#This Row],[Nombres y Apellidos]])=0,Sociodemograficos[[#This Row],[Nombres y Apellidos]],\"\")","v":""}]
["",null,null,null,null,null,null,null,null,null,null,null,null,null,null,null,null,null,null,null,null,null,null,null,null,null,null,null,null,null,null,null,null,null,null,null,null,null,null,null,null,null,null,null,null,null,null,null,"","","",{"$f":"IF(COUNTBLANK(Sociodemograficos[[#This Row],[Nombres y Apellidos]])=0,Sociodemograficos[[#This Row],[Nombres y Apellidos]],\"\")","v":""}]
["",null,null,null,null,null,null,null,null,null,null,null,null,null,null,null,null,null,null,null,null,null,null,null,null,null,null,null,null,null,null,null,null,null,null,null,null,null,null,null,null,null,null,null,null,null,null,null,"","","",{"$f":"IF(COUNTBLANK(Sociodemograficos[[#This Row],[Nombres y Apellidos]])=0,Sociodemograficos[[#This Row],[Nombres y Apellidos]],\"\")","v":""}]
["",null,null,null,null,null,null,null,null,null,null,null,null,null,null,null,null,null,null,null,null,null,null,null,null,null,null,null,null,null,null,null,null,null,null,null,null,null,null,null,null,null,null,null,null,null,null,null,"","","",{"$f":"IF(COUNTBLANK(Sociodemograficos[[#This Row],[Nombres y Apellidos]])=0,Sociodemograficos[[#This Row],[Nombres y Apellidos]],\"\")","v":""}]
["",null,null,null,null,null,null,null,null,null,null,null,null,null,null,null,null,null,null,null,null,null,null,null,null,null,null,null,null,null,null,null,null,null,null,null,null,null,null,null,null,null,null,null,null,null,null,null,"","","",{"$f":"IF(COUNTBLANK(Sociodemograficos[[#This Row],[Nombres y Apellidos]])=0,Sociodemograficos[[#This Row],[Nombres y Apellidos]],\"\")","v":""}]
["",null,null,null,null,null,null,null,null,null,null,null,null,null,null,null,null,null,null,null,null,null,null,null,null,null,null,null,null,null,null,null,null,null,null,null,null,null,null,null,null,null,null,null,null,null,null,null,"","","",{"$f":"IF(COUNTBLANK(Sociodemograficos[[#This Row],[Nombres y Apellidos]])=0,Sociodemograficos[[#This Row],[Nombres y Apellidos]],\"\")","v":""}]
["",null,null,null,null,null,null,null,null,null,null,null,null,null,null,null,null,null,null,null,null,null,null,null,null,null,null,null,null,null,null,null,null,null,null,null,null,null,null,null,null,null,null,null,null,null,null,null,"","","",{"$f":"IF(COUNTBLANK(Sociodemograficos[[#This Row],[Nombres y Apellidos]])=0,Sociodemograficos[[#This Row],[Nombres y Apellidos]],\"\")","v":""}]
["",null,null,null,null,null,null,null,null,null,null,null,null,null,null,null,null,null,null,null,null,null,null,null,null,null,null,null,null,null,null,null,null,null,null,null,null,null,null,null,null,null,null,null,null,null,null,null,"","","",{"$f":"IF(COUNTBLANK(Sociodemograficos[[#This Row],[Nombres y Apellidos]])=0,Sociodemograficos[[#This Row],[Nombres y Apellidos]],\"\")","v":""}]
["",null,null,null,null,null,null,null,null,null,null,null,null,null,null,null,null,null,null,null,null,null,null,null,null,null,null,null,null,null,null,null,null,null,null,null,null,null,null,null,null,null,null,null,null,null,null,null,"","","",{"$f":"IF(COUNTBLANK(Sociodemograficos[[#This Row],[Nombres y Apellidos]])=0,Sociodemograficos[[#This Row],[Nombres y Apellidos]],\"\")","v":""}]
["",null,null,null,null,null,null,null,null,null,null,null,null,null,null,null,null,null,null,null,null,null,null,null,null,null,null,null,null,null,null,null,null,null,null,null,null,null,null,null,null,null,null,null,null,null,null,null,"","","",{"$f":"IF(COUNTBLANK(Sociodemograficos[[#This Row],[Nombres y Apellidos]])=0,Sociodemograficos[[#This Row],[Nombres y Apellidos]],\"\")","v":""}]
["",null,null,null,null,null,null,null,null,null,null,null,null,null,null,null,null,null,null,null,null,null,null,null,null,null,null,null,null,null,null,null,null,null,null,null,null,null,null,null,null,null,null,null,null,null,null,null,"","","",{"$f":"IF(COUNTBLANK(Sociodemograficos[[#This Row],[Nombres y Apellidos]])=0,Sociodemograficos[[#This Row],[Nombres y Apellidos]],\"\")","v":""}]
["",null,null,null,null,null,null,null,null,null,null,null,null,null,null,null,null,null,null,null,null,null,null,null,null,null,null,null,null,null,null,null,null,null,null,null,null,null,null,null,null,null,null,null,null,null,null,null,"","","",{"$f":"IF(COUNTBLANK(Sociodemograficos[[#This Row],[Nombres y Apellidos]])=0,Sociodemograficos[[#This Row],[Nombres y Apellidos]],\"\")","v":""}]
["",null,null,null,null,null,null,null,null,null,null,null,null,null,null,null,null,null,null,null,null,null,null,null,null,null,null,null,null,null,null,null,null,null,null,null,null,null,null,null,null,null,null,null,null,null,null,null,"","","",{"$f":"IF(COUNTBLANK(Sociodemograficos[[#This Row],[Nombres y Apellidos]])=0,Sociodemograficos[[#This Row],[Nombres y Apellidos]],\"\")","v":""}]
["",null,null,null,null,null,null,null,null,null,null,null,null,null,null,null,null,null,null,null,null,null,null,null,null,null,null,null,null,null,null,null,null,null,null,null,null,null,null,null,null,null,null,null,null,null,null,null,"","","",{"$f":"IF(COUNTBLANK(Sociodemograficos[[#This Row],[Nombres y Apellidos]])=0,Sociodemograficos[[#This Row],[Nombres y Apellidos]],\"\")","v":""}]
["",null,null,null,null,null,null,null,null,null,null,null,null,null,null,null,null,null,null,null,null,null,null,null,null,null,null,null,null,null,null,null,null,null,null,null,null,null,null,null,null,null,null,null,null,null,null,null,"","","",{"$f":"IF(COUNTBLANK(Sociodemograficos[[#This Row],[Nombres y Apellidos]])=0,Sociodemograficos[[#This Row],[Nombres y Apellidos]],\"\")","v":""}]
["",null,null,null,null,null,null,null,null,null,null,null,null,null,null,null,null,null,null,null,null,null,null,null,null,null,null,null,null,null,null,null,null,null,null,null,null,null,null,null,null,null,null,null,null,null,null,null,"","","",{"$f":"IF(COUNTBLANK(Sociodemograficos[[#This Row],[Nombres y Apellidos]])=0,Sociodemograficos[[#This Row],[Nombres y Apellidos]],\"\")","v":""}]
["",null,null,null,null,null,null,null,null,null,null,null,null,null,null,null,null,null,null,null,null,null,null,null,null,null,null,null,null,null,null,null,null,null,null,null,null,null,null,null,null,null,null,null,null,null,null,null,"","","",{"$f":"IF(COUNTBLANK(Sociodemograficos[[#This Row],[Nombres y Apellidos]])=0,Sociodemograficos[[#This Row],[Nombres y Apellidos]],\"\")","v":""}]
["",null,null,null,null,null,null,null,null,null,null,null,null,null,null,null,null,null,null,null,null,null,null,null,null,null,null,null,null,null,null,null,null,null,null,null,null,null,null,null,null,null,null,null,null,null,null,null,"","","",{"$f":"IF(COUNTBLANK(Sociodemograficos[[#This Row],[Nombres y Apellidos]])=0,Sociodemograficos[[#This Row],[Nombres y Apellidos]],\"\")","v":""}]
["",null,null,null,null,null,null,null,null,null,null,null,null,null,null,null,null,null,null,null,null,null,null,null,null,null,null,null,null,null,null,null,null,null,null,null,null,null,null,null,null,null,null,null,null,null,null,null,"","","",{"$f":"IF(COUNTBLANK(Sociodemograficos[[#This Row],[Nombres y Apellidos]])=0,Sociodemograficos[[#This Row],[Nombres y Apellidos]],\"\")","v":""}]
["",null,null,null,null,null,null,null,null,null,null,null,null,null,null,null,null,null,null,null,null,null,null,null,null,null,null,null,null,null,null,null,null,null,null,null,null,null,null,null,null,null,null,null,null,null,null,null,"","","",{"$f":"IF(COUNTBLANK(Sociodemograficos[[#This Row],[Nombres y Apellidos]])=0,Sociodemograficos[[#This Row],[Nombres y Apellidos]],\"\")","v":""}]
["",null,null,null,null,null,null,null,null,null,null,null,null,null,null,null,null,null,null,null,null,null,null,null,null,null,null,null,null,null,null,null,null,null,null,null,null,null,null,null,null,null,null,null,null,null,null,null,"","","",{"$f":"IF(COUNTBLANK(Sociodemograficos[[#This Row],[Nombres y Apellidos]])=0,Sociodemograficos[[#This Row],[Nombres y Apellidos]],\"\")","v":""}]
["",null,null,null,null,null,null,null,null,null,null,null,null,null,null,null,null,null,null,null,null,null,null,null,null,null,null,null,null,null,null,null,null,null,null,null,null,null,null,null,null,null,null,null,null,null,null,null,"","","",{"$f":"IF(COUNTBLANK(Sociodemograficos[[#This Row],[Nombres y Apellidos]])=0,Sociodemograficos[[#This Row],[Nombres y Apellidos]],\"\")","v":""}]
["",null,null,null,null,null,null,null,null,null,null,null,null,null,null,null,null,null,null,null,null,null,null,null,null,null,null,null,null,null,null,null,null,null,null,null,null,null,null,null,null,null,null,null,null,null,null,null,"","","",{"$f":"IF(COUNTBLANK(Sociodemograficos[[#This Row],[Nombres y Apellidos]])=0,Sociodemograficos[[#This Row],[Nombres y Apellidos]],\"\")","v":""}]
["",null,null,null,null,null,null,null,null,null,null,null,null,null,null,null,null,null,null,null,null,null,null,null,null,null,null,null,null,null,null,null,null,null,null,null,null,null,null,null,null,null,null,null,null,null,null,null,"","","",{"$f":"IF(COUNTBLANK(Sociodemograficos[[#This Row],[Nombres y Apellidos]])=0,Sociodemograficos[[#This Row],[Nombres y Apellidos]],\"\")","v":""}]
["",null,null,null,null,null,null,null,null,null,null,null,null,null,null,null,null,null,null,null,null,null,null,null,null,null,null,null,null,null,null,null,null,null,null,null,null,null,null,null,null,null,null,null,null,null,null,null,"","","",{"$f":"IF(COUNTBLANK(Sociodemograficos[[#This Row],[Nombres y Apellidos]])=0,Sociodemograficos[[#This Row],[Nombres y Apellidos]],\"\")","v":""}]
["",null,null,null,null,null,null,null,null,null,null,null,null,null,null,null,null,null,null,null,null,null,null,null,null,null,null,null,null,null,null,null,null,null,null,null,null,null,null,null,null,null,null,null,null,null,null,null,"","","",{"$f":"IF(COUNTBLANK(Sociodemograficos[[#This Row],[Nombres y Apellidos]])=0,Sociodemograficos[[#This Row],[Nombres y Apellidos]],\"\")","v":""}]
["",null,null,null,null,null,null,null,null,null,null,null,null,null,null,null,null,null,null,null,null,null,null,null,null,null,null,null,null,null,null,null,null,null,null,null,null,null,null,null,null,null,null,null,null,null,null,null,"","","",{"$f":"IF(COUNTBLANK(Sociodemograficos[[#This Row],[Nombres y Apellidos]])=0,Sociodemograficos[[#This Row],[Nombres y Apellidos]],\"\")","v":""}]
["",null,null,null,null,null,null,null,null,null,null,null,null,null,null,null,null,null,null,null,null,null,null,null,null,null,null,null,null,null,null,null,null,null,null,null,null,null,null,null,null,null,null,null,null,null,null,null,"","","",{"$f":"IF(COUNTBLANK(Sociodemograficos[[#This Row],[Nombres y Apellidos]])=0,Sociodemograficos[[#This Row],[Nombres y Apellidos]],\"\")","v":""}]
["",null,null,null,null,null,null,null,null,null,null,null,null,null,null,null,null,null,null,null,null,null,null,null,null,null,null,null,null,null,null,null,null,null,null,null,null,null,null,null,null,null,null,null,null,null,null,null,"","","",{"$f":"IF(COUNTBLANK(Sociodemograficos[[#This Row],[Nombres y Apellidos]])=0,Sociodemograficos[[#This Row],[Nombres y Apellidos]],\"\")","v":""}]
["",null,null,null,null,null,null,null,null,null,null,null,null,null,null,null,null,null,null,null,null,null,null,null,null,null,null,null,null,null,null,null,null,null,null,null,null,null,null,null,null,null,null,null,null,null,null,null,"","","",{"$f":"IF(COUNTBLANK(Sociodemograficos[[#This Row],[Nombres y Apellidos]])=0,Sociodemograficos[[#This Row],[Nombres y Apellidos]],\"\")","v":""}]
["",null,null,null,null,null,null,null,null,null,null,null,null,null,null,null,null,null,null,null,null,null,null,null,null,null,null,null,null,null,null,null,null,null,null,null,null,null,null,null,null,null,null,null,null,null,null,null,"","","",{"$f":"IF(COUNTBLANK(Sociodemograficos[[#This Row],[Nombres y Apellidos]])=0,Sociodemograficos[[#This Row],[Nombres y Apellidos]],\"\")","v":""}]
["",null,null,null,null,null,null,null,null,null,null,null,null,null,null,null,null,null,null,null,null,null,null,null,null,null,null,null,null,null,null,null,null,null,null,null,null,null,null,null,null,null,null,null,null,null,null,null,"","","",{"$f":"IF(COUNTBLANK(Sociodemograficos[[#This Row],[Nombres y Apellidos]])=0,Sociodemograficos[[#This Row],[Nombres y Apellidos]],\"\")","v":""}]
["",null,null,null,null,null,null,null,null,null,null,null,null,null,null,null,null,null,null,null,null,null,null,null,null,null,null,null,null,null,null,null,null,null,null,null,null,null,null,null,null,null,null,null,null,null,null,null,"","","",{"$f":"IF(COUNTBLANK(Sociodemograficos[[#This Row],[Nombres y Apellidos]])=0,Sociodemograficos[[#This Row],[Nombres y Apellidos]],\"\")","v":""}]
["",null,null,null,null,null,null,null,null,null,null,null,null,null,null,null,null,null,null,null,null,null,null,null,null,null,null,null,null,null,null,null,null,null,null,null,null,null,null,null,null,null,null,null,null,null,null,null,"","","",{"$f":"IF(COUNTBLANK(Sociodemograficos[[#This Row],[Nombres y Apellidos]])=0,Sociodemograficos[[#This Row],[Nombres y Apellidos]],\"\")","v":""}]
["",null,null,null,null,null,null,null,null,null,null,null,null,null,null,null,null,null,null,null,null,null,null,null,null,null,null,null,null,null,null,null,null,null,null,null,null,null,null,null,null,null,null,null,null,null,null,null,"","","",{"$f":"IF(COUNTBLANK(Sociodemograficos[[#This Row],[Nombres y Apellidos]])=0,Sociodemograficos[[#This Row],[Nombres y Apellidos]],\"\")","v":""}]
["",null,null,null,null,null,null,null,null,null,null,null,null,null,null,null,null,null,null,null,null,null,null,null,null,null,null,null,null,null,null,null,null,null,null,null,null,null,null,null,null,null,null,null,null,null,null,null,"","","",{"$f":"IF(COUNTBLANK(Sociodemograficos[[#This Row],[Nombres y Apellidos]])=0,Sociodemograficos[[#This Row],[Nombres y Apellidos]],\"\")","v":""}]
["",null,null,null,null,null,null,null,null,null,null,null,null,null,null,null,null,null,null,null,null,null,null,null,null,null,null,null,null,null,null,null,null,null,null,null,null,null,null,null,null,null,null,null,null,null,null,null,"","","",{"$f":"IF(COUNTBLANK(Sociodemograficos[[#This Row],[Nombres y Apellidos]])=0,Sociodemograficos[[#This Row],[Nombres y Apellidos]],\"\")","v":""}]
["",null,null,null,null,null,null,null,null,null,null,null,null,null,null,null,null,null,null,null,null,null,null,null,null,null,null,null,null,null,null,null,null,null,null,null,null,null,null,null,null,null,null,null,null,null,null,null,"","","",{"$f":"IF(COUNTBLANK(Sociodemograficos[[#This Row],[Nombres y Apellidos]])=0,Sociodemograficos[[#This Row],[Nombres y Apellidos]],\"\")","v":""}]
["",null,null,null,null,null,null,null,null,null,null,null,null,null,null,null,null,null,null,null,null,null,null,null,null,null,null,null,null,null,null,null,null,null,null,null,null,null,null,null,null,null,null,null,null,null,null,null,"","","",{"$f":"IF(COUNTBLANK(Sociodemograficos[[#This Row],[Nombres y Apellidos]])=0,Sociodemograficos[[#This Row],[Nombres y Apellidos]],\"\")","v":""}]
["",null,null,null,null,null,null,null,null,null,null,null,null,null,null,null,null,null,null,null,null,null,null,null,null,null,null,null,null,null,null,null,null,null,null,null,null,null,null,null,null,null,null,null,null,null,null,null,"","","",{"$f":"IF(COUNTBLANK(Sociodemograficos[[#This Row],[Nombres y Apellidos]])=0,Sociodemograficos[[#This Row],[Nombres y Apellidos]],\"\")","v":""}]
["",null,null,null,null,null,null,null,null,null,null,null,null,null,null,null,null,null,null,null,null,null,null,null,null,null,null,null,null,null,null,null,null,null,null,null,null,null,null,null,null,null,null,null,null,null,null,null,"","","",{"$f":"IF(COUNTBLANK(Sociodemograficos[[#This Row],[Nombres y Apellidos]])=0,Sociodemograficos[[#This Row],[Nombres y Apellidos]],\"\")","v":""}]
["",null,null,null,null,null,null,null,null,null,null,null,null,null,null,null,null,null,null,null,null,null,null,null,null,null,null,null,null,null,null,null,null,null,null,null,null,null,null,null,null,null,null,null,null,null,null,null,"","","",{"$f":"IF(COUNTBLANK(Sociodemograficos[[#This Row],[Nombres y Apellidos]])=0,Sociodemograficos[[#This Row],[Nombres y Apellidos]],\"\")","v":""}]
["",null,null,null,null,null,null,null,null,null,null,null,null,null,null,null,null,null,null,null,null,null,null,null,null,null,null,null,null,null,null,null,null,null,null,null,null,null,null,null,null,null,null,null,null,null,null,null,"","","",{"$f":"IF(COUNTBLANK(Sociodemograficos[[#This Row],[Nombres y Apellidos]])=0,Sociodemograficos[[#This Row],[Nombres y Apellidos]],\"\")","v":""}]
["",null,null,null,null,null,null,null,null,null,null,null,null,null,null,null,null,null,null,null,null,null,null,null,null,null,null,null,null,null,null,null,null,null,null,null,null,null,null,null,null,null,null,null,null,null,null,null,"","","",{"$f":"IF(COUNTBLANK(Sociodemograficos[[#This Row],[Nombres y Apellidos]])=0,Sociodemograficos[[#This Row],[Nombres y Apellidos]],\"\")","v":""}]
["",null,null,null,null,null,null,null,null,null,null,null,null,null,null,null,null,null,null,null,null,null,null,null,null,null,null,null,null,null,null,null,null,null,null,null,null,null,null,null,null,null,null,null,null,null,null,null,"","","",{"$f":"IF(COUNTBLANK(Sociodemograficos[[#This Row],[Nombres y Apellidos]])=0,Sociodemograficos[[#This Row],[Nombres y Apellidos]],\"\")","v":""}]
["",null,null,null,null,null,null,null,null,null,null,null,null,null,null,null,null,null,null,null,null,null,null,null,null,null,null,null,null,null,null,null,null,null,null,null,null,null,null,null,null,null,null,null,null,null,null,null,"","","",{"$f":"IF(COUNTBLANK(Sociodemograficos[[#This Row],[Nombres y Apellidos]])=0,Sociodemograficos[[#This Row],[Nombres y Apellidos]],\"\")","v":""}]
["",null,null,null,null,null,null,null,null,null,null,null,null,null,null,null,null,null,null,null,null,null,null,null,null,null,null,null,null,null,null,null,null,null,null,null,null,null,null,null,null,null,null,null,null,null,null,null,"","","",{"$f":"IF(COUNTBLANK(Sociodemograficos[[#This Row],[Nombres y Apellidos]])=0,Sociodemograficos[[#This Row],[Nombres y Apellidos]],\"\")","v":""}]
["",null,null,null,null,null,null,null,null,null,null,null,null,null,null,null,null,null,null,null,null,null,null,null,null,null,null,null,null,null,null,null,null,null,null,null,null,null,null,null,null,null,null,null,null,null,null,null,"","","",{"$f":"IF(COUNTBLANK(Sociodemograficos[[#This Row],[Nombres y Apellidos]])=0,Sociodemograficos[[#This Row],[Nombres y Apellidos]],\"\")","v":""}]
["",null,null,null,null,null,null,null,null,null,null,null,null,null,null,null,null,null,null,null,null,null,null,null,null,null,null,null,null,null,null,null,null,null,null,null,null,null,null,null,null,null,null,null,null,null,null,null,"","","",{"$f":"IF(COUNTBLANK(Sociodemograficos[[#This Row],[Nombres y Apellidos]])=0,Sociodemograficos[[#This Row],[Nombres y Apellidos]],\"\")","v":""}]
["",null,null,null,null,null,null,null,null,null,null,null,null,null,null,null,null,null,null,null,null,null,null,null,null,null,null,null,null,null,null,null,null,null,null,null,null,null,null,null,null,null,null,null,null,null,null,null,"","","",{"$f":"IF(COUNTBLANK(Sociodemograficos[[#This Row],[Nombres y Apellidos]])=0,Sociodemograficos[[#This Row],[Nombres y Apellidos]],\"\")","v":""}]
["",null,null,null,null,null,null,null,null,null,null,null,null,null,null,null,null,null,null,null,null,null,null,null,null,null,null,null,null,null,null,null,null,null,null,null,null,null,null,null,null,null,null,null,null,null,null,null,"","","",{"$f":"IF(COUNTBLANK(Sociodemograficos[[#This Row],[Nombres y Apellidos]])=0,Sociodemograficos[[#This Row],[Nombres y Apellidos]],\"\")","v":""}]
["",null,null,null,null,null,null,null,null,null,null,null,null,null,null,null,null,null,null,null,null,null,null,null,null,null,null,null,null,null,null,null,null,null,null,null,null,null,null,null,null,null,null,null,null,null,null,null,"","","",{"$f":"IF(COUNTBLANK(Sociodemograficos[[#This Row],[Nombres y Apellidos]])=0,Sociodemograficos[[#This Row],[Nombres y Apellidos]],\"\")","v":""}]
["",null,null,null,null,null,null,null,null,null,null,null,null,null,null,null,null,null,null,null,null,null,null,null,null,null,null,null,null,null,null,null,null,null,null,null,null,null,null,null,null,null,null,null,null,null,null,null,"","","",{"$f":"IF(COUNTBLANK(Sociodemograficos[[#This Row],[Nombres y Apellidos]])=0,Sociodemograficos[[#This Row],[Nombres y Apellidos]],\"\")","v":""}]
["",null,null,null,null,null,null,null,null,null,null,null,null,null,null,null,null,null,null,null,null,null,null,null,null,null,null,null,null,null,null,null,null,null,null,null,null,null,null,null,null,null,null,null,null,null,null,null,"","","",{"$f":"IF(COUNTBLANK(Sociodemograficos[[#This Row],[Nombres y Apellidos]])=0,Sociodemograficos[[#This Row],[Nombres y Apellidos]],\"\")","v":""}]
["",null,null,null,null,null,null,null,null,null,null,null,null,null,null,null,null,null,null,null,null,null,null,null,null,null,null,null,null,null,null,null,null,null,null,null,null,null,null,null,null,null,null,null,null,null,null,null,"","","",{"$f":"IF(COUNTBLANK(Sociodemograficos[[#This Row],[Nombres y Apellidos]])=0,Sociodemograficos[[#This Row],[Nombres y Apellidos]],\"\")","v":""}]
["",null,null,null,null,null,null,null,null,null,null,null,null,null,null,null,null,null,null,null,null,null,null,null,null,null,null,null,null,null,null,null,null,null,null,null,null,null,null,null,null,null,null,null,null,null,null,null,"","","",{"$f":"IF(COUNTBLANK(Sociodemograficos[[#This Row],[Nombres y Apellidos]])=0,Sociodemograficos[[#This Row],[Nombres y Apellidos]],\"\")","v":""}]
["",null,null,null,null,null,null,null,null,null,null,null,null,null,null,null,null,null,null,null,null,null,null,null,null,null,null,null,null,null,null,null,null,null,null,null,null,null,null,null,null,null,null,null,null,null,null,null,"","","",{"$f":"IF(COUNTBLANK(Sociodemograficos[[#This Row],[Nombres y Apellidos]])=0,Sociodemograficos[[#This Row],[Nombres y Apellidos]],\"\")","v":""}]
["",null,null,null,null,null,null,null,null,null,null,null,null,null,null,null,null,null,null,null,null,null,null,null,null,null,null,null,null,null,null,null,null,null,null,null,null,null,null,null,null,null,null,null,null,null,null,null,"","","",{"$f":"IF(COUNTBLANK(Sociodemograficos[[#This Row],[Nombres y Apellidos]])=0,Sociodemograficos[[#This Row],[Nombres y Apellidos]],\"\")","v":""}]
["",null,null,null,null,null,null,null,null,null,null,null,null,null,null,null,null,null,null,null,null,null,null,null,null,null,null,null,null,null,null,null,null,null,null,null,null,null,null,null,null,null,null,null,null,null,null,null,"","","",{"$f":"IF(COUNTBLANK(Sociodemograficos[[#This Row],[Nombres y Apellidos]])=0,Sociodemograficos[[#This Row],[Nombres y Apellidos]],\"\")","v":""}]
["",null,null,null,null,null,null,null,null,null,null,null,null,null,null,null,null,null,null,null,null,null,null,null,null,null,null,null,null,null,null,null,null,null,null,null,null,null,null,null,null,null,null,null,null,null,null,null,"","","",{"$f":"IF(COUNTBLANK(Sociodemograficos[[#This Row],[Nombres y Apellidos]])=0,Sociodemograficos[[#This Row],[Nombres y Apellidos]],\"\")","v":""}]
["",null,null,null,null,null,null,null,null,null,null,null,null,null,null,null,null,null,null,null,null,null,null,null,null,null,null,null,null,null,null,null,null,null,null,null,null,null,null,null,null,null,null,null,null,null,null,null,"","","",{"$f":"IF(COUNTBLANK(Sociodemograficos[[#This Row],[Nombres y Apellidos]])=0,Sociodemograficos[[#This Row],[Nombres y Apellidos]],\"\")","v":""}]
["",null,null,null,null,null,null,null,null,null,null,null,null,null,null,null,null,null,null,null,null,null,null,null,null,null,null,null,null,null,null,null,null,null,null,null,null,null,null,null,null,null,null,null,null,null,null,null,"","","",{"$f":"IF(COUNTBLANK(Sociodemograficos[[#This Row],[Nombres y Apellidos]])=0,Sociodemograficos[[#This Row],[Nombres y Apellidos]],\"\")","v":""}]
["",null,null,null,null,null,null,null,null,null,null,null,null,null,null,null,null,null,null,null,null,null,null,null,null,null,null,null,null,null,null,null,null,null,null,null,null,null,null,null,null,null,null,null,null,null,null,null,"","","",{"$f":"IF(COUNTBLANK(Sociodemograficos[[#This Row],[Nombres y Apellidos]])=0,Sociodemograficos[[#This Row],[Nombres y Apellidos]],\"\")","v":""}]
["",null,null,null,null,null,null,null,null,null,null,null,null,null,null,null,null,null,null,null,null,null,null,null,null,null,null,null,null,null,null,null,null,null,null,null,null,null,null,null,null,null,null,null,null,null,null,null,"","","",{"$f":"IF(COUNTBLANK(Sociodemograficos[[#This Row],[Nombres y Apellidos]])=0,Sociodemograficos[[#This Row],[Nombres y Apellidos]],\"\")","v":""}]
["",null,null,null,null,null,null,null,null,null,null,null,null,null,null,null,null,null,null,null,null,null,null,null,null,null,null,null,null,null,null,null,null,null,null,null,null,null,null,null,null,null,null,null,null,null,null,null,"","","",{"$f":"IF(COUNTBLANK(Sociodemograficos[[#This Row],[Nombres y Apellidos]])=0,Sociodemograficos[[#This Row],[Nombres y Apellidos]],\"\")","v":""}]
["",null,null,null,null,null,null,null,null,null,null,null,null,null,null,null,null,null,null,null,null,null,null,null,null,null,null,null,null,null,null,null,null,null,null,null,null,null,null,null,null,null,null,null,null,null,null,null,"","","",{"$f":"IF(COUNTBLANK(Sociodemograficos[[#This Row],[Nombres y Apellidos]])=0,Sociodemograficos[[#This Row],[Nombres y Apellidos]],\"\")","v":""}]
["",null,null,null,null,null,null,null,null,null,null,null,null,null,null,null,null,null,null,null,null,null,null,null,null,null,null,null,null,null,null,null,null,null,null,null,null,null,null,null,null,null,null,null,null,null,null,null,"","","",{"$f":"IF(COUNTBLANK(Sociodemograficos[[#This Row],[Nombres y Apellidos]])=0,Sociodemograficos[[#This Row],[Nombres y Apellidos]],\"\")","v":""}]
["",null,null,null,null,null,null,null,null,null,null,null,null,null,null,null,null,null,null,null,null,null,null,null,null,null,null,null,null,null,null,null,null,null,null,null,null,null,null,null,null,null,null,null,null,null,null,null,"","","",{"$f":"IF(COUNTBLANK(Sociodemograficos[[#This Row],[Nombres y Apellidos]])=0,Sociodemograficos[[#This Row],[Nombres y Apellidos]],\"\")","v":""}]
["",null,null,null,null,null,null,null,null,null,null,null,null,null,null,null,null,null,null,null,null,null,null,null,null,null,null,null,null,null,null,null,null,null,null,null,null,null,null,null,null,null,null,null,null,null,null,null,"","","",{"$f":"IF(COUNTBLANK(Sociodemograficos[[#This Row],[Nombres y Apellidos]])=0,Sociodemograficos[[#This Row],[Nombres y Apellidos]],\"\")","v":""}]
["",null,null,null,null,null,null,null,null,null,null,null,null,null,null,null,null,null,null,null,null,null,null,null,null,null,null,null,null,null,null,null,null,null,null,null,null,null,null,null,null,null,null,null,null,null,null,null,"","","",{"$f":"IF(COUNTBLANK(Sociodemograficos[[#This Row],[Nombres y Apellidos]])=0,Sociodemograficos[[#This Row],[Nombres y Apellidos]],\"\")","v":""}]
["",null,null,null,null,null,null,null,null,null,null,null,null,null,null,null,null,null,null,null,null,null,null,null,null,null,null,null,null,null,null,null,null,null,null,null,null,null,null,null,null,null,null,null,null,null,null,null,"","","",{"$f":"IF(COUNTBLANK(Sociodemograficos[[#This Row],[Nombres y Apellidos]])=0,Sociodemograficos[[#This Row],[Nombres y Apellidos]],\"\")","v":""}]
["",null,null,null,null,null,null,null,null,null,null,null,null,null,null,null,null,null,null,null,null,null,null,null,null,null,null,null,null,null,null,null,null,null,null,null,null,null,null,null,null,null,null,null,null,null,null,null,"","","",{"$f":"IF(COUNTBLANK(Sociodemograficos[[#This Row],[Nombres y Apellidos]])=0,Sociodemograficos[[#This Row],[Nombres y Apellidos]],\"\")","v":""}]
["",null,null,null,null,null,null,null,null,null,null,null,null,null,null,null,null,null,null,null,null,null,null,null,null,null,null,null,null,null,null,null,null,null,null,null,null,null,null,null,null,null,null,null,null,null,null,null,"","","",{"$f":"IF(COUNTBLANK(Sociodemograficos[[#This Row],[Nombres y Apellidos]])=0,Sociodemograficos[[#This Row],[Nombres y Apellidos]],\"\")","v":""}]
["",null,null,null,null,null,null,null,null,null,null,null,null,null,null,null,null,null,null,null,null,null,null,null,null,null,null,null,null,null,null,null,null,null,null,null,null,null,null,null,null,null,null,null,null,null,null,null,"","","",{"$f":"IF(COUNTBLANK(Sociodemograficos[[#This Row],[Nombres y Apellidos]])=0,Sociodemograficos[[#This Row],[Nombres y Apellidos]],\"\")","v":""}]
["",null,null,null,null,null,null,null,null,null,null,null,null,null,null,null,null,null,null,null,null,null,null,null,null,null,null,null,null,null,null,null,null,null,null,null,null,null,null,null,null,null,null,null,null,null,null,null,"","","",{"$f":"IF(COUNTBLANK(Sociodemograficos[[#This Row],[Nombres y Apellidos]])=0,Sociodemograficos[[#This Row],[Nombres y Apellidos]],\"\")","v":""}]
["",null,null,null,null,null,null,null,null,null,null,null,null,null,null,null,null,null,null,null,null,null,null,null,null,null,null,null,null,null,null,null,null,null,null,null,null,null,null,null,null,null,null,null,null,null,null,null,"","","",{"$f":"IF(COUNTBLANK(Sociodemograficos[[#This Row],[Nombres y Apellidos]])=0,Sociodemograficos[[#This Row],[Nombres y Apellidos]],\"\")","v":""}]
["",null,null,null,null,null,null,null,null,null,null,null,null,null,null,null,null,null,null,null,null,null,null,null,null,null,null,null,null,null,null,null,null,null,null,null,null,null,null,null,null,null,null,null,null,null,null,null,"","","",{"$f":"IF(COUNTBLANK(Sociodemograficos[[#This Row],[Nombres y Apellidos]])=0,Sociodemograficos[[#This Row],[Nombres y Apellidos]],\"\")","v":""}]
["",null,null,null,null,null,null,null,null,null,null,null,null,null,null,null,null,null,null,null,null,null,null,null,null,null,null,null,null,null,null,null,null,null,null,null,null,null,null,null,null,null,null,null,null,null,null,null,"","","",{"$f":"IF(COUNTBLANK(Sociodemograficos[[#This Row],[Nombres y Apellidos]])=0,Sociodemograficos[[#This Row],[Nombres y Apellidos]],\"\")","v":""}]
["",null,null,null,null,null,null,null,null,null,null,null,null,null,null,null,null,null,null,null,null,null,null,null,null,null,null,null,null,null,null,null,null,null,null,null,null,null,null,null,null,null,null,null,null,null,null,null,"","","",{"$f":"IF(COUNTBLANK(Sociodemograficos[[#This Row],[Nombres y Apellidos]])=0,Sociodemograficos[[#This Row],[Nombres y Apellidos]],\"\")","v":""}]
["",null,null,null,null,null,null,null,null,null,null,null,null,null,null,null,null,null,null,null,null,null,null,null,null,null,null,null,null,null,null,null,null,null,null,null,null,null,null,null,null,null,null,null,null,null,null,null,"","","",{"$f":"IF(COUNTBLANK(Sociodemograficos[[#This Row],[Nombres y Apellidos]])=0,Sociodemograficos[[#This Row],[Nombres y Apellidos]],\"\")","v":""}]
["",null,null,null,null,null,null,null,null,null,null,null,null,null,null,null,null,null,null,null,null,null,null,null,null,null,null,null,null,null,null,null,null,null,null,null,null,null,null,null,null,null,null,null,null,null,null,null,"","","",{"$f":"IF(COUNTBLANK(Sociodemograficos[[#This Row],[Nombres y Apellidos]])=0,Sociodemograficos[[#This Row],[Nombres y Apellidos]],\"\")","v":""}]
["",null,null,null,null,null,null,null,null,null,null,null,null,null,null,null,null,null,null,null,null,null,null,null,null,null,null,null,null,null,null,null,null,null,null,null,null,null,null,null,null,null,null,null,null,null,null,null,"","","",{"$f":"IF(COUNTBLANK(Sociodemograficos[[#This Row],[Nombres y Apellidos]])=0,Sociodemograficos[[#This Row],[Nombres y Apellidos]],\"\")","v":""}]
["",null,null,null,null,null,null,null,null,null,null,null,null,null,null,null,null,null,null,null,null,null,null,null,null,null,null,null,null,null,null,null,null,null,null,null,null,null,null,null,null,null,null,null,null,null,null,null,"","","",{"$f":"IF(COUNTBLANK(Sociodemograficos[[#This Row],[Nombres y Apellidos]])=0,Sociodemograficos[[#This Row],[Nombres y Apellidos]],\"\")","v":""}]
["",null,null,null,null,null,null,null,null,null,null,null,null,null,null,null,null,null,null,null,null,null,null,null,null,null,null,null,null,null,null,null,null,null,null,null,null,null,null,null,null,null,null,null,null,null,null,null,"","","",{"$f":"IF(COUNTBLANK(Sociodemograficos[[#This Row],[Nombres y Apellidos]])=0,Sociodemograficos[[#This Row],[Nombres y Apellidos]],\"\")","v":""}]
["",null,null,null,null,null,null,null,null,null,null,null,null,null,null,null,null,null,null,null,null,null,null,null,null,null,null,null,null,null,null,null,null,null,null,null,null,null,null,null,null,null,null,null,null,null,null,null,"","","",{"$f":"IF(COUNTBLANK(Sociodemograficos[[#This Row],[Nombres y Apellidos]])=0,Sociodemograficos[[#This Row],[Nombres y Apellidos]],\"\")","v":""}]
["",null,null,null,null,null,null,null,null,null,null,null,null,null,null,null,null,null,null,null,null,null,null,null,null,null,null,null,null,null,null,null,null,null,null,null,null,null,null,null,null,null,null,null,null,null,null,null,"","","",{"$f":"IF(COUNTBLANK(Sociodemograficos[[#This Row],[Nombres y Apellidos]])=0,Sociodemograficos[[#This Row],[Nombres y Apellidos]],\"\")","v":""}]
["",null,null,null,null,null,null,null,null,null,null,null,null,null,null,null,null,null,null,null,null,null,null,null,null,null,null,null,null,null,null,null,null,null,null,null,null,null,null,null,null,null,null,null,null,null,null,null,"","","",{"$f":"IF(COUNTBLANK(Sociodemograficos[[#This Row],[Nombres y Apellidos]])=0,Sociodemograficos[[#This Row],[Nombres y Apellidos]],\"\")","v":""}]
["",null,null,null,null,null,null,null,null,null,null,null,null,null,null,null,null,null,null,null,null,null,null,null,null,null,null,null,null,null,null,null,null,null,null,null,null,null,null,null,null,null,null,null,null,null,null,null,"","","",{"$f":"IF(COUNTBLANK(Sociodemograficos[[#This Row],[Nombres y Apellidos]])=0,Sociodemograficos[[#This Row],[Nombres y Apellidos]],\"\")","v":""}]
["",null,null,null,null,null,null,null,null,null,null,null,null,null,null,null,null,null,null,null,null,null,null,null,null,null,null,null,null,null,null,null,null,null,null,null,null,null,null,null,null,null,null,null,null,null,null,null,"","","",{"$f":"IF(COUNTBLANK(Sociodemograficos[[#This Row],[Nombres y Apellidos]])=0,Sociodemograficos[[#This Row],[Nombres y Apellidos]],\"\")","v":""}]
["",null,null,null,null,null,null,null,null,null,null,null,null,null,null,null,null,null,null,null,null,null,null,null,null,null,null,null,null,null,null,null,null,null,null,null,null,null,null,null,null,null,null,null,null,null,null,null,"","","",{"$f":"IF(COUNTBLANK(Sociodemograficos[[#This Row],[Nombres y Apellidos]])=0,Sociodemograficos[[#This Row],[Nombres y Apellidos]],\"\")","v":""}]
["",null,null,null,null,null,null,null,null,null,null,null,null,null,null,null,null,null,null,null,null,null,null,null,null,null,null,null,null,null,null,null,null,null,null,null,null,null,null,null,null,null,null,null,null,null,null,null,"","","",{"$f":"IF(COUNTBLANK(Sociodemograficos[[#This Row],[Nombres y Apellidos]])=0,Sociodemograficos[[#This Row],[Nombres y Apellidos]],\"\")","v":""}]
["",null,null,null,null,null,null,null,null,null,null,null,null,null,null,null,null,null,null,null,null,null,null,null,null,null,null,null,null,null,null,null,null,null,null,null,null,null,null,null,null,null,null,null,null,null,null,null,"","","",{"$f":"IF(COUNTBLANK(Sociodemograficos[[#This Row],[Nombres y Apellidos]])=0,Sociodemograficos[[#This Row],[Nombres y Apellidos]],\"\")","v":""}]
["",null,null,null,null,null,null,null,null,null,null,null,null,null,null,null,null,null,null,null,null,null,null,null,null,null,null,null,null,null,null,null,null,null,null,null,null,null,null,null,null,null,null,null,null,null,null,null,"","","",{"$f":"IF(COUNTBLANK(Sociodemograficos[[#This Row],[Nombres y Apellidos]])=0,Sociodemograficos[[#This Row],[Nombres y Apellidos]],\"\")","v":""}]
["",null,null,null,null,null,null,null,null,null,null,null,null,null,null,null,null,null,null,null,null,null,null,null,null,null,null,null,null,null,null,null,null,null,null,null,null,null,null,null,null,null,null,null,null,null,null,null,"","","",{"$f":"IF(COUNTBLANK(Sociodemograficos[[#This Row],[Nombres y Apellidos]])=0,Sociodemograficos[[#This Row],[Nombres y Apellidos]],\"\")","v":""}]
["",null,null,null,null,null,null,null,null,null,null,null,null,null,null,null,null,null,null,null,null,null,null,null,null,null,null,null,null,null,null,null,null,null,null,null,null,null,null,null,null,null,null,null,null,null,null,null,"","","",{"$f":"IF(COUNTBLANK(Sociodemograficos[[#This Row],[Nombres y Apellidos]])=0,Sociodemograficos[[#This Row],[Nombres y Apellidos]],\"\")","v":""}]
["",null,null,null,null,null,null,null,null,null,null,null,null,null,null,null,null,null,null,null,null,null,null,null,null,null,null,null,null,null,null,null,null,null,null,null,null,null,null,null,null,null,null,null,null,null,null,null,"","","",{"$f":"IF(COUNTBLANK(Sociodemograficos[[#This Row],[Nombres y Apellidos]])=0,Sociodemograficos[[#This Row],[Nombres y Apellidos]],\"\")","v":""}]
["",null,null,null,null,null,null,null,null,null,null,null,null,null,null,null,null,null,null,null,null,null,null,null,null,null,null,null,null,null,null,null,null,null,null,null,null,null,null,null,null,null,null,null,null,null,null,null,"","","",{"$f":"IF(COUNTBLANK(Sociodemograficos[[#This Row],[Nombres y Apellidos]])=0,Sociodemograficos[[#This Row],[Nombres y Apellidos]],\"\")","v":""}]
["",null,null,null,null,null,null,null,null,null,null,null,null,null,null,null,null,null,null,null,null,null,null,null,null,null,null,null,null,null,null,null,null,null,null,null,null,null,null,null,null,null,null,null,null,null,null,null,"","","",{"$f":"IF(COUNTBLANK(Sociodemograficos[[#This Row],[Nombres y Apellidos]])=0,Sociodemograficos[[#This Row],[Nombres y Apellidos]],\"\")","v":""}]
["",null,null,null,null,null,null,null,null,null,null,null,null,null,null,null,null,null,null,null,null,null,null,null,null,null,null,null,null,null,null,null,null,null,null,null,null,null,null,null,null,null,null,null,null,null,null,null,"","","",{"$f":"IF(COUNTBLANK(Sociodemograficos[[#This Row],[Nombres y Apellidos]])=0,Sociodemograficos[[#This Row],[Nombres y Apellidos]],\"\")","v":""}]
["",null,null,null,null,null,null,null,null,null,null,null,null,null,null,null,null,null,null,null,null,null,null,null,null,null,null,null,null,null,null,null,null,null,null,null,null,null,null,null,null,null,null,null,null,null,null,null,"","","",{"$f":"IF(COUNTBLANK(Sociodemograficos[[#This Row],[Nombres y Apellidos]])=0,Sociodemograficos[[#This Row],[Nombres y Apellidos]],\"\")","v":""}]
["",null,null,null,null,null,null,null,null,null,null,null,null,null,null,null,null,null,null,null,null,null,null,null,null,null,null,null,null,null,null,null,null,null,null,null,null,null,null,null,null,null,null,null,null,null,null,null,"","","",{"$f":"IF(COUNTBLANK(Sociodemograficos[[#This Row],[Nombres y Apellidos]])=0,Sociodemograficos[[#This Row],[Nombres y Apellidos]],\"\")","v":""}]
["",null,null,null,null,null,null,null,null,null,null,null,null,null,null,null,null,null,null,null,null,null,null,null,null,null,null,null,null,null,null,null,null,null,null,null,null,null,null,null,null,null,null,null,null,null,null,null,"","","",{"$f":"IF(COUNTBLANK(Sociodemograficos[[#This Row],[Nombres y Apellidos]])=0,Sociodemograficos[[#This Row],[Nombres y Apellidos]],\"\")","v":""}]
["",null,null,null,null,null,null,null,null,null,null,null,null,null,null,null,null,null,null,null,null,null,null,null,null,null,null,null,null,null,null,null,null,null,null,null,null,null,null,null,null,null,null,null,null,null,null,null,"","","",{"$f":"IF(COUNTBLANK(Sociodemograficos[[#This Row],[Nombres y Apellidos]])=0,Sociodemograficos[[#This Row],[Nombres y Apellidos]],\"\")","v":""}]
["",null,null,null,null,null,null,null,null,null,null,null,null,null,null,null,null,null,null,null,null,null,null,null,null,null,null,null,null,null,null,null,null,null,null,null,null,null,null,null,null,null,null,null,null,null,null,null,"","","",{"$f":"IF(COUNTBLANK(Sociodemograficos[[#This Row],[Nombres y Apellidos]])=0,Sociodemograficos[[#This Row],[Nombres y Apellidos]],\"\")","v":""}]
["",null,null,null,null,null,null,null,null,null,null,null,null,null,null,null,null,null,null,null,null,null,null,null,null,null,null,null,null,null,null,null,null,null,null,null,null,null,null,null,null,null,null,null,null,null,null,null,"","","",{"$f":"IF(COUNTBLANK(Sociodemograficos[[#This Row],[Nombres y Apellidos]])=0,Sociodemograficos[[#This Row],[Nombres y Apellidos]],\"\")","v":""}]
["",null,null,null,null,null,null,null,null,null,null,null,null,null,null,null,null,null,null,null,null,null,null,null,null,null,null,null,null,null,null,null,null,null,null,null,null,null,null,null,null,null,null,null,null,null,null,null,"","","",{"$f":"IF(COUNTBLANK(Sociodemograficos[[#This Row],[Nombres y Apellidos]])=0,Sociodemograficos[[#This Row],[Nombres y Apellidos]],\"\")","v":""}]
["",null,null,null,null,null,null,null,null,null,null,null,null,null,null,null,null,null,null,null,null,null,null,null,null,null,null,null,null,null,null,null,null,null,null,null,null,null,null,null,null,null,null,null,null,null,null,null,"","","",{"$f":"IF(COUNTBLANK(Sociodemograficos[[#This Row],[Nombres y Apellidos]])=0,Sociodemograficos[[#This Row],[Nombres y Apellidos]],\"\")","v":""}]
["",null,null,null,null,null,null,null,null,null,null,null,null,null,null,null,null,null,null,null,null,null,null,null,null,null,null,null,null,null,null,null,null,null,null,null,null,null,null,null,null,null,null,null,null,null,null,null,"","","",{"$f":"IF(COUNTBLANK(Sociodemograficos[[#This Row],[Nombres y Apellidos]])=0,Sociodemograficos[[#This Row],[Nombres y Apellidos]],\"\")","v":""}]
["",null,null,null,null,null,null,null,null,null,null,null,null,null,null,null,null,null,null,null,null,null,null,null,null,null,null,null,null,null,null,null,null,null,null,null,null,null,null,null,null,null,null,null,null,null,null,null,"","","",{"$f":"IF(COUNTBLANK(Sociodemograficos[[#This Row],[Nombres y Apellidos]])=0,Sociodemograficos[[#This Row],[Nombres y Apellidos]],\"\")","v":""}]
["",null,null,null,null,null,null,null,null,null,null,null,null,null,null,null,null,null,null,null,null,null,null,null,null,null,null,null,null,null,null,null,null,null,null,null,null,null,null,null,null,null,null,null,null,null,null,null,"","","",{"$f":"IF(COUNTBLANK(Sociodemograficos[[#This Row],[Nombres y Apellidos]])=0,Sociodemograficos[[#This Row],[Nombres y Apellidos]],\"\")","v":""}]
["",null,null,null,null,null,null,null,null,null,null,null,null,null,null,null,null,null,null,null,null,null,null,null,null,null,null,null,null,null,null,null,null,null,null,null,null,null,null,null,null,null,null,null,null,null,null,null,"","","",{"$f":"IF(COUNTBLANK(Sociodemograficos[[#This Row],[Nombres y Apellidos]])=0,Sociodemograficos[[#This Row],[Nombres y Apellidos]],\"\")","v":""}]
["",null,null,null,null,null,null,null,null,null,null,null,null,null,null,null,null,null,null,null,null,null,null,null,null,null,null,null,null,null,null,null,null,null,null,null,null,null,null,null,null,null,null,null,null,null,null,null,"","","",{"$f":"IF(COUNTBLANK(Sociodemograficos[[#This Row],[Nombres y Apellidos]])=0,Sociodemograficos[[#This Row],[Nombres y Apellidos]],\"\")","v":""}]
["",null,null,null,null,null,null,null,null,null,null,null,null,null,null,null,null,null,null,null,null,null,null,null,null,null,null,null,null,null,null,null,null,null,null,null,null,null,null,null,null,null,null,null,null,null,null,null,"","","",{"$f":"IF(COUNTBLANK(Sociodemograficos[[#This Row],[Nombres y Apellidos]])=0,Sociodemograficos[[#This Row],[Nombres y Apellidos]],\"\")","v":""}]
["",null,null,null,null,null,null,null,null,null,null,null,null,null,null,null,null,null,null,null,null,null,null,null,null,null,null,null,null,null,null,null,null,null,null,null,null,null,null,null,null,null,null,null,null,null,null,null,"","","",{"$f":"IF(COUNTBLANK(Sociodemograficos[[#This Row],[Nombres y Apellidos]])=0,Sociodemograficos[[#This Row],[Nombres y Apellidos]],\"\")","v":""}]
["",null,null,null,null,null,null,null,null,null,null,null,null,null,null,null,null,null,null,null,null,null,null,null,null,null,null,null,null,null,null,null,null,null,null,null,null,null,null,null,null,null,null,null,null,null,null,null,"","","",{"$f":"IF(COUNTBLANK(Sociodemograficos[[#This Row],[Nombres y Apellidos]])=0,Sociodemograficos[[#This Row],[Nombres y Apellidos]],\"\")","v":""}]
["",null,null,null,null,null,null,null,null,null,null,null,null,null,null,null,null,null,null,null,null,null,null,null,null,null,null,null,null,null,null,null,null,null,null,null,null,null,null,null,null,null,null,null,null,null,null,null,"","","",{"$f":"IF(COUNTBLANK(Sociodemograficos[[#This Row],[Nombres y Apellidos]])=0,Sociodemograficos[[#This Row],[Nombres y Apellidos]],\"\")","v":""}]
["",null,null,null,null,null,null,null,null,null,null,null,null,null,null,null,null,null,null,null,null,null,null,null,null,null,null,null,null,null,null,null,null,null,null,null,null,null,null,null,null,null,null,null,null,null,null,null,"","","",{"$f":"IF(COUNTBLANK(Sociodemograficos[[#This Row],[Nombres y Apellidos]])=0,Sociodemograficos[[#This Row],[Nombres y Apellidos]],\"\")","v":""}]
["",null,null,null,null,null,null,null,null,null,null,null,null,null,null,null,null,null,null,null,null,null,null,null,null,null,null,null,null,null,null,null,null,null,null,null,null,null,null,null,null,null,null,null,null,null,null,null,"","","",{"$f":"IF(COUNTBLANK(Sociodemograficos[[#This Row],[Nombres y Apellidos]])=0,Sociodemograficos[[#This Row],[Nombres y Apellidos]],\"\")","v":""}]
["",null,null,null,null,null,null,null,null,null,null,null,null,null,null,null,null,null,null,null,null,null,null,null,null,null,null,null,null,null,null,null,null,null,null,null,null,null,null,null,null,null,null,null,null,null,null,null,"","","",{"$f":"IF(COUNTBLANK(Sociodemograficos[[#This Row],[Nombres y Apellidos]])=0,Sociodemograficos[[#This Row],[Nombres y Apellidos]],\"\")","v":""}]
["",null,null,null,null,null,null,null,null,null,null,null,null,null,null,null,null,null,null,null,null,null,null,null,null,null,null,null,null,null,null,null,null,null,null,null,null,null,null,null,null,null,null,null,null,null,null,null,"","","",{"$f":"IF(COUNTBLANK(Sociodemograficos[[#This Row],[Nombres y Apellidos]])=0,Sociodemograficos[[#This Row],[Nombres y Apellidos]],\"\")","v":""}]
["",null,null,null,null,null,null,null,null,null,null,null,null,null,null,null,null,null,null,null,null,null,null,null,null,null,null,null,null,null,null,null,null,null,null,null,null,null,null,null,null,null,null,null,null,null,null,null,"","","",{"$f":"IF(COUNTBLANK(Sociodemograficos[[#This Row],[Nombres y Apellidos]])=0,Sociodemograficos[[#This Row],[Nombres y Apellidos]],\"\")","v":""}]
["",null,null,null,null,null,null,null,null,null,null,null,null,null,null,null,null,null,null,null,null,null,null,null,null,null,null,null,null,null,null,null,null,null,null,null,null,null,null,null,null,null,null,null,null,null,null,null,"","","",{"$f":"IF(COUNTBLANK(Sociodemograficos[[#This Row],[Nombres y Apellidos]])=0,Sociodemograficos[[#This Row],[Nombres y Apellidos]],\"\")","v":""}]
["",null,null,null,null,null,null,null,null,null,null,null,null,null,null,null,null,null,null,null,null,null,null,null,null,null,null,null,null,null,null,null,null,null,null,null,null,null,null,null,null,null,null,null,null,null,null,null,"","","",{"$f":"IF(COUNTBLANK(Sociodemograficos[[#This Row],[Nombres y Apellidos]])=0,Sociodemograficos[[#This Row],[Nombres y Apellidos]],\"\")","v":""}]
["",null,null,null,null,null,null,null,null,null,null,null,null,null,null,null,null,null,null,null,null,null,null,null,null,null,null,null,null,null,null,null,null,null,null,null,null,null,null,null,null,null,null,null,null,null,null,null,"","","",{"$f":"IF(COUNTBLANK(Sociodemograficos[[#This Row],[Nombres y Apellidos]])=0,Sociodemograficos[[#This Row],[Nombres y Apellidos]],\"\")","v":""}]
["",null,null,null,null,null,null,null,null,null,null,null,null,null,null,null,null,null,null,null,null,null,null,null,null,null,null,null,null,null,null,null,null,null,null,null,null,null,null,null,null,null,null,null,null,null,null,null,"","","",{"$f":"IF(COUNTBLANK(Sociodemograficos[[#This Row],[Nombres y Apellidos]])=0,Sociodemograficos[[#This Row],[Nombres y Apellidos]],\"\")","v":""}]
["",null,null,null,null,null,null,null,null,null,null,null,null,null,null,null,null,null,null,null,null,null,null,null,null,null,null,null,null,null,null,null,null,null,null,null,null,null,null,null,null,null,null,null,null,null,null,null,"","","",{"$f":"IF(COUNTBLANK(Sociodemograficos[[#This Row],[Nombres y Apellidos]])=0,Sociodemograficos[[#This Row],[Nombres y Apellidos]],\"\")","v":""}]
["",null,null,null,null,null,null,null,null,null,null,null,null,null,null,null,null,null,null,null,null,null,null,null,null,null,null,null,null,null,null,null,null,null,null,null,null,null,null,null,null,null,null,null,null,null,null,null,"","","",{"$f":"IF(COUNTBLANK(Sociodemograficos[[#This Row],[Nombres y Apellidos]])=0,Sociodemograficos[[#This Row],[Nombres y Apellidos]],\"\")","v":""}]
["",null,null,null,null,null,null,null,null,null,null,null,null,null,null,null,null,null,null,null,null,null,null,null,null,null,null,null,null,null,null,null,null,null,null,null,null,null,null,null,null,null,null,null,null,null,null,null,"","","",{"$f":"IF(COUNTBLANK(Sociodemograficos[[#This Row],[Nombres y Apellidos]])=0,Sociodemograficos[[#This Row],[Nombres y Apellidos]],\"\")","v":""}]
["",null,null,null,null,null,null,null,null,null,null,null,null,null,null,null,null,null,null,null,null,null,null,null,null,null,null,null,null,null,null,null,null,null,null,null,null,null,null,null,null,null,null,null,null,null,null,null,"","","",{"$f":"IF(COUNTBLANK(Sociodemograficos[[#This Row],[Nombres y Apellidos]])=0,Sociodemograficos[[#This Row],[Nombres y Apellidos]],\"\")","v":""}]
["",null,null,null,null,null,null,null,null,null,null,null,null,null,null,null,null,null,null,null,null,null,null,null,null,null,null,null,null,null,null,null,null,null,null,null,null,null,null,null,null,null,null,null,null,null,null,null,"","","",{"$f":"IF(COUNTBLANK(Sociodemograficos[[#This Row],[Nombres y Apellidos]])=0,Sociodemograficos[[#This Row],[Nombres y Apellidos]],\"\")","v":""}]
["",null,null,null,null,null,null,null,null,null,null,null,null,null,null,null,null,null,null,null,null,null,null,null,null,null,null,null,null,null,null,null,null,null,null,null,null,null,null,null,null,null,null,null,null,null,null,null,"","","",{"$f":"IF(COUNTBLANK(Sociodemograficos[[#This Row],[Nombres y Apellidos]])=0,Sociodemograficos[[#This Row],[Nombres y Apellidos]],\"\")","v":""}]
["",null,null,null,null,null,null,null,null,null,null,null,null,null,null,null,null,null,null,null,null,null,null,null,null,null,null,null,null,null,null,null,null,null,null,null,null,null,null,null,null,null,null,null,null,null,null,null,"","","",{"$f":"IF(COUNTBLANK(Sociodemograficos[[#This Row],[Nombres y Apellidos]])=0,Sociodemograficos[[#This Row],[Nombres y Apellidos]],\"\")","v":""}]
["",null,null,null,null,null,null,null,null,null,null,null,null,null,null,null,null,null,null,null,null,null,null,null,null,null,null,null,null,null,null,null,null,null,null,null,null,null,null,null,null,null,null,null,null,null,null,null,"","","",{"$f":"IF(COUNTBLANK(Sociodemograficos[[#This Row],[Nombres y Apellidos]])=0,Sociodemograficos[[#This Row],[Nombres y Apellidos]],\"\")","v":""}]
["",null,null,null,null,null,null,null,null,null,null,null,null,null,null,null,null,null,null,null,null,null,null,null,null,null,null,null,null,null,null,null,null,null,null,null,null,null,null,null,null,null,null,null,null,null,null,null,"","","",{"$f":"IF(COUNTBLANK(Sociodemograficos[[#This Row],[Nombres y Apellidos]])=0,Sociodemograficos[[#This Row],[Nombres y Apellidos]],\"\")","v":""}]
["",null,null,null,null,null,null,null,null,null,null,null,null,null,null,null,null,null,null,null,null,null,null,null,null,null,null,null,null,null,null,null,null,null,null,null,null,null,null,null,null,null,null,null,null,null,null,null,"","","",{"$f":"IF(COUNTBLANK(Sociodemograficos[[#This Row],[Nombres y Apellidos]])=0,Sociodemograficos[[#This Row],[Nombres y Apellidos]],\"\")","v":""}]
["",null,null,null,null,null,null,null,null,null,null,null,null,null,null,null,null,null,null,null,null,null,null,null,null,null,null,null,null,null,null,null,null,null,null,null,null,null,null,null,null,null,null,null,null,null,null,null,"","","",{"$f":"IF(COUNTBLANK(Sociodemograficos[[#This Row],[Nombres y Apellidos]])=0,Sociodemograficos[[#This Row],[Nombres y Apellidos]],\"\")","v":""}]
["",null,null,null,null,null,null,null,null,null,null,null,null,null,null,null,null,null,null,null,null,null,null,null,null,null,null,null,null,null,null,null,null,null,null,null,null,null,null,null,null,null,null,null,null,null,null,null,"","","",{"$f":"IF(COUNTBLANK(Sociodemograficos[[#This Row],[Nombres y Apellidos]])=0,Sociodemograficos[[#This Row],[Nombres y Apellidos]],\"\")","v":""}]
["",null,null,null,null,null,null,null,null,null,null,null,null,null,null,null,null,null,null,null,null,null,null,null,null,null,null,null,null,null,null,null,null,null,null,null,null,null,null,null,null,null,null,null,null,null,null,null,"","","",{"$f":"IF(COUNTBLANK(Sociodemograficos[[#This Row],[Nombres y Apellidos]])=0,Sociodemograficos[[#This Row],[Nombres y Apellidos]],\"\")","v":""}]
["",null,null,null,null,null,null,null,null,null,null,null,null,null,null,null,null,null,null,null,null,null,null,null,null,null,null,null,null,null,null,null,null,null,null,null,null,null,null,null,null,null,null,null,null,null,null,null,"","","",{"$f":"IF(COUNTBLANK(Sociodemograficos[[#This Row],[Nombres y Apellidos]])=0,Sociodemograficos[[#This Row],[Nombres y Apellidos]],\"\")","v":""}]
["",null,null,null,null,null,null,null,null,null,null,null,null,null,null,null,null,null,null,null,null,null,null,null,null,null,null,null,null,null,null,null,null,null,null,null,null,null,null,null,null,null,null,null,null,null,null,null,"","","",{"$f":"IF(COUNTBLANK(Sociodemograficos[[#This Row],[Nombres y Apellidos]])=0,Sociodemograficos[[#This Row],[Nombres y Apellidos]],\"\")","v":""}]
["",null,null,null,null,null,null,null,null,null,null,null,null,null,null,null,null,null,null,null,null,null,null,null,null,null,null,null,null,null,null,null,null,null,null,null,null,null,null,null,null,null,null,null,null,null,null,null,"","","",{"$f":"IF(COUNTBLANK(Sociodemograficos[[#This Row],[Nombres y Apellidos]])=0,Sociodemograficos[[#This Row],[Nombres y Apellidos]],\"\")","v":""}]
["",null,null,null,null,null,null,null,null,null,null,null,null,null,null,null,null,null,null,null,null,null,null,null,null,null,null,null,null,null,null,null,null,null,null,null,null,null,null,null,null,null,null,null,null,null,null,null,"","","",{"$f":"IF(COUNTBLANK(Sociodemograficos[[#This Row],[Nombres y Apellidos]])=0,Sociodemograficos[[#This Row],[Nombres y Apellidos]],\"\")","v":""}]
["",null,null,null,null,null,null,null,null,null,null,null,null,null,null,null,null,null,null,null,null,null,null,null,null,null,null,null,null,null,null,null,null,null,null,null,null,null,null,null,null,null,null,null,null,null,null,null,"","","",{"$f":"IF(COUNTBLANK(Sociodemograficos[[#This Row],[Nombres y Apellidos]])=0,Sociodemograficos[[#This Row],[Nombres y Apellidos]],\"\")","v":""}]
["",null,null,null,null,null,null,null,null,null,null,null,null,null,null,null,null,null,null,null,null,null,null,null,null,null,null,null,null,null,null,null,null,null,null,null,null,null,null,null,null,null,null,null,null,null,null,null,"","","",{"$f":"IF(COUNTBLANK(Sociodemograficos[[#This Row],[Nombres y Apellidos]])=0,Sociodemograficos[[#This Row],[Nombres y Apellidos]],\"\")","v":""}]
["",null,null,null,null,null,null,null,null,null,null,null,null,null,null,null,null,null,null,null,null,null,null,null,null,null,null,null,null,null,null,null,null,null,null,null,null,null,null,null,null,null,null,null,null,null,null,null,"","","",{"$f":"IF(COUNTBLANK(Sociodemograficos[[#This Row],[Nombres y Apellidos]])=0,Sociodemograficos[[#This Row],[Nombres y Apellidos]],\"\")","v":""}]
["",null,null,null,null,null,null,null,null,null,null,null,null,null,null,null,null,null,null,null,null,null,null,null,null,null,null,null,null,null,null,null,null,null,null,null,null,null,null,null,null,null,null,null,null,null,null,null,"","","",{"$f":"IF(COUNTBLANK(Sociodemograficos[[#This Row],[Nombres y Apellidos]])=0,Sociodemograficos[[#This Row],[Nombres y Apellidos]],\"\")","v":""}]
["",null,null,null,null,null,null,null,null,null,null,null,null,null,null,null,null,null,null,null,null,null,null,null,null,null,null,null,null,null,null,null,null,null,null,null,null,null,null,null,null,null,null,null,null,null,null,null,"","","",{"$f":"IF(COUNTBLANK(Sociodemograficos[[#This Row],[Nombres y Apellidos]])=0,Sociodemograficos[[#This Row],[Nombres y Apellidos]],\"\")","v":""}]
["",null,null,null,null,null,null,null,null,null,null,null,null,null,null,null,null,null,null,null,null,null,null,null,null,null,null,null,null,null,null,null,null,null,null,null,null,null,null,null,null,null,null,null,null,null,null,null,"","","",{"$f":"IF(COUNTBLANK(Sociodemograficos[[#This Row],[Nombres y Apellidos]])=0,Sociodemograficos[[#This Row],[Nombres y Apellidos]],\"\")","v":""}]
["",null,null,null,null,null,null,null,null,null,null,null,null,null,null,null,null,null,null,null,null,null,null,null,null,null,null,null,null,null,null,null,null,null,null,null,null,null,null,null,null,null,null,null,null,null,null,null,"","","",{"$f":"IF(COUNTBLANK(Sociodemograficos[[#This Row],[Nombres y Apellidos]])=0,Sociodemograficos[[#This Row],[Nombres y Apellidos]],\"\")","v":""}]
["",null,null,null,null,null,null,null,null,null,null,null,null,null,null,null,null,null,null,null,null,null,null,null,null,null,null,null,null,null,null,null,null,null,null,null,null,null,null,null,null,null,null,null,null,null,null,null,"","","",{"$f":"IF(COUNTBLANK(Sociodemograficos[[#This Row],[Nombres y Apellidos]])=0,Sociodemograficos[[#This Row],[Nombres y Apellidos]],\"\")","v":""}]
["",null,null,null,null,null,null,null,null,null,null,null,null,null,null,null,null,null,null,null,null,null,null,null,null,null,null,null,null,null,null,null,null,null,null,null,null,null,null,null,null,null,null,null,null,null,null,null,"","","",{"$f":"IF(COUNTBLANK(Sociodemograficos[[#This Row],[Nombres y Apellidos]])=0,Sociodemograficos[[#This Row],[Nombres y Apellidos]],\"\")","v":""}]
["",null,null,null,null,null,null,null,null,null,null,null,null,null,null,null,null,null,null,null,null,null,null,null,null,null,null,null,null,null,null,null,null,null,null,null,null,null,null,null,null,null,null,null,null,null,null,null,"","","",{"$f":"IF(COUNTBLANK(Sociodemograficos[[#This Row],[Nombres y Apellidos]])=0,Sociodemograficos[[#This Row],[Nombres y Apellidos]],\"\")","v":""}]
["",null,null,null,null,null,null,null,null,null,null,null,null,null,null,null,null,null,null,null,null,null,null,null,null,null,null,null,null,null,null,null,null,null,null,null,null,null,null,null,null,null,null,null,null,null,null,null,"","","",{"$f":"IF(COUNTBLANK(Sociodemograficos[[#This Row],[Nombres y Apellidos]])=0,Sociodemograficos[[#This Row],[Nombres y Apellidos]],\"\")","v":""}]
["",null,null,null,null,null,null,null,null,null,null,null,null,null,null,null,null,null,null,null,null,null,null,null,null,null,null,null,null,null,null,null,null,null,null,null,null,null,null,null,null,null,null,null,null,null,null,null,"","","",{"$f":"IF(COUNTBLANK(Sociodemograficos[[#This Row],[Nombres y Apellidos]])=0,Sociodemograficos[[#This Row],[Nombres y Apellidos]],\"\")","v":""}]
["",null,null,null,null,null,null,null,null,null,null,null,null,null,null,null,null,null,null,null,null,null,null,null,null,null,null,null,null,null,null,null,null,null,null,null,null,null,null,null,null,null,null,null,null,null,null,null,"","","",{"$f":"IF(COUNTBLANK(Sociodemograficos[[#This Row],[Nombres y Apellidos]])=0,Sociodemograficos[[#This Row],[Nombres y Apellidos]],\"\")","v":""}]
["",null,null,null,null,null,null,null,null,null,null,null,null,null,null,null,null,null,null,null,null,null,null,null,null,null,null,null,null,null,null,null,null,null,null,null,null,null,null,null,null,null,null,null,null,null,null,null,"","","",{"$f":"IF(COUNTBLANK(Sociodemograficos[[#This Row],[Nombres y Apellidos]])=0,Sociodemograficos[[#This Row],[Nombres y Apellidos]],\"\")","v":""}]
["",null,null,null,null,null,null,null,null,null,null,null,null,null,null,null,null,null,null,null,null,null,null,null,null,null,null,null,null,null,null,null,null,null,null,null,null,null,null,null,null,null,null,null,null,null,null,null,"","","",{"$f":"IF(COUNTBLANK(Sociodemograficos[[#This Row],[Nombres y Apellidos]])=0,Sociodemograficos[[#This Row],[Nombres y Apellidos]],\"\")","v":""}]
["",null,null,null,null,null,null,null,null,null,null,null,null,null,null,null,null,null,null,null,null,null,null,null,null,null,null,null,null,null,null,null,null,null,null,null,null,null,null,null,null,null,null,null,null,null,null,null,"","","",{"$f":"IF(COUNTBLANK(Sociodemograficos[[#This Row],[Nombres y Apellidos]])=0,Sociodemograficos[[#This Row],[Nombres y Apellidos]],\"\")","v":""}]
["",null,null,null,null,null,null,null,null,null,null,null,null,null,null,null,null,null,null,null,null,null,null,null,null,null,null,null,null,null,null,null,null,null,null,null,null,null,null,null,null,null,null,null,null,null,null,null,"","","",{"$f":"IF(COUNTBLANK(Sociodemograficos[[#This Row],[Nombres y Apellidos]])=0,Sociodemograficos[[#This Row],[Nombres y Apellidos]],\"\")","v":""}]
["",null,null,null,null,null,null,null,null,null,null,null,null,null,null,null,null,null,null,null,null,null,null,null,null,null,null,null,null,null,null,null,null,null,null,null,null,null,null,null,null,null,null,null,null,null,null,null,"","","",{"$f":"IF(COUNTBLANK(Sociodemograficos[[#This Row],[Nombres y Apellidos]])=0,Sociodemograficos[[#This Row],[Nombres y Apellidos]],\"\")","v":""}]
["",null,null,null,null,null,null,null,null,null,null,null,null,null,null,null,null,null,null,null,null,null,null,null,null,null,null,null,null,null,null,null,null,null,null,null,null,null,null,null,null,null,null,null,null,null,null,null,"","","",{"$f":"IF(COUNTBLANK(Sociodemograficos[[#This Row],[Nombres y Apellidos]])=0,Sociodemograficos[[#This Row],[Nombres y Apellidos]],\"\")","v":""}]
["",null,null,null,null,null,null,null,null,null,null,null,null,null,null,null,null,null,null,null,null,null,null,null,null,null,null,null,null,null,null,null,null,null,null,null,null,null,null,null,null,null,null,null,null,null,null,null,"","","",{"$f":"IF(COUNTBLANK(Sociodemograficos[[#This Row],[Nombres y Apellidos]])=0,Sociodemograficos[[#This Row],[Nombres y Apellidos]],\"\")","v":""}]
["",null,null,null,null,null,null,null,null,null,null,null,null,null,null,null,null,null,null,null,null,null,null,null,null,null,null,null,null,null,null,null,null,null,null,null,null,null,null,null,null,null,null,null,null,null,null,null,"","","",{"$f":"IF(COUNTBLANK(Sociodemograficos[[#This Row],[Nombres y Apellidos]])=0,Sociodemograficos[[#This Row],[Nombres y Apellidos]],\"\")","v":""}]
["",null,null,null,null,null,null,null,null,null,null,null,null,null,null,null,null,null,null,null,null,null,null,null,null,null,null,null,null,null,null,null,null,null,null,null,null,null,null,null,null,null,null,null,null,null,null,null,"","","",{"$f":"IF(COUNTBLANK(Sociodemograficos[[#This Row],[Nombres y Apellidos]])=0,Sociodemograficos[[#This Row],[Nombres y Apellidos]],\"\")","v":""}]
["",null,null,null,null,null,null,null,null,null,null,null,null,null,null,null,null,null,null,null,null,null,null,null,null,null,null,null,null,null,null,null,null,null,null,null,null,null,null,null,null,null,null,null,null,null,null,null,"","","",{"$f":"IF(COUNTBLANK(Sociodemograficos[[#This Row],[Nombres y Apellidos]])=0,Sociodemograficos[[#This Row],[Nombres y Apellidos]],\"\")","v":""}]
["",null,null,null,null,null,null,null,null,null,null,null,null,null,null,null,null,null,null,null,null,null,null,null,null,null,null,null,null,null,null,null,null,null,null,null,null,null,null,null,null,null,null,null,null,null,null,null,"","","",{"$f":"IF(COUNTBLANK(Sociodemograficos[[#This Row],[Nombres y Apellidos]])=0,Sociodemograficos[[#This Row],[Nombres y Apellidos]],\"\")","v":""}]
["",null,null,null,null,null,null,null,null,null,null,null,null,null,null,null,null,null,null,null,null,null,null,null,null,null,null,null,null,null,null,null,null,null,null,null,null,null,null,null,null,null,null,null,null,null,null,null,"","","",{"$f":"IF(COUNTBLANK(Sociodemograficos[[#This Row],[Nombres y Apellidos]])=0,Sociodemograficos[[#This Row],[Nombres y Apellidos]],\"\")","v":""}]
["",null,null,null,null,null,null,null,null,null,null,null,null,null,null,null,null,null,null,null,null,null,null,null,null,null,null,null,null,null,null,null,null,null,null,null,null,null,null,null,null,null,null,null,null,null,null,null,"","","",{"$f":"IF(COUNTBLANK(Sociodemograficos[[#This Row],[Nombres y Apellidos]])=0,Sociodemograficos[[#This Row],[Nombres y Apellidos]],\"\")","v":""}]
["",null,null,null,null,null,null,null,null,null,null,null,null,null,null,null,null,null,null,null,null,null,null,null,null,null,null,null,null,null,null,null,null,null,null,null,null,null,null,null,null,null,null,null,null,null,null,null,"","","",{"$f":"IF(COUNTBLANK(Sociodemograficos[[#This Row],[Nombres y Apellidos]])=0,Sociodemograficos[[#This Row],[Nombres y Apellidos]],\"\")","v":""}]
["",null,null,null,null,null,null,null,null,null,null,null,null,null,null,null,null,null,null,null,null,null,null,null,null,null,null,null,null,null,null,null,null,null,null,null,null,null,null,null,null,null,null,null,null,null,null,null,"","","",{"$f":"IF(COUNTBLANK(Sociodemograficos[[#This Row],[Nombres y Apellidos]])=0,Sociodemograficos[[#This Row],[Nombres y Apellidos]],\"\")","v":""}]
["",null,null,null,null,null,null,null,null,null,null,null,null,null,null,null,null,null,null,null,null,null,null,null,null,null,null,null,null,null,null,null,null,null,null,null,null,null,null,null,null,null,null,null,null,null,null,null,"","","",{"$f":"IF(COUNTBLANK(Sociodemograficos[[#This Row],[Nombres y Apellidos]])=0,Sociodemograficos[[#This Row],[Nombres y Apellidos]],\"\")","v":""}]
["",null,null,null,null,null,null,null,null,null,null,null,null,null,null,null,null,null,null,null,null,null,null,null,null,null,null,null,null,null,null,null,null,null,null,null,null,null,null,null,null,null,null,null,null,null,null,null,"","","",{"$f":"IF(COUNTBLANK(Sociodemograficos[[#This Row],[Nombres y Apellidos]])=0,Sociodemograficos[[#This Row],[Nombres y Apellidos]],\"\")","v":""}]
["",null,null,null,null,null,null,null,null,null,null,null,null,null,null,null,null,null,null,null,null,null,null,null,null,null,null,null,null,null,null,null,null,null,null,null,null,null,null,null,null,null,null,null,null,null,null,null,"","","",{"$f":"IF(COUNTBLANK(Sociodemograficos[[#This Row],[Nombres y Apellidos]])=0,Sociodemograficos[[#This Row],[Nombres y Apellidos]],\"\")","v":""}]
["",null,null,null,null,null,null,null,null,null,null,null,null,null,null,null,null,null,null,null,null,null,null,null,null,null,null,null,null,null,null,null,null,null,null,null,null,null,null,null,null,null,null,null,null,null,null,null,"","","",{"$f":"IF(COUNTBLANK(Sociodemograficos[[#This Row],[Nombres y Apellidos]])=0,Sociodemograficos[[#This Row],[Nombres y Apellidos]],\"\")","v":""}]
["",null,null,null,null,null,null,null,null,null,null,null,null,null,null,null,null,null,null,null,null,null,null,null,null,null,null,null,null,null,null,null,null,null,null,null,null,null,null,null,null,null,null,null,null,null,null,null,"","","",{"$f":"IF(COUNTBLANK(Sociodemograficos[[#This Row],[Nombres y Apellidos]])=0,Sociodemograficos[[#This Row],[Nombres y Apellidos]],\"\")","v":""}]
["",null,null,null,null,null,null,null,null,null,null,null,null,null,null,null,null,null,null,null,null,null,null,null,null,null,null,null,null,null,null,null,null,null,null,null,null,null,null,null,null,null,null,null,null,null,null,null,"","","",{"$f":"IF(COUNTBLANK(Sociodemograficos[[#This Row],[Nombres y Apellidos]])=0,Sociodemograficos[[#This Row],[Nombres y Apellidos]],\"\")","v":""}]
["",null,null,null,null,null,null,null,null,null,null,null,null,null,null,null,null,null,null,null,null,null,null,null,null,null,null,null,null,null,null,null,null,null,null,null,null,null,null,null,null,null,null,null,null,null,null,null,"","","",{"$f":"IF(COUNTBLANK(Sociodemograficos[[#This Row],[Nombres y Apellidos]])=0,Sociodemograficos[[#This Row],[Nombres y Apellidos]],\"\")","v":""}]
["",null,null,null,null,null,null,null,null,null,null,null,null,null,null,null,null,null,null,null,null,null,null,null,null,null,null,null,null,null,null,null,null,null,null,null,null,null,null,null,null,null,null,null,null,null,null,null,"","","",{"$f":"IF(COUNTBLANK(Sociodemograficos[[#This Row],[Nombres y Apellidos]])=0,Sociodemograficos[[#This Row],[Nombres y Apellidos]],\"\")","v":""}]
["",null,null,null,null,null,null,null,null,null,null,null,null,null,null,null,null,null,null,null,null,null,null,null,null,null,null,null,null,null,null,null,null,null,null,null,null,null,null,null,null,null,null,null,null,null,null,null,"","","",{"$f":"IF(COUNTBLANK(Sociodemograficos[[#This Row],[Nombres y Apellidos]])=0,Sociodemograficos[[#This Row],[Nombres y Apellidos]],\"\")","v":""}]
["",null,null,null,null,null,null,null,null,null,null,null,null,null,null,null,null,null,null,null,null,null,null,null,null,null,null,null,null,null,null,null,null,null,null,null,null,null,null,null,null,null,null,null,null,null,null,null,"","","",{"$f":"IF(COUNTBLANK(Sociodemograficos[[#This Row],[Nombres y Apellidos]])=0,Sociodemograficos[[#This Row],[Nombres y Apellidos]],\"\")","v":""}]
["",null,null,null,null,null,null,null,null,null,null,null,null,null,null,null,null,null,null,null,null,null,null,null,null,null,null,null,null,null,null,null,null,null,null,null,null,null,null,null,null,null,null,null,null,null,null,null,"","","",{"$f":"IF(COUNTBLANK(Sociodemograficos[[#This Row],[Nombres y Apellidos]])=0,Sociodemograficos[[#This Row],[Nombres y Apellidos]],\"\")","v":""}]
["",null,null,null,null,null,null,null,null,null,null,null,null,null,null,null,null,null,null,null,null,null,null,null,null,null,null,null,null,null,null,null,null,null,null,null,null,null,null,null,null,null,null,null,null,null,null,null,"","","",{"$f":"IF(COUNTBLANK(Sociodemograficos[[#This Row],[Nombres y Apellidos]])=0,Sociodemograficos[[#This Row],[Nombres y Apellidos]],\"\")","v":""}]
["",null,null,null,null,null,null,null,null,null,null,null,null,null,null,null,null,null,null,null,null,null,null,null,null,null,null,null,null,null,null,null,null,null,null,null,null,null,null,null,null,null,null,null,null,null,null,null,"","","",{"$f":"IF(COUNTBLANK(Sociodemograficos[[#This Row],[Nombres y Apellidos]])=0,Sociodemograficos[[#This Row],[Nombres y Apellidos]],\"\")","v":""}]
["",null,null,null,null,null,null,null,null,null,null,null,null,null,null,null,null,null,null,null,null,null,null,null,null,null,null,null,null,null,null,null,null,null,null,null,null,null,null,null,null,null,null,null,null,null,null,null,"","","",{"$f":"IF(COUNTBLANK(Sociodemograficos[[#This Row],[Nombres y Apellidos]])=0,Sociodemograficos[[#This Row],[Nombres y Apellidos]],\"\")","v":""}]
["",null,null,null,null,null,null,null,null,null,null,null,null,null,null,null,null,null,null,null,null,null,null,null,null,null,null,null,null,null,null,null,null,null,null,null,null,null,null,null,null,null,null,null,null,null,null,null,"","","",{"$f":"IF(COUNTBLANK(Sociodemograficos[[#This Row],[Nombres y Apellidos]])=0,Sociodemograficos[[#This Row],[Nombres y Apellidos]],\"\")","v":""}]
["",null,null,null,null,null,null,null,null,null,null,null,null,null,null,null,null,null,null,null,null,null,null,null,null,null,null,null,null,null,null,null,null,null,null,null,null,null,null,null,null,null,null,null,null,null,null,null,"","","",{"$f":"IF(COUNTBLANK(Sociodemograficos[[#This Row],[Nombres y Apellidos]])=0,Sociodemograficos[[#This Row],[Nombres y Apellidos]],\"\")","v":""}]
["",null,null,null,null,null,null,null,null,null,null,null,null,null,null,null,null,null,null,null,null,null,null,null,null,null,null,null,null,null,null,null,null,null,null,null,null,null,null,null,null,null,null,null,null,null,null,null,"","","",{"$f":"IF(COUNTBLANK(Sociodemograficos[[#This Row],[Nombres y Apellidos]])=0,Sociodemograficos[[#This Row],[Nombres y Apellidos]],\"\")","v":""}]
["",null,null,null,null,null,null,null,null,null,null,null,null,null,null,null,null,null,null,null,null,null,null,null,null,null,null,null,null,null,null,null,null,null,null,null,null,null,null,null,null,null,null,null,null,null,null,null,"","","",{"$f":"IF(COUNTBLANK(Sociodemograficos[[#This Row],[Nombres y Apellidos]])=0,Sociodemograficos[[#This Row],[Nombres y Apellidos]],\"\")","v":""}]
["",null,null,null,null,null,null,null,null,null,null,null,null,null,null,null,null,null,null,null,null,null,null,null,null,null,null,null,null,null,null,null,null,null,null,null,null,null,null,null,null,null,null,null,null,null,null,null,"","","",{"$f":"IF(COUNTBLANK(Sociodemograficos[[#This Row],[Nombres y Apellidos]])=0,Sociodemograficos[[#This Row],[Nombres y Apellidos]],\"\")","v":""}]
["",null,null,null,null,null,null,null,null,null,null,null,null,null,null,null,null,null,null,null,null,null,null,null,null,null,null,null,null,null,null,null,null,null,null,null,null,null,null,null,null,null,null,null,null,null,null,null,"","","",{"$f":"IF(COUNTBLANK(Sociodemograficos[[#This Row],[Nombres y Apellidos]])=0,Sociodemograficos[[#This Row],[Nombres y Apellidos]],\"\")","v":""}]
["",null,null,null,null,null,null,null,null,null,null,null,null,null,null,null,null,null,null,null,null,null,null,null,null,null,null,null,null,null,null,null,null,null,null,null,null,null,null,null,null,null,null,null,null,null,null,null,"","","",{"$f":"IF(COUNTBLANK(Sociodemograficos[[#This Row],[Nombres y Apellidos]])=0,Sociodemograficos[[#This Row],[Nombres y Apellidos]],\"\")","v":""}]
["",null,null,null,null,null,null,null,null,null,null,null,null,null,null,null,null,null,null,null,null,null,null,null,null,null,null,null,null,null,null,null,null,null,null,null,null,null,null,null,null,null,null,null,null,null,null,null,"","","",{"$f":"IF(COUNTBLANK(Sociodemograficos[[#This Row],[Nombres y Apellidos]])=0,Sociodemograficos[[#This Row],[Nombres y Apellidos]],\"\")","v":""}]
["",null,null,null,null,null,null,null,null,null,null,null,null,null,null,null,null,null,null,null,null,null,null,null,null,null,null,null,null,null,null,null,null,null,null,null,null,null,null,null,null,null,null,null,null,null,null,null,"","","",{"$f":"IF(COUNTBLANK(Sociodemograficos[[#This Row],[Nombres y Apellidos]])=0,Sociodemograficos[[#This Row],[Nombres y Apellidos]],\"\")","v":""}]
["",null,null,null,null,null,null,null,null,null,null,null,null,null,null,null,null,null,null,null,null,null,null,null,null,null,null,null,null,null,null,null,null,null,null,null,null,null,null,null,null,null,null,null,null,null,null,null,"","","",{"$f":"IF(COUNTBLANK(Sociodemograficos[[#This Row],[Nombres y Apellidos]])=0,Sociodemograficos[[#This Row],[Nombres y Apellidos]],\"\")","v":""}]
["",null,null,null,null,null,null,null,null,null,null,null,null,null,null,null,null,null,null,null,null,null,null,null,null,null,null,null,null,null,null,null,null,null,null,null,null,null,null,null,null,null,null,null,null,null,null,null,"","","",{"$f":"IF(COUNTBLANK(Sociodemograficos[[#This Row],[Nombres y Apellidos]])=0,Sociodemograficos[[#This Row],[Nombres y Apellidos]],\"\")","v":""}]
["",null,null,null,null,null,null,null,null,null,null,null,null,null,null,null,null,null,null,null,null,null,null,null,null,null,null,null,null,null,null,null,null,null,null,null,null,null,null,null,null,null,null,null,null,null,null,null,"","","",{"$f":"IF(COUNTBLANK(Sociodemograficos[[#This Row],[Nombres y Apellidos]])=0,Sociodemograficos[[#This Row],[Nombres y Apellidos]],\"\")","v":""}]
["",null,null,null,null,null,null,null,null,null,null,null,null,null,null,null,null,null,null,null,null,null,null,null,null,null,null,null,null,null,null,null,null,null,null,null,null,null,null,null,null,null,null,null,null,null,null,null,"","","",{"$f":"IF(COUNTBLANK(Sociodemograficos[[#This Row],[Nombres y Apellidos]])=0,Sociodemograficos[[#This Row],[Nombres y Apellidos]],\"\")","v":""}]
["",null,null,null,null,null,null,null,null,null,null,null,null,null,null,null,null,null,null,null,null,null,null,null,null,null,null,null,null,null,null,null,null,null,null,null,null,null,null,null,null,null,null,null,null,null,null,null,"","","",{"$f":"IF(COUNTBLANK(Sociodemograficos[[#This Row],[Nombres y Apellidos]])=0,Sociodemograficos[[#This Row],[Nombres y Apellidos]],\"\")","v":""}]
["",null,null,null,null,null,null,null,null,null,null,null,null,null,null,null,null,null,null,null,null,null,null,null,null,null,null,null,null,null,null,null,null,null,null,null,null,null,null,null,null,null,null,null,null,null,null,null,"","","",{"$f":"IF(COUNTBLANK(Sociodemograficos[[#This Row],[Nombres y Apellidos]])=0,Sociodemograficos[[#This Row],[Nombres y Apellidos]],\"\")","v":""}]
["",null,null,null,null,null,null,null,null,null,null,null,null,null,null,null,null,null,null,null,null,null,null,null,null,null,null,null,null,null,null,null,null,null,null,null,null,null,null,null,null,null,null,null,null,null,null,null,"","","",{"$f":"IF(COUNTBLANK(Sociodemograficos[[#This Row],[Nombres y Apellidos]])=0,Sociodemograficos[[#This Row],[Nombres y Apellidos]],\"\")","v":""}]
["",null,null,null,null,null,null,null,null,null,null,null,null,null,null,null,null,null,null,null,null,null,null,null,null,null,null,null,null,null,null,null,null,null,null,null,null,null,null,null,null,null,null,null,null,null,null,null,"","","",{"$f":"IF(COUNTBLANK(Sociodemograficos[[#This Row],[Nombres y Apellidos]])=0,Sociodemograficos[[#This Row],[Nombres y Apellidos]],\"\")","v":""}]
["",null,null,null,null,null,null,null,null,null,null,null,null,null,null,null,null,null,null,null,null,null,null,null,null,null,null,null,null,null,null,null,null,null,null,null,null,null,null,null,null,null,null,null,null,null,null,null,"","","",{"$f":"IF(COUNTBLANK(Sociodemograficos[[#This Row],[Nombres y Apellidos]])=0,Sociodemograficos[[#This Row],[Nombres y Apellidos]],\"\")","v":""}]
["",null,null,null,null,null,null,null,null,null,null,null,null,null,null,null,null,null,null,null,null,null,null,null,null,null,null,null,null,null,null,null,null,null,null,null,null,null,null,null,null,null,null,null,null,null,null,null,"","","",{"$f":"IF(COUNTBLANK(Sociodemograficos[[#This Row],[Nombres y Apellidos]])=0,Sociodemograficos[[#This Row],[Nombres y Apellidos]],\"\")","v":""}]
["",null,null,null,null,null,null,null,null,null,null,null,null,null,null,null,null,null,null,null,null,null,null,null,null,null,null,null,null,null,null,null,null,null,null,null,null,null,null,null,null,null,null,null,null,null,null,null,"","","",{"$f":"IF(COUNTBLANK(Sociodemograficos[[#This Row],[Nombres y Apellidos]])=0,Sociodemograficos[[#This Row],[Nombres y Apellidos]],\"\")","v":""}]
["",null,null,null,null,null,null,null,null,null,null,null,null,null,null,null,null,null,null,null,null,null,null,null,null,null,null,null,null,null,null,null,null,null,null,null,null,null,null,null,null,null,null,null,null,null,null,null,"","","",{"$f":"IF(COUNTBLANK(Sociodemograficos[[#This Row],[Nombres y Apellidos]])=0,Sociodemograficos[[#This Row],[Nombres y Apellidos]],\"\")","v":""}]
["",null,null,null,null,null,null,null,null,null,null,null,null,null,null,null,null,null,null,null,null,null,null,null,null,null,null,null,null,null,null,null,null,null,null,null,null,null,null,null,null,null,null,null,null,null,null,null,"","","",{"$f":"IF(COUNTBLANK(Sociodemograficos[[#This Row],[Nombres y Apellidos]])=0,Sociodemograficos[[#This Row],[Nombres y Apellidos]],\"\")","v":""}]
["",null,null,null,null,null,null,null,null,null,null,null,null,null,null,null,null,null,null,null,null,null,null,null,null,null,null,null,null,null,null,null,null,null,null,null,null,null,null,null,null,null,null,null,null,null,null,null,"","","",{"$f":"IF(COUNTBLANK(Sociodemograficos[[#This Row],[Nombres y Apellidos]])=0,Sociodemograficos[[#This Row],[Nombres y Apellidos]],\"\")","v":""}]
["",null,null,null,null,null,null,null,null,null,null,null,null,null,null,null,null,null,null,null,null,null,null,null,null,null,null,null,null,null,null,null,null,null,null,null,null,null,null,null,null,null,null,null,null,null,null,null,"","","",{"$f":"IF(COUNTBLANK(Sociodemograficos[[#This Row],[Nombres y Apellidos]])=0,Sociodemograficos[[#This Row],[Nombres y Apellidos]],\"\")","v":""}]
["",null,null,null,null,null,null,null,null,null,null,null,null,null,null,null,null,null,null,null,null,null,null,null,null,null,null,null,null,null,null,null,null,null,null,null,null,null,null,null,null,null,null,null,null,null,null,null,"","","",{"$f":"IF(COUNTBLANK(Sociodemograficos[[#This Row],[Nombres y Apellidos]])=0,Sociodemograficos[[#This Row],[Nombres y Apellidos]],\"\")","v":""}]
["",null,null,null,null,null,null,null,null,null,null,null,null,null,null,null,null,null,null,null,null,null,null,null,null,null,null,null,null,null,null,null,null,null,null,null,null,null,null,null,null,null,null,null,null,null,null,null,"","","",{"$f":"IF(COUNTBLANK(Sociodemograficos[[#This Row],[Nombres y Apellidos]])=0,Sociodemograficos[[#This Row],[Nombres y Apellidos]],\"\")","v":""}]
["",null,null,null,null,null,null,null,null,null,null,null,null,null,null,null,null,null,null,null,null,null,null,null,null,null,null,null,null,null,null,null,null,null,null,null,null,null,null,null,null,null,null,null,null,null,null,null,"","","",{"$f":"IF(COUNTBLANK(Sociodemograficos[[#This Row],[Nombres y Apellidos]])=0,Sociodemograficos[[#This Row],[Nombres y Apellidos]],\"\")","v":""}]
["",null,null,null,null,null,null,null,null,null,null,null,null,null,null,null,null,null,null,null,null,null,null,null,null,null,null,null,null,null,null,null,null,null,null,null,null,null,null,null,null,null,null,null,null,null,null,null,"","","",{"$f":"IF(COUNTBLANK(Sociodemograficos[[#This Row],[Nombres y Apellidos]])=0,Sociodemograficos[[#This Row],[Nombres y Apellidos]],\"\")","v":""}]
["",null,null,null,null,null,null,null,null,null,null,null,null,null,null,null,null,null,null,null,null,null,null,null,null,null,null,null,null,null,null,null,null,null,null,null,null,null,null,null,null,null,null,null,null,null,null,null,"","","",{"$f":"IF(COUNTBLANK(Sociodemograficos[[#This Row],[Nombres y Apellidos]])=0,Sociodemograficos[[#This Row],[Nombres y Apellidos]],\"\")","v":""}]
["",null,null,null,null,null,null,null,null,null,null,null,null,null,null,null,null,null,null,null,null,null,null,null,null,null,null,null,null,null,null,null,null,null,null,null,null,null,null,null,null,null,null,null,null,null,null,null,"","","",{"$f":"IF(COUNTBLANK(Sociodemograficos[[#This Row],[Nombres y Apellidos]])=0,Sociodemograficos[[#This Row],[Nombres y Apellidos]],\"\")","v":""}]
["",null,null,null,null,null,null,null,null,null,null,null,null,null,null,null,null,null,null,null,null,null,null,null,null,null,null,null,null,null,null,null,null,null,null,null,null,null,null,null,null,null,null,null,null,null,null,null,"","","",{"$f":"IF(COUNTBLANK(Sociodemograficos[[#This Row],[Nombres y Apellidos]])=0,Sociodemograficos[[#This Row],[Nombres y Apellidos]],\"\")","v":""}]
["",null,null,null,null,null,null,null,null,null,null,null,null,null,null,null,null,null,null,null,null,null,null,null,null,null,null,null,null,null,null,null,null,null,null,null,null,null,null,null,null,null,null,null,null,null,null,null,"","","",{"$f":"IF(COUNTBLANK(Sociodemograficos[[#This Row],[Nombres y Apellidos]])=0,Sociodemograficos[[#This Row],[Nombres y Apellidos]],\"\")","v":""}]
["",null,null,null,null,null,null,null,null,null,null,null,null,null,null,null,null,null,null,null,null,null,null,null,null,null,null,null,null,null,null,null,null,null,null,null,null,null,null,null,null,null,null,null,null,null,null,null,"","","",{"$f":"IF(COUNTBLANK(Sociodemograficos[[#This Row],[Nombres y Apellidos]])=0,Sociodemograficos[[#This Row],[Nombres y Apellidos]],\"\")","v":""}]
["",null,null,null,null,null,null,null,null,null,null,null,null,null,null,null,null,null,null,null,null,null,null,null,null,null,null,null,null,null,null,null,null,null,null,null,null,null,null,null,null,null,null,null,null,null,null,null,"","","",{"$f":"IF(COUNTBLANK(Sociodemograficos[[#This Row],[Nombres y Apellidos]])=0,Sociodemograficos[[#This Row],[Nombres y Apellidos]],\"\")","v":""}]
["",null,null,null,null,null,null,null,null,null,null,null,null,null,null,null,null,null,null,null,null,null,null,null,null,null,null,null,null,null,null,null,null,null,null,null,null,null,null,null,null,null,null,null,null,null,null,null,"","","",{"$f":"IF(COUNTBLANK(Sociodemograficos[[#This Row],[Nombres y Apellidos]])=0,Sociodemograficos[[#This Row],[Nombres y Apellidos]],\"\")","v":""}]
["",null,null,null,null,null,null,null,null,null,null,null,null,null,null,null,null,null,null,null,null,null,null,null,null,null,null,null,null,null,null,null,null,null,null,null,null,null,null,null,null,null,null,null,null,null,null,null,"","","",{"$f":"IF(COUNTBLANK(Sociodemograficos[[#This Row],[Nombres y Apellidos]])=0,Sociodemograficos[[#This Row],[Nombres y Apellidos]],\"\")","v":""}]
["",null,null,null,null,null,null,null,null,null,null,null,null,null,null,null,null,null,null,null,null,null,null,null,null,null,null,null,null,null,null,null,null,null,null,null,null,null,null,null,null,null,null,null,null,null,null,null,"","","",{"$f":"IF(COUNTBLANK(Sociodemograficos[[#This Row],[Nombres y Apellidos]])=0,Sociodemograficos[[#This Row],[Nombres y Apellidos]],\"\")","v":""}]
["",null,null,null,null,null,null,null,null,null,null,null,null,null,null,null,null,null,null,null,null,null,null,null,null,null,null,null,null,null,null,null,null,null,null,null,null,null,null,null,null,null,null,null,null,null,null,null,"","","",{"$f":"IF(COUNTBLANK(Sociodemograficos[[#This Row],[Nombres y Apellidos]])=0,Sociodemograficos[[#This Row],[Nombres y Apellidos]],\"\")","v":""}]
["",null,null,null,null,null,null,null,null,null,null,null,null,null,null,null,null,null,null,null,null,null,null,null,null,null,null,null,null,null,null,null,null,null,null,null,null,null,null,null,null,null,null,null,null,null,null,null,"","","",{"$f":"IF(COUNTBLANK(Sociodemograficos[[#This Row],[Nombres y Apellidos]])=0,Sociodemograficos[[#This Row],[Nombres y Apellidos]],\"\")","v":""}]
["",null,null,null,null,null,null,null,null,null,null,null,null,null,null,null,null,null,null,null,null,null,null,null,null,null,null,null,null,null,null,null,null,null,null,null,null,null,null,null,null,null,null,null,null,null,null,null,"","","",{"$f":"IF(COUNTBLANK(Sociodemograficos[[#This Row],[Nombres y Apellidos]])=0,Sociodemograficos[[#This Row],[Nombres y Apellidos]],\"\")","v":""}]
["",null,null,null,null,null,null,null,null,null,null,null,null,null,null,null,null,null,null,null,null,null,null,null,null,null,null,null,null,null,null,null,null,null,null,null,null,null,null,null,null,null,null,null,null,null,null,null,"","","",{"$f":"IF(COUNTBLANK(Sociodemograficos[[#This Row],[Nombres y Apellidos]])=0,Sociodemograficos[[#This Row],[Nombres y Apellidos]],\"\")","v":""}]
["",null,null,null,null,null,null,null,null,null,null,null,null,null,null,null,null,null,null,null,null,null,null,null,null,null,null,null,null,null,null,null,null,null,null,null,null,null,null,null,null,null,null,null,null,null,null,null,"","","",{"$f":"IF(COUNTBLANK(Sociodemograficos[[#This Row],[Nombres y Apellidos]])=0,Sociodemograficos[[#This Row],[Nombres y Apellidos]],\"\")","v":""}]
["",null,null,null,null,null,null,null,null,null,null,null,null,null,null,null,null,null,null,null,null,null,null,null,null,null,null,null,null,null,null,null,null,null,null,null,null,null,null,null,null,null,null,null,null,null,null,null,"","","",{"$f":"IF(COUNTBLANK(Sociodemograficos[[#This Row],[Nombres y Apellidos]])=0,Sociodemograficos[[#This Row],[Nombres y Apellidos]],\"\")","v":""}]
["",null,null,null,null,null,null,null,null,null,null,null,null,null,null,null,null,null,null,null,null,null,null,null,null,null,null,null,null,null,null,null,null,null,null,null,null,null,null,null,null,null,null,null,null,null,null,null,"","","",{"$f":"IF(COUNTBLANK(Sociodemograficos[[#This Row],[Nombres y Apellidos]])=0,Sociodemograficos[[#This Row],[Nombres y Apellidos]],\"\")","v":""}]
["",null,null,null,null,null,null,null,null,null,null,null,null,null,null,null,null,null,null,null,null,null,null,null,null,null,null,null,null,null,null,null,null,null,null,null,null,null,null,null,null,null,null,null,null,null,null,null,"","","",{"$f":"IF(COUNTBLANK(Sociodemograficos[[#This Row],[Nombres y Apellidos]])=0,Sociodemograficos[[#This Row],[Nombres y Apellidos]],\"\")","v":""}]
["",null,null,null,null,null,null,null,null,null,null,null,null,null,null,null,null,null,null,null,null,null,null,null,null,null,null,null,null,null,null,null,null,null,null,null,null,null,null,null,null,null,null,null,null,null,null,null,"","","",{"$f":"IF(COUNTBLANK(Sociodemograficos[[#This Row],[Nombres y Apellidos]])=0,Sociodemograficos[[#This Row],[Nombres y Apellidos]],\"\")","v":""}]
["",null,null,null,null,null,null,null,null,null,null,null,null,null,null,null,null,null,null,null,null,null,null,null,null,null,null,null,null,null,null,null,null,null,null,null,null,null,null,null,null,null,null,null,null,null,null,null,"","","",{"$f":"IF(COUNTBLANK(Sociodemograficos[[#This Row],[Nombres y Apellidos]])=0,Sociodemograficos[[#This Row],[Nombres y Apellidos]],\"\")","v":""}]
["",null,null,null,null,null,null,null,null,null,null,null,null,null,null,null,null,null,null,null,null,null,null,null,null,null,null,null,null,null,null,null,null,null,null,null,null,null,null,null,null,null,null,null,null,null,null,null,"","","",{"$f":"IF(COUNTBLANK(Sociodemograficos[[#This Row],[Nombres y Apellidos]])=0,Sociodemograficos[[#This Row],[Nombres y Apellidos]],\"\")","v":""}]
["",null,null,null,null,null,null,null,null,null,null,null,null,null,null,null,null,null,null,null,null,null,null,null,null,null,null,null,null,null,null,null,null,null,null,null,null,null,null,null,null,null,null,null,null,null,null,null,"","","",{"$f":"IF(COUNTBLANK(Sociodemograficos[[#This Row],[Nombres y Apellidos]])=0,Sociodemograficos[[#This Row],[Nombres y Apellidos]],\"\")","v":""}]
["",null,null,null,null,null,null,null,null,null,null,null,null,null,null,null,null,null,null,null,null,null,null,null,null,null,null,null,null,null,null,null,null,null,null,null,null,null,null,null,null,null,null,null,null,null,null,null,"","","",{"$f":"IF(COUNTBLANK(Sociodemograficos[[#This Row],[Nombres y Apellidos]])=0,Sociodemograficos[[#This Row],[Nombres y Apellidos]],\"\")","v":""}]
["",null,null,null,null,null,null,null,null,null,null,null,null,null,null,null,null,null,null,null,null,null,null,null,null,null,null,null,null,null,null,null,null,null,null,null,null,null,null,null,null,null,null,null,null,null,null,null,"","","",{"$f":"IF(COUNTBLANK(Sociodemograficos[[#This Row],[Nombres y Apellidos]])=0,Sociodemograficos[[#This Row],[Nombres y Apellidos]],\"\")","v":""}]
["",null,null,null,null,null,null,null,null,null,null,null,null,null,null,null,null,null,null,null,null,null,null,null,null,null,null,null,null,null,null,null,null,null,null,null,null,null,null,null,null,null,null,null,null,null,null,null,"","","",{"$f":"IF(COUNTBLANK(Sociodemograficos[[#This Row],[Nombres y Apellidos]])=0,Sociodemograficos[[#This Row],[Nombres y Apellidos]],\"\")","v":""}]
["",null,null,null,null,null,null,null,null,null,null,null,null,null,null,null,null,null,null,null,null,null,null,null,null,null,null,null,null,null,null,null,null,null,null,null,null,null,null,null,null,null,null,null,null,null,null,null,"","","",{"$f":"IF(COUNTBLANK(Sociodemograficos[[#This Row],[Nombres y Apellidos]])=0,Sociodemograficos[[#This Row],[Nombres y Apellidos]],\"\")","v":""}]
["",null,null,null,null,null,null,null,null,null,null,null,null,null,null,null,null,null,null,null,null,null,null,null,null,null,null,null,null,null,null,null,null,null,null,null,null,null,null,null,null,null,null,null,null,null,null,null,"","","",{"$f":"IF(COUNTBLANK(Sociodemograficos[[#This Row],[Nombres y Apellidos]])=0,Sociodemograficos[[#This Row],[Nombres y Apellidos]],\"\")","v":""}]
["",null,null,null,null,null,null,null,null,null,null,null,null,null,null,null,null,null,null,null,null,null,null,null,null,null,null,null,null,null,null,null,null,null,null,null,null,null,null,null,null,null,null,null,null,null,null,null,"","","",{"$f":"IF(COUNTBLANK(Sociodemograficos[[#This Row],[Nombres y Apellidos]])=0,Sociodemograficos[[#This Row],[Nombres y Apellidos]],\"\")","v":""}]
["",null,null,null,null,null,null,null,null,null,null,null,null,null,null,null,null,null,null,null,null,null,null,null,null,null,null,null,null,null,null,null,null,null,null,null,null,null,null,null,null,null,null,null,null,null,null,null,"","","",{"$f":"IF(COUNTBLANK(Sociodemograficos[[#This Row],[Nombres y Apellidos]])=0,Sociodemograficos[[#This Row],[Nombres y Apellidos]],\"\")","v":""}]
["",null,null,null,null,null,null,null,null,null,null,null,null,null,null,null,null,null,null,null,null,null,null,null,null,null,null,null,null,null,null,null,null,null,null,null,null,null,null,null,null,null,null,null,null,null,null,null,"","","",{"$f":"IF(COUNTBLANK(Sociodemograficos[[#This Row],[Nombres y Apellidos]])=0,Sociodemograficos[[#This Row],[Nombres y Apellidos]],\"\")","v":""}]
["",null,null,null,null,null,null,null,null,null,null,null,null,null,null,null,null,null,null,null,null,null,null,null,null,null,null,null,null,null,null,null,null,null,null,null,null,null,null,null,null,null,null,null,null,null,null,null,"","","",{"$f":"IF(COUNTBLANK(Sociodemograficos[[#This Row],[Nombres y Apellidos]])=0,Sociodemograficos[[#This Row],[Nombres y Apellidos]],\"\")","v":""}]
["",null,null,null,null,null,null,null,null,null,null,null,null,null,null,null,null,null,null,null,null,null,null,null,null,null,null,null,null,null,null,null,null,null,null,null,null,null,null,null,null,null,null,null,null,null,null,null,"","","",{"$f":"IF(COUNTBLANK(Sociodemograficos[[#This Row],[Nombres y Apellidos]])=0,Sociodemograficos[[#This Row],[Nombres y Apellidos]],\"\")","v":""}]
["",null,null,null,null,null,null,null,null,null,null,null,null,null,null,null,null,null,null,null,null,null,null,null,null,null,null,null,null,null,null,null,null,null,null,null,null,null,null,null,null,null,null,null,null,null,null,null,"","","",{"$f":"IF(COUNTBLANK(Sociodemograficos[[#This Row],[Nombres y Apellidos]])=0,Sociodemograficos[[#This Row],[Nombres y Apellidos]],\"\")","v":""}]
["",null,null,null,null,null,null,null,null,null,null,null,null,null,null,null,null,null,null,null,null,null,null,null,null,null,null,null,null,null,null,null,null,null,null,null,null,null,null,null,null,null,null,null,null,null,null,null,"","","",{"$f":"IF(COUNTBLANK(Sociodemograficos[[#This Row],[Nombres y Apellidos]])=0,Sociodemograficos[[#This Row],[Nombres y Apellidos]],\"\")","v":""}]
["",null,null,null,null,null,null,null,null,null,null,null,null,null,null,null,null,null,null,null,null,null,null,null,null,null,null,null,null,null,null,null,null,null,null,null,null,null,null,null,null,null,null,null,null,null,null,null,"","","",{"$f":"IF(COUNTBLANK(Sociodemograficos[[#This Row],[Nombres y Apellidos]])=0,Sociodemograficos[[#This Row],[Nombres y Apellidos]],\"\")","v":""}]
["",null,null,null,null,null,null,null,null,null,null,null,null,null,null,null,null,null,null,null,null,null,null,null,null,null,null,null,null,null,null,null,null,null,null,null,null,null,null,null,null,null,null,null,null,null,null,null,"","","",{"$f":"IF(COUNTBLANK(Sociodemograficos[[#This Row],[Nombres y Apellidos]])=0,Sociodemograficos[[#This Row],[Nombres y Apellidos]],\"\")","v":""}]
["",null,null,null,null,null,null,null,null,null,null,null,null,null,null,null,null,null,null,null,null,null,null,null,null,null,null,null,null,null,null,null,null,null,null,null,null,null,null,null,null,null,null,null,null,null,null,null,"","","",{"$f":"IF(COUNTBLANK(Sociodemograficos[[#This Row],[Nombres y Apellidos]])=0,Sociodemograficos[[#This Row],[Nombres y Apellidos]],\"\")","v":""}]
["",null,null,null,null,null,null,null,null,null,null,null,null,null,null,null,null,null,null,null,null,null,null,null,null,null,null,null,null,null,null,null,null,null,null,null,null,null,null,null,null,null,null,null,null,null,null,null,"","","",{"$f":"IF(COUNTBLANK(Sociodemograficos[[#This Row],[Nombres y Apellidos]])=0,Sociodemograficos[[#This Row],[Nombres y Apellidos]],\"\")","v":""}]
["",null,null,null,null,null,null,null,null,null,null,null,null,null,null,null,null,null,null,null,null,null,null,null,null,null,null,null,null,null,null,null,null,null,null,null,null,null,null,null,null,null,null,null,null,null,null,null,"","","",{"$f":"IF(COUNTBLANK(Sociodemograficos[[#This Row],[Nombres y Apellidos]])=0,Sociodemograficos[[#This Row],[Nombres y Apellidos]],\"\")","v":""}]
["",null,null,null,null,null,null,null,null,null,null,null,null,null,null,null,null,null,null,null,null,null,null,null,null,null,null,null,null,null,null,null,null,null,null,null,null,null,null,null,null,null,null,null,null,null,null,null,"","","",{"$f":"IF(COUNTBLANK(Sociodemograficos[[#This Row],[Nombres y Apellidos]])=0,Sociodemograficos[[#This Row],[Nombres y Apellidos]],\"\")","v":""}]
["",null,null,null,null,null,null,null,null,null,null,null,null,null,null,null,null,null,null,null,null,null,null,null,null,null,null,null,null,null,null,null,null,null,null,null,null,null,null,null,null,null,null,null,null,null,null,null,"","","",{"$f":"IF(COUNTBLANK(Sociodemograficos[[#This Row],[Nombres y Apellidos]])=0,Sociodemograficos[[#This Row],[Nombres y Apellidos]],\"\")","v":""}]
["",null,null,null,null,null,null,null,null,null,null,null,null,null,null,null,null,null,null,null,null,null,null,null,null,null,null,null,null,null,null,null,null,null,null,null,null,null,null,null,null,null,null,null,null,null,null,null,"","","",{"$f":"IF(COUNTBLANK(Sociodemograficos[[#This Row],[Nombres y Apellidos]])=0,Sociodemograficos[[#This Row],[Nombres y Apellidos]],\"\")","v":""}]
["",null,null,null,null,null,null,null,null,null,null,null,null,null,null,null,null,null,null,null,null,null,null,null,null,null,null,null,null,null,null,null,null,null,null,null,null,null,null,null,null,null,null,null,null,null,null,null,"","","",{"$f":"IF(COUNTBLANK(Sociodemograficos[[#This Row],[Nombres y Apellidos]])=0,Sociodemograficos[[#This Row],[Nombres y Apellidos]],\"\")","v":""}]
["",null,null,null,null,null,null,null,null,null,null,null,null,null,null,null,null,null,null,null,null,null,null,null,null,null,null,null,null,null,null,null,null,null,null,null,null,null,null,null,null,null,null,null,null,null,null,null,"","","",{"$f":"IF(COUNTBLANK(Sociodemograficos[[#This Row],[Nombres y Apellidos]])=0,Sociodemograficos[[#This Row],[Nombres y Apellidos]],\"\")","v":""}]
["",null,null,null,null,null,null,null,null,null,null,null,null,null,null,null,null,null,null,null,null,null,null,null,null,null,null,null,null,null,null,null,null,null,null,null,null,null,null,null,null,null,null,null,null,null,null,null,"","","",{"$f":"IF(COUNTBLANK(Sociodemograficos[[#This Row],[Nombres y Apellidos]])=0,Sociodemograficos[[#This Row],[Nombres y Apellidos]],\"\")","v":""}]
["",null,null,null,null,null,null,null,null,null,null,null,null,null,null,null,null,null,null,null,null,null,null,null,null,null,null,null,null,null,null,null,null,null,null,null,null,null,null,null,null,null,null,null,null,null,null,null,"","","",{"$f":"IF(COUNTBLANK(Sociodemograficos[[#This Row],[Nombres y Apellidos]])=0,Sociodemograficos[[#This Row],[Nombres y Apellidos]],\"\")","v":""}]
["",null,null,null,null,null,null,null,null,null,null,null,null,null,null,null,null,null,null,null,null,null,null,null,null,null,null,null,null,null,null,null,null,null,null,null,null,null,null,null,null,null,null,null,null,null,null,null,"","","",{"$f":"IF(COUNTBLANK(Sociodemograficos[[#This Row],[Nombres y Apellidos]])=0,Sociodemograficos[[#This Row],[Nombres y Apellidos]],\"\")","v":""}]
["",null,null,null,null,null,null,null,null,null,null,null,null,null,null,null,null,null,null,null,null,null,null,null,null,null,null,null,null,null,null,null,null,null,null,null,null,null,null,null,null,null,null,null,null,null,null,null,"","","",{"$f":"IF(COUNTBLANK(Sociodemograficos[[#This Row],[Nombres y Apellidos]])=0,Sociodemograficos[[#This Row],[Nombres y Apellidos]],\"\")","v":""}]
["",null,null,null,null,null,null,null,null,null,null,null,null,null,null,null,null,null,null,null,null,null,null,null,null,null,null,null,null,null,null,null,null,null,null,null,null,null,null,null,null,null,null,null,null,null,null,null,"","","",{"$f":"IF(COUNTBLANK(Sociodemograficos[[#This Row],[Nombres y Apellidos]])=0,Sociodemograficos[[#This Row],[Nombres y Apellidos]],\"\")","v":""}]
["",null,null,null,null,null,null,null,null,null,null,null,null,null,null,null,null,null,null,null,null,null,null,null,null,null,null,null,null,null,null,null,null,null,null,null,null,null,null,null,null,null,null,null,null,null,null,null,"","","",{"$f":"IF(COUNTBLANK(Sociodemograficos[[#This Row],[Nombres y Apellidos]])=0,Sociodemograficos[[#This Row],[Nombres y Apellidos]],\"\")","v":""}]
["",null,null,null,null,null,null,null,null,null,null,null,null,null,null,null,null,null,null,null,null,null,null,null,null,null,null,null,null,null,null,null,null,null,null,null,null,null,null,null,null,null,null,null,null,null,null,null,"","","",{"$f":"IF(COUNTBLANK(Sociodemograficos[[#This Row],[Nombres y Apellidos]])=0,Sociodemograficos[[#This Row],[Nombres y Apellidos]],\"\")","v":""}]
["",null,null,null,null,null,null,null,null,null,null,null,null,null,null,null,null,null,null,null,null,null,null,null,null,null,null,null,null,null,null,null,null,null,null,null,null,null,null,null,null,null,null,null,null,null,null,null,"","","",{"$f":"IF(COUNTBLANK(Sociodemograficos[[#This Row],[Nombres y Apellidos]])=0,Sociodemograficos[[#This Row],[Nombres y Apellidos]],\"\")","v":""}]
["",null,null,null,null,null,null,null,null,null,null,null,null,null,null,null,null,null,null,null,null,null,null,null,null,null,null,null,null,null,null,null,null,null,null,null,null,null,null,null,null,null,null,null,null,null,null,null,"","","",{"$f":"IF(COUNTBLANK(Sociodemograficos[[#This Row],[Nombres y Apellidos]])=0,Sociodemograficos[[#This Row],[Nombres y Apellidos]],\"\")","v":""}]
["",null,null,null,null,null,null,null,null,null,null,null,null,null,null,null,null,null,null,null,null,null,null,null,null,null,null,null,null,null,null,null,null,null,null,null,null,null,null,null,null,null,null,null,null,null,null,null,"","","",{"$f":"IF(COUNTBLANK(Sociodemograficos[[#This Row],[Nombres y Apellidos]])=0,Sociodemograficos[[#This Row],[Nombres y Apellidos]],\"\")","v":""}]
["",null,null,null,null,null,null,null,null,null,null,null,null,null,null,null,null,null,null,null,null,null,null,null,null,null,null,null,null,null,null,null,null,null,null,null,null,null,null,null,null,null,null,null,null,null,null,null,"","","",{"$f":"IF(COUNTBLANK(Sociodemograficos[[#This Row],[Nombres y Apellidos]])=0,Sociodemograficos[[#This Row],[Nombres y Apellidos]],\"\")","v":""}]
["",null,null,null,null,null,null,null,null,null,null,null,null,null,null,null,null,null,null,null,null,null,null,null,null,null,null,null,null,null,null,null,null,null,null,null,null,null,null,null,null,null,null,null,null,null,null,null,"","","",{"$f":"IF(COUNTBLANK(Sociodemograficos[[#This Row],[Nombres y Apellidos]])=0,Sociodemograficos[[#This Row],[Nombres y Apellidos]],\"\")","v":""}]
["",null,null,null,null,null,null,null,null,null,null,null,null,null,null,null,null,null,null,null,null,null,null,null,null,null,null,null,null,null,null,null,null,null,null,null,null,null,null,null,null,null,null,null,null,null,null,null,"","","",{"$f":"IF(COUNTBLANK(Sociodemograficos[[#This Row],[Nombres y Apellidos]])=0,Sociodemograficos[[#This Row],[Nombres y Apellidos]],\"\")","v":""}]
["",null,null,null,null,null,null,null,null,null,null,null,null,null,null,null,null,null,null,null,null,null,null,null,null,null,null,null,null,null,null,null,null,null,null,null,null,null,null,null,null,null,null,null,null,null,null,null,"","","",{"$f":"IF(COUNTBLANK(Sociodemograficos[[#This Row],[Nombres y Apellidos]])=0,Sociodemograficos[[#This Row],[Nombres y Apellidos]],\"\")","v":""}]
["",null,null,null,null,null,null,null,null,null,null,null,null,null,null,null,null,null,null,null,null,null,null,null,null,null,null,null,null,null,null,null,null,null,null,null,null,null,null,null,null,null,null,null,null,null,null,null,"","","",{"$f":"IF(COUNTBLANK(Sociodemograficos[[#This Row],[Nombres y Apellidos]])=0,Sociodemograficos[[#This Row],[Nombres y Apellidos]],\"\")","v":""}]
["",null,null,null,null,null,null,null,null,null,null,null,null,null,null,null,null,null,null,null,null,null,null,null,null,null,null,null,null,null,null,null,null,null,null,null,null,null,null,null,null,null,null,null,null,null,null,null,"","","",{"$f":"IF(COUNTBLANK(Sociodemograficos[[#This Row],[Nombres y Apellidos]])=0,Sociodemograficos[[#This Row],[Nombres y Apellidos]],\"\")","v":""}]
["",null,null,null,null,null,null,null,null,null,null,null,null,null,null,null,null,null,null,null,null,null,null,null,null,null,null,null,null,null,null,null,null,null,null,null,null,null,null,null,null,null,null,null,null,null,null,null,"","","",{"$f":"IF(COUNTBLANK(Sociodemograficos[[#This Row],[Nombres y Apellidos]])=0,Sociodemograficos[[#This Row],[Nombres y Apellidos]],\"\")","v":""}]
["",null,null,null,null,null,null,null,null,null,null,null,null,null,null,null,null,null,null,null,null,null,null,null,null,null,null,null,null,null,null,null,null,null,null,null,null,null,null,null,null,null,null,null,null,null,null,null,"","","",{"$f":"IF(COUNTBLANK(Sociodemograficos[[#This Row],[Nombres y Apellidos]])=0,Sociodemograficos[[#This Row],[Nombres y Apellidos]],\"\")","v":""}]
["",null,null,null,null,null,null,null,null,null,null,null,null,null,null,null,null,null,null,null,null,null,null,null,null,null,null,null,null,null,null,null,null,null,null,null,null,null,null,null,null,null,null,null,null,null,null,null,"","","",{"$f":"IF(COUNTBLANK(Sociodemograficos[[#This Row],[Nombres y Apellidos]])=0,Sociodemograficos[[#This Row],[Nombres y Apellidos]],\"\")","v":""}]
["",null,null,null,null,null,null,null,null,null,null,null,null,null,null,null,null,null,null,null,null,null,null,null,null,null,null,null,null,null,null,null,null,null,null,null,null,null,null,null,null,null,null,null,null,null,null,null,"","","",{"$f":"IF(COUNTBLANK(Sociodemograficos[[#This Row],[Nombres y Apellidos]])=0,Sociodemograficos[[#This Row],[Nombres y Apellidos]],\"\")","v":""}]
["",null,null,null,null,null,null,null,null,null,null,null,null,null,null,null,null,null,null,null,null,null,null,null,null,null,null,null,null,null,null,null,null,null,null,null,null,null,null,null,null,null,null,null,null,null,null,null,"","","",{"$f":"IF(COUNTBLANK(Sociodemograficos[[#This Row],[Nombres y Apellidos]])=0,Sociodemograficos[[#This Row],[Nombres y Apellidos]],\"\")","v":""}]
["",null,null,null,null,null,null,null,null,null,null,null,null,null,null,null,null,null,null,null,null,null,null,null,null,null,null,null,null,null,null,null,null,null,null,null,null,null,null,null,null,null,null,null,null,null,null,null,"","","",{"$f":"IF(COUNTBLANK(Sociodemograficos[[#This Row],[Nombres y Apellidos]])=0,Sociodemograficos[[#This Row],[Nombres y Apellidos]],\"\")","v":""}]
["",null,null,null,null,null,null,null,null,null,null,null,null,null,null,null,null,null,null,null,null,null,null,null,null,null,null,null,null,null,null,null,null,null,null,null,null,null,null,null,null,null,null,null,null,null,null,null,"","","",{"$f":"IF(COUNTBLANK(Sociodemograficos[[#This Row],[Nombres y Apellidos]])=0,Sociodemograficos[[#This Row],[Nombres y Apellidos]],\"\")","v":""}]
["",null,null,null,null,null,null,null,null,null,null,null,null,null,null,null,null,null,null,null,null,null,null,null,null,null,null,null,null,null,null,null,null,null,null,null,null,null,null,null,null,null,null,null,null,null,null,null,"","","",{"$f":"IF(COUNTBLANK(Sociodemograficos[[#This Row],[Nombres y Apellidos]])=0,Sociodemograficos[[#This Row],[Nombres y Apellidos]],\"\")","v":""}]
["",null,null,null,null,null,null,null,null,null,null,null,null,null,null,null,null,null,null,null,null,null,null,null,null,null,null,null,null,null,null,null,null,null,null,null,null,null,null,null,null,null,null,null,null,null,null,null,"","","",{"$f":"IF(COUNTBLANK(Sociodemograficos[[#This Row],[Nombres y Apellidos]])=0,Sociodemograficos[[#This Row],[Nombres y Apellidos]],\"\")","v":""}]
["",null,null,null,null,null,null,null,null,null,null,null,null,null,null,null,null,null,null,null,null,null,null,null,null,null,null,null,null,null,null,null,null,null,null,null,null,null,null,null,null,null,null,null,null,null,null,null,"","","",{"$f":"IF(COUNTBLANK(Sociodemograficos[[#This Row],[Nombres y Apellidos]])=0,Sociodemograficos[[#This Row],[Nombres y Apellidos]],\"\")","v":""}]
["",null,null,null,null,null,null,null,null,null,null,null,null,null,null,null,null,null,null,null,null,null,null,null,null,null,null,null,null,null,null,null,null,null,null,null,null,null,null,null,null,null,null,null,null,null,null,null,"","","",{"$f":"IF(COUNTBLANK(Sociodemograficos[[#This Row],[Nombres y Apellidos]])=0,Sociodemograficos[[#This Row],[Nombres y Apellidos]],\"\")","v":""}]
["",null,null,null,null,null,null,null,null,null,null,null,null,null,null,null,null,null,null,null,null,null,null,null,null,null,null,null,null,null,null,null,null,null,null,null,null,null,null,null,null,null,null,null,null,null,null,null,"","","",{"$f":"IF(COUNTBLANK(Sociodemograficos[[#This Row],[Nombres y Apellidos]])=0,Sociodemograficos[[#This Row],[Nombres y Apellidos]],\"\")","v":""}]
["",null,null,null,null,null,null,null,null,null,null,null,null,null,null,null,null,null,null,null,null,null,null,null,null,null,null,null,null,null,null,null,null,null,null,null,null,null,null,null,null,null,null,null,null,null,null,null,"","","",{"$f":"IF(COUNTBLANK(Sociodemograficos[[#This Row],[Nombres y Apellidos]])=0,Sociodemograficos[[#This Row],[Nombres y Apellidos]],\"\")","v":""}]
["",null,null,null,null,null,null,null,null,null,null,null,null,null,null,null,null,null,null,null,null,null,null,null,null,null,null,null,null,null,null,null,null,null,null,null,null,null,null,null,null,null,null,null,null,null,null,null,"","","",{"$f":"IF(COUNTBLANK(Sociodemograficos[[#This Row],[Nombres y Apellidos]])=0,Sociodemograficos[[#This Row],[Nombres y Apellidos]],\"\")","v":""}]
["",null,null,null,null,null,null,null,null,null,null,null,null,null,null,null,null,null,null,null,null,null,null,null,null,null,null,null,null,null,null,null,null,null,null,null,null,null,null,null,null,null,null,null,null,null,null,null,"","","",{"$f":"IF(COUNTBLANK(Sociodemograficos[[#This Row],[Nombres y Apellidos]])=0,Sociodemograficos[[#This Row],[Nombres y Apellidos]],\"\")","v":""}]
["",null,null,null,null,null,null,null,null,null,null,null,null,null,null,null,null,null,null,null,null,null,null,null,null,null,null,null,null,null,null,null,null,null,null,null,null,null,null,null,null,null,null,null,null,null,null,null,"","","",{"$f":"IF(COUNTBLANK(Sociodemograficos[[#This Row],[Nombres y Apellidos]])=0,Sociodemograficos[[#This Row],[Nombres y Apellidos]],\"\")","v":""}]
["",null,null,null,null,null,null,null,null,null,null,null,null,null,null,null,null,null,null,null,null,null,null,null,null,null,null,null,null,null,null,null,null,null,null,null,null,null,null,null,null,null,null,null,null,null,null,null,"","","",{"$f":"IF(COUNTBLANK(Sociodemograficos[[#This Row],[Nombres y Apellidos]])=0,Sociodemograficos[[#This Row],[Nombres y Apellidos]],\"\")","v":""}]
["",null,null,null,null,null,null,null,null,null,null,null,null,null,null,null,null,null,null,null,null,null,null,null,null,null,null,null,null,null,null,null,null,null,null,null,null,null,null,null,null,null,null,null,null,null,null,null,"","","",{"$f":"IF(COUNTBLANK(Sociodemograficos[[#This Row],[Nombres y Apellidos]])=0,Sociodemograficos[[#This Row],[Nombres y Apellidos]],\"\")","v":""}]
["",null,null,null,null,null,null,null,null,null,null,null,null,null,null,null,null,null,null,null,null,null,null,null,null,null,null,null,null,null,null,null,null,null,null,null,null,null,null,null,null,null,null,null,null,null,null,null,"","","",{"$f":"IF(COUNTBLANK(Sociodemograficos[[#This Row],[Nombres y Apellidos]])=0,Sociodemograficos[[#This Row],[Nombres y Apellidos]],\"\")","v":""}]
["",null,null,null,null,null,null,null,null,null,null,null,null,null,null,null,null,null,null,null,null,null,null,null,null,null,null,null,null,null,null,null,null,null,null,null,null,null,null,null,null,null,null,null,null,null,null,null,"","","",{"$f":"IF(COUNTBLANK(Sociodemograficos[[#This Row],[Nombres y Apellidos]])=0,Sociodemograficos[[#This Row],[Nombres y Apellidos]],\"\")","v":""}]
["",null,null,null,null,null,null,null,null,null,null,null,null,null,null,null,null,null,null,null,null,null,null,null,null,null,null,null,null,null,null,null,null,null,null,null,null,null,null,null,null,null,null,null,null,null,null,null,"","","",{"$f":"IF(COUNTBLANK(Sociodemograficos[[#This Row],[Nombres y Apellidos]])=0,Sociodemograficos[[#This Row],[Nombres y Apellidos]],\"\")","v":""}]
["",null,null,null,null,null,null,null,null,null,null,null,null,null,null,null,null,null,null,null,null,null,null,null,null,null,null,null,null,null,null,null,null,null,null,null,null,null,null,null,null,null,null,null,null,null,null,null,"","","",{"$f":"IF(COUNTBLANK(Sociodemograficos[[#This Row],[Nombres y Apellidos]])=0,Sociodemograficos[[#This Row],[Nombres y Apellidos]],\"\")","v":""}]
["",null,null,null,null,null,null,null,null,null,null,null,null,null,null,null,null,null,null,null,null,null,null,null,null,null,null,null,null,null,null,null,null,null,null,null,null,null,null,null,null,null,null,null,null,null,null,null,"","","",{"$f":"IF(COUNTBLANK(Sociodemograficos[[#This Row],[Nombres y Apellidos]])=0,Sociodemograficos[[#This Row],[Nombres y Apellidos]],\"\")","v":""}]
["",null,null,null,null,null,null,null,null,null,null,null,null,null,null,null,null,null,null,null,null,null,null,null,null,null,null,null,null,null,null,null,null,null,null,null,null,null,null,null,null,null,null,null,null,null,null,null,"","","",{"$f":"IF(COUNTBLANK(Sociodemograficos[[#This Row],[Nombres y Apellidos]])=0,Sociodemograficos[[#This Row],[Nombres y Apellidos]],\"\")","v":""}]
["",null,null,null,null,null,null,null,null,null,null,null,null,null,null,null,null,null,null,null,null,null,null,null,null,null,null,null,null,null,null,null,null,null,null,null,null,null,null,null,null,null,null,null,null,null,null,null,"","","",{"$f":"IF(COUNTBLANK(Sociodemograficos[[#This Row],[Nombres y Apellidos]])=0,Sociodemograficos[[#This Row],[Nombres y Apellidos]],\"\")","v":""}]
["",null,null,null,null,null,null,null,null,null,null,null,null,null,null,null,null,null,null,null,null,null,null,null,null,null,null,null,null,null,null,null,null,null,null,null,null,null,null,null,null,null,null,null,null,null,null,null,"","","",{"$f":"IF(COUNTBLANK(Sociodemograficos[[#This Row],[Nombres y Apellidos]])=0,Sociodemograficos[[#This Row],[Nombres y Apellidos]],\"\")","v":""}]
["",null,null,null,null,null,null,null,null,null,null,null,null,null,null,null,null,null,null,null,null,null,null,null,null,null,null,null,null,null,null,null,null,null,null,null,null,null,null,null,null,null,null,null,null,null,null,null,"","","",{"$f":"IF(COUNTBLANK(Sociodemograficos[[#This Row],[Nombres y Apellidos]])=0,Sociodemograficos[[#This Row],[Nombres y Apellidos]],\"\")","v":""}]
["",null,null,null,null,null,null,null,null,null,null,null,null,null,null,null,null,null,null,null,null,null,null,null,null,null,null,null,null,null,null,null,null,null,null,null,null,null,null,null,null,null,null,null,null,null,null,null,"","","",{"$f":"IF(COUNTBLANK(Sociodemograficos[[#This Row],[Nombres y Apellidos]])=0,Sociodemograficos[[#This Row],[Nombres y Apellidos]],\"\")","v":""}]
["",null,null,null,null,null,null,null,null,null,null,null,null,null,null,null,null,null,null,null,null,null,null,null,null,null,null,null,null,null,null,null,null,null,null,null,null,null,null,null,null,null,null,null,null,null,null,null,"","","",{"$f":"IF(COUNTBLANK(Sociodemograficos[[#This Row],[Nombres y Apellidos]])=0,Sociodemograficos[[#This Row],[Nombres y Apellidos]],\"\")","v":""}]
["",null,null,null,null,null,null,null,null,null,null,null,null,null,null,null,null,null,null,null,null,null,null,null,null,null,null,null,null,null,null,null,null,null,null,null,null,null,null,null,null,null,null,null,null,null,null,null,"","","",{"$f":"IF(COUNTBLANK(Sociodemograficos[[#This Row],[Nombres y Apellidos]])=0,Sociodemograficos[[#This Row],[Nombres y Apellidos]],\"\")","v":""}]
["",null,null,null,null,null,null,null,null,null,null,null,null,null,null,null,null,null,null,null,null,null,null,null,null,null,null,null,null,null,null,null,null,null,null,null,null,null,null,null,null,null,null,null,null,null,null,null,"","","",{"$f":"IF(COUNTBLANK(Sociodemograficos[[#This Row],[Nombres y Apellidos]])=0,Sociodemograficos[[#This Row],[Nombres y Apellidos]],\"\")","v":""}]
["",null,null,null,null,null,null,null,null,null,null,null,null,null,null,null,null,null,null,null,null,null,null,null,null,null,null,null,null,null,null,null,null,null,null,null,null,null,null,null,null,null,null,null,null,null,null,null,"","","",{"$f":"IF(COUNTBLANK(Sociodemograficos[[#This Row],[Nombres y Apellidos]])=0,Sociodemograficos[[#This Row],[Nombres y Apellidos]],\"\")","v":""}]
["",null,null,null,null,null,null,null,null,null,null,null,null,null,null,null,null,null,null,null,null,null,null,null,null,null,null,null,null,null,null,null,null,null,null,null,null,null,null,null,null,null,null,null,null,null,null,null,"","","",{"$f":"IF(COUNTBLANK(Sociodemograficos[[#This Row],[Nombres y Apellidos]])=0,Sociodemograficos[[#This Row],[Nombres y Apellidos]],\"\")","v":""}]
["",null,null,null,null,null,null,null,null,null,null,null,null,null,null,null,null,null,null,null,null,null,null,null,null,null,null,null,null,null,null,null,null,null,null,null,null,null,null,null,null,null,null,null,null,null,null,null,"","","",{"$f":"IF(COUNTBLANK(Sociodemograficos[[#This Row],[Nombres y Apellidos]])=0,Sociodemograficos[[#This Row],[Nombres y Apellidos]],\"\")","v":""}]
["",null,null,null,null,null,null,null,null,null,null,null,null,null,null,null,null,null,null,null,null,null,null,null,null,null,null,null,null,null,null,null,null,null,null,null,null,null,null,null,null,null,null,null,null,null,null,null,"","","",{"$f":"IF(COUNTBLANK(Sociodemograficos[[#This Row],[Nombres y Apellidos]])=0,Sociodemograficos[[#This Row],[Nombres y Apellidos]],\"\")","v":""}]
["",null,null,null,null,null,null,null,null,null,null,null,null,null,null,null,null,null,null,null,null,null,null,null,null,null,null,null,null,null,null,null,null,null,null,null,null,null,null,null,null,null,null,null,null,null,null,null,"","","",{"$f":"IF(COUNTBLANK(Sociodemograficos[[#This Row],[Nombres y Apellidos]])=0,Sociodemograficos[[#This Row],[Nombres y Apellidos]],\"\")","v":""}]
["",null,null,null,null,null,null,null,null,null,null,null,null,null,null,null,null,null,null,null,null,null,null,null,null,null,null,null,null,null,null,null,null,null,null,null,null,null,null,null,null,null,null,null,null,null,null,null,"","","",{"$f":"IF(COUNTBLANK(Sociodemograficos[[#This Row],[Nombres y Apellidos]])=0,Sociodemograficos[[#This Row],[Nombres y Apellidos]],\"\")","v":""}]
["",null,null,null,null,null,null,null,null,null,null,null,null,null,null,null,null,null,null,null,null,null,null,null,null,null,null,null,null,null,null,null,null,null,null,null,null,null,null,null,null,null,null,null,null,null,null,null,"","","",{"$f":"IF(COUNTBLANK(Sociodemograficos[[#This Row],[Nombres y Apellidos]])=0,Sociodemograficos[[#This Row],[Nombres y Apellidos]],\"\")","v":""}]
["",null,null,null,null,null,null,null,null,null,null,null,null,null,null,null,null,null,null,null,null,null,null,null,null,null,null,null,null,null,null,null,null,null,null,null,null,null,null,null,null,null,null,null,null,null,null,null,"","","",{"$f":"IF(COUNTBLANK(Sociodemograficos[[#This Row],[Nombres y Apellidos]])=0,Sociodemograficos[[#This Row],[Nombres y Apellidos]],\"\")","v":""}]
["",null,null,null,null,null,null,null,null,null,null,null,null,null,null,null,null,null,null,null,null,null,null,null,null,null,null,null,null,null,null,null,null,null,null,null,null,null,null,null,null,null,null,null,null,null,null,null,"","","",{"$f":"IF(COUNTBLANK(Sociodemograficos[[#This Row],[Nombres y Apellidos]])=0,Sociodemograficos[[#This Row],[Nombres y Apellidos]],\"\")","v":""}]
["",null,null,null,null,null,null,null,null,null,null,null,null,null,null,null,null,null,null,null,null,null,null,null,null,null,null,null,null,null,null,null,null,null,null,null,null,null,null,null,null,null,null,null,null,null,null,null,"","","",{"$f":"IF(COUNTBLANK(Sociodemograficos[[#This Row],[Nombres y Apellidos]])=0,Sociodemograficos[[#This Row],[Nombres y Apellidos]],\"\")","v":""}]
["",null,null,null,null,null,null,null,null,null,null,null,null,null,null,null,null,null,null,null,null,null,null,null,null,null,null,null,null,null,null,null,null,null,null,null,null,null,null,null,null,null,null,null,null,null,null,null,"","","",{"$f":"IF(COUNTBLANK(Sociodemograficos[[#This Row],[Nombres y Apellidos]])=0,Sociodemograficos[[#This Row],[Nombres y Apellidos]],\"\")","v":""}]
["",null,null,null,null,null,null,null,null,null,null,null,null,null,null,null,null,null,null,null,null,null,null,null,null,null,null,null,null,null,null,null,null,null,null,null,null,null,null,null,null,null,null,null,null,null,null,null,"","","",{"$f":"IF(COUNTBLANK(Sociodemograficos[[#This Row],[Nombres y Apellidos]])=0,Sociodemograficos[[#This Row],[Nombres y Apellidos]],\"\")","v":""}]
["",null,null,null,null,null,null,null,null,null,null,null,null,null,null,null,null,null,null,null,null,null,null,null,null,null,null,null,null,null,null,null,null,null,null,null,null,null,null,null,null,null,null,null,null,null,null,null,"","","",{"$f":"IF(COUNTBLANK(Sociodemograficos[[#This Row],[Nombres y Apellidos]])=0,Sociodemograficos[[#This Row],[Nombres y Apellidos]],\"\")","v":""}]
["",null,null,null,null,null,null,null,null,null,null,null,null,null,null,null,null,null,null,null,null,null,null,null,null,null,null,null,null,null,null,null,null,null,null,null,null,null,null,null,null,null,null,null,null,null,null,null,"","","",{"$f":"IF(COUNTBLANK(Sociodemograficos[[#This Row],[Nombres y Apellidos]])=0,Sociodemograficos[[#This Row],[Nombres y Apellidos]],\"\")","v":""}]
["",null,null,null,null,null,null,null,null,null,null,null,null,null,null,null,null,null,null,null,null,null,null,null,null,null,null,null,null,null,null,null,null,null,null,null,null,null,null,null,null,null,null,null,null,null,null,null,"","","",{"$f":"IF(COUNTBLANK(Sociodemograficos[[#This Row],[Nombres y Apellidos]])=0,Sociodemograficos[[#This Row],[Nombres y Apellidos]],\"\")","v":""}]
["",null,null,null,null,null,null,null,null,null,null,null,null,null,null,null,null,null,null,null,null,null,null,null,null,null,null,null,null,null,null,null,null,null,null,null,null,null,null,null,null,null,null,null,null,null,null,null,"","","",{"$f":"IF(COUNTBLANK(Sociodemograficos[[#This Row],[Nombres y Apellidos]])=0,Sociodemograficos[[#This Row],[Nombres y Apellidos]],\"\")","v":""}]
["",null,null,null,null,null,null,null,null,null,null,null,null,null,null,null,null,null,null,null,null,null,null,null,null,null,null,null,null,null,null,null,null,null,null,null,null,null,null,null,null,null,null,null,null,null,null,null,"","","",{"$f":"IF(COUNTBLANK(Sociodemograficos[[#This Row],[Nombres y Apellidos]])=0,Sociodemograficos[[#This Row],[Nombres y Apellidos]],\"\")","v":""}]
["",null,null,null,null,null,null,null,null,null,null,null,null,null,null,null,null,null,null,null,null,null,null,null,null,null,null,null,null,null,null,null,null,null,null,null,null,null,null,null,null,null,null,null,null,null,null,null,"","","",{"$f":"IF(COUNTBLANK(Sociodemograficos[[#This Row],[Nombres y Apellidos]])=0,Sociodemograficos[[#This Row],[Nombres y Apellidos]],\"\")","v":""}]
["",null,null,null,null,null,null,null,null,null,null,null,null,null,null,null,null,null,null,null,null,null,null,null,null,null,null,null,null,null,null,null,null,null,null,null,null,null,null,null,null,null,null,null,null,null,null,null,"","","",{"$f":"IF(COUNTBLANK(Sociodemograficos[[#This Row],[Nombres y Apellidos]])=0,Sociodemograficos[[#This Row],[Nombres y Apellidos]],\"\")","v":""}]
["",null,null,null,null,null,null,null,null,null,null,null,null,null,null,null,null,null,null,null,null,null,null,null,null,null,null,null,null,null,null,null,null,null,null,null,null,null,null,null,null,null,null,null,null,null,null,null,"","","",{"$f":"IF(COUNTBLANK(Sociodemograficos[[#This Row],[Nombres y Apellidos]])=0,Sociodemograficos[[#This Row],[Nombres y Apellidos]],\"\")","v":""}]
["",null,null,null,null,null,null,null,null,null,null,null,null,null,null,null,null,null,null,null,null,null,null,null,null,null,null,null,null,null,null,null,null,null,null,null,null,null,null,null,null,null,null,null,null,null,null,null,"","","",{"$f":"IF(COUNTBLANK(Sociodemograficos[[#This Row],[Nombres y Apellidos]])=0,Sociodemograficos[[#This Row],[Nombres y Apellidos]],\"\")","v":""}]
["",null,null,null,null,null,null,null,null,null,null,null,null,null,null,null,null,null,null,null,null,null,null,null,null,null,null,null,null,null,null,null,null,null,null,null,null,null,null,null,null,null,null,null,null,null,null,null,"","","",{"$f":"IF(COUNTBLANK(Sociodemograficos[[#This Row],[Nombres y Apellidos]])=0,Sociodemograficos[[#This Row],[Nombres y Apellidos]],\"\")","v":""}]
["",null,null,null,null,null,null,null,null,null,null,null,null,null,null,null,null,null,null,null,null,null,null,null,null,null,null,null,null,null,null,null,null,null,null,null,null,null,null,null,null,null,null,null,null,null,null,null,"","","",{"$f":"IF(COUNTBLANK(Sociodemograficos[[#This Row],[Nombres y Apellidos]])=0,Sociodemograficos[[#This Row],[Nombres y Apellidos]],\"\")","v":""}]
["",null,null,null,null,null,null,null,null,null,null,null,null,null,null,null,null,null,null,null,null,null,null,null,null,null,null,null,null,null,null,null,null,null,null,null,null,null,null,null,null,null,null,null,null,null,null,null,"","","",{"$f":"IF(COUNTBLANK(Sociodemograficos[[#This Row],[Nombres y Apellidos]])=0,Sociodemograficos[[#This Row],[Nombres y Apellidos]],\"\")","v":""}]
["",null,null,null,null,null,null,null,null,null,null,null,null,null,null,null,null,null,null,null,null,null,null,null,null,null,null,null,null,null,null,null,null,null,null,null,null,null,null,null,null,null,null,null,null,null,null,null,"","","",{"$f":"IF(COUNTBLANK(Sociodemograficos[[#This Row],[Nombres y Apellidos]])=0,Sociodemograficos[[#This Row],[Nombres y Apellidos]],\"\")","v":""}]
["",null,null,null,null,null,null,null,null,null,null,null,null,null,null,null,null,null,null,null,null,null,null,null,null,null,null,null,null,null,null,null,null,null,null,null,null,null,null,null,null,null,null,null,null,null,null,null,"","","",{"$f":"IF(COUNTBLANK(Sociodemograficos[[#This Row],[Nombres y Apellidos]])=0,Sociodemograficos[[#This Row],[Nombres y Apellidos]],\"\")","v":""}]
["",null,null,null,null,null,null,null,null,null,null,null,null,null,null,null,null,null,null,null,null,null,null,null,null,null,null,null,null,null,null,null,null,null,null,null,null,null,null,null,null,null,null,null,null,null,null,null,"","","",{"$f":"IF(COUNTBLANK(Sociodemograficos[[#This Row],[Nombres y Apellidos]])=0,Sociodemograficos[[#This Row],[Nombres y Apellidos]],\"\")","v":""}]
["",null,null,null,null,null,null,null,null,null,null,null,null,null,null,null,null,null,null,null,null,null,null,null,null,null,null,null,null,null,null,null,null,null,null,null,null,null,null,null,null,null,null,null,null,null,null,null,"","","",{"$f":"IF(COUNTBLANK(Sociodemograficos[[#This Row],[Nombres y Apellidos]])=0,Sociodemograficos[[#This Row],[Nombres y Apellidos]],\"\")","v":""}]
["",null,null,null,null,null,null,null,null,null,null,null,null,null,null,null,null,null,null,null,null,null,null,null,null,null,null,null,null,null,null,null,null,null,null,null,null,null,null,null,null,null,null,null,null,null,null,null,"","","",{"$f":"IF(COUNTBLANK(Sociodemograficos[[#This Row],[Nombres y Apellidos]])=0,Sociodemograficos[[#This Row],[Nombres y Apellidos]],\"\")","v":""}]
["",null,null,null,null,null,null,null,null,null,null,null,null,null,null,null,null,null,null,null,null,null,null,null,null,null,null,null,null,null,null,null,null,null,null,null,null,null,null,null,null,null,null,null,null,null,null,null,"","","",{"$f":"IF(COUNTBLANK(Sociodemograficos[[#This Row],[Nombres y Apellidos]])=0,Sociodemograficos[[#This Row],[Nombres y Apellidos]],\"\")","v":""}]
["",null,null,null,null,null,null,null,null,null,null,null,null,null,null,null,null,null,null,null,null,null,null,null,null,null,null,null,null,null,null,null,null,null,null,null,null,null,null,null,null,null,null,null,null,null,null,null,"","","",{"$f":"IF(COUNTBLANK(Sociodemograficos[[#This Row],[Nombres y Apellidos]])=0,Sociodemograficos[[#This Row],[Nombres y Apellidos]],\"\")","v":""}]
["",null,null,null,null,null,null,null,null,null,null,null,null,null,null,null,null,null,null,null,null,null,null,null,null,null,null,null,null,null,null,null,null,null,null,null,null,null,null,null,null,null,null,null,null,null,null,null,"","","",{"$f":"IF(COUNTBLANK(Sociodemograficos[[#This Row],[Nombres y Apellidos]])=0,Sociodemograficos[[#This Row],[Nombres y Apellidos]],\"\")","v":""}]
["",null,null,null,null,null,null,null,null,null,null,null,null,null,null,null,null,null,null,null,null,null,null,null,null,null,null,null,null,null,null,null,null,null,null,null,null,null,null,null,null,null,null,null,null,null,null,null,"","","",{"$f":"IF(COUNTBLANK(Sociodemograficos[[#This Row],[Nombres y Apellidos]])=0,Sociodemograficos[[#This Row],[Nombres y Apellidos]],\"\")","v":""}]
["",null,null,null,null,null,null,null,null,null,null,null,null,null,null,null,null,null,null,null,null,null,null,null,null,null,null,null,null,null,null,null,null,null,null,null,null,null,null,null,null,null,null,null,null,null,null,null,"","","",{"$f":"IF(COUNTBLANK(Sociodemograficos[[#This Row],[Nombres y Apellidos]])=0,Sociodemograficos[[#This Row],[Nombres y Apellidos]],\"\")","v":""}]
["",null,null,null,null,null,null,null,null,null,null,null,null,null,null,null,null,null,null,null,null,null,null,null,null,null,null,null,null,null,null,null,null,null,null,null,null,null,null,null,null,null,null,null,null,null,null,null,"","","",{"$f":"IF(COUNTBLANK(Sociodemograficos[[#This Row],[Nombres y Apellidos]])=0,Sociodemograficos[[#This Row],[Nombres y Apellidos]],\"\")","v":""}]
["",null,null,null,null,null,null,null,null,null,null,null,null,null,null,null,null,null,null,null,null,null,null,null,null,null,null,null,null,null,null,null,null,null,null,null,null,null,null,null,null,null,null,null,null,null,null,null,"","","",{"$f":"IF(COUNTBLANK(Sociodemograficos[[#This Row],[Nombres y Apellidos]])=0,Sociodemograficos[[#This Row],[Nombres y Apellidos]],\"\")","v":""}]
["",null,null,null,null,null,null,null,null,null,null,null,null,null,null,null,null,null,null,null,null,null,null,null,null,null,null,null,null,null,null,null,null,null,null,null,null,null,null,null,null,null,null,null,null,null,null,null,"","","",{"$f":"IF(COUNTBLANK(Sociodemograficos[[#This Row],[Nombres y Apellidos]])=0,Sociodemograficos[[#This Row],[Nombres y Apellidos]],\"\")","v":""}]
["",null,null,null,null,null,null,null,null,null,null,null,null,null,null,null,null,null,null,null,null,null,null,null,null,null,null,null,null,null,null,null,null,null,null,null,null,null,null,null,null,null,null,null,null,null,null,null,"","","",{"$f":"IF(COUNTBLANK(Sociodemograficos[[#This Row],[Nombres y Apellidos]])=0,Sociodemograficos[[#This Row],[Nombres y Apellidos]],\"\")","v":""}]
["",null,null,null,null,null,null,null,null,null,null,null,null,null,null,null,null,null,null,null,null,null,null,null,null,null,null,null,null,null,null,null,null,null,null,null,null,null,null,null,null,null,null,null,null,null,null,null,"","","",{"$f":"IF(COUNTBLANK(Sociodemograficos[[#This Row],[Nombres y Apellidos]])=0,Sociodemograficos[[#This Row],[Nombres y Apellidos]],\"\")","v":""}]
["",null,null,null,null,null,null,null,null,null,null,null,null,null,null,null,null,null,null,null,null,null,null,null,null,null,null,null,null,null,null,null,null,null,null,null,null,null,null,null,null,null,null,null,null,null,null,null,"","","",{"$f":"IF(COUNTBLANK(Sociodemograficos[[#This Row],[Nombres y Apellidos]])=0,Sociodemograficos[[#This Row],[Nombres y Apellidos]],\"\")","v":""}]
["",null,null,null,null,null,null,null,null,null,null,null,null,null,null,null,null,null,null,null,null,null,null,null,null,null,null,null,null,null,null,null,null,null,null,null,null,null,null,null,null,null,null,null,null,null,null,null,"","","",{"$f":"IF(COUNTBLANK(Sociodemograficos[[#This Row],[Nombres y Apellidos]])=0,Sociodemograficos[[#This Row],[Nombres y Apellidos]],\"\")","v":""}]
["",null,null,null,null,null,null,null,null,null,null,null,null,null,null,null,null,null,null,null,null,null,null,null,null,null,null,null,null,null,null,null,null,null,null,null,null,null,null,null,null,null,null,null,null,null,null,null,"","","",{"$f":"IF(COUNTBLANK(Sociodemograficos[[#This Row],[Nombres y Apellidos]])=0,Sociodemograficos[[#This Row],[Nombres y Apellidos]],\"\")","v":""}]
["",null,null,null,null,null,null,null,null,null,null,null,null,null,null,null,null,null,null,null,null,null,null,null,null,null,null,null,null,null,null,null,null,null,null,null,null,null,null,null,null,null,null,null,null,null,null,null,"","","",{"$f":"IF(COUNTBLANK(Sociodemograficos[[#This Row],[Nombres y Apellidos]])=0,Sociodemograficos[[#This Row],[Nombres y Apellidos]],\"\")","v":""}]
["",null,null,null,null,null,null,null,null,null,null,null,null,null,null,null,null,null,null,null,null,null,null,null,null,null,null,null,null,null,null,null,null,null,null,null,null,null,null,null,null,null,null,null,null,null,null,null,"","","",{"$f":"IF(COUNTBLANK(Sociodemograficos[[#This Row],[Nombres y Apellidos]])=0,Sociodemograficos[[#This Row],[Nombres y Apellidos]],\"\")","v":""}]
["",null,null,null,null,null,null,null,null,null,null,null,null,null,null,null,null,null,null,null,null,null,null,null,null,null,null,null,null,null,null,null,null,null,null,null,null,null,null,null,null,null,null,null,null,null,null,null,"","","",{"$f":"IF(COUNTBLANK(Sociodemograficos[[#This Row],[Nombres y Apellidos]])=0,Sociodemograficos[[#This Row],[Nombres y Apellidos]],\"\")","v":""}]
["",null,null,null,null,null,null,null,null,null,null,null,null,null,null,null,null,null,null,null,null,null,null,null,null,null,null,null,null,null,null,null,null,null,null,null,null,null,null,null,null,null,null,null,null,null,null,null,"","","",{"$f":"IF(COUNTBLANK(Sociodemograficos[[#This Row],[Nombres y Apellidos]])=0,Sociodemograficos[[#This Row],[Nombres y Apellidos]],\"\")","v":""}]
["",null,null,null,null,null,null,null,null,null,null,null,null,null,null,null,null,null,null,null,null,null,null,null,null,null,null,null,null,null,null,null,null,null,null,null,null,null,null,null,null,null,null,null,null,null,null,null,"","","",{"$f":"IF(COUNTBLANK(Sociodemograficos[[#This Row],[Nombres y Apellidos]])=0,Sociodemograficos[[#This Row],[Nombres y Apellidos]],\"\")","v":""}]
["",null,null,null,null,null,null,null,null,null,null,null,null,null,null,null,null,null,null,null,null,null,null,null,null,null,null,null,null,null,null,null,null,null,null,null,null,null,null,null,null,null,null,null,null,null,null,null,"","","",{"$f":"IF(COUNTBLANK(Sociodemograficos[[#This Row],[Nombres y Apellidos]])=0,Sociodemograficos[[#This Row],[Nombres y Apellidos]],\"\")","v":""}]
["",null,null,null,null,null,null,null,null,null,null,null,null,null,null,null,null,null,null,null,null,null,null,null,null,null,null,null,null,null,null,null,null,null,null,null,null,null,null,null,null,null,null,null,null,null,null,null,"","","",{"$f":"IF(COUNTBLANK(Sociodemograficos[[#This Row],[Nombres y Apellidos]])=0,Sociodemograficos[[#This Row],[Nombres y Apellidos]],\"\")","v":""}]
["",null,null,null,null,null,null,null,null,null,null,null,null,null,null,null,null,null,null,null,null,null,null,null,null,null,null,null,null,null,null,null,null,null,null,null,null,null,null,null,null,null,null,null,null,null,null,null,"","","",{"$f":"IF(COUNTBLANK(Sociodemograficos[[#This Row],[Nombres y Apellidos]])=0,Sociodemograficos[[#This Row],[Nombres y Apellidos]],\"\")","v":""}]
["",null,null,null,null,null,null,null,null,null,null,null,null,null,null,null,null,null,null,null,null,null,null,null,null,null,null,null,null,null,null,null,null,null,null,null,null,null,null,null,null,null,null,null,null,null,null,null,"","","",{"$f":"IF(COUNTBLANK(Sociodemograficos[[#This Row],[Nombres y Apellidos]])=0,Sociodemograficos[[#This Row],[Nombres y Apellidos]],\"\")","v":""}]
["",null,null,null,null,null,null,null,null,null,null,null,null,null,null,null,null,null,null,null,null,null,null,null,null,null,null,null,null,null,null,null,null,null,null,null,null,null,null,null,null,null,null,null,null,null,null,null,"","","",{"$f":"IF(COUNTBLANK(Sociodemograficos[[#This Row],[Nombres y Apellidos]])=0,Sociodemograficos[[#This Row],[Nombres y Apellidos]],\"\")","v":""}]
["",null,null,null,null,null,null,null,null,null,null,null,null,null,null,null,null,null,null,null,null,null,null,null,null,null,null,null,null,null,null,null,null,null,null,null,null,null,null,null,null,null,null,null,null,null,null,null,"","","",{"$f":"IF(COUNTBLANK(Sociodemograficos[[#This Row],[Nombres y Apellidos]])=0,Sociodemograficos[[#This Row],[Nombres y Apellidos]],\"\")","v":""}]
["",null,null,null,null,null,null,null,null,null,null,null,null,null,null,null,null,null,null,null,null,null,null,null,null,null,null,null,null,null,null,null,null,null,null,null,null,null,null,null,null,null,null,null,null,null,null,null,"","","",{"$f":"IF(COUNTBLANK(Sociodemograficos[[#This Row],[Nombres y Apellidos]])=0,Sociodemograficos[[#This Row],[Nombres y Apellidos]],\"\")","v":""}]
["",null,null,null,null,null,null,null,null,null,null,null,null,null,null,null,null,null,null,null,null,null,null,null,null,null,null,null,null,null,null,null,null,null,null,null,null,null,null,null,null,null,null,null,null,null,null,null,"","","",{"$f":"IF(COUNTBLANK(Sociodemograficos[[#This Row],[Nombres y Apellidos]])=0,Sociodemograficos[[#This Row],[Nombres y Apellidos]],\"\")","v":""}]
["",null,null,null,null,null,null,null,null,null,null,null,null,null,null,null,null,null,null,null,null,null,null,null,null,null,null,null,null,null,null,null,null,null,null,null,null,null,null,null,null,null,null,null,null,null,null,null,"","","",{"$f":"IF(COUNTBLANK(Sociodemograficos[[#This Row],[Nombres y Apellidos]])=0,Sociodemograficos[[#This Row],[Nombres y Apellidos]],\"\")","v":""}]
["",null,null,null,null,null,null,null,null,null,null,null,null,null,null,null,null,null,null,null,null,null,null,null,null,null,null,null,null,null,null,null,null,null,null,null,null,null,null,null,null,null,null,null,null,null,null,null,"","","",{"$f":"IF(COUNTBLANK(Sociodemograficos[[#This Row],[Nombres y Apellidos]])=0,Sociodemograficos[[#This Row],[Nombres y Apellidos]],\"\")","v":""}]
["",null,null,null,null,null,null,null,null,null,null,null,null,null,null,null,null,null,null,null,null,null,null,null,null,null,null,null,null,null,null,null,null,null,null,null,null,null,null,null,null,null,null,null,null,null,null,null,"","","",{"$f":"IF(COUNTBLANK(Sociodemograficos[[#This Row],[Nombres y Apellidos]])=0,Sociodemograficos[[#This Row],[Nombres y Apellidos]],\"\")","v":""}]
["",null,null,null,null,null,null,null,null,null,null,null,null,null,null,null,null,null,null,null,null,null,null,null,null,null,null,null,null,null,null,null,null,null,null,null,null,null,null,null,null,null,null,null,null,null,null,null,"","","",{"$f":"IF(COUNTBLANK(Sociodemograficos[[#This Row],[Nombres y Apellidos]])=0,Sociodemograficos[[#This Row],[Nombres y Apellidos]],\"\")","v":""}]
["",null,null,null,null,null,null,null,null,null,null,null,null,null,null,null,null,null,null,null,null,null,null,null,null,null,null,null,null,null,null,null,null,null,null,null,null,null,null,null,null,null,null,null,null,null,null,null,"","","",{"$f":"IF(COUNTBLANK(Sociodemograficos[[#This Row],[Nombres y Apellidos]])=0,Sociodemograficos[[#This Row],[Nombres y Apellidos]],\"\")","v":""}]
["",null,null,null,null,null,null,null,null,null,null,null,null,null,null,null,null,null,null,null,null,null,null,null,null,null,null,null,null,null,null,null,null,null,null,null,null,null,null,null,null,null,null,null,null,null,null,null,"","","",{"$f":"IF(COUNTBLANK(Sociodemograficos[[#This Row],[Nombres y Apellidos]])=0,Sociodemograficos[[#This Row],[Nombres y Apellidos]],\"\")","v":""}]
["",null,null,null,null,null,null,null,null,null,null,null,null,null,null,null,null,null,null,null,null,null,null,null,null,null,null,null,null,null,null,null,null,null,null,null,null,null,null,null,null,null,null,null,null,null,null,null,"","","",{"$f":"IF(COUNTBLANK(Sociodemograficos[[#This Row],[Nombres y Apellidos]])=0,Sociodemograficos[[#This Row],[Nombres y Apellidos]],\"\")","v":""}]
["",null,null,null,null,null,null,null,null,null,null,null,null,null,null,null,null,null,null,null,null,null,null,null,null,null,null,null,null,null,null,null,null,null,null,null,null,null,null,null,null,null,null,null,null,null,null,null,"","","",{"$f":"IF(COUNTBLANK(Sociodemograficos[[#This Row],[Nombres y Apellidos]])=0,Sociodemograficos[[#This Row],[Nombres y Apellidos]],\"\")","v":""}]
["",null,null,null,null,null,null,null,null,null,null,null,null,null,null,null,null,null,null,null,null,null,null,null,null,null,null,null,null,null,null,null,null,null,null,null,null,null,null,null,null,null,null,null,null,null,null,null,"","","",{"$f":"IF(COUNTBLANK(Sociodemograficos[[#This Row],[Nombres y Apellidos]])=0,Sociodemograficos[[#This Row],[Nombres y Apellidos]],\"\")","v":""}]
["",null,null,null,null,null,null,null,null,null,null,null,null,null,null,null,null,null,null,null,null,null,null,null,null,null,null,null,null,null,null,null,null,null,null,null,null,null,null,null,null,null,null,null,null,null,null,null,"","","",{"$f":"IF(COUNTBLANK(Sociodemograficos[[#This Row],[Nombres y Apellidos]])=0,Sociodemograficos[[#This Row],[Nombres y Apellidos]],\"\")","v":""}]
["",null,null,null,null,null,null,null,null,null,null,null,null,null,null,null,null,null,null,null,null,null,null,null,null,null,null,null,null,null,null,null,null,null,null,null,null,null,null,null,null,null,null,null,null,null,null,null,"","","",{"$f":"IF(COUNTBLANK(Sociodemograficos[[#This Row],[Nombres y Apellidos]])=0,Sociodemograficos[[#This Row],[Nombres y Apellidos]],\"\")","v":""}]
["",null,null,null,null,null,null,null,null,null,null,null,null,null,null,null,null,null,null,null,null,null,null,null,null,null,null,null,null,null,null,null,null,null,null,null,null,null,null,null,null,null,null,null,null,null,null,null,"","","",{"$f":"IF(COUNTBLANK(Sociodemograficos[[#This Row],[Nombres y Apellidos]])=0,Sociodemograficos[[#This Row],[Nombres y Apellidos]],\"\")","v":""}]
["",null,null,null,null,null,null,null,null,null,null,null,null,null,null,null,null,null,null,null,null,null,null,null,null,null,null,null,null,null,null,null,null,null,null,null,null,null,null,null,null,null,null,null,null,null,null,null,"","","",{"$f":"IF(COUNTBLANK(Sociodemograficos[[#This Row],[Nombres y Apellidos]])=0,Sociodemograficos[[#This Row],[Nombres y Apellidos]],\"\")","v":""}]
["",null,null,null,null,null,null,null,null,null,null,null,null,null,null,null,null,null,null,null,null,null,null,null,null,null,null,null,null,null,null,null,null,null,null,null,null,null,null,null,null,null,null,null,null,null,null,null,"","","",{"$f":"IF(COUNTBLANK(Sociodemograficos[[#This Row],[Nombres y Apellidos]])=0,Sociodemograficos[[#This Row],[Nombres y Apellidos]],\"\")","v":""}]
["",null,null,null,null,null,null,null,null,null,null,null,null,null,null,null,null,null,null,null,null,null,null,null,null,null,null,null,null,null,null,null,null,null,null,null,null,null,null,null,null,null,null,null,null,null,null,null,"","","",{"$f":"IF(COUNTBLANK(Sociodemograficos[[#This Row],[Nombres y Apellidos]])=0,Sociodemograficos[[#This Row],[Nombres y Apellidos]],\"\")","v":""}]
["",null,null,null,null,null,null,null,null,null,null,null,null,null,null,null,null,null,null,null,null,null,null,null,null,null,null,null,null,null,null,null,null,null,null,null,null,null,null,null,null,null,null,null,null,null,null,null,"","","",{"$f":"IF(COUNTBLANK(Sociodemograficos[[#This Row],[Nombres y Apellidos]])=0,Sociodemograficos[[#This Row],[Nombres y Apellidos]],\"\")","v":""}]
["",null,null,null,null,null,null,null,null,null,null,null,null,null,null,null,null,null,null,null,null,null,null,null,null,null,null,null,null,null,null,null,null,null,null,null,null,null,null,null,null,null,null,null,null,null,null,null,"","","",{"$f":"IF(COUNTBLANK(Sociodemograficos[[#This Row],[Nombres y Apellidos]])=0,Sociodemograficos[[#This Row],[Nombres y Apellidos]],\"\")","v":""}]
["",null,null,null,null,null,null,null,null,null,null,null,null,null,null,null,null,null,null,null,null,null,null,null,null,null,null,null,null,null,null,null,null,null,null,null,null,null,null,null,null,null,null,null,null,null,null,null,"","","",{"$f":"IF(COUNTBLANK(Sociodemograficos[[#This Row],[Nombres y Apellidos]])=0,Sociodemograficos[[#This Row],[Nombres y Apellidos]],\"\")","v":""}]
["",null,null,null,null,null,null,null,null,null,null,null,null,null,null,null,null,null,null,null,null,null,null,null,null,null,null,null,null,null,null,null,null,null,null,null,null,null,null,null,null,null,null,null,null,null,null,null,"","","",{"$f":"IF(COUNTBLANK(Sociodemograficos[[#This Row],[Nombres y Apellidos]])=0,Sociodemograficos[[#This Row],[Nombres y Apellidos]],\"\")","v":""}]
["",null,null,null,null,null,null,null,null,null,null,null,null,null,null,null,null,null,null,null,null,null,null,null,null,null,null,null,null,null,null,null,null,null,null,null,null,null,null,null,null,null,null,null,null,null,null,null,"","","",{"$f":"IF(COUNTBLANK(Sociodemograficos[[#This Row],[Nombres y Apellidos]])=0,Sociodemograficos[[#This Row],[Nombres y Apellidos]],\"\")","v":""}]
["",null,null,null,null,null,null,null,null,null,null,null,null,null,null,null,null,null,null,null,null,null,null,null,null,null,null,null,null,null,null,null,null,null,null,null,null,null,null,null,null,null,null,null,null,null,null,null,"","","",{"$f":"IF(COUNTBLANK(Sociodemograficos[[#This Row],[Nombres y Apellidos]])=0,Sociodemograficos[[#This Row],[Nombres y Apellidos]],\"\")","v":""}]
["",null,null,null,null,null,null,null,null,null,null,null,null,null,null,null,null,null,null,null,null,null,null,null,null,null,null,null,null,null,null,null,null,null,null,null,null,null,null,null,null,null,null,null,null,null,null,null,"","","",{"$f":"IF(COUNTBLANK(Sociodemograficos[[#This Row],[Nombres y Apellidos]])=0,Sociodemograficos[[#This Row],[Nombres y Apellidos]],\"\")","v":""}]
["",null,null,null,null,null,null,null,null,null,null,null,null,null,null,null,null,null,null,null,null,null,null,null,null,null,null,null,null,null,null,null,null,null,null,null,null,null,null,null,null,null,null,null,null,null,null,null,"","","",{"$f":"IF(COUNTBLANK(Sociodemograficos[[#This Row],[Nombres y Apellidos]])=0,Sociodemograficos[[#This Row],[Nombres y Apellidos]],\"\")","v":""}]
["",null,null,null,null,null,null,null,null,null,null,null,null,null,null,null,null,null,null,null,null,null,null,null,null,null,null,null,null,null,null,null,null,null,null,null,null,null,null,null,null,null,null,null,null,null,null,null,"","","",{"$f":"IF(COUNTBLANK(Sociodemograficos[[#This Row],[Nombres y Apellidos]])=0,Sociodemograficos[[#This Row],[Nombres y Apellidos]],\"\")","v":""}]
["",null,null,null,null,null,null,null,null,null,null,null,null,null,null,null,null,null,null,null,null,null,null,null,null,null,null,null,null,null,null,null,null,null,null,null,null,null,null,null,null,null,null,null,null,null,null,null,"","","",{"$f":"IF(COUNTBLANK(Sociodemograficos[[#This Row],[Nombres y Apellidos]])=0,Sociodemograficos[[#This Row],[Nombres y Apellidos]],\"\")","v":""}]
["",null,null,null,null,null,null,null,null,null,null,null,null,null,null,null,null,null,null,null,null,null,null,null,null,null,null,null,null,null,null,null,null,null,null,null,null,null,null,null,null,null,null,null,null,null,null,null,"","","",{"$f":"IF(COUNTBLANK(Sociodemograficos[[#This Row],[Nombres y Apellidos]])=0,Sociodemograficos[[#This Row],[Nombres y Apellidos]],\"\")","v":""}]
["",null,null,null,null,null,null,null,null,null,null,null,null,null,null,null,null,null,null,null,null,null,null,null,null,null,null,null,null,null,null,null,null,null,null,null,null,null,null,null,null,null,null,null,null,null,null,null,"","","",{"$f":"IF(COUNTBLANK(Sociodemograficos[[#This Row],[Nombres y Apellidos]])=0,Sociodemograficos[[#This Row],[Nombres y Apellidos]],\"\")","v":""}]
["",null,null,null,null,null,null,null,null,null,null,null,null,null,null,null,null,null,null,null,null,null,null,null,null,null,null,null,null,null,null,null,null,null,null,null,null,null,null,null,null,null,null,null,null,null,null,null,"","","",{"$f":"IF(COUNTBLANK(Sociodemograficos[[#This Row],[Nombres y Apellidos]])=0,Sociodemograficos[[#This Row],[Nombres y Apellidos]],\"\")","v":""}]
["",null,null,null,null,null,null,null,null,null,null,null,null,null,null,null,null,null,null,null,null,null,null,null,null,null,null,null,null,null,null,null,null,null,null,null,null,null,null,null,null,null,null,null,null,null,null,null,"","","",{"$f":"IF(COUNTBLANK(Sociodemograficos[[#This Row],[Nombres y Apellidos]])=0,Sociodemograficos[[#This Row],[Nombres y Apellidos]],\"\")","v":""}]
["",null,null,null,null,null,null,null,null,null,null,null,null,null,null,null,null,null,null,null,null,null,null,null,null,null,null,null,null,null,null,null,null,null,null,null,null,null,null,null,null,null,null,null,null,null,null,null,"","","",{"$f":"IF(COUNTBLANK(Sociodemograficos[[#This Row],[Nombres y Apellidos]])=0,Sociodemograficos[[#This Row],[Nombres y Apellidos]],\"\")","v":""}]
["",null,null,null,null,null,null,null,null,null,null,null,null,null,null,null,null,null,null,null,null,null,null,null,null,null,null,null,null,null,null,null,null,null,null,null,null,null,null,null,null,null,null,null,null,null,null,null,"","","",{"$f":"IF(COUNTBLANK(Sociodemograficos[[#This Row],[Nombres y Apellidos]])=0,Sociodemograficos[[#This Row],[Nombres y Apellidos]],\"\")","v":""}]
["",null,null,null,null,null,null,null,null,null,null,null,null,null,null,null,null,null,null,null,null,null,null,null,null,null,null,null,null,null,null,null,null,null,null,null,null,null,null,null,null,null,null,null,null,null,null,null,"","","",{"$f":"IF(COUNTBLANK(Sociodemograficos[[#This Row],[Nombres y Apellidos]])=0,Sociodemograficos[[#This Row],[Nombres y Apellidos]],\"\")","v":""}]
["",null,null,null,null,null,null,null,null,null,null,null,null,null,null,null,null,null,null,null,null,null,null,null,null,null,null,null,null,null,null,null,null,null,null,null,null,null,null,null,null,null,null,null,null,null,null,null,"","","",{"$f":"IF(COUNTBLANK(Sociodemograficos[[#This Row],[Nombres y Apellidos]])=0,Sociodemograficos[[#This Row],[Nombres y Apellidos]],\"\")","v":""}]
["",null,null,null,null,null,null,null,null,null,null,null,null,null,null,null,null,null,null,null,null,null,null,null,null,null,null,null,null,null,null,null,null,null,null,null,null,null,null,null,null,null,null,null,null,null,null,null,"","","",{"$f":"IF(COUNTBLANK(Sociodemograficos[[#This Row],[Nombres y Apellidos]])=0,Sociodemograficos[[#This Row],[Nombres y Apellidos]],\"\")","v":""}]
["",null,null,null,null,null,null,null,null,null,null,null,null,null,null,null,null,null,null,null,null,null,null,null,null,null,null,null,null,null,null,null,null,null,null,null,null,null,null,null,null,null,null,null,null,null,null,null,"","","",{"$f":"IF(COUNTBLANK(Sociodemograficos[[#This Row],[Nombres y Apellidos]])=0,Sociodemograficos[[#This Row],[Nombres y Apellidos]],\"\")","v":""}]
["",null,null,null,null,null,null,null,null,null,null,null,null,null,null,null,null,null,null,null,null,null,null,null,null,null,null,null,null,null,null,null,null,null,null,null,null,null,null,null,null,null,null,null,null,null,null,null,"","","",{"$f":"IF(COUNTBLANK(Sociodemograficos[[#This Row],[Nombres y Apellidos]])=0,Sociodemograficos[[#This Row],[Nombres y Apellidos]],\"\")","v":""}]
["",null,null,null,null,null,null,null,null,null,null,null,null,null,null,null,null,null,null,null,null,null,null,null,null,null,null,null,null,null,null,null,null,null,null,null,null,null,null,null,null,null,null,null,null,null,null,null,"","","",{"$f":"IF(COUNTBLANK(Sociodemograficos[[#This Row],[Nombres y Apellidos]])=0,Sociodemograficos[[#This Row],[Nombres y Apellidos]],\"\")","v":""}]
["",null,null,null,null,null,null,null,null,null,null,null,null,null,null,null,null,null,null,null,null,null,null,null,null,null,null,null,null,null,null,null,null,null,null,null,null,null,null,null,null,null,null,null,null,null,null,null,"","","",{"$f":"IF(COUNTBLANK(Sociodemograficos[[#This Row],[Nombres y Apellidos]])=0,Sociodemograficos[[#This Row],[Nombres y Apellidos]],\"\")","v":""}]
["",null,null,null,null,null,null,null,null,null,null,null,null,null,null,null,null,null,null,null,null,null,null,null,null,null,null,null,null,null,null,null,null,null,null,null,null,null,null,null,null,null,null,null,null,null,null,null,"","","",{"$f":"IF(COUNTBLANK(Sociodemograficos[[#This Row],[Nombres y Apellidos]])=0,Sociodemograficos[[#This Row],[Nombres y Apellidos]],\"\")","v":""}]
["",null,null,null,null,null,null,null,null,null,null,null,null,null,null,null,null,null,null,null,null,null,null,null,null,null,null,null,null,null,null,null,null,null,null,null,null,null,null,null,null,null,null,null,null,null,null,null,"","","",{"$f":"IF(COUNTBLANK(Sociodemograficos[[#This Row],[Nombres y Apellidos]])=0,Sociodemograficos[[#This Row],[Nombres y Apellidos]],\"\")","v":""}]
["",null,null,null,null,null,null,null,null,null,null,null,null,null,null,null,null,null,null,null,null,null,null,null,null,null,null,null,null,null,null,null,null,null,null,null,null,null,null,null,null,null,null,null,null,null,null,null,"","","",{"$f":"IF(COUNTBLANK(Sociodemograficos[[#This Row],[Nombres y Apellidos]])=0,Sociodemograficos[[#This Row],[Nombres y Apellidos]],\"\")","v":""}]
["",null,null,null,null,null,null,null,null,null,null,null,null,null,null,null,null,null,null,null,null,null,null,null,null,null,null,null,null,null,null,null,null,null,null,null,null,null,null,null,null,null,null,null,null,null,null,null,"","","",{"$f":"IF(COUNTBLANK(Sociodemograficos[[#This Row],[Nombres y Apellidos]])=0,Sociodemograficos[[#This Row],[Nombres y Apellidos]],\"\")","v":""}]
["",null,null,null,null,null,null,null,null,null,null,null,null,null,null,null,null,null,null,null,null,null,null,null,null,null,null,null,null,null,null,null,null,null,null,null,null,null,null,null,null,null,null,null,null,null,null,null,"","","",{"$f":"IF(COUNTBLANK(Sociodemograficos[[#This Row],[Nombres y Apellidos]])=0,Sociodemograficos[[#This Row],[Nombres y Apellidos]],\"\")","v":""}]
["",null,null,null,null,null,null,null,null,null,null,null,null,null,null,null,null,null,null,null,null,null,null,null,null,null,null,null,null,null,null,null,null,null,null,null,null,null,null,null,null,null,null,null,null,null,null,null,"","","",{"$f":"IF(COUNTBLANK(Sociodemograficos[[#This Row],[Nombres y Apellidos]])=0,Sociodemograficos[[#This Row],[Nombres y Apellidos]],\"\")","v":""}]
["",null,null,null,null,null,null,null,null,null,null,null,null,null,null,null,null,null,null,null,null,null,null,null,null,null,null,null,null,null,null,null,null,null,null,null,null,null,null,null,null,null,null,null,null,null,null,null,"","","",{"$f":"IF(COUNTBLANK(Sociodemograficos[[#This Row],[Nombres y Apellidos]])=0,Sociodemograficos[[#This Row],[Nombres y Apellidos]],\"\")","v":""}]
["",null,null,null,null,null,null,null,null,null,null,null,null,null,null,null,null,null,null,null,null,null,null,null,null,null,null,null,null,null,null,null,null,null,null,null,null,null,null,null,null,null,null,null,null,null,null,null,"","","",{"$f":"IF(COUNTBLANK(Sociodemograficos[[#This Row],[Nombres y Apellidos]])=0,Sociodemograficos[[#This Row],[Nombres y Apellidos]],\"\")","v":""}]
["",null,null,null,null,null,null,null,null,null,null,null,null,null,null,null,null,null,null,null,null,null,null,null,null,null,null,null,null,null,null,null,null,null,null,null,null,null,null,null,null,null,null,null,null,null,null,null,"","","",{"$f":"IF(COUNTBLANK(Sociodemograficos[[#This Row],[Nombres y Apellidos]])=0,Sociodemograficos[[#This Row],[Nombres y Apellidos]],\"\")","v":""}]
["",null,null,null,null,null,null,null,null,null,null,null,null,null,null,null,null,null,null,null,null,null,null,null,null,null,null,null,null,null,null,null,null,null,null,null,null,null,null,null,null,null,null,null,null,null,null,null,"","","",{"$f":"IF(COUNTBLANK(Sociodemograficos[[#This Row],[Nombres y Apellidos]])=0,Sociodemograficos[[#This Row],[Nombres y Apellidos]],\"\")","v":""}]
["",null,null,null,null,null,null,null,null,null,null,null,null,null,null,null,null,null,null,null,null,null,null,null,null,null,null,null,null,null,null,null,null,null,null,null,null,null,null,null,null,null,null,null,null,null,null,null,"","","",{"$f":"IF(COUNTBLANK(Sociodemograficos[[#This Row],[Nombres y Apellidos]])=0,Sociodemograficos[[#This Row],[Nombres y Apellidos]],\"\")","v":""}]
["",null,null,null,null,null,null,null,null,null,null,null,null,null,null,null,null,null,null,null,null,null,null,null,null,null,null,null,null,null,null,null,null,null,null,null,null,null,null,null,null,null,null,null,null,null,null,null,"","","",{"$f":"IF(COUNTBLANK(Sociodemograficos[[#This Row],[Nombres y Apellidos]])=0,Sociodemograficos[[#This Row],[Nombres y Apellidos]],\"\")","v":""}]
["",null,null,null,null,null,null,null,null,null,null,null,null,null,null,null,null,null,null,null,null,null,null,null,null,null,null,null,null,null,null,null,null,null,null,null,null,null,null,null,null,null,null,null,null,null,null,null,"","","",{"$f":"IF(COUNTBLANK(Sociodemograficos[[#This Row],[Nombres y Apellidos]])=0,Sociodemograficos[[#This Row],[Nombres y Apellidos]],\"\")","v":""}]
["",null,null,null,null,null,null,null,null,null,null,null,null,null,null,null,null,null,null,null,null,null,null,null,null,null,null,null,null,null,null,null,null,null,null,null,null,null,null,null,null,null,null,null,null,null,null,null,"","","",{"$f":"IF(COUNTBLANK(Sociodemograficos[[#This Row],[Nombres y Apellidos]])=0,Sociodemograficos[[#This Row],[Nombres y Apellidos]],\"\")","v":""}]
["",null,null,null,null,null,null,null,null,null,null,null,null,null,null,null,null,null,null,null,null,null,null,null,null,null,null,null,null,null,null,null,null,null,null,null,null,null,null,null,null,null,null,null,null,null,null,null,"","","",{"$f":"IF(COUNTBLANK(Sociodemograficos[[#This Row],[Nombres y Apellidos]])=0,Sociodemograficos[[#This Row],[Nombres y Apellidos]],\"\")","v":""}]
["",null,null,null,null,null,null,null,null,null,null,null,null,null,null,null,null,null,null,null,null,null,null,null,null,null,null,null,null,null,null,null,null,null,null,null,null,null,null,null,null,null,null,null,null,null,null,null,"","","",{"$f":"IF(COUNTBLANK(Sociodemograficos[[#This Row],[Nombres y Apellidos]])=0,Sociodemograficos[[#This Row],[Nombres y Apellidos]],\"\")","v":""}]
["",null,null,null,null,null,null,null,null,null,null,null,null,null,null,null,null,null,null,null,null,null,null,null,null,null,null,null,null,null,null,null,null,null,null,null,null,null,null,null,null,null,null,null,null,null,null,null,"","","",{"$f":"IF(COUNTBLANK(Sociodemograficos[[#This Row],[Nombres y Apellidos]])=0,Sociodemograficos[[#This Row],[Nombres y Apellidos]],\"\")","v":""}]
["",null,null,null,null,null,null,null,null,null,null,null,null,null,null,null,null,null,null,null,null,null,null,null,null,null,null,null,null,null,null,null,null,null,null,null,null,null,null,null,null,null,null,null,null,null,null,null,"","","",{"$f":"IF(COUNTBLANK(Sociodemograficos[[#This Row],[Nombres y Apellidos]])=0,Sociodemograficos[[#This Row],[Nombres y Apellidos]],\"\")","v":""}]
["",null,null,null,null,null,null,null,null,null,null,null,null,null,null,null,null,null,null,null,null,null,null,null,null,null,null,null,null,null,null,null,null,null,null,null,null,null,null,null,null,null,null,null,null,null,null,null,"","","",{"$f":"IF(COUNTBLANK(Sociodemograficos[[#This Row],[Nombres y Apellidos]])=0,Sociodemograficos[[#This Row],[Nombres y Apellidos]],\"\")","v":""}]
["",null,null,null,null,null,null,null,null,null,null,null,null,null,null,null,null,null,null,null,null,null,null,null,null,null,null,null,null,null,null,null,null,null,null,null,null,null,null,null,null,null,null,null,null,null,null,null,"","","",{"$f":"IF(COUNTBLANK(Sociodemograficos[[#This Row],[Nombres y Apellidos]])=0,Sociodemograficos[[#This Row],[Nombres y Apellidos]],\"\")","v":""}]
["",null,null,null,null,null,null,null,null,null,null,null,null,null,null,null,null,null,null,null,null,null,null,null,null,null,null,null,null,null,null,null,null,null,null,null,null,null,null,null,null,null,null,null,null,null,null,null,"","","",{"$f":"IF(COUNTBLANK(Sociodemograficos[[#This Row],[Nombres y Apellidos]])=0,Sociodemograficos[[#This Row],[Nombres y Apellidos]],\"\")","v":""}]
["",null,null,null,null,null,null,null,null,null,null,null,null,null,null,null,null,null,null,null,null,null,null,null,null,null,null,null,null,null,null,null,null,null,null,null,null,null,null,null,null,null,null,null,null,null,null,null,"","","",{"$f":"IF(COUNTBLANK(Sociodemograficos[[#This Row],[Nombres y Apellidos]])=0,Sociodemograficos[[#This Row],[Nombres y Apellidos]],\"\")","v":""}]
["",null,null,null,null,null,null,null,null,null,null,null,null,null,null,null,null,null,null,null,null,null,null,null,null,null,null,null,null,null,null,null,null,null,null,null,null,null,null,null,null,null,null,null,null,null,null,null,"","","",{"$f":"IF(COUNTBLANK(Sociodemograficos[[#This Row],[Nombres y Apellidos]])=0,Sociodemograficos[[#This Row],[Nombres y Apellidos]],\"\")","v":""}]
["",null,null,null,null,null,null,null,null,null,null,null,null,null,null,null,null,null,null,null,null,null,null,null,null,null,null,null,null,null,null,null,null,null,null,null,null,null,null,null,null,null,null,null,null,null,null,null,"","","",{"$f":"IF(COUNTBLANK(Sociodemograficos[[#This Row],[Nombres y Apellidos]])=0,Sociodemograficos[[#This Row],[Nombres y Apellidos]],\"\")","v":""}]
["",null,null,null,null,null,null,null,null,null,null,null,null,null,null,null,null,null,null,null,null,null,null,null,null,null,null,null,null,null,null,null,null,null,null,null,null,null,null,null,null,null,null,null,null,null,null,null,"","","",{"$f":"IF(COUNTBLANK(Sociodemograficos[[#This Row],[Nombres y Apellidos]])=0,Sociodemograficos[[#This Row],[Nombres y Apellidos]],\"\")","v":""}]
["",null,null,null,null,null,null,null,null,null,null,null,null,null,null,null,null,null,null,null,null,null,null,null,null,null,null,null,null,null,null,null,null,null,null,null,null,null,null,null,null,null,null,null,null,null,null,null,"","","",{"$f":"IF(COUNTBLANK(Sociodemograficos[[#This Row],[Nombres y Apellidos]])=0,Sociodemograficos[[#This Row],[Nombres y Apellidos]],\"\")","v":""}]
["",null,null,null,null,null,null,null,null,null,null,null,null,null,null,null,null,null,null,null,null,null,null,null,null,null,null,null,null,null,null,null,null,null,null,null,null,null,null,null,null,null,null,null,null,null,null,null,"","","",{"$f":"IF(COUNTBLANK(Sociodemograficos[[#This Row],[Nombres y Apellidos]])=0,Sociodemograficos[[#This Row],[Nombres y Apellidos]],\"\")","v":""}]
["",null,null,null,null,null,null,null,null,null,null,null,null,null,null,null,null,null,null,null,null,null,null,null,null,null,null,null,null,null,null,null,null,null,null,null,null,null,null,null,null,null,null,null,null,null,null,null,"","","",{"$f":"IF(COUNTBLANK(Sociodemograficos[[#This Row],[Nombres y Apellidos]])=0,Sociodemograficos[[#This Row],[Nombres y Apellidos]],\"\")","v":""}]
["",null,null,null,null,null,null,null,null,null,null,null,null,null,null,null,null,null,null,null,null,null,null,null,null,null,null,null,null,null,null,null,null,null,null,null,null,null,null,null,null,null,null,null,null,null,null,null,"","","",{"$f":"IF(COUNTBLANK(Sociodemograficos[[#This Row],[Nombres y Apellidos]])=0,Sociodemograficos[[#This Row],[Nombres y Apellidos]],\"\")","v":""}]
["",null,null,null,null,null,null,null,null,null,null,null,null,null,null,null,null,null,null,null,null,null,null,null,null,null,null,null,null,null,null,null,null,null,null,null,null,null,null,null,null,null,null,null,null,null,null,null,"","","",{"$f":"IF(COUNTBLANK(Sociodemograficos[[#This Row],[Nombres y Apellidos]])=0,Sociodemograficos[[#This Row],[Nombres y Apellidos]],\"\")","v":""}]
["",null,null,null,null,null,null,null,null,null,null,null,null,null,null,null,null,null,null,null,null,null,null,null,null,null,null,null,null,null,null,null,null,null,null,null,null,null,null,null,null,null,null,null,null,null,null,null,"","","",{"$f":"IF(COUNTBLANK(Sociodemograficos[[#This Row],[Nombres y Apellidos]])=0,Sociodemograficos[[#This Row],[Nombres y Apellidos]],\"\")","v":""}]
["",null,null,null,null,null,null,null,null,null,null,null,null,null,null,null,null,null,null,null,null,null,null,null,null,null,null,null,null,null,null,null,null,null,null,null,null,null,null,null,null,null,null,null,null,null,null,null,"","","",{"$f":"IF(COUNTBLANK(Sociodemograficos[[#This Row],[Nombres y Apellidos]])=0,Sociodemograficos[[#This Row],[Nombres y Apellidos]],\"\")","v":""}]
["",null,null,null,null,null,null,null,null,null,null,null,null,null,null,null,null,null,null,null,null,null,null,null,null,null,null,null,null,null,null,null,null,null,null,null,null,null,null,null,null,null,null,null,null,null,null,null,"","","",{"$f":"IF(COUNTBLANK(Sociodemograficos[[#This Row],[Nombres y Apellidos]])=0,Sociodemograficos[[#This Row],[Nombres y Apellidos]],\"\")","v":""}]
["",null,null,null,null,null,null,null,null,null,null,null,null,null,null,null,null,null,null,null,null,null,null,null,null,null,null,null,null,null,null,null,null,null,null,null,null,null,null,null,null,null,null,null,null,null,null,null,"","","",{"$f":"IF(COUNTBLANK(Sociodemograficos[[#This Row],[Nombres y Apellidos]])=0,Sociodemograficos[[#This Row],[Nombres y Apellidos]],\"\")","v":""}]
["",null,null,null,null,null,null,null,null,null,null,null,null,null,null,null,null,null,null,null,null,null,null,null,null,null,null,null,null,null,null,null,null,null,null,null,null,null,null,null,null,null,null,null,null,null,null,null,"","","",{"$f":"IF(COUNTBLANK(Sociodemograficos[[#This Row],[Nombres y Apellidos]])=0,Sociodemograficos[[#This Row],[Nombres y Apellidos]],\"\")","v":""}]
["",null,null,null,null,null,null,null,null,null,null,null,null,null,null,null,null,null,null,null,null,null,null,null,null,null,null,null,null,null,null,null,null,null,null,null,null,null,null,null,null,null,null,null,null,null,null,null,"","","",{"$f":"IF(COUNTBLANK(Sociodemograficos[[#This Row],[Nombres y Apellidos]])=0,Sociodemograficos[[#This Row],[Nombres y Apellidos]],\"\")","v":""}]
["",null,null,null,null,null,null,null,null,null,null,null,null,null,null,null,null,null,null,null,null,null,null,null,null,null,null,null,null,null,null,null,null,null,null,null,null,null,null,null,null,null,null,null,null,null,null,null,"","","",{"$f":"IF(COUNTBLANK(Sociodemograficos[[#This Row],[Nombres y Apellidos]])=0,Sociodemograficos[[#This Row],[Nombres y Apellidos]],\"\")","v":""}]
["",null,null,null,null,null,null,null,null,null,null,null,null,null,null,null,null,null,null,null,null,null,null,null,null,null,null,null,null,null,null,null,null,null,null,null,null,null,null,null,null,null,null,null,null,null,null,null,"","","",{"$f":"IF(COUNTBLANK(Sociodemograficos[[#This Row],[Nombres y Apellidos]])=0,Sociodemograficos[[#This Row],[Nombres y Apellidos]],\"\")","v":""}]
["",null,null,null,null,null,null,null,null,null,null,null,null,null,null,null,null,null,null,null,null,null,null,null,null,null,null,null,null,null,null,null,null,null,null,null,null,null,null,null,null,null,null,null,null,null,null,null,"","","",{"$f":"IF(COUNTBLANK(Sociodemograficos[[#This Row],[Nombres y Apellidos]])=0,Sociodemograficos[[#This Row],[Nombres y Apellidos]],\"\")","v":""}]
["",null,null,null,null,null,null,null,null,null,null,null,null,null,null,null,null,null,null,null,null,null,null,null,null,null,null,null,null,null,null,null,null,null,null,null,null,null,null,null,null,null,null,null,null,null,null,null,"","","",{"$f":"IF(COUNTBLANK(Sociodemograficos[[#This Row],[Nombres y Apellidos]])=0,Sociodemograficos[[#This Row],[Nombres y Apellidos]],\"\")","v":""}]
["",null,null,null,null,null,null,null,null,null,null,null,null,null,null,null,null,null,null,null,null,null,null,null,null,null,null,null,null,null,null,null,null,null,null,null,null,null,null,null,null,null,null,null,null,null,null,null,"","","",{"$f":"IF(COUNTBLANK(Sociodemograficos[[#This Row],[Nombres y Apellidos]])=0,Sociodemograficos[[#This Row],[Nombres y Apellidos]],\"\")","v":""}]
["",null,null,null,null,null,null,null,null,null,null,null,null,null,null,null,null,null,null,null,null,null,null,null,null,null,null,null,null,null,null,null,null,null,null,null,null,null,null,null,null,null,null,null,null,null,null,null,"","","",{"$f":"IF(COUNTBLANK(Sociodemograficos[[#This Row],[Nombres y Apellidos]])=0,Sociodemograficos[[#This Row],[Nombres y Apellidos]],\"\")","v":""}]
["",null,null,null,null,null,null,null,null,null,null,null,null,null,null,null,null,null,null,null,null,null,null,null,null,null,null,null,null,null,null,null,null,null,null,null,null,null,null,null,null,null,null,null,null,null,null,null,"","","",{"$f":"IF(COUNTBLANK(Sociodemograficos[[#This Row],[Nombres y Apellidos]])=0,Sociodemograficos[[#This Row],[Nombres y Apellidos]],\"\")","v":""}]
["",null,null,null,null,null,null,null,null,null,null,null,null,null,null,null,null,null,null,null,null,null,null,null,null,null,null,null,null,null,null,null,null,null,null,null,null,null,null,null,null,null,null,null,null,null,null,null,"","","",{"$f":"IF(COUNTBLANK(Sociodemograficos[[#This Row],[Nombres y Apellidos]])=0,Sociodemograficos[[#This Row],[Nombres y Apellidos]],\"\")","v":""}]
["",null,null,null,null,null,null,null,null,null,null,null,null,null,null,null,null,null,null,null,null,null,null,null,null,null,null,null,null,null,null,null,null,null,null,null,null,null,null,null,null,null,null,null,null,null,null,null,"","","",{"$f":"IF(COUNTBLANK(Sociodemograficos[[#This Row],[Nombres y Apellidos]])=0,Sociodemograficos[[#This Row],[Nombres y Apellidos]],\"\")","v":""}]
["",null,null,null,null,null,null,null,null,null,null,null,null,null,null,null,null,null,null,null,null,null,null,null,null,null,null,null,null,null,null,null,null,null,null,null,null,null,null,null,null,null,null,null,null,null,null,null,"","","",{"$f":"IF(COUNTBLANK(Sociodemograficos[[#This Row],[Nombres y Apellidos]])=0,Sociodemograficos[[#This Row],[Nombres y Apellidos]],\"\")","v":""}]
["",null,null,null,null,null,null,null,null,null,null,null,null,null,null,null,null,null,null,null,null,null,null,null,null,null,null,null,null,null,null,null,null,null,null,null,null,null,null,null,null,null,null,null,null,null,null,null,"","","",{"$f":"IF(COUNTBLANK(Sociodemograficos[[#This Row],[Nombres y Apellidos]])=0,Sociodemograficos[[#This Row],[Nombres y Apellidos]],\"\")","v":""}]
["",null,null,null,null,null,null,null,null,null,null,null,null,null,null,null,null,null,null,null,null,null,null,null,null,null,null,null,null,null,null,null,null,null,null,null,null,null,null,null,null,null,null,null,null,null,null,null,"","","",{"$f":"IF(COUNTBLANK(Sociodemograficos[[#This Row],[Nombres y Apellidos]])=0,Sociodemograficos[[#This Row],[Nombres y Apellidos]],\"\")","v":""}]
["",null,null,null,null,null,null,null,null,null,null,null,null,null,null,null,null,null,null,null,null,null,null,null,null,null,null,null,null,null,null,null,null,null,null,null,null,null,null,null,null,null,null,null,null,null,null,null,"","","",{"$f":"IF(COUNTBLANK(Sociodemograficos[[#This Row],[Nombres y Apellidos]])=0,Sociodemograficos[[#This Row],[Nombres y Apellidos]],\"\")","v":""}]
["",null,null,null,null,null,null,null,null,null,null,null,null,null,null,null,null,null,null,null,null,null,null,null,null,null,null,null,null,null,null,null,null,null,null,null,null,null,null,null,null,null,null,null,null,null,null,null,"","","",{"$f":"IF(COUNTBLANK(Sociodemograficos[[#This Row],[Nombres y Apellidos]])=0,Sociodemograficos[[#This Row],[Nombres y Apellidos]],\"\")","v":""}]
["",null,null,null,null,null,null,null,null,null,null,null,null,null,null,null,null,null,null,null,null,null,null,null,null,null,null,null,null,null,null,null,null,null,null,null,null,null,null,null,null,null,null,null,null,null,null,null,"","","",{"$f":"IF(COUNTBLANK(Sociodemograficos[[#This Row],[Nombres y Apellidos]])=0,Sociodemograficos[[#This Row],[Nombres y Apellidos]],\"\")","v":""}]
["",null,null,null,null,null,null,null,null,null,null,null,null,null,null,null,null,null,null,null,null,null,null,null,null,null,null,null,null,null,null,null,null,null,null,null,null,null,null,null,null,null,null,null,null,null,null,null,"","","",{"$f":"IF(COUNTBLANK(Sociodemograficos[[#This Row],[Nombres y Apellidos]])=0,Sociodemograficos[[#This Row],[Nombres y Apellidos]],\"\")","v":""}]
["",null,null,null,null,null,null,null,null,null,null,null,null,null,null,null,null,null,null,null,null,null,null,null,null,null,null,null,null,null,null,null,null,null,null,null,null,null,null,null,null,null,null,null,null,null,null,null,"","","",{"$f":"IF(COUNTBLANK(Sociodemograficos[[#This Row],[Nombres y Apellidos]])=0,Sociodemograficos[[#This Row],[Nombres y Apellidos]],\"\")","v":""}]
["",null,null,null,null,null,null,null,null,null,null,null,null,null,null,null,null,null,null,null,null,null,null,null,null,null,null,null,null,null,null,null,null,null,null,null,null,null,null,null,null,null,null,null,null,null,null,null,"","","",{"$f":"IF(COUNTBLANK(Sociodemograficos[[#This Row],[Nombres y Apellidos]])=0,Sociodemograficos[[#This Row],[Nombres y Apellidos]],\"\")","v":""}]
["",null,null,null,null,null,null,null,null,null,null,null,null,null,null,null,null,null,null,null,null,null,null,null,null,null,null,null,null,null,null,null,null,null,null,null,null,null,null,null,null,null,null,null,null,null,null,null,"","","",{"$f":"IF(COUNTBLANK(Sociodemograficos[[#This Row],[Nombres y Apellidos]])=0,Sociodemograficos[[#This Row],[Nombres y Apellidos]],\"\")","v":""}]
["",null,null,null,null,null,null,null,null,null,null,null,null,null,null,null,null,null,null,null,null,null,null,null,null,null,null,null,null,null,null,null,null,null,null,null,null,null,null,null,null,null,null,null,null,null,null,null,"","","",{"$f":"IF(COUNTBLANK(Sociodemograficos[[#This Row],[Nombres y Apellidos]])=0,Sociodemograficos[[#This Row],[Nombres y Apellidos]],\"\")","v":""}]
["",null,null,null,null,null,null,null,null,null,null,null,null,null,null,null,null,null,null,null,null,null,null,null,null,null,null,null,null,null,null,null,null,null,null,null,null,null,null,null,null,null,null,null,null,null,null,null,"","","",{"$f":"IF(COUNTBLANK(Sociodemograficos[[#This Row],[Nombres y Apellidos]])=0,Sociodemograficos[[#This Row],[Nombres y Apellidos]],\"\")","v":""}]
["",null,null,null,null,null,null,null,null,null,null,null,null,null,null,null,null,null,null,null,null,null,null,null,null,null,null,null,null,null,null,null,null,null,null,null,null,null,null,null,null,null,null,null,null,null,null,null,"","","",{"$f":"IF(COUNTBLANK(Sociodemograficos[[#This Row],[Nombres y Apellidos]])=0,Sociodemograficos[[#This Row],[Nombres y Apellidos]],\"\")","v":""}]
["",null,null,null,null,null,null,null,null,null,null,null,null,null,null,null,null,null,null,null,null,null,null,null,null,null,null,null,null,null,null,null,null,null,null,null,null,null,null,null,null,null,null,null,null,null,null,null,"","","",{"$f":"IF(COUNTBLANK(Sociodemograficos[[#This Row],[Nombres y Apellidos]])=0,Sociodemograficos[[#This Row],[Nombres y Apellidos]],\"\")","v":""}]
["",null,null,null,null,null,null,null,null,null,null,null,null,null,null,null,null,null,null,null,null,null,null,null,null,null,null,null,null,null,null,null,null,null,null,null,null,null,null,null,null,null,null,null,null,null,null,null,"","","",{"$f":"IF(COUNTBLANK(Sociodemograficos[[#This Row],[Nombres y Apellidos]])=0,Sociodemograficos[[#This Row],[Nombres y Apellidos]],\"\")","v":""}]
["",null,null,null,null,null,null,null,null,null,null,null,null,null,null,null,null,null,null,null,null,null,null,null,null,null,null,null,null,null,null,null,null,null,null,null,null,null,null,null,null,null,null,null,null,null,null,null,"","","",{"$f":"IF(COUNTBLANK(Sociodemograficos[[#This Row],[Nombres y Apellidos]])=0,Sociodemograficos[[#This Row],[Nombres y Apellidos]],\"\")","v":""}]
["",null,null,null,null,null,null,null,null,null,null,null,null,null,null,null,null,null,null,null,null,null,null,null,null,null,null,null,null,null,null,null,null,null,null,null,null,null,null,null,null,null,null,null,null,null,null,null,"","","",{"$f":"IF(COUNTBLANK(Sociodemograficos[[#This Row],[Nombres y Apellidos]])=0,Sociodemograficos[[#This Row],[Nombres y Apellidos]],\"\")","v":""}]
["",null,null,null,null,null,null,null,null,null,null,null,null,null,null,null,null,null,null,null,null,null,null,null,null,null,null,null,null,null,null,null,null,null,null,null,null,null,null,null,null,null,null,null,null,null,null,null,"","","",{"$f":"IF(COUNTBLANK(Sociodemograficos[[#This Row],[Nombres y Apellidos]])=0,Sociodemograficos[[#This Row],[Nombres y Apellidos]],\"\")","v":""}]
["",null,null,null,null,null,null,null,null,null,null,null,null,null,null,null,null,null,null,null,null,null,null,null,null,null,null,null,null,null,null,null,null,null,null,null,null,null,null,null,null,null,null,null,null,null,null,null,"","","",{"$f":"IF(COUNTBLANK(Sociodemograficos[[#This Row],[Nombres y Apellidos]])=0,Sociodemograficos[[#This Row],[Nombres y Apellidos]],\"\")","v":""}]
["",null,null,null,null,null,null,null,null,null,null,null,null,null,null,null,null,null,null,null,null,null,null,null,null,null,null,null,null,null,null,null,null,null,null,null,null,null,null,null,null,null,null,null,null,null,null,null,"","","",{"$f":"IF(COUNTBLANK(Sociodemograficos[[#This Row],[Nombres y Apellidos]])=0,Sociodemograficos[[#This Row],[Nombres y Apellidos]],\"\")","v":""}]
["",null,null,null,null,null,null,null,null,null,null,null,null,null,null,null,null,null,null,null,null,null,null,null,null,null,null,null,null,null,null,null,null,null,null,null,null,null,null,null,null,null,null,null,null,null,null,null,"","","",{"$f":"IF(COUNTBLANK(Sociodemograficos[[#This Row],[Nombres y Apellidos]])=0,Sociodemograficos[[#This Row],[Nombres y Apellidos]],\"\")","v":""}]
["",null,null,null,null,null,null,null,null,null,null,null,null,null,null,null,null,null,null,null,null,null,null,null,null,null,null,null,null,null,null,null,null,null,null,null,null,null,null,null,null,null,null,null,null,null,null,null,"","","",{"$f":"IF(COUNTBLANK(Sociodemograficos[[#This Row],[Nombres y Apellidos]])=0,Sociodemograficos[[#This Row],[Nombres y Apellidos]],\"\")","v":""}]
["",null,null,null,null,null,null,null,null,null,null,null,null,null,null,null,null,null,null,null,null,null,null,null,null,null,null,null,null,null,null,null,null,null,null,null,null,null,null,null,null,null,null,null,null,null,null,null,"","","",{"$f":"IF(COUNTBLANK(Sociodemograficos[[#This Row],[Nombres y Apellidos]])=0,Sociodemograficos[[#This Row],[Nombres y Apellidos]],\"\")","v":""}]
["",null,null,null,null,null,null,null,null,null,null,null,null,null,null,null,null,null,null,null,null,null,null,null,null,null,null,null,null,null,null,null,null,null,null,null,null,null,null,null,null,null,null,null,null,null,null,null,"","","",{"$f":"IF(COUNTBLANK(Sociodemograficos[[#This Row],[Nombres y Apellidos]])=0,Sociodemograficos[[#This Row],[Nombres y Apellidos]],\"\")","v":""}]
["",null,null,null,null,null,null,null,null,null,null,null,null,null,null,null,null,null,null,null,null,null,null,null,null,null,null,null,null,null,null,null,null,null,null,null,null,null,null,null,null,null,null,null,null,null,null,null,"","","",{"$f":"IF(COUNTBLANK(Sociodemograficos[[#This Row],[Nombres y Apellidos]])=0,Sociodemograficos[[#This Row],[Nombres y Apellidos]],\"\")","v":""}]
["",null,null,null,null,null,null,null,null,null,null,null,null,null,null,null,null,null,null,null,null,null,null,null,null,null,null,null,null,null,null,null,null,null,null,null,null,null,null,null,null,null,null,null,null,null,null,null,"","","",{"$f":"IF(COUNTBLANK(Sociodemograficos[[#This Row],[Nombres y Apellidos]])=0,Sociodemograficos[[#This Row],[Nombres y Apellidos]],\"\")","v":""}]
["",null,null,null,null,null,null,null,null,null,null,null,null,null,null,null,null,null,null,null,null,null,null,null,null,null,null,null,null,null,null,null,null,null,null,null,null,null,null,null,null,null,null,null,null,null,null,null,"","","",{"$f":"IF(COUNTBLANK(Sociodemograficos[[#This Row],[Nombres y Apellidos]])=0,Sociodemograficos[[#This Row],[Nombres y Apellidos]],\"\")","v":""}]
["",null,null,null,null,null,null,null,null,null,null,null,null,null,null,null,null,null,null,null,null,null,null,null,null,null,null,null,null,null,null,null,null,null,null,null,null,null,null,null,null,null,null,null,null,null,null,null,"","","",{"$f":"IF(COUNTBLANK(Sociodemograficos[[#This Row],[Nombres y Apellidos]])=0,Sociodemograficos[[#This Row],[Nombres y Apellidos]],\"\")","v":""}]
["",null,null,null,null,null,null,null,null,null,null,null,null,null,null,null,null,null,null,null,null,null,null,null,null,null,null,null,null,null,null,null,null,null,null,null,null,null,null,null,null,null,null,null,null,null,null,null,"","","",{"$f":"IF(COUNTBLANK(Sociodemograficos[[#This Row],[Nombres y Apellidos]])=0,Sociodemograficos[[#This Row],[Nombres y Apellidos]],\"\")","v":""}]
["",null,null,null,null,null,null,null,null,null,null,null,null,null,null,null,null,null,null,null,null,null,null,null,null,null,null,null,null,null,null,null,null,null,null,null,null,null,null,null,null,null,null,null,null,null,null,null,"","","",{"$f":"IF(COUNTBLANK(Sociodemograficos[[#This Row],[Nombres y Apellidos]])=0,Sociodemograficos[[#This Row],[Nombres y Apellidos]],\"\")","v":""}]
["",null,null,null,null,null,null,null,null,null,null,null,null,null,null,null,null,null,null,null,null,null,null,null,null,null,null,null,null,null,null,null,null,null,null,null,null,null,null,null,null,null,null,null,null,null,null,null,"","","",{"$f":"IF(COUNTBLANK(Sociodemograficos[[#This Row],[Nombres y Apellidos]])=0,Sociodemograficos[[#This Row],[Nombres y Apellidos]],\"\")","v":""}]
["",null,null,null,null,null,null,null,null,null,null,null,null,null,null,null,null,null,null,null,null,null,null,null,null,null,null,null,null,null,null,null,null,null,null,null,null,null,null,null,null,null,null,null,null,null,null,null,"","","",{"$f":"IF(COUNTBLANK(Sociodemograficos[[#This Row],[Nombres y Apellidos]])=0,Sociodemograficos[[#This Row],[Nombres y Apellidos]],\"\")","v":""}]
["",null,null,null,null,null,null,null,null,null,null,null,null,null,null,null,null,null,null,null,null,null,null,null,null,null,null,null,null,null,null,null,null,null,null,null,null,null,null,null,null,null,null,null,null,null,null,null,"","","",{"$f":"IF(COUNTBLANK(Sociodemograficos[[#This Row],[Nombres y Apellidos]])=0,Sociodemograficos[[#This Row],[Nombres y Apellidos]],\"\")","v":""}]
["",null,null,null,null,null,null,null,null,null,null,null,null,null,null,null,null,null,null,null,null,null,null,null,null,null,null,null,null,null,null,null,null,null,null,null,null,null,null,null,null,null,null,null,null,null,null,null,"","","",{"$f":"IF(COUNTBLANK(Sociodemograficos[[#This Row],[Nombres y Apellidos]])=0,Sociodemograficos[[#This Row],[Nombres y Apellidos]],\"\")","v":""}]
["",null,null,null,null,null,null,null,null,null,null,null,null,null,null,null,null,null,null,null,null,null,null,null,null,null,null,null,null,null,null,null,null,null,null,null,null,null,null,null,null,null,null,null,null,null,null,null,"","","",{"$f":"IF(COUNTBLANK(Sociodemograficos[[#This Row],[Nombres y Apellidos]])=0,Sociodemograficos[[#This Row],[Nombres y Apellidos]],\"\")","v":""}]
["",null,null,null,null,null,null,null,null,null,null,null,null,null,null,null,null,null,null,null,null,null,null,null,null,null,null,null,null,null,null,null,null,null,null,null,null,null,null,null,null,null,null,null,null,null,null,null,"","","",{"$f":"IF(COUNTBLANK(Sociodemograficos[[#This Row],[Nombres y Apellidos]])=0,Sociodemograficos[[#This Row],[Nombres y Apellidos]],\"\")","v":""}]
["",null,null,null,null,null,null,null,null,null,null,null,null,null,null,null,null,null,null,null,null,null,null,null,null,null,null,null,null,null,null,null,null,null,null,null,null,null,null,null,null,null,null,null,null,null,null,null,"","","",{"$f":"IF(COUNTBLANK(Sociodemograficos[[#This Row],[Nombres y Apellidos]])=0,Sociodemograficos[[#This Row],[Nombres y Apellidos]],\"\")","v":""}]
["",null,null,null,null,null,null,null,null,null,null,null,null,null,null,null,null,null,null,null,null,null,null,null,null,null,null,null,null,null,null,null,null,null,null,null,null,null,null,null,null,null,null,null,null,null,null,null,"","","",{"$f":"IF(COUNTBLANK(Sociodemograficos[[#This Row],[Nombres y Apellidos]])=0,Sociodemograficos[[#This Row],[Nombres y Apellidos]],\"\")","v":""}]
["",null,null,null,null,null,null,null,null,null,null,null,null,null,null,null,null,null,null,null,null,null,null,null,null,null,null,null,null,null,null,null,null,null,null,null,null,null,null,null,null,null,null,null,null,null,null,null,"","","",{"$f":"IF(COUNTBLANK(Sociodemograficos[[#This Row],[Nombres y Apellidos]])=0,Sociodemograficos[[#This Row],[Nombres y Apellidos]],\"\")","v":""}]
["",null,null,null,null,null,null,null,null,null,null,null,null,null,null,null,null,null,null,null,null,null,null,null,null,null,null,null,null,null,null,null,null,null,null,null,null,null,null,null,null,null,null,null,null,null,null,null,"","","",{"$f":"IF(COUNTBLANK(Sociodemograficos[[#This Row],[Nombres y Apellidos]])=0,Sociodemograficos[[#This Row],[Nombres y Apellidos]],\"\")","v":""}]
["",null,null,null,null,null,null,null,null,null,null,null,null,null,null,null,null,null,null,null,null,null,null,null,null,null,null,null,null,null,null,null,null,null,null,null,null,null,null,null,null,null,null,null,null,null,null,null,"","","",{"$f":"IF(COUNTBLANK(Sociodemograficos[[#This Row],[Nombres y Apellidos]])=0,Sociodemograficos[[#This Row],[Nombres y Apellidos]],\"\")","v":""}]
["",null,null,null,null,null,null,null,null,null,null,null,null,null,null,null,null,null,null,null,null,null,null,null,null,null,null,null,null,null,null,null,null,null,null,null,null,null,null,null,null,null,null,null,null,null,null,null,"","","",{"$f":"IF(COUNTBLANK(Sociodemograficos[[#This Row],[Nombres y Apellidos]])=0,Sociodemograficos[[#This Row],[Nombres y Apellidos]],\"\")","v":""}]
["",null,null,null,null,null,null,null,null,null,null,null,null,null,null,null,null,null,null,null,null,null,null,null,null,null,null,null,null,null,null,null,null,null,null,null,null,null,null,null,null,null,null,null,null,null,null,null,"","","",{"$f":"IF(COUNTBLANK(Sociodemograficos[[#This Row],[Nombres y Apellidos]])=0,Sociodemograficos[[#This Row],[Nombres y Apellidos]],\"\")","v":""}]
["",null,null,null,null,null,null,null,null,null,null,null,null,null,null,null,null,null,null,null,null,null,null,null,null,null,null,null,null,null,null,null,null,null,null,null,null,null,null,null,null,null,null,null,null,null,null,null,"","","",{"$f":"IF(COUNTBLANK(Sociodemograficos[[#This Row],[Nombres y Apellidos]])=0,Sociodemograficos[[#This Row],[Nombres y Apellidos]],\"\")","v":""}]
["",null,null,null,null,null,null,null,null,null,null,null,null,null,null,null,null,null,null,null,null,null,null,null,null,null,null,null,null,null,null,null,null,null,null,null,null,null,null,null,null,null,null,null,null,null,null,null,"","","",{"$f":"IF(COUNTBLANK(Sociodemograficos[[#This Row],[Nombres y Apellidos]])=0,Sociodemograficos[[#This Row],[Nombres y Apellidos]],\"\")","v":""}]
["",null,null,null,null,null,null,null,null,null,null,null,null,null,null,null,null,null,null,null,null,null,null,null,null,null,null,null,null,null,null,null,null,null,null,null,null,null,null,null,null,null,null,null,null,null,null,null,"","","",{"$f":"IF(COUNTBLANK(Sociodemograficos[[#This Row],[Nombres y Apellidos]])=0,Sociodemograficos[[#This Row],[Nombres y Apellidos]],\"\")","v":""}]
["",null,null,null,null,null,null,null,null,null,null,null,null,null,null,null,null,null,null,null,null,null,null,null,null,null,null,null,null,null,null,null,null,null,null,null,null,null,null,null,null,null,null,null,null,null,null,null,"","","",{"$f":"IF(COUNTBLANK(Sociodemograficos[[#This Row],[Nombres y Apellidos]])=0,Sociodemograficos[[#This Row],[Nombres y Apellidos]],\"\")","v":""}]
["",null,null,null,null,null,null,null,null,null,null,null,null,null,null,null,null,null,null,null,null,null,null,null,null,null,null,null,null,null,null,null,null,null,null,null,null,null,null,null,null,null,null,null,null,null,null,null,"","","",{"$f":"IF(COUNTBLANK(Sociodemograficos[[#This Row],[Nombres y Apellidos]])=0,Sociodemograficos[[#This Row],[Nombres y Apellidos]],\"\")","v":""}]
["",null,null,null,null,null,null,null,null,null,null,null,null,null,null,null,null,null,null,null,null,null,null,null,null,null,null,null,null,null,null,null,null,null,null,null,null,null,null,null,null,null,null,null,null,null,null,null,"","","",{"$f":"IF(COUNTBLANK(Sociodemograficos[[#This Row],[Nombres y Apellidos]])=0,Sociodemograficos[[#This Row],[Nombres y Apellidos]],\"\")","v":""}]
["",null,null,null,null,null,null,null,null,null,null,null,null,null,null,null,null,null,null,null,null,null,null,null,null,null,null,null,null,null,null,null,null,null,null,null,null,null,null,null,null,null,null,null,null,null,null,null,"","","",{"$f":"IF(COUNTBLANK(Sociodemograficos[[#This Row],[Nombres y Apellidos]])=0,Sociodemograficos[[#This Row],[Nombres y Apellidos]],\"\")","v":""}]
["",null,null,null,null,null,null,null,null,null,null,null,null,null,null,null,null,null,null,null,null,null,null,null,null,null,null,null,null,null,null,null,null,null,null,null,null,null,null,null,null,null,null,null,null,null,null,null,"","","",{"$f":"IF(COUNTBLANK(Sociodemograficos[[#This Row],[Nombres y Apellidos]])=0,Sociodemograficos[[#This Row],[Nombres y Apellidos]],\"\")","v":""}]
["",null,null,null,null,null,null,null,null,null,null,null,null,null,null,null,null,null,null,null,null,null,null,null,null,null,null,null,null,null,null,null,null,null,null,null,null,null,null,null,null,null,null,null,null,null,null,null,"","","",{"$f":"IF(COUNTBLANK(Sociodemograficos[[#This Row],[Nombres y Apellidos]])=0,Sociodemograficos[[#This Row],[Nombres y Apellidos]],\"\")","v":""}]
["",null,null,null,null,null,null,null,null,null,null,null,null,null,null,null,null,null,null,null,null,null,null,null,null,null,null,null,null,null,null,null,null,null,null,null,null,null,null,null,null,null,null,null,null,null,null,null,"","","",{"$f":"IF(COUNTBLANK(Sociodemograficos[[#This Row],[Nombres y Apellidos]])=0,Sociodemograficos[[#This Row],[Nombres y Apellidos]],\"\")","v":""}]
["",null,null,null,null,null,null,null,null,null,null,null,null,null,null,null,null,null,null,null,null,null,null,null,null,null,null,null,null,null,null,null,null,null,null,null,null,null,null,null,null,null,null,null,null,null,null,null,"","","",{"$f":"IF(COUNTBLANK(Sociodemograficos[[#This Row],[Nombres y Apellidos]])=0,Sociodemograficos[[#This Row],[Nombres y Apellidos]],\"\")","v":""}]
["",null,null,null,null,null,null,null,null,null,null,null,null,null,null,null,null,null,null,null,null,null,null,null,null,null,null,null,null,null,null,null,null,null,null,null,null,null,null,null,null,null,null,null,null,null,null,null,"","","",{"$f":"IF(COUNTBLANK(Sociodemograficos[[#This Row],[Nombres y Apellidos]])=0,Sociodemograficos[[#This Row],[Nombres y Apellidos]],\"\")","v":""}]
["",null,null,null,null,null,null,null,null,null,null,null,null,null,null,null,null,null,null,null,null,null,null,null,null,null,null,null,null,null,null,null,null,null,null,null,null,null,null,null,null,null,null,null,null,null,null,null,"","","",{"$f":"IF(COUNTBLANK(Sociodemograficos[[#This Row],[Nombres y Apellidos]])=0,Sociodemograficos[[#This Row],[Nombres y Apellidos]],\"\")","v":""}]
["",null,null,null,null,null,null,null,null,null,null,null,null,null,null,null,null,null,null,null,null,null,null,null,null,null,null,null,null,null,null,null,null,null,null,null,null,null,null,null,null,null,null,null,null,null,null,null,"","","",{"$f":"IF(COUNTBLANK(Sociodemograficos[[#This Row],[Nombres y Apellidos]])=0,Sociodemograficos[[#This Row],[Nombres y Apellidos]],\"\")","v":""}]
["",null,null,null,null,null,null,null,null,null,null,null,null,null,null,null,null,null,null,null,null,null,null,null,null,null,null,null,null,null,null,null,null,null,null,null,null,null,null,null,null,null,null,null,null,null,null,null,"","","",{"$f":"IF(COUNTBLANK(Sociodemograficos[[#This Row],[Nombres y Apellidos]])=0,Sociodemograficos[[#This Row],[Nombres y Apellidos]],\"\")","v":""}]
["",null,null,null,null,null,null,null,null,null,null,null,null,null,null,null,null,null,null,null,null,null,null,null,null,null,null,null,null,null,null,null,null,null,null,null,null,null,null,null,null,null,null,null,null,null,null,null,"","","",{"$f":"IF(COUNTBLANK(Sociodemograficos[[#This Row],[Nombres y Apellidos]])=0,Sociodemograficos[[#This Row],[Nombres y Apellidos]],\"\")","v":""}]
["",null,null,null,null,null,null,null,null,null,null,null,null,null,null,null,null,null,null,null,null,null,null,null,null,null,null,null,null,null,null,null,null,null,null,null,null,null,null,null,null,null,null,null,null,null,null,null,"","","",{"$f":"IF(COUNTBLANK(Sociodemograficos[[#This Row],[Nombres y Apellidos]])=0,Sociodemograficos[[#This Row],[Nombres y Apellidos]],\"\")","v":""}]
["",null,null,null,null,null,null,null,null,null,null,null,null,null,null,null,null,null,null,null,null,null,null,null,null,null,null,null,null,null,null,null,null,null,null,null,null,null,null,null,null,null,null,null,null,null,null,null,"","","",{"$f":"IF(COUNTBLANK(Sociodemograficos[[#This Row],[Nombres y Apellidos]])=0,Sociodemograficos[[#This Row],[Nombres y Apellidos]],\"\")","v":""}]
["",null,null,null,null,null,null,null,null,null,null,null,null,null,null,null,null,null,null,null,null,null,null,null,null,null,null,null,null,null,null,null,null,null,null,null,null,null,null,null,null,null,null,null,null,null,null,null,"","","",{"$f":"IF(COUNTBLANK(Sociodemograficos[[#This Row],[Nombres y Apellidos]])=0,Sociodemograficos[[#This Row],[Nombres y Apellidos]],\"\")","v":""}]
["",null,null,null,null,null,null,null,null,null,null,null,null,null,null,null,null,null,null,null,null,null,null,null,null,null,null,null,null,null,null,null,null,null,null,null,null,null,null,null,null,null,null,null,null,null,null,null,"","","",{"$f":"IF(COUNTBLANK(Sociodemograficos[[#This Row],[Nombres y Apellidos]])=0,Sociodemograficos[[#This Row],[Nombres y Apellidos]],\"\")","v":""}]
["",null,null,null,null,null,null,null,null,null,null,null,null,null,null,null,null,null,null,null,null,null,null,null,null,null,null,null,null,null,null,null,null,null,null,null,null,null,null,null,null,null,null,null,null,null,null,null,"","","",{"$f":"IF(COUNTBLANK(Sociodemograficos[[#This Row],[Nombres y Apellidos]])=0,Sociodemograficos[[#This Row],[Nombres y Apellidos]],\"\")","v":""}]
["",null,null,null,null,null,null,null,null,null,null,null,null,null,null,null,null,null,null,null,null,null,null,null,null,null,null,null,null,null,null,null,null,null,null,null,null,null,null,null,null,null,null,null,null,null,null,null,"","","",{"$f":"IF(COUNTBLANK(Sociodemograficos[[#This Row],[Nombres y Apellidos]])=0,Sociodemograficos[[#This Row],[Nombres y Apellidos]],\"\")","v":""}]
["",null,null,null,null,null,null,null,null,null,null,null,null,null,null,null,null,null,null,null,null,null,null,null,null,null,null,null,null,null,null,null,null,null,null,null,null,null,null,null,null,null,null,null,null,null,null,null,"","","",{"$f":"IF(COUNTBLANK(Sociodemograficos[[#This Row],[Nombres y Apellidos]])=0,Sociodemograficos[[#This Row],[Nombres y Apellidos]],\"\")","v":""}]
["",null,null,null,null,null,null,null,null,null,null,null,null,null,null,null,null,null,null,null,null,null,null,null,null,null,null,null,null,null,null,null,null,null,null,null,null,null,null,null,null,null,null,null,null,null,null,null,"","","",{"$f":"IF(COUNTBLANK(Sociodemograficos[[#This Row],[Nombres y Apellidos]])=0,Sociodemograficos[[#This Row],[Nombres y Apellidos]],\"\")","v":""}]
["",null,null,null,null,null,null,null,null,null,null,null,null,null,null,null,null,null,null,null,null,null,null,null,null,null,null,null,null,null,null,null,null,null,null,null,null,null,null,null,null,null,null,null,null,null,null,null,"","","",{"$f":"IF(COUNTBLANK(Sociodemograficos[[#This Row],[Nombres y Apellidos]])=0,Sociodemograficos[[#This Row],[Nombres y Apellidos]],\"\")","v":""}]
["",null,null,null,null,null,null,null,null,null,null,null,null,null,null,null,null,null,null,null,null,null,null,null,null,null,null,null,null,null,null,null,null,null,null,null,null,null,null,null,null,null,null,null,null,null,null,null,"","","",{"$f":"IF(COUNTBLANK(Sociodemograficos[[#This Row],[Nombres y Apellidos]])=0,Sociodemograficos[[#This Row],[Nombres y Apellidos]],\"\")","v":""}]
["",null,null,null,null,null,null,null,null,null,null,null,null,null,null,null,null,null,null,null,null,null,null,null,null,null,null,null,null,null,null,null,null,null,null,null,null,null,null,null,null,null,null,null,null,null,null,null,"","","",{"$f":"IF(COUNTBLANK(Sociodemograficos[[#This Row],[Nombres y Apellidos]])=0,Sociodemograficos[[#This Row],[Nombres y Apellidos]],\"\")","v":""}]
["",null,null,null,null,null,null,null,null,null,null,null,null,null,null,null,null,null,null,null,null,null,null,null,null,null,null,null,null,null,null,null,null,null,null,null,null,null,null,null,null,null,null,null,null,null,null,null,"","","",{"$f":"IF(COUNTBLANK(Sociodemograficos[[#This Row],[Nombres y Apellidos]])=0,Sociodemograficos[[#This Row],[Nombres y Apellidos]],\"\")","v":""}]
["",null,null,null,null,null,null,null,null,null,null,null,null,null,null,null,null,null,null,null,null,null,null,null,null,null,null,null,null,null,null,null,null,null,null,null,null,null,null,null,null,null,null,null,null,null,null,null,"","","",{"$f":"IF(COUNTBLANK(Sociodemograficos[[#This Row],[Nombres y Apellidos]])=0,Sociodemograficos[[#This Row],[Nombres y Apellidos]],\"\")","v":""}]
["",null,null,null,null,null,null,null,null,null,null,null,null,null,null,null,null,null,null,null,null,null,null,null,null,null,null,null,null,null,null,null,null,null,null,null,null,null,null,null,null,null,null,null,null,null,null,null,"","","",{"$f":"IF(COUNTBLANK(Sociodemograficos[[#This Row],[Nombres y Apellidos]])=0,Sociodemograficos[[#This Row],[Nombres y Apellidos]],\"\")","v":""}]
["",null,null,null,null,null,null,null,null,null,null,null,null,null,null,null,null,null,null,null,null,null,null,null,null,null,null,null,null,null,null,null,null,null,null,null,null,null,null,null,null,null,null,null,null,null,null,null,"","","",{"$f":"IF(COUNTBLANK(Sociodemograficos[[#This Row],[Nombres y Apellidos]])=0,Sociodemograficos[[#This Row],[Nombres y Apellidos]],\"\")","v":""}]
["",null,null,null,null,null,null,null,null,null,null,null,null,null,null,null,null,null,null,null,null,null,null,null,null,null,null,null,null,null,null,null,null,null,null,null,null,null,null,null,null,null,null,null,null,null,null,null,"","","",{"$f":"IF(COUNTBLANK(Sociodemograficos[[#This Row],[Nombres y Apellidos]])=0,Sociodemograficos[[#This Row],[Nombres y Apellidos]],\"\")","v":""}]
["",null,null,null,null,null,null,null,null,null,null,null,null,null,null,null,null,null,null,null,null,null,null,null,null,null,null,null,null,null,null,null,null,null,null,null,null,null,null,null,null,null,null,null,null,null,null,null,"","","",{"$f":"IF(COUNTBLANK(Sociodemograficos[[#This Row],[Nombres y Apellidos]])=0,Sociodemograficos[[#This Row],[Nombres y Apellidos]],\"\")","v":""}]
["",null,null,null,null,null,null,null,null,null,null,null,null,null,null,null,null,null,null,null,null,null,null,null,null,null,null,null,null,null,null,null,null,null,null,null,null,null,null,null,null,null,null,null,null,null,null,null,"","","",{"$f":"IF(COUNTBLANK(Sociodemograficos[[#This Row],[Nombres y Apellidos]])=0,Sociodemograficos[[#This Row],[Nombres y Apellidos]],\"\")","v":""}]
["",null,null,null,null,null,null,null,null,null,null,null,null,null,null,null,null,null,null,null,null,null,null,null,null,null,null,null,null,null,null,null,null,null,null,null,null,null,null,null,null,null,null,null,null,null,null,null,"","","",{"$f":"IF(COUNTBLANK(Sociodemograficos[[#This Row],[Nombres y Apellidos]])=0,Sociodemograficos[[#This Row],[Nombres y Apellidos]],\"\")","v":""}]
["",null,null,null,null,null,null,null,null,null,null,null,null,null,null,null,null,null,null,null,null,null,null,null,null,null,null,null,null,null,null,null,null,null,null,null,null,null,null,null,null,null,null,null,null,null,null,null,"","","",{"$f":"IF(COUNTBLANK(Sociodemograficos[[#This Row],[Nombres y Apellidos]])=0,Sociodemograficos[[#This Row],[Nombres y Apellidos]],\"\")","v":""}]
["",null,null,null,null,null,null,null,null,null,null,null,null,null,null,null,null,null,null,null,null,null,null,null,null,null,null,null,null,null,null,null,null,null,null,null,null,null,null,null,null,null,null,null,null,null,null,null,"","","",{"$f":"IF(COUNTBLANK(Sociodemograficos[[#This Row],[Nombres y Apellidos]])=0,Sociodemograficos[[#This Row],[Nombres y Apellidos]],\"\")","v":""}]
["",null,null,null,null,null,null,null,null,null,null,null,null,null,null,null,null,null,null,null,null,null,null,null,null,null,null,null,null,null,null,null,null,null,null,null,null,null,null,null,null,null,null,null,null,null,null,null,"","","",{"$f":"IF(COUNTBLANK(Sociodemograficos[[#This Row],[Nombres y Apellidos]])=0,Sociodemograficos[[#This Row],[Nombres y Apellidos]],\"\")","v":""}]
["",null,null,null,null,null,null,null,null,null,null,null,null,null,null,null,null,null,null,null,null,null,null,null,null,null,null,null,null,null,null,null,null,null,null,null,null,null,null,null,null,null,null,null,null,null,null,null,"","","",{"$f":"IF(COUNTBLANK(Sociodemograficos[[#This Row],[Nombres y Apellidos]])=0,Sociodemograficos[[#This Row],[Nombres y Apellidos]],\"\")","v":""}]
["",null,null,null,null,null,null,null,null,null,null,null,null,null,null,null,null,null,null,null,null,null,null,null,null,null,null,null,null,null,null,null,null,null,null,null,null,null,null,null,null,null,null,null,null,null,null,null,"","","",{"$f":"IF(COUNTBLANK(Sociodemograficos[[#This Row],[Nombres y Apellidos]])=0,Sociodemograficos[[#This Row],[Nombres y Apellidos]],\"\")","v":""}]
["",null,null,null,null,null,null,null,null,null,null,null,null,null,null,null,null,null,null,null,null,null,null,null,null,null,null,null,null,null,null,null,null,null,null,null,null,null,null,null,null,null,null,null,null,null,null,null,"","","",{"$f":"IF(COUNTBLANK(Sociodemograficos[[#This Row],[Nombres y Apellidos]])=0,Sociodemograficos[[#This Row],[Nombres y Apellidos]],\"\")","v":""}]
["",null,null,null,null,null,null,null,null,null,null,null,null,null,null,null,null,null,null,null,null,null,null,null,null,null,null,null,null,null,null,null,null,null,null,null,null,null,null,null,null,null,null,null,null,null,null,null,"","","",{"$f":"IF(COUNTBLANK(Sociodemograficos[[#This Row],[Nombres y Apellidos]])=0,Sociodemograficos[[#This Row],[Nombres y Apellidos]],\"\")","v":""}]
["",null,null,null,null,null,null,null,null,null,null,null,null,null,null,null,null,null,null,null,null,null,null,null,null,null,null,null,null,null,null,null,null,null,null,null,null,null,null,null,null,null,null,null,null,null,null,null,"","","",{"$f":"IF(COUNTBLANK(Sociodemograficos[[#This Row],[Nombres y Apellidos]])=0,Sociodemograficos[[#This Row],[Nombres y Apellidos]],\"\")","v":""}]
["",null,null,null,null,null,null,null,null,null,null,null,null,null,null,null,null,null,null,null,null,null,null,null,null,null,null,null,null,null,null,null,null,null,null,null,null,null,null,null,null,null,null,null,null,null,null,null,"","","",{"$f":"IF(COUNTBLANK(Sociodemograficos[[#This Row],[Nombres y Apellidos]])=0,Sociodemograficos[[#This Row],[Nombres y Apellidos]],\"\")","v":""}]
["",null,null,null,null,null,null,null,null,null,null,null,null,null,null,null,null,null,null,null,null,null,null,null,null,null,null,null,null,null,null,null,null,null,null,null,null,null,null,null,null,null,null,null,null,null,null,null,"","","",{"$f":"IF(COUNTBLANK(Sociodemograficos[[#This Row],[Nombres y Apellidos]])=0,Sociodemograficos[[#This Row],[Nombres y Apellidos]],\"\")","v":""}]
["",null,null,null,null,null,null,null,null,null,null,null,null,null,null,null,null,null,null,null,null,null,null,null,null,null,null,null,null,null,null,null,null,null,null,null,null,null,null,null,null,null,null,null,null,null,null,null,"","","",{"$f":"IF(COUNTBLANK(Sociodemograficos[[#This Row],[Nombres y Apellidos]])=0,Sociodemograficos[[#This Row],[Nombres y Apellidos]],\"\")","v":""}]
["",null,null,null,null,null,null,null,null,null,null,null,null,null,null,null,null,null,null,null,null,null,null,null,null,null,null,null,null,null,null,null,null,null,null,null,null,null,null,null,null,null,null,null,null,null,null,null,"","","",{"$f":"IF(COUNTBLANK(Sociodemograficos[[#This Row],[Nombres y Apellidos]])=0,Sociodemograficos[[#This Row],[Nombres y Apellidos]],\"\")","v":""}]
["",null,null,null,null,null,null,null,null,null,null,null,null,null,null,null,null,null,null,null,null,null,null,null,null,null,null,null,null,null,null,null,null,null,null,null,null,null,null,null,null,null,null,null,null,null,null,null,"","","",{"$f":"IF(COUNTBLANK(Sociodemograficos[[#This Row],[Nombres y Apellidos]])=0,Sociodemograficos[[#This Row],[Nombres y Apellidos]],\"\")","v":""}]
["",null,null,null,null,null,null,null,null,null,null,null,null,null,null,null,null,null,null,null,null,null,null,null,null,null,null,null,null,null,null,null,null,null,null,null,null,null,null,null,null,null,null,null,null,null,null,null,"","","",{"$f":"IF(COUNTBLANK(Sociodemograficos[[#This Row],[Nombres y Apellidos]])=0,Sociodemograficos[[#This Row],[Nombres y Apellidos]],\"\")","v":""}]
["",null,null,null,null,null,null,null,null,null,null,null,null,null,null,null,null,null,null,null,null,null,null,null,null,null,null,null,null,null,null,null,null,null,null,null,null,null,null,null,null,null,null,null,null,null,null,null,"","","",{"$f":"IF(COUNTBLANK(Sociodemograficos[[#This Row],[Nombres y Apellidos]])=0,Sociodemograficos[[#This Row],[Nombres y Apellidos]],\"\")","v":""}]
["",null,null,null,null,null,null,null,null,null,null,null,null,null,null,null,null,null,null,null,null,null,null,null,null,null,null,null,null,null,null,null,null,null,null,null,null,null,null,null,null,null,null,null,null,null,null,null,"","","",{"$f":"IF(COUNTBLANK(Sociodemograficos[[#This Row],[Nombres y Apellidos]])=0,Sociodemograficos[[#This Row],[Nombres y Apellidos]],\"\")","v":""}]
["",null,null,null,null,null,null,null,null,null,null,null,null,null,null,null,null,null,null,null,null,null,null,null,null,null,null,null,null,null,null,null,null,null,null,null,null,null,null,null,null,null,null,null,null,null,null,null,"","","",{"$f":"IF(COUNTBLANK(Sociodemograficos[[#This Row],[Nombres y Apellidos]])=0,Sociodemograficos[[#This Row],[Nombres y Apellidos]],\"\")","v":""}]
["",null,null,null,null,null,null,null,null,null,null,null,null,null,null,null,null,null,null,null,null,null,null,null,null,null,null,null,null,null,null,null,null,null,null,null,null,null,null,null,null,null,null,null,null,null,null,null,"","","",{"$f":"IF(COUNTBLANK(Sociodemograficos[[#This Row],[Nombres y Apellidos]])=0,Sociodemograficos[[#This Row],[Nombres y Apellidos]],\"\")","v":""}]
["",null,null,null,null,null,null,null,null,null,null,null,null,null,null,null,null,null,null,null,null,null,null,null,null,null,null,null,null,null,null,null,null,null,null,null,null,null,null,null,null,null,null,null,null,null,null,null,"","","",{"$f":"IF(COUNTBLANK(Sociodemograficos[[#This Row],[Nombres y Apellidos]])=0,Sociodemograficos[[#This Row],[Nombres y Apellidos]],\"\")","v":""}]
["",null,null,null,null,null,null,null,null,null,null,null,null,null,null,null,null,null,null,null,null,null,null,null,null,null,null,null,null,null,null,null,null,null,null,null,null,null,null,null,null,null,null,null,null,null,null,null,"","","",{"$f":"IF(COUNTBLANK(Sociodemograficos[[#This Row],[Nombres y Apellidos]])=0,Sociodemograficos[[#This Row],[Nombres y Apellidos]],\"\")","v":""}]
["",null,null,null,null,null,null,null,null,null,null,null,null,null,null,null,null,null,null,null,null,null,null,null,null,null,null,null,null,null,null,null,null,null,null,null,null,null,null,null,null,null,null,null,null,null,null,null,"","","",{"$f":"IF(COUNTBLANK(Sociodemograficos[[#This Row],[Nombres y Apellidos]])=0,Sociodemograficos[[#This Row],[Nombres y Apellidos]],\"\")","v":""}]
["",null,null,null,null,null,null,null,null,null,null,null,null,null,null,null,null,null,null,null,null,null,null,null,null,null,null,null,null,null,null,null,null,null,null,null,null,null,null,null,null,null,null,null,null,null,null,null,"","","",{"$f":"IF(COUNTBLANK(Sociodemograficos[[#This Row],[Nombres y Apellidos]])=0,Sociodemograficos[[#This Row],[Nombres y Apellidos]],\"\")","v":""}]
["",null,null,null,null,null,null,null,null,null,null,null,null,null,null,null,null,null,null,null,null,null,null,null,null,null,null,null,null,null,null,null,null,null,null,null,null,null,null,null,null,null,null,null,null,null,null,null,"","","",{"$f":"IF(COUNTBLANK(Sociodemograficos[[#This Row],[Nombres y Apellidos]])=0,Sociodemograficos[[#This Row],[Nombres y Apellidos]],\"\")","v":""}]
["",null,null,null,null,null,null,null,null,null,null,null,null,null,null,null,null,null,null,null,null,null,null,null,null,null,null,null,null,null,null,null,null,null,null,null,null,null,null,null,null,null,null,null,null,null,null,null,"","","",{"$f":"IF(COUNTBLANK(Sociodemograficos[[#This Row],[Nombres y Apellidos]])=0,Sociodemograficos[[#This Row],[Nombres y Apellidos]],\"\")","v":""}]
["",null,null,null,null,null,null,null,null,null,null,null,null,null,null,null,null,null,null,null,null,null,null,null,null,null,null,null,null,null,null,null,null,null,null,null,null,null,null,null,null,null,null,null,null,null,null,null,"","","",{"$f":"IF(COUNTBLANK(Sociodemograficos[[#This Row],[Nombres y Apellidos]])=0,Sociodemograficos[[#This Row],[Nombres y Apellidos]],\"\")","v":""}]
["",null,null,null,null,null,null,null,null,null,null,null,null,null,null,null,null,null,null,null,null,null,null,null,null,null,null,null,null,null,null,null,null,null,null,null,null,null,null,null,null,null,null,null,null,null,null,null,"","","",{"$f":"IF(COUNTBLANK(Sociodemograficos[[#This Row],[Nombres y Apellidos]])=0,Sociodemograficos[[#This Row],[Nombres y Apellidos]],\"\")","v":""}]
["",null,null,null,null,null,null,null,null,null,null,null,null,null,null,null,null,null,null,null,null,null,null,null,null,null,null,null,null,null,null,null,null,null,null,null,null,null,null,null,null,null,null,null,null,null,null,null,"","","",{"$f":"IF(COUNTBLANK(Sociodemograficos[[#This Row],[Nombres y Apellidos]])=0,Sociodemograficos[[#This Row],[Nombres y Apellidos]],\"\")","v":""}]
["",null,null,null,null,null,null,null,null,null,null,null,null,null,null,null,null,null,null,null,null,null,null,null,null,null,null,null,null,null,null,null,null,null,null,null,null,null,null,null,null,null,null,null,null,null,null,null,"","","",{"$f":"IF(COUNTBLANK(Sociodemograficos[[#This Row],[Nombres y Apellidos]])=0,Sociodemograficos[[#This Row],[Nombres y Apellidos]],\"\")","v":""}]
["",null,null,null,null,null,null,null,null,null,null,null,null,null,null,null,null,null,null,null,null,null,null,null,null,null,null,null,null,null,null,null,null,null,null,null,null,null,null,null,null,null,null,null,null,null,null,null,"","","",{"$f":"IF(COUNTBLANK(Sociodemograficos[[#This Row],[Nombres y Apellidos]])=0,Sociodemograficos[[#This Row],[Nombres y Apellidos]],\"\")","v":""}]
["",null,null,null,null,null,null,null,null,null,null,null,null,null,null,null,null,null,null,null,null,null,null,null,null,null,null,null,null,null,null,null,null,null,null,null,null,null,null,null,null,null,null,null,null,null,null,null,"","","",{"$f":"IF(COUNTBLANK(Sociodemograficos[[#This Row],[Nombres y Apellidos]])=0,Sociodemograficos[[#This Row],[Nombres y Apellidos]],\"\")","v":""}]
["",null,null,null,null,null,null,null,null,null,null,null,null,null,null,null,null,null,null,null,null,null,null,null,null,null,null,null,null,null,null,null,null,null,null,null,null,null,null,null,null,null,null,null,null,null,null,null,"","","",{"$f":"IF(COUNTBLANK(Sociodemograficos[[#This Row],[Nombres y Apellidos]])=0,Sociodemograficos[[#This Row],[Nombres y Apellidos]],\"\")","v":""}]
["",null,null,null,null,null,null,null,null,null,null,null,null,null,null,null,null,null,null,null,null,null,null,null,null,null,null,null,null,null,null,null,null,null,null,null,null,null,null,null,null,null,null,null,null,null,null,null,"","","",{"$f":"IF(COUNTBLANK(Sociodemograficos[[#This Row],[Nombres y Apellidos]])=0,Sociodemograficos[[#This Row],[Nombres y Apellidos]],\"\")","v":""}]
["",null,null,null,null,null,null,null,null,null,null,null,null,null,null,null,null,null,null,null,null,null,null,null,null,null,null,null,null,null,null,null,null,null,null,null,null,null,null,null,null,null,null,null,null,null,null,null,"","","",{"$f":"IF(COUNTBLANK(Sociodemograficos[[#This Row],[Nombres y Apellidos]])=0,Sociodemograficos[[#This Row],[Nombres y Apellidos]],\"\")","v":""}]
["",null,null,null,null,null,null,null,null,null,null,null,null,null,null,null,null,null,null,null,null,null,null,null,null,null,null,null,null,null,null,null,null,null,null,null,null,null,null,null,null,null,null,null,null,null,null,null,"","","",{"$f":"IF(COUNTBLANK(Sociodemograficos[[#This Row],[Nombres y Apellidos]])=0,Sociodemograficos[[#This Row],[Nombres y Apellidos]],\"\")","v":""}]
["",null,null,null,null,null,null,null,null,null,null,null,null,null,null,null,null,null,null,null,null,null,null,null,null,null,null,null,null,null,null,null,null,null,null,null,null,null,null,null,null,null,null,null,null,null,null,null,"","","",{"$f":"IF(COUNTBLANK(Sociodemograficos[[#This Row],[Nombres y Apellidos]])=0,Sociodemograficos[[#This Row],[Nombres y Apellidos]],\"\")","v":""}]
["",null,null,null,null,null,null,null,null,null,null,null,null,null,null,null,null,null,null,null,null,null,null,null,null,null,null,null,null,null,null,null,null,null,null,null,null,null,null,null,null,null,null,null,null,null,null,null,"","","",{"$f":"IF(COUNTBLANK(Sociodemograficos[[#This Row],[Nombres y Apellidos]])=0,Sociodemograficos[[#This Row],[Nombres y Apellidos]],\"\")","v":""}]
["",null,null,null,null,null,null,null,null,null,null,null,null,null,null,null,null,null,null,null,null,null,null,null,null,null,null,null,null,null,null,null,null,null,null,null,null,null,null,null,null,null,null,null,null,null,null,null,"","","",{"$f":"IF(COUNTBLANK(Sociodemograficos[[#This Row],[Nombres y Apellidos]])=0,Sociodemograficos[[#This Row],[Nombres y Apellidos]],\"\")","v":""}]
["",null,null,null,null,null,null,null,null,null,null,null,null,null,null,null,null,null,null,null,null,null,null,null,null,null,null,null,null,null,null,null,null,null,null,null,null,null,null,null,null,null,null,null,null,null,null,null,"","","",{"$f":"IF(COUNTBLANK(Sociodemograficos[[#This Row],[Nombres y Apellidos]])=0,Sociodemograficos[[#This Row],[Nombres y Apellidos]],\"\")","v":""}]
["",null,null,null,null,null,null,null,null,null,null,null,null,null,null,null,null,null,null,null,null,null,null,null,null,null,null,null,null,null,null,null,null,null,null,null,null,null,null,null,null,null,null,null,null,null,null,null,"","","",{"$f":"IF(COUNTBLANK(Sociodemograficos[[#This Row],[Nombres y Apellidos]])=0,Sociodemograficos[[#This Row],[Nombres y Apellidos]],\"\")","v":""}]
["",null,null,null,null,null,null,null,null,null,null,null,null,null,null,null,null,null,null,null,null,null,null,null,null,null,null,null,null,null,null,null,null,null,null,null,null,null,null,null,null,null,null,null,null,null,null,null,"","","",{"$f":"IF(COUNTBLANK(Sociodemograficos[[#This Row],[Nombres y Apellidos]])=0,Sociodemograficos[[#This Row],[Nombres y Apellidos]],\"\")","v":""}]
["",null,null,null,null,null,null,null,null,null,null,null,null,null,null,null,null,null,null,null,null,null,null,null,null,null,null,null,null,null,null,null,null,null,null,null,null,null,null,null,null,null,null,null,null,null,null,null,"","","",{"$f":"IF(COUNTBLANK(Sociodemograficos[[#This Row],[Nombres y Apellidos]])=0,Sociodemograficos[[#This Row],[Nombres y Apellidos]],\"\")","v":""}]
["",null,null,null,null,null,null,null,null,null,null,null,null,null,null,null,null,null,null,null,null,null,null,null,null,null,null,null,null,null,null,null,null,null,null,null,null,null,null,null,null,null,null,null,null,null,null,null,"","","",{"$f":"IF(COUNTBLANK(Sociodemograficos[[#This Row],[Nombres y Apellidos]])=0,Sociodemograficos[[#This Row],[Nombres y Apellidos]],\"\")","v":""}]
["",null,null,null,null,null,null,null,null,null,null,null,null,null,null,null,null,null,null,null,null,null,null,null,null,null,null,null,null,null,null,null,null,null,null,null,null,null,null,null,null,null,null,null,null,null,null,null,"","","",{"$f":"IF(COUNTBLANK(Sociodemograficos[[#This Row],[Nombres y Apellidos]])=0,Sociodemograficos[[#This Row],[Nombres y Apellidos]],\"\")","v":""}]
["",null,null,null,null,null,null,null,null,null,null,null,null,null,null,null,null,null,null,null,null,null,null,null,null,null,null,null,null,null,null,null,null,null,null,null,null,null,null,null,null,null,null,null,null,null,null,null,"","","",{"$f":"IF(COUNTBLANK(Sociodemograficos[[#This Row],[Nombres y Apellidos]])=0,Sociodemograficos[[#This Row],[Nombres y Apellidos]],\"\")","v":""}]
["",null,null,null,null,null,null,null,null,null,null,null,null,null,null,null,null,null,null,null,null,null,null,null,null,null,null,null,null,null,null,null,null,null,null,null,null,null,null,null,null,null,null,null,null,null,null,null,"","","",{"$f":"IF(COUNTBLANK(Sociodemograficos[[#This Row],[Nombres y Apellidos]])=0,Sociodemograficos[[#This Row],[Nombres y Apellidos]],\"\")","v":""}]
["",null,null,null,null,null,null,null,null,null,null,null,null,null,null,null,null,null,null,null,null,null,null,null,null,null,null,null,null,null,null,null,null,null,null,null,null,null,null,null,null,null,null,null,null,null,null,null,"","","",{"$f":"IF(COUNTBLANK(Sociodemograficos[[#This Row],[Nombres y Apellidos]])=0,Sociodemograficos[[#This Row],[Nombres y Apellidos]],\"\")","v":""}]
["",null,null,null,null,null,null,null,null,null,null,null,null,null,null,null,null,null,null,null,null,null,null,null,null,null,null,null,null,null,null,null,null,null,null,null,null,null,null,null,null,null,null,null,null,null,null,null,"","","",{"$f":"IF(COUNTBLANK(Sociodemograficos[[#This Row],[Nombres y Apellidos]])=0,Sociodemograficos[[#This Row],[Nombres y Apellidos]],\"\")","v":""}]
["",null,null,null,null,null,null,null,null,null,null,null,null,null,null,null,null,null,null,null,null,null,null,null,null,null,null,null,null,null,null,null,null,null,null,null,null,null,null,null,null,null,null,null,null,null,null,null,"","","",{"$f":"IF(COUNTBLANK(Sociodemograficos[[#This Row],[Nombres y Apellidos]])=0,Sociodemograficos[[#This Row],[Nombres y Apellidos]],\"\")","v":""}]
["",null,null,null,null,null,null,null,null,null,null,null,null,null,null,null,null,null,null,null,null,null,null,null,null,null,null,null,null,null,null,null,null,null,null,null,null,null,null,null,null,null,null,null,null,null,null,null,"","","",{"$f":"IF(COUNTBLANK(Sociodemograficos[[#This Row],[Nombres y Apellidos]])=0,Sociodemograficos[[#This Row],[Nombres y Apellidos]],\"\")","v":""}]
["",null,null,null,null,null,null,null,null,null,null,null,null,null,null,null,null,null,null,null,null,null,null,null,null,null,null,null,null,null,null,null,null,null,null,null,null,null,null,null,null,null,null,null,null,null,null,null,"","","",{"$f":"IF(COUNTBLANK(Sociodemograficos[[#This Row],[Nombres y Apellidos]])=0,Sociodemograficos[[#This Row],[Nombres y Apellidos]],\"\")","v":""}]
["",null,null,null,null,null,null,null,null,null,null,null,null,null,null,null,null,null,null,null,null,null,null,null,null,null,null,null,null,null,null,null,null,null,null,null,null,null,null,null,null,null,null,null,null,null,null,null,"","","",{"$f":"IF(COUNTBLANK(Sociodemograficos[[#This Row],[Nombres y Apellidos]])=0,Sociodemograficos[[#This Row],[Nombres y Apellidos]],\"\")","v":""}]
["",null,null,null,null,null,null,null,null,null,null,null,null,null,null,null,null,null,null,null,null,null,null,null,null,null,null,null,null,null,null,null,null,null,null,null,null,null,null,null,null,null,null,null,null,null,null,null,"","","",{"$f":"IF(COUNTBLANK(Sociodemograficos[[#This Row],[Nombres y Apellidos]])=0,Sociodemograficos[[#This Row],[Nombres y Apellidos]],\"\")","v":""}]
["",null,null,null,null,null,null,null,null,null,null,null,null,null,null,null,null,null,null,null,null,null,null,null,null,null,null,null,null,null,null,null,null,null,null,null,null,null,null,null,null,null,null,null,null,null,null,null,"","","",{"$f":"IF(COUNTBLANK(Sociodemograficos[[#This Row],[Nombres y Apellidos]])=0,Sociodemograficos[[#This Row],[Nombres y Apellidos]],\"\")","v":""}]
["",null,null,null,null,null,null,null,null,null,null,null,null,null,null,null,null,null,null,null,null,null,null,null,null,null,null,null,null,null,null,null,null,null,null,null,null,null,null,null,null,null,null,null,null,null,null,null,"","","",{"$f":"IF(COUNTBLANK(Sociodemograficos[[#This Row],[Nombres y Apellidos]])=0,Sociodemograficos[[#This Row],[Nombres y Apellidos]],\"\")","v":""}]
["",null,null,null,null,null,null,null,null,null,null,null,null,null,null,null,null,null,null,null,null,null,null,null,null,null,null,null,null,null,null,null,null,null,null,null,null,null,null,null,null,null,null,null,null,null,null,null,"","","",{"$f":"IF(COUNTBLANK(Sociodemograficos[[#This Row],[Nombres y Apellidos]])=0,Sociodemograficos[[#This Row],[Nombres y Apellidos]],\"\")","v":""}]
["",null,null,null,null,null,null,null,null,null,null,null,null,null,null,null,null,null,null,null,null,null,null,null,null,null,null,null,null,null,null,null,null,null,null,null,null,null,null,null,null,null,null,null,null,null,null,null,"","","",{"$f":"IF(COUNTBLANK(Sociodemograficos[[#This Row],[Nombres y Apellidos]])=0,Sociodemograficos[[#This Row],[Nombres y Apellidos]],\"\")","v":""}]
["",null,null,null,null,null,null,null,null,null,null,null,null,null,null,null,null,null,null,null,null,null,null,null,null,null,null,null,null,null,null,null,null,null,null,null,null,null,null,null,null,null,null,null,null,null,null,null,"","","",{"$f":"IF(COUNTBLANK(Sociodemograficos[[#This Row],[Nombres y Apellidos]])=0,Sociodemograficos[[#This Row],[Nombres y Apellidos]],\"\")","v":""}]
["",null,null,null,null,null,null,null,null,null,null,null,null,null,null,null,null,null,null,null,null,null,null,null,null,null,null,null,null,null,null,null,null,null,null,null,null,null,null,null,null,null,null,null,null,null,null,null,"","","",{"$f":"IF(COUNTBLANK(Sociodemograficos[[#This Row],[Nombres y Apellidos]])=0,Sociodemograficos[[#This Row],[Nombres y Apellidos]],\"\")","v":""}]
["",null,null,null,null,null,null,null,null,null,null,null,null,null,null,null,null,null,null,null,null,null,null,null,null,null,null,null,null,null,null,null,null,null,null,null,null,null,null,null,null,null,null,null,null,null,null,null,"","","",{"$f":"IF(COUNTBLANK(Sociodemograficos[[#This Row],[Nombres y Apellidos]])=0,Sociodemograficos[[#This Row],[Nombres y Apellidos]],\"\")","v":""}]
["",null,null,null,null,null,null,null,null,null,null,null,null,null,null,null,null,null,null,null,null,null,null,null,null,null,null,null,null,null,null,null,null,null,null,null,null,null,null,null,null,null,null,null,null,null,null,null,"","","",{"$f":"IF(COUNTBLANK(Sociodemograficos[[#This Row],[Nombres y Apellidos]])=0,Sociodemograficos[[#This Row],[Nombres y Apellidos]],\"\")","v":""}]
["",null,null,null,null,null,null,null,null,null,null,null,null,null,null,null,null,null,null,null,null,null,null,null,null,null,null,null,null,null,null,null,null,null,null,null,null,null,null,null,null,null,null,null,null,null,null,null,"","","",{"$f":"IF(COUNTBLANK(Sociodemograficos[[#This Row],[Nombres y Apellidos]])=0,Sociodemograficos[[#This Row],[Nombres y Apellidos]],\"\")","v":""}]
["",null,null,null,null,null,null,null,null,null,null,null,null,null,null,null,null,null,null,null,null,null,null,null,null,null,null,null,null,null,null,null,null,null,null,null,null,null,null,null,null,null,null,null,null,null,null,null,"","","",{"$f":"IF(COUNTBLANK(Sociodemograficos[[#This Row],[Nombres y Apellidos]])=0,Sociodemograficos[[#This Row],[Nombres y Apellidos]],\"\")","v":""}]
["",null,null,null,null,null,null,null,null,null,null,null,null,null,null,null,null,null,null,null,null,null,null,null,null,null,null,null,null,null,null,null,null,null,null,null,null,null,null,null,null,null,null,null,null,null,null,null,"","","",{"$f":"IF(COUNTBLANK(Sociodemograficos[[#This Row],[Nombres y Apellidos]])=0,Sociodemograficos[[#This Row],[Nombres y Apellidos]],\"\")","v":""}]
["",null,null,null,null,null,null,null,null,null,null,null,null,null,null,null,null,null,null,null,null,null,null,null,null,null,null,null,null,null,null,null,null,null,null,null,null,null,null,null,null,null,null,null,null,null,null,null,"","","",{"$f":"IF(COUNTBLANK(Sociodemograficos[[#This Row],[Nombres y Apellidos]])=0,Sociodemograficos[[#This Row],[Nombres y Apellidos]],\"\")","v":""}]
["",null,null,null,null,null,null,null,null,null,null,null,null,null,null,null,null,null,null,null,null,null,null,null,null,null,null,null,null,null,null,null,null,null,null,null,null,null,null,null,null,null,null,null,null,null,null,null,"","","",{"$f":"IF(COUNTBLANK(Sociodemograficos[[#This Row],[Nombres y Apellidos]])=0,Sociodemograficos[[#This Row],[Nombres y Apellidos]],\"\")","v":""}]
["",null,null,null,null,null,null,null,null,null,null,null,null,null,null,null,null,null,null,null,null,null,null,null,null,null,null,null,null,null,null,null,null,null,null,null,null,null,null,null,null,null,null,null,null,null,null,null,"","","",{"$f":"IF(COUNTBLANK(Sociodemograficos[[#This Row],[Nombres y Apellidos]])=0,Sociodemograficos[[#This Row],[Nombres y Apellidos]],\"\")","v":""}]
["",null,null,null,null,null,null,null,null,null,null,null,null,null,null,null,null,null,null,null,null,null,null,null,null,null,null,null,null,null,null,null,null,null,null,null,null,null,null,null,null,null,null,null,null,null,null,null,"","","",{"$f":"IF(COUNTBLANK(Sociodemograficos[[#This Row],[Nombres y Apellidos]])=0,Sociodemograficos[[#This Row],[Nombres y Apellidos]],\"\")","v":""}]
["",null,null,null,null,null,null,null,null,null,null,null,null,null,null,null,null,null,null,null,null,null,null,null,null,null,null,null,null,null,null,null,null,null,null,null,null,null,null,null,null,null,null,null,null,null,null,null,"","","",{"$f":"IF(COUNTBLANK(Sociodemograficos[[#This Row],[Nombres y Apellidos]])=0,Sociodemograficos[[#This Row],[Nombres y Apellidos]],\"\")","v":""}]
["",null,null,null,null,null,null,null,null,null,null,null,null,null,null,null,null,null,null,null,null,null,null,null,null,null,null,null,null,null,null,null,null,null,null,null,null,null,null,null,null,null,null,null,null,null,null,null,"","","",{"$f":"IF(COUNTBLANK(Sociodemograficos[[#This Row],[Nombres y Apellidos]])=0,Sociodemograficos[[#This Row],[Nombres y Apellidos]],\"\")","v":""}]
["",null,null,null,null,null,null,null,null,null,null,null,null,null,null,null,null,null,null,null,null,null,null,null,null,null,null,null,null,null,null,null,null,null,null,null,null,null,null,null,null,null,null,null,null,null,null,null,"","","",{"$f":"IF(COUNTBLANK(Sociodemograficos[[#This Row],[Nombres y Apellidos]])=0,Sociodemograficos[[#This Row],[Nombres y Apellidos]],\"\")","v":""}]
["",null,null,null,null,null,null,null,null,null,null,null,null,null,null,null,null,null,null,null,null,null,null,null,null,null,null,null,null,null,null,null,null,null,null,null,null,null,null,null,null,null,null,null,null,null,null,null,"","","",{"$f":"IF(COUNTBLANK(Sociodemograficos[[#This Row],[Nombres y Apellidos]])=0,Sociodemograficos[[#This Row],[Nombres y Apellidos]],\"\")","v":""}]
["",null,null,null,null,null,null,null,null,null,null,null,null,null,null,null,null,null,null,null,null,null,null,null,null,null,null,null,null,null,null,null,null,null,null,null,null,null,null,null,null,null,null,null,null,null,null,null,"","","",{"$f":"IF(COUNTBLANK(Sociodemograficos[[#This Row],[Nombres y Apellidos]])=0,Sociodemograficos[[#This Row],[Nombres y Apellidos]],\"\")","v":""}]
["",null,null,null,null,null,null,null,null,null,null,null,null,null,null,null,null,null,null,null,null,null,null,null,null,null,null,null,null,null,null,null,null,null,null,null,null,null,null,null,null,null,null,null,null,null,null,null,"","","",{"$f":"IF(COUNTBLANK(Sociodemograficos[[#This Row],[Nombres y Apellidos]])=0,Sociodemograficos[[#This Row],[Nombres y Apellidos]],\"\")","v":""}]
["",null,null,null,null,null,null,null,null,null,null,null,null,null,null,null,null,null,null,null,null,null,null,null,null,null,null,null,null,null,null,null,null,null,null,null,null,null,null,null,null,null,null,null,null,null,null,null,"","","",{"$f":"IF(COUNTBLANK(Sociodemograficos[[#This Row],[Nombres y Apellidos]])=0,Sociodemograficos[[#This Row],[Nombres y Apellidos]],\"\")","v":""}]
["",null,null,null,null,null,null,null,null,null,null,null,null,null,null,null,null,null,null,null,null,null,null,null,null,null,null,null,null,null,null,null,null,null,null,null,null,null,null,null,null,null,null,null,null,null,null,null,"","","",{"$f":"IF(COUNTBLANK(Sociodemograficos[[#This Row],[Nombres y Apellidos]])=0,Sociodemograficos[[#This Row],[Nombres y Apellidos]],\"\")","v":""}]
["",null,null,null,null,null,null,null,null,null,null,null,null,null,null,null,null,null,null,null,null,null,null,null,null,null,null,null,null,null,null,null,null,null,null,null,null,null,null,null,null,null,null,null,null,null,null,null,"","","",{"$f":"IF(COUNTBLANK(Sociodemograficos[[#This Row],[Nombres y Apellidos]])=0,Sociodemograficos[[#This Row],[Nombres y Apellidos]],\"\")","v":""}]
["",null,null,null,null,null,null,null,null,null,null,null,null,null,null,null,null,null,null,null,null,null,null,null,null,null,null,null,null,null,null,null,null,null,null,null,null,null,null,null,null,null,null,null,null,null,null,null,"","","",{"$f":"IF(COUNTBLANK(Sociodemograficos[[#This Row],[Nombres y Apellidos]])=0,Sociodemograficos[[#This Row],[Nombres y Apellidos]],\"\")","v":""}]
["",null,null,null,null,null,null,null,null,null,null,null,null,null,null,null,null,null,null,null,null,null,null,null,null,null,null,null,null,null,null,null,null,null,null,null,null,null,null,null,null,null,null,null,null,null,null,null,"","","",{"$f":"IF(COUNTBLANK(Sociodemograficos[[#This Row],[Nombres y Apellidos]])=0,Sociodemograficos[[#This Row],[Nombres y Apellidos]],\"\")","v":""}]
["",null,null,null,null,null,null,null,null,null,null,null,null,null,null,null,null,null,null,null,null,null,null,null,null,null,null,null,null,null,null,null,null,null,null,null,null,null,null,null,null,null,null,null,null,null,null,null,"","","",{"$f":"IF(COUNTBLANK(Sociodemograficos[[#This Row],[Nombres y Apellidos]])=0,Sociodemograficos[[#This Row],[Nombres y Apellidos]],\"\")","v":""}]
["",null,null,null,null,null,null,null,null,null,null,null,null,null,null,null,null,null,null,null,null,null,null,null,null,null,null,null,null,null,null,null,null,null,null,null,null,null,null,null,null,null,null,null,null,null,null,null,"","","",{"$f":"IF(COUNTBLANK(Sociodemograficos[[#This Row],[Nombres y Apellidos]])=0,Sociodemograficos[[#This Row],[Nombres y Apellidos]],\"\")","v":""}]
["",null,null,null,null,null,null,null,null,null,null,null,null,null,null,null,null,null,null,null,null,null,null,null,null,null,null,null,null,null,null,null,null,null,null,null,null,null,null,null,null,null,null,null,null,null,null,null,"","","",{"$f":"IF(COUNTBLANK(Sociodemograficos[[#This Row],[Nombres y Apellidos]])=0,Sociodemograficos[[#This Row],[Nombres y Apellidos]],\"\")","v":""}]
["",null,null,null,null,null,null,null,null,null,null,null,null,null,null,null,null,null,null,null,null,null,null,null,null,null,null,null,null,null,null,null,null,null,null,null,null,null,null,null,null,null,null,null,null,null,null,null,"","","",{"$f":"IF(COUNTBLANK(Sociodemograficos[[#This Row],[Nombres y Apellidos]])=0,Sociodemograficos[[#This Row],[Nombres y Apellidos]],\"\")","v":""}]
["",null,null,null,null,null,null,null,null,null,null,null,null,null,null,null,null,null,null,null,null,null,null,null,null,null,null,null,null,null,null,null,null,null,null,null,null,null,null,null,null,null,null,null,null,null,null,null,"","","",{"$f":"IF(COUNTBLANK(Sociodemograficos[[#This Row],[Nombres y Apellidos]])=0,Sociodemograficos[[#This Row],[Nombres y Apellidos]],\"\")","v":""}]
["",null,null,null,null,null,null,null,null,null,null,null,null,null,null,null,null,null,null,null,null,null,null,null,null,null,null,null,null,null,null,null,null,null,null,null,null,null,null,null,null,null,null,null,null,null,null,null,"","","",{"$f":"IF(COUNTBLANK(Sociodemograficos[[#This Row],[Nombres y Apellidos]])=0,Sociodemograficos[[#This Row],[Nombres y Apellidos]],\"\")","v":""}]
["",null,null,null,null,null,null,null,null,null,null,null,null,null,null,null,null,null,null,null,null,null,null,null,null,null,null,null,null,null,null,null,null,null,null,null,null,null,null,null,null,null,null,null,null,null,null,null,"","","",{"$f":"IF(COUNTBLANK(Sociodemograficos[[#This Row],[Nombres y Apellidos]])=0,Sociodemograficos[[#This Row],[Nombres y Apellidos]],\"\")","v":""}]
["",null,null,null,null,null,null,null,null,null,null,null,null,null,null,null,null,null,null,null,null,null,null,null,null,null,null,null,null,null,null,null,null,null,null,null,null,null,null,null,null,null,null,null,null,null,null,null,"","","",{"$f":"IF(COUNTBLANK(Sociodemograficos[[#This Row],[Nombres y Apellidos]])=0,Sociodemograficos[[#This Row],[Nombres y Apellidos]],\"\")","v":""}]
["",null,null,null,null,null,null,null,null,null,null,null,null,null,null,null,null,null,null,null,null,null,null,null,null,null,null,null,null,null,null,null,null,null,null,null,null,null,null,null,null,null,null,null,null,null,null,null,"","","",{"$f":"IF(COUNTBLANK(Sociodemograficos[[#This Row],[Nombres y Apellidos]])=0,Sociodemograficos[[#This Row],[Nombres y Apellidos]],\"\")","v":""}]
[null,null,null,null,null,null,null,null,null,null,null,null,null,null,null,null,null,null,null,null,null,null,null,null,null,null,null,null,null,null,null,null,null,null,null,null,null,null,null,null,null,null,null,null,null,null,null,null,null,null,null,{"$f":"IF(COUNTBLANK(Sociodemograficos[[#This Row],[Nombres y Apellidos]])=0,Sociodemograficos[[#This Row],[Nombres y Apellidos]],\"\")","v":""}]
[null,null,null,null,null,null,null,null,null,null,null,null,null,null,null,null,null,null,null,null,null,null,null,null,null,null,null,null,null,null,null,null,null,null,null,null,null,null,null,null,null,null,null,null,null,null,null,null,null,null,null,{"$f":"IF(COUNTBLANK(Sociodemograficos[[#This Row],[Nombres y Apellidos]])=0,Sociodemograficos[[#This Row],[Nombres y Apellidos]],\"\")","v":""}]
[null,null,null,null,null,null,null,null,null,null,null,null,null,null,null,null,null,null,null,null,null,null,null,null,null,null,null,null,null,null,null,null,null,null,null,null,null,null,null,null,null,null,null,null,null,null,null,null,null,null,null,{"$f":"IF(COUNTBLANK(Sociodemograficos[[#This Row],[Nombres y Apellidos]])=0,Sociodemograficos[[#This Row],[Nombres y Apellidos]],\"\")","v":""}]
[null,null,null,null,null,null,null,null,null,null,null,null,null,null,null,null,null,null,null,null,null,null,null,null,null,null,null,null,null,null,null,null,null,null,null,null,null,null,null,null,null,null,null,null,null,null,null,null,null,null,null,{"$f":"IF(COUNTBLANK(Sociodemograficos[[#This Row],[Nombres y Apellidos]])=0,Sociodemograficos[[#This Row],[Nombres y Apellidos]],\"\")","v":""}]
[null,null,null,null,null,null,null,null,null,null,null,null,null,null,null,null,null,null,null,null,null,null,null,null,null,null,null,null,null,null,null,null,null,null,null,null,null,null,null,null,null,null,null,null,null,null,null,null,null,null,null,{"$f":"IF(COUNTBLANK(Sociodemograficos[[#This Row],[Nombres y Apellidos]])=0,Sociodemograficos[[#This Row],[Nombres y Apellidos]],\"\")","v":""}]
[null,null,null,null,null,null,null,null,null,null,null,null,null,null,null,null,null,null,null,null,null,null,null,null,null,null,null,null,null,null,null,null,null,null,null,null,null,null,null,null,null,null,null,null,null,null,null,null,null,null,null,{"$f":"IF(COUNTBLANK(Sociodemograficos[[#This Row],[Nombres y Apellidos]])=0,Sociodemograficos[[#This Row],[Nombres y Apellidos]],\"\")","v":""}]
[null,null,null,null,null,null,null,null,null,null,null,null,null,null,null,null,null,null,null,null,null,null,null,null,null,null,null,null,null,null,null,null,null,null,null,null,null,null,null,null,null,null,null,null,null,null,null,null,null,null,null,{"$f":"IF(COUNTBLANK(Sociodemograficos[[#This Row],[Nombres y Apellidos]])=0,Sociodemograficos[[#This Row],[Nombres y Apellidos]],\"\")","v":""}]
[null,null,null,null,null,null,null,null,null,null,null,null,null,null,null,null,null,null,null,null,null,null,null,null,null,null,null,null,null,null,null,null,null,null,null,null,null,null,null,null,null,null,null,null,null,null,null,null,null,null,null,{"$f":"IF(COUNTBLANK(Sociodemograficos[[#This Row],[Nombres y Apellidos]])=0,Sociodemograficos[[#This Row],[Nombres y Apellidos]],\"\")","v":""}]
[null,null,null,null,null,null,null,null,null,null,null,null,null,null,null,null,null,null,null,null,null,null,null,null,null,null,null,null,null,null,null,null,null,null,null,null,null,null,null,null,null,null,null,null,null,null,null,null,null,null,null,{"$f":"IF(COUNTBLANK(Sociodemograficos[[#This Row],[Nombres y Apellidos]])=0,Sociodemograficos[[#This Row],[Nombres y Apellidos]],\"\")","v":""}]
[null,null,null,null,null,null,null,null,null,null,null,null,null,null,null,null,null,null,null,null,null,null,null,null,null,null,null,null,null,null,null,null,null,null,null,null,null,null,null,null,null,null,null,null,null,null,null,null,null,null,null,{"$f":"IF(COUNTBLANK(Sociodemograficos[[#This Row],[Nombres y Apellidos]])=0,Sociodemograficos[[#This Row],[Nombres y Apellidos]],\"\")","v":""}]
[null,null,null,null,null,null,null,null,null,null,null,null,null,null,null,null,null,null,null,null,null,null,null,null,null,null,null,null,null,null,null,null,null,null,null,null,null,null,null,null,null,null,null,null,null,null,null,null,null,null,null,{"$f":"IF(COUNTBLANK(Sociodemograficos[[#This Row],[Nombres y Apellidos]])=0,Sociodemograficos[[#This Row],[Nombres y Apellidos]],\"\")","v":""}]
[null,null,null,null,null,null,null,null,null,null,null,null,null,null,null,null,null,null,null,null,null,null,null,null,null,null,null,null,null,null,null,null,null,null,null,null,null,null,null,null,null,null,null,null,null,null,null,null,null,null,null,{"$f":"IF(COUNTBLANK(Sociodemograficos[[#This Row],[Nombres y Apellidos]])=0,Sociodemograficos[[#This Row],[Nombres y Apellidos]],\"\")","v":""}]
[null,null,null,null,null,null,null,null,null,null,null,null,null,null,null,null,null,null,null,null,null,null,null,null,null,null,null,null,null,null,null,null,null,null,null,null,null,null,null,null,null,null,null,null,null,null,null,null,null,null,null,{"$f":"IF(COUNTBLANK(Sociodemograficos[[#This Row],[Nombres y Apellidos]])=0,Sociodemograficos[[#This Row],[Nombres y Apellidos]],\"\")","v":""}]
[null,null,null,null,null,null,null,null,null,null,null,null,null,null,null,null,null,null,null,null,null,null,null,null,null,null,null,null,null,null,null,null,null,null,null,null,null,null,null,null,null,null,null,null,null,null,null,null,null,null,null,{"$f":"IF(COUNTBLANK(Sociodemograficos[[#This Row],[Nombres y Apellidos]])=0,Sociodemograficos[[#This Row],[Nombres y Apellidos]],\"\")","v":""}]
[null,null,null,null,null,null,null,null,null,null,null,null,null,null,null,null,null,null,null,null,null,null,null,null,null,null,null,null,null,null,null,null,null,null,null,null,null,null,null,null,null,null,null,null,null,null,null,null,null,null,null,{"$f":"IF(COUNTBLANK(Sociodemograficos[[#This Row],[Nombres y Apellidos]])=0,Sociodemograficos[[#This Row],[Nombres y Apellidos]],\"\")","v":""}]
[null,null,null,null,null,null,null,null,null,null,null,null,null,null,null,null,null,null,null,null,null,null,null,null,null,null,null,null,null,null,null,null,null,null,null,null,null,null,null,null,null,null,null,null,null,null,null,null,null,null,null,{"$f":"IF(COUNTBLANK(Sociodemograficos[[#This Row],[Nombres y Apellidos]])=0,Sociodemograficos[[#This Row],[Nombres y Apellidos]],\"\")","v":""}]
[null,null,null,null,null,null,null,null,null,null,null,null,null,null,null,null,null,null,null,null,null,null,null,null,null,null,null,null,null,null,null,null,null,null,null,null,null,null,null,null,null,null,null,null,null,null,null,null,null,null,null,{"$f":"IF(COUNTBLANK(Sociodemograficos[[#This Row],[Nombres y Apellidos]])=0,Sociodemograficos[[#This Row],[Nombres y Apellidos]],\"\")","v":""}]
[null,null,null,null,null,null,null,null,null,null,null,null,null,null,null,null,null,null,null,null,null,null,null,null,null,null,null,null,null,null,null,null,null,null,null,null,null,null,null,null,null,null,null,null,null,null,null,null,null,null,null,{"$f":"IF(COUNTBLANK(Sociodemograficos[[#This Row],[Nombres y Apellidos]])=0,Sociodemograficos[[#This Row],[Nombres y Apellidos]],\"\")","v":""}]
[null,null,null,null,null,null,null,null,null,null,null,null,null,null,null,null,null,null,null,null,null,null,null,null,null,null,null,null,null,null,null,null,null,null,null,null,null,null,null,null,null,null,null,null,null,null,null,null,null,null,null,{"$f":"IF(COUNTBLANK(Sociodemograficos[[#This Row],[Nombres y Apellidos]])=0,Sociodemograficos[[#This Row],[Nombres y Apellidos]],\"\")","v":""}]
[null,null,null,null,null,null,null,null,null,null,null,null,null,null,null,null,null,null,null,null,null,null,null,null,null,null,null,null,null,null,null,null,null,null,null,null,null,null,null,null,null,null,null,null,null,null,null,null,null,null,null,{"$f":"IF(COUNTBLANK(Sociodemograficos[[#This Row],[Nombres y Apellidos]])=0,Sociodemograficos[[#This Row],[Nombres y Apellidos]],\"\")","v":""}]
[null,null,null,null,null,null,null,null,null,null,null,null,null,null,null,null,null,null,null,null,null,null,null,null,null,null,null,null,null,null,null,null,null,null,null,null,null,null,null,null,null,null,null,null,null,null,null,null,null,null,null,{"$f":"IF(COUNTBLANK(Sociodemograficos[[#This Row],[Nombres y Apellidos]])=0,Sociodemograficos[[#This Row],[Nombres y Apellidos]],\"\")","v":""}]
[null,null,null,null,null,null,null,null,null,null,null,null,null,null,null,null,null,null,null,null,null,null,null,null,null,null,null,null,null,null,null,null,null,null,null,null,null,null,null,null,null,null,null,null,null,null,null,null,null,null,null,{"$f":"IF(COUNTBLANK(Sociodemograficos[[#This Row],[Nombres y Apellidos]])=0,Sociodemograficos[[#This Row],[Nombres y Apellidos]],\"\")","v":""}]
[null,null,null,null,null,null,null,null,null,null,null,null,null,null,null,null,null,null,null,null,null,null,null,null,null,null,null,null,null,null,null,null,null,null,null,null,null,null,null,null,null,null,null,null,null,null,null,null,null,null,null,{"$f":"IF(COUNTBLANK(Sociodemograficos[[#This Row],[Nombres y Apellidos]])=0,Sociodemograficos[[#This Row],[Nombres y Apellidos]],\"\")","v":""}]
[null,null,null,null,null,null,null,null,null,null,null,null,null,null,null,null,null,null,null,null,null,null,null,null,null,null,null,null,null,null,null,null,null,null,null,null,null,null,null,null,null,null,null,null,null,null,null,null,null,null,null,{"$f":"IF(COUNTBLANK(Sociodemograficos[[#This Row],[Nombres y Apellidos]])=0,Sociodemograficos[[#This Row],[Nombres y Apellidos]],\"\")","v":""}]
[null,null,null,null,null,null,null,null,null,null,null,null,null,null,null,null,null,null,null,null,null,null,null,null,null,null,null,null,null,null,null,null,null,null,null,null,null,null,null,null,null,null,null,null,null,null,null,null,null,null,null,{"$f":"IF(COUNTBLANK(Sociodemograficos[[#This Row],[Nombres y Apellidos]])=0,Sociodemograficos[[#This Row],[Nombres y Apellidos]],\"\")","v":""}]
[null,null,null,null,null,null,null,null,null,null,null,null,null,null,null,null,null,null,null,null,null,null,null,null,null,null,null,null,null,null,null,null,null,null,null,null,null,null,null,null,null,null,null,null,null,null,null,null,null,null,null,{"$f":"IF(COUNTBLANK(Sociodemograficos[[#This Row],[Nombres y Apellidos]])=0,Sociodemograficos[[#This Row],[Nombres y Apellidos]],\"\")","v":""}]
[null,null,null,null,null,null,null,null,null,null,null,null,null,null,null,null,null,null,null,null,null,null,null,null,null,null,null,null,null,null,null,null,null,null,null,null,null,null,null,null,null,null,null,null,null,null,null,null,null,null,null,{"$f":"IF(COUNTBLANK(Sociodemograficos[[#This Row],[Nombres y Apellidos]])=0,Sociodemograficos[[#This Row],[Nombres y Apellidos]],\"\")","v":""}]
[null,null,null,null,null,null,null,null,null,null,null,null,null,null,null,null,null,null,null,null,null,null,null,null,null,null,null,null,null,null,null,null,null,null,null,null,null,null,null,null,null,null,null,null,null,null,null,null,null,null,null,{"$f":"IF(COUNTBLANK(Sociodemograficos[[#This Row],[Nombres y Apellidos]])=0,Sociodemograficos[[#This Row],[Nombres y Apellidos]],\"\")","v":""}]
[null,null,null,null,null,null,null,null,null,null,null,null,null,null,null,null,null,null,null,null,null,null,null,null,null,null,null,null,null,null,null,null,null,null,null,null,null,null,null,null,null,null,null,null,null,null,null,null,null,null,null,{"$f":"IF(COUNTBLANK(Sociodemograficos[[#This Row],[Nombres y Apellidos]])=0,Sociodemograficos[[#This Row],[Nombres y Apellidos]],\"\")","v":""}]
[null,null,null,null,null,null,null,null,null,null,null,null,null,null,null,null,null,null,null,null,null,null,null,null,null,null,null,null,null,null,null,null,null,null,null,null,null,null,null,null,null,null,null,null,null,null,null,null,null,null,null,{"$f":"IF(COUNTBLANK(Sociodemograficos[[#This Row],[Nombres y Apellidos]])=0,Sociodemograficos[[#This Row],[Nombres y Apellidos]],\"\")","v":""}]
[null,null,null,null,null,null,null,null,null,null,null,null,null,null,null,null,null,null,null,null,null,null,null,null,null,null,null,null,null,null,null,null,null,null,null,null,null,null,null,null,null,null,null,null,null,null,null,null,null,null,null,{"$f":"IF(COUNTBLANK(Sociodemograficos[[#This Row],[Nombres y Apellidos]])=0,Sociodemograficos[[#This Row],[Nombres y Apellidos]],\"\")","v":""}]
[null,null,null,null,null,null,null,null,null,null,null,null,null,null,null,null,null,null,null,null,null,null,null,null,null,null,null,null,null,null,null,null,null,null,null,null,null,null,null,null,null,null,null,null,null,null,null,null,null,null,null,{"$f":"IF(COUNTBLANK(Sociodemograficos[[#This Row],[Nombres y Apellidos]])=0,Sociodemograficos[[#This Row],[Nombres y Apellidos]],\"\")","v":""}]
[null,null,null,null,null,null,null,null,null,null,null,null,null,null,null,null,null,null,null,null,null,null,null,null,null,null,null,null,null,null,null,null,null,null,null,null,null,null,null,null,null,null,null,null,null,null,null,null,null,null,null,{"$f":"IF(COUNTBLANK(Sociodemograficos[[#This Row],[Nombres y Apellidos]])=0,Sociodemograficos[[#This Row],[Nombres y Apellidos]],\"\")","v":""}]
[null,null,null,null,null,null,null,null,null,null,null,null,null,null,null,null,null,null,null,null,null,null,null,null,null,null,null,null,null,null,null,null,null,null,null,null,null,null,null,null,null,null,null,null,null,null,null,null,null,null,null,{"$f":"IF(COUNTBLANK(Sociodemograficos[[#This Row],[Nombres y Apellidos]])=0,Sociodemograficos[[#This Row],[Nombres y Apellidos]],\"\")","v":""}]
[null,null,null,null,null,null,null,null,null,null,null,null,null,null,null,null,null,null,null,null,null,null,null,null,null,null,null,null,null,null,null,null,null,null,null,null,null,null,null,null,null,null,null,null,null,null,null,null,null,null,null,{"$f":"IF(COUNTBLANK(Sociodemograficos[[#This Row],[Nombres y Apellidos]])=0,Sociodemograficos[[#This Row],[Nombres y Apellidos]],\"\")","v":""}]
[null,null,null,null,null,null,null,null,null,null,null,null,null,null,null,null,null,null,null,null,null,null,null,null,null,null,null,null,null,null,null,null,null,null,null,null,null,null,null,null,null,null,null,null,null,null,null,null,null,null,null,{"$f":"IF(COUNTBLANK(Sociodemograficos[[#This Row],[Nombres y Apellidos]])=0,Sociodemograficos[[#This Row],[Nombres y Apellidos]],\"\")","v":""}]
[null,null,null,null,null,null,null,null,null,null,null,null,null,null,null,null,null,null,null,null,null,null,null,null,null,null,null,null,null,null,null,null,null,null,null,null,null,null,null,null,null,null,null,null,null,null,null,null,null,null,null,{"$f":"IF(COUNTBLANK(Sociodemograficos[[#This Row],[Nombres y Apellidos]])=0,Sociodemograficos[[#This Row],[Nombres y Apellidos]],\"\")","v":""}]
[null,null,null,null,null,null,null,null,null,null,null,null,null,null,null,null,null,null,null,null,null,null,null,null,null,null,null,null,null,null,null,null,null,null,null,null,null,null,null,null,null,null,null,null,null,null,null,null,null,null,null,{"$f":"IF(COUNTBLANK(Sociodemograficos[[#This Row],[Nombres y Apellidos]])=0,Sociodemograficos[[#This Row],[Nombres y Apellidos]],\"\")","v":""}]
[null,null,null,null,null,null,null,null,null,null,null,null,null,null,null,null,null,null,null,null,null,null,null,null,null,null,null,null,null,null,null,null,null,null,null,null,null,null,null,null,null,null,null,null,null,null,null,null,null,null,null,{"$f":"IF(COUNTBLANK(Sociodemograficos[[#This Row],[Nombres y Apellidos]])=0,Sociodemograficos[[#This Row],[Nombres y Apellidos]],\"\")","v":""}]
[null,null,null,null,null,null,null,null,null,null,null,null,null,null,null,null,null,null,null,null,null,null,null,null,null,null,null,null,null,null,null,null,null,null,null,null,null,null,null,null,null,null,null,null,null,null,null,null,null,null,null,{"$f":"IF(COUNTBLANK(Sociodemograficos[[#This Row],[Nombres y Apellidos]])=0,Sociodemograficos[[#This Row],[Nombres y Apellidos]],\"\")","v":""}]
[null,null,null,null,null,null,null,null,null,null,null,null,null,null,null,null,null,null,null,null,null,null,null,null,null,null,null,null,null,null,null,null,null,null,null,null,null,null,null,null,null,null,null,null,null,null,null,null,null,null,null,{"$f":"IF(COUNTBLANK(Sociodemograficos[[#This Row],[Nombres y Apellidos]])=0,Sociodemograficos[[#This Row],[Nombres y Apellidos]],\"\")","v":""}]
[null,null,null,null,null,null,null,null,null,null,null,null,null,null,null,null,null,null,null,null,null,null,null,null,null,null,null,null,null,null,null,null,null,null,null,null,null,null,null,null,null,null,null,null,null,null,null,null,null,null,null,{"$f":"IF(COUNTBLANK(Sociodemograficos[[#This Row],[Nombres y Apellidos]])=0,Sociodemograficos[[#This Row],[Nombres y Apellidos]],\"\")","v":""}]
[null,null,null,null,null,null,null,null,null,null,null,null,null,null,null,null,null,null,null,null,null,null,null,null,null,null,null,null,null,null,null,null,null,null,null,null,null,null,null,null,null,null,null,null,null,null,null,null,null,null,null,{"$f":"IF(COUNTBLANK(Sociodemograficos[[#This Row],[Nombres y Apellidos]])=0,Sociodemograficos[[#This Row],[Nombres y Apellidos]],\"\")","v":""}]
[null,null,null,null,null,null,null,null,null,null,null,null,null,null,null,null,null,null,null,null,null,null,null,null,null,null,null,null,null,null,null,null,null,null,null,null,null,null,null,null,null,null,null,null,null,null,null,null,null,null,null,{"$f":"IF(COUNTBLANK(Sociodemograficos[[#This Row],[Nombres y Apellidos]])=0,Sociodemograficos[[#This Row],[Nombres y Apellidos]],\"\")","v":""}]
[null,null,null,null,null,null,null,null,null,null,null,null,null,null,null,null,null,null,null,null,null,null,null,null,null,null,null,null,null,null,null,null,null,null,null,null,null,null,null,null,null,null,null,null,null,null,null,null,null,null,null,{"$f":"IF(COUNTBLANK(Sociodemograficos[[#This Row],[Nombres y Apellidos]])=0,Sociodemograficos[[#This Row],[Nombres y Apellidos]],\"\")","v":""}]
[null,null,null,null,null,null,null,null,null,null,null,null,null,null,null,null,null,null,null,null,null,null,null,null,null,null,null,null,null,null,null,null,null,null,null,null,null,null,null,null,null,null,null,null,null,null,null,null,null,null,null,{"$f":"IF(COUNTBLANK(Sociodemograficos[[#This Row],[Nombres y Apellidos]])=0,Sociodemograficos[[#This Row],[Nombres y Apellidos]],\"\")","v":""}]
[null,null,null,null,null,null,null,null,null,null,null,null,null,null,null,null,null,null,null,null,null,null,null,null,null,null,null,null,null,null,null,null,null,null,null,null,null,null,null,null,null,null,null,null,null,null,null,null,null,null,null,{"$f":"IF(COUNTBLANK(Sociodemograficos[[#This Row],[Nombres y Apellidos]])=0,Sociodemograficos[[#This Row],[Nombres y Apellidos]],\"\")","v":""}]
[null,null,null,null,null,null,null,null,null,null,null,null,null,null,null,null,null,null,null,null,null,null,null,null,null,null,null,null,null,null,null,null,null,null,null,null,null,null,null,null,null,null,null,null,null,null,null,null,null,null,null,{"$f":"IF(COUNTBLANK(Sociodemograficos[[#This Row],[Nombres y Apellidos]])=0,Sociodemograficos[[#This Row],[Nombres y Apellidos]],\"\")","v":""}]
[null,null,null,null,null,null,null,null,null,null,null,null,null,null,null,null,null,null,null,null,null,null,null,null,null,null,null,null,null,null,null,null,null,null,null,null,null,null,null,null,null,null,null,null,null,null,null,null,null,null,null,{"$f":"IF(COUNTBLANK(Sociodemograficos[[#This Row],[Nombres y Apellidos]])=0,Sociodemograficos[[#This Row],[Nombres y Apellidos]],\"\")","v":""}]
[null,null,null,null,null,null,null,null,null,null,null,null,null,null,null,null,null,null,null,null,null,null,null,null,null,null,null,null,null,null,null,null,null,null,null,null,null,null,null,null,null,null,null,null,null,null,null,null,null,null,null,{"$f":"IF(COUNTBLANK(Sociodemograficos[[#This Row],[Nombres y Apellidos]])=0,Sociodemograficos[[#This Row],[Nombres y Apellidos]],\"\")","v":""}]
[null,null,null,null,null,null,null,null,null,null,null,null,null,null,null,null,null,null,null,null,null,null,null,null,null,null,null,null,null,null,null,null,null,null,null,null,null,null,null,null,null,null,null,null,null,null,null,null,null,null,null,{"$f":"IF(COUNTBLANK(Sociodemograficos[[#This Row],[Nombres y Apellidos]])=0,Sociodemograficos[[#This Row],[Nombres y Apellidos]],\"\")","v":""}]
[null,null,null,null,null,null,null,null,null,null,null,null,null,null,null,null,null,null,null,null,null,null,null,null,null,null,null,null,null,null,null,null,null,null,null,null,null,null,null,null,null,null,null,null,null,null,null,null,null,null,null,{"$f":"IF(COUNTBLANK(Sociodemograficos[[#This Row],[Nombres y Apellidos]])=0,Sociodemograficos[[#This Row],[Nombres y Apellidos]],\"\")","v":""}]
[null,null,null,null,null,null,null,null,null,null,null,null,null,null,null,null,null,null,null,null,null,null,null,null,null,null,null,null,null,null,null,null,null,null,null,null,null,null,null,null,null,null,null,null,null,null,null,null,null,null,null,{"$f":"IF(COUNTBLANK(Sociodemograficos[[#This Row],[Nombres y Apellidos]])=0,Sociodemograficos[[#This Row],[Nombres y Apellidos]],\"\")","v":""}]
[null,null,null,null,null,null,null,null,null,null,null,null,null,null,null,null,null,null,null,null,null,null,null,null,null,null,null,null,null,null,null,null,null,null,null,null,null,null,null,null,null,null,null,null,null,null,null,null,null,null,null,{"$f":"IF(COUNTBLANK(Sociodemograficos[[#This Row],[Nombres y Apellidos]])=0,Sociodemograficos[[#This Row],[Nombres y Apellidos]],\"\")","v":""}]
[null,null,null,null,null,null,null,null,null,null,null,null,null,null,null,null,null,null,null,null,null,null,null,null,null,null,null,null,null,null,null,null,null,null,null,null,null,null,null,null,null,null,null,null,null,null,null,null,null,null,null,{"$f":"IF(COUNTBLANK(Sociodemograficos[[#This Row],[Nombres y Apellidos]])=0,Sociodemograficos[[#This Row],[Nombres y Apellidos]],\"\")","v":""}]
[null,null,null,null,null,null,null,null,null,null,null,null,null,null,null,null,null,null,null,null,null,null,null,null,null,null,null,null,null,null,null,null,null,null,null,null,null,null,null,null,null,null,null,null,null,null,null,null,null,null,null,{"$f":"IF(COUNTBLANK(Sociodemograficos[[#This Row],[Nombres y Apellidos]])=0,Sociodemograficos[[#This Row],[Nombres y Apellidos]],\"\")","v":""}]
[null,null,null,null,null,null,null,null,null,null,null,null,null,null,null,null,null,null,null,null,null,null,null,null,null,null,null,null,null,null,null,null,null,null,null,null,null,null,null,null,null,null,null,null,null,null,null,null,null,null,null,{"$f":"IF(COUNTBLANK(Sociodemograficos[[#This Row],[Nombres y Apellidos]])=0,Sociodemograficos[[#This Row],[Nombres y Apellidos]],\"\")","v":""}]
[null,null,null,null,null,null,null,null,null,null,null,null,null,null,null,null,null,null,null,null,null,null,null,null,null,null,null,null,null,null,null,null,null,null,null,null,null,null,null,null,null,null,null,null,null,null,null,null,null,null,null,{"$f":"IF(COUNTBLANK(Sociodemograficos[[#This Row],[Nombres y Apellidos]])=0,Sociodemograficos[[#This Row],[Nombres y Apellidos]],\"\")","v":""}]
[null,null,null,null,null,null,null,null,null,null,null,null,null,null,null,null,null,null,null,null,null,null,null,null,null,null,null,null,null,null,null,null,null,null,null,null,null,null,null,null,null,null,null,null,null,null,null,null,null,null,null,{"$f":"IF(COUNTBLANK(Sociodemograficos[[#This Row],[Nombres y Apellidos]])=0,Sociodemograficos[[#This Row],[Nombres y Apellidos]],\"\")","v":""}]
[null,null,null,null,null,null,null,null,null,null,null,null,null,null,null,null,null,null,null,null,null,null,null,null,null,null,null,null,null,null,null,null,null,null,null,null,null,null,null,null,null,null,null,null,null,null,null,null,null,null,null,{"$f":"IF(COUNTBLANK(Sociodemograficos[[#This Row],[Nombres y Apellidos]])=0,Sociodemograficos[[#This Row],[Nombres y Apellidos]],\"\")","v":""}]
[null,null,null,null,null,null,null,null,null,null,null,null,null,null,null,null,null,null,null,null,null,null,null,null,null,null,null,null,null,null,null,null,null,null,null,null,null,null,null,null,null,null,null,null,null,null,null,null,null,null,null,{"$f":"IF(COUNTBLANK(Sociodemograficos[[#This Row],[Nombres y Apellidos]])=0,Sociodemograficos[[#This Row],[Nombres y Apellidos]],\"\")","v":""}]
[null,null,null,null,null,null,null,null,null,null,null,null,null,null,null,null,null,null,null,null,null,null,null,null,null,null,null,null,null,null,null,null,null,null,null,null,null,null,null,null,null,null,null,null,null,null,null,null,null,null,null,{"$f":"IF(COUNTBLANK(Sociodemograficos[[#This Row],[Nombres y Apellidos]])=0,Sociodemograficos[[#This Row],[Nombres y Apellidos]],\"\")","v":""}]
[null,null,null,null,null,null,null,null,null,null,null,null,null,null,null,null,null,null,null,null,null,null,null,null,null,null,null,null,null,null,null,null,null,null,null,null,null,null,null,null,null,null,null,null,null,null,null,null,null,null,null,{"$f":"IF(COUNTBLANK(Sociodemograficos[[#This Row],[Nombres y Apellidos]])=0,Sociodemograficos[[#This Row],[Nombres y Apellidos]],\"\")","v":""}]
[null,null,null,null,null,null,null,null,null,null,null,null,null,null,null,null,null,null,null,null,null,null,null,null,null,null,null,null,null,null,null,null,null,null,null,null,null,null,null,null,null,null,null,null,null,null,null,null,null,null,null,{"$f":"IF(COUNTBLANK(Sociodemograficos[[#This Row],[Nombres y Apellidos]])=0,Sociodemograficos[[#This Row],[Nombres y Apellidos]],\"\")","v":""}]
[null,null,null,null,null,null,null,null,null,null,null,null,null,null,null,null,null,null,null,null,null,null,null,null,null,null,null,null,null,null,null,null,null,null,null,null,null,null,null,null,null,null,null,null,null,null,null,null,null,null,null,{"$f":"IF(COUNTBLANK(Sociodemograficos[[#This Row],[Nombres y Apellidos]])=0,Sociodemograficos[[#This Row],[Nombres y Apellidos]],\"\")","v":""}]
[null,null,null,null,null,null,null,null,null,null,null,null,null,null,null,null,null,null,null,null,null,null,null,null,null,null,null,null,null,null,null,null,null,null,null,null,null,null,null,null,null,null,null,null,null,null,null,null,null,null,null,{"$f":"IF(COUNTBLANK(Sociodemograficos[[#This Row],[Nombres y Apellidos]])=0,Sociodemograficos[[#This Row],[Nombres y Apellidos]],\"\")","v":""}]
[null,null,null,null,null,null,null,null,null,null,null,null,null,null,null,null,null,null,null,null,null,null,null,null,null,null,null,null,null,null,null,null,null,null,null,null,null,null,null,null,null,null,null,null,null,null,null,null,null,null,null,{"$f":"IF(COUNTBLANK(Sociodemograficos[[#This Row],[Nombres y Apellidos]])=0,Sociodemograficos[[#This Row],[Nombres y Apellidos]],\"\")","v":""}]
[null,null,null,null,null,null,null,null,null,null,null,null,null,null,null,null,null,null,null,null,null,null,null,null,null,null,null,null,null,null,null,null,null,null,null,null,null,null,null,null,null,null,null,null,null,null,null,null,null,null,null,{"$f":"IF(COUNTBLANK(Sociodemograficos[[#This Row],[Nombres y Apellidos]])=0,Sociodemograficos[[#This Row],[Nombres y Apellidos]],\"\")","v":""}]
[null,null,null,null,null,null,null,null,null,null,null,null,null,null,null,null,null,null,null,null,null,null,null,null,null,null,null,null,null,null,null,null,null,null,null,null,null,null,null,null,null,null,null,null,null,null,null,null,null,null,null,{"$f":"IF(COUNTBLANK(Sociodemograficos[[#This Row],[Nombres y Apellidos]])=0,Sociodemograficos[[#This Row],[Nombres y Apellidos]],\"\")","v":""}]
[null,null,null,null,null,null,null,null,null,null,null,null,null,null,null,null,null,null,null,null,null,null,null,null,null,null,null,null,null,null,null,null,null,null,null,null,null,null,null,null,null,null,null,null,null,null,null,null,null,null,null,{"$f":"IF(COUNTBLANK(Sociodemograficos[[#This Row],[Nombres y Apellidos]])=0,Sociodemograficos[[#This Row],[Nombres y Apellidos]],\"\")","v":""}]
[null,null,null,null,null,null,null,null,null,null,null,null,null,null,null,null,null,null,null,null,null,null,null,null,null,null,null,null,null,null,null,null,null,null,null,null,null,null,null,null,null,null,null,null,null,null,null,null,null,null,null,{"$f":"IF(COUNTBLANK(Sociodemograficos[[#This Row],[Nombres y Apellidos]])=0,Sociodemograficos[[#This Row],[Nombres y Apellidos]],\"\")","v":""}]
[null,null,null,null,null,null,null,null,null,null,null,null,null,null,null,null,null,null,null,null,null,null,null,null,null,null,null,null,null,null,null,null,null,null,null,null,null,null,null,null,null,null,null,null,null,null,null,null,null,null,null,{"$f":"IF(COUNTBLANK(Sociodemograficos[[#This Row],[Nombres y Apellidos]])=0,Sociodemograficos[[#This Row],[Nombres y Apellidos]],\"\")","v":""}]
[null,null,null,null,null,null,null,null,null,null,null,null,null,null,null,null,null,null,null,null,null,null,null,null,null,null,null,null,null,null,null,null,null,null,null,null,null,null,null,null,null,null,null,null,null,null,null,null,null,null,null,{"$f":"IF(COUNTBLANK(Sociodemograficos[[#This Row],[Nombres y Apellidos]])=0,Sociodemograficos[[#This Row],[Nombres y Apellidos]],\"\")","v":""}]
[null,null,null,null,null,null,null,null,null,null,null,null,null,null,null,null,null,null,null,null,null,null,null,null,null,null,null,null,null,null,null,null,null,null,null,null,null,null,null,null,null,null,null,null,null,null,null,null,null,null,null,{"$f":"IF(COUNTBLANK(Sociodemograficos[[#This Row],[Nombres y Apellidos]])=0,Sociodemograficos[[#This Row],[Nombres y Apellidos]],\"\")","v":""}]
[null,null,null,null,null,null,null,null,null,null,null,null,null,null,null,null,null,null,null,null,null,null,null,null,null,null,null,null,null,null,null,null,null,null,null,null,null,null,null,null,null,null,null,null,null,null,null,null,null,null,null,{"$f":"IF(COUNTBLANK(Sociodemograficos[[#This Row],[Nombres y Apellidos]])=0,Sociodemograficos[[#This Row],[Nombres y Apellidos]],\"\")","v":""}]
[null,null,null,null,null,null,null,null,null,null,null,null,null,null,null,null,null,null,null,null,null,null,null,null,null,null,null,null,null,null,null,null,null,null,null,null,null,null,null,null,null,null,null,null,null,null,null,null,null,null,null,{"$f":"IF(COUNTBLANK(Sociodemograficos[[#This Row],[Nombres y Apellidos]])=0,Sociodemograficos[[#This Row],[Nombres y Apellidos]],\"\")","v":""}]
[null,null,null,null,null,null,null,null,null,null,null,null,null,null,null,null,null,null,null,null,null,null,null,null,null,null,null,null,null,null,null,null,null,null,null,null,null,null,null,null,null,null,null,null,null,null,null,null,null,null,null,{"$f":"IF(COUNTBLANK(Sociodemograficos[[#This Row],[Nombres y Apellidos]])=0,Sociodemograficos[[#This Row],[Nombres y Apellidos]],\"\")","v":""}]
[null,null,null,null,null,null,null,null,null,null,null,null,null,null,null,null,null,null,null,null,null,null,null,null,null,null,null,null,null,null,null,null,null,null,null,null,null,null,null,null,null,null,null,null,null,null,null,null,null,null,null,{"$f":"IF(COUNTBLANK(Sociodemograficos[[#This Row],[Nombres y Apellidos]])=0,Sociodemograficos[[#This Row],[Nombres y Apellidos]],\"\")","v":""}]
[null,null,null,null,null,null,null,null,null,null,null,null,null,null,null,null,null,null,null,null,null,null,null,null,null,null,null,null,null,null,null,null,null,null,null,null,null,null,null,null,null,null,null,null,null,null,null,null,null,null,null,{"$f":"IF(COUNTBLANK(Sociodemograficos[[#This Row],[Nombres y Apellidos]])=0,Sociodemograficos[[#This Row],[Nombres y Apellidos]],\"\")","v":""}]
[null,null,null,null,null,null,null,null,null,null,null,null,null,null,null,null,null,null,null,null,null,null,null,null,null,null,null,null,null,null,null,null,null,null,null,null,null,null,null,null,null,null,null,null,null,null,null,null,null,null,null,{"$f":"IF(COUNTBLANK(Sociodemograficos[[#This Row],[Nombres y Apellidos]])=0,Sociodemograficos[[#This Row],[Nombres y Apellidos]],\"\")","v":""}]
[null,null,null,null,null,null,null,null,null,null,null,null,null,null,null,null,null,null,null,null,null,null,null,null,null,null,null,null,null,null,null,null,null,null,null,null,null,null,null,null,null,null,null,null,null,null,null,null,null,null,null,{"$f":"IF(COUNTBLANK(Sociodemograficos[[#This Row],[Nombres y Apellidos]])=0,Sociodemograficos[[#This Row],[Nombres y Apellidos]],\"\")","v":""}]
[null,null,null,null,null,null,null,null,null,null,null,null,null,null,null,null,null,null,null,null,null,null,null,null,null,null,null,null,null,null,null,null,null,null,null,null,null,null,null,null,null,null,null,null,null,null,null,null,null,null,null,{"$f":"IF(COUNTBLANK(Sociodemograficos[[#This Row],[Nombres y Apellidos]])=0,Sociodemograficos[[#This Row],[Nombres y Apellidos]],\"\")","v":""}]
[null,null,null,null,null,null,null,null,null,null,null,null,null,null,null,null,null,null,null,null,null,null,null,null,null,null,null,null,null,null,null,null,null,null,null,null,null,null,null,null,null,null,null,null,null,null,null,null,null,null,null,{"$f":"IF(COUNTBLANK(Sociodemograficos[[#This Row],[Nombres y Apellidos]])=0,Sociodemograficos[[#This Row],[Nombres y Apellidos]],\"\")","v":""}]
[null,null,null,null,null,null,null,null,null,null,null,null,null,null,null,null,null,null,null,null,null,null,null,null,null,null,null,null,null,null,null,null,null,null,null,null,null,null,null,null,null,null,null,null,null,null,null,null,null,null,null,{"$f":"IF(COUNTBLANK(Sociodemograficos[[#This Row],[Nombres y Apellidos]])=0,Sociodemograficos[[#This Row],[Nombres y Apellidos]],\"\")","v":""}]
[null,null,null,null,null,null,null,null,null,null,null,null,null,null,null,null,null,null,null,null,null,null,null,null,null,null,null,null,null,null,null,null,null,null,null,null,null,null,null,null,null,null,null,null,null,null,null,null,null,null,null,{"$f":"IF(COUNTBLANK(Sociodemograficos[[#This Row],[Nombres y Apellidos]])=0,Sociodemograficos[[#This Row],[Nombres y Apellidos]],\"\")","v":""}]
[null,null,null,null,null,null,null,null,null,null,null,null,null,null,null,null,null,null,null,null,null,null,null,null,null,null,null,null,null,null,null,null,null,null,null,null,null,null,null,null,null,null,null,null,null,null,null,null,null,null,null,{"$f":"IF(COUNTBLANK(Sociodemograficos[[#This Row],[Nombres y Apellidos]])=0,Sociodemograficos[[#This Row],[Nombres y Apellidos]],\"\")","v":""}]
[null,null,null,null,null,null,null,null,null,null,null,null,null,null,null,null,null,null,null,null,null,null,null,null,null,null,null,null,null,null,null,null,null,null,null,null,null,null,null,null,null,null,null,null,null,null,null,null,null,null,null,{"$f":"IF(COUNTBLANK(Sociodemograficos[[#This Row],[Nombres y Apellidos]])=0,Sociodemograficos[[#This Row],[Nombres y Apellidos]],\"\")","v":""}]
[null,null,null,null,null,null,null,null,null,null,null,null,null,null,null,null,null,null,null,null,null,null,null,null,null,null,null,null,null,null,null,null,null,null,null,null,null,null,null,null,null,null,null,null,null,null,null,null,null,null,null,{"$f":"IF(COUNTBLANK(Sociodemograficos[[#This Row],[Nombres y Apellidos]])=0,Sociodemograficos[[#This Row],[Nombres y Apellidos]],\"\")","v":""}]
[null,null,null,null,null,null,null,null,null,null,null,null,null,null,null,null,null,null,null,null,null,null,null,null,null,null,null,null,null,null,null,null,null,null,null,null,null,null,null,null,null,null,null,null,null,null,null,null,null,null,null,{"$f":"IF(COUNTBLANK(Sociodemograficos[[#This Row],[Nombres y Apellidos]])=0,Sociodemograficos[[#This Row],[Nombres y Apellidos]],\"\")","v":""}]
[null,null,null,null,null,null,null,null,null,null,null,null,null,null,null,null,null,null,null,null,null,null,null,null,null,null,null,null,null,null,null,null,null,null,null,null,null,null,null,null,null,null,null,null,null,null,null,null,null,null,null,{"$f":"IF(COUNTBLANK(Sociodemograficos[[#This Row],[Nombres y Apellidos]])=0,Sociodemograficos[[#This Row],[Nombres y Apellidos]],\"\")","v":""}]
[null,null,null,null,null,null,null,null,null,null,null,null,null,null,null,null,null,null,null,null,null,null,null,null,null,null,null,null,null,null,null,null,null,null,null,null,null,null,null,null,null,null,null,null,null,null,null,null,null,null,null,{"$f":"IF(COUNTBLANK(Sociodemograficos[[#This Row],[Nombres y Apellidos]])=0,Sociodemograficos[[#This Row],[Nombres y Apellidos]],\"\")","v":""}]
[null,null,null,null,null,null,null,null,null,null,null,null,null,null,null,null,null,null,null,null,null,null,null,null,null,null,null,null,null,null,null,null,null,null,null,null,null,null,null,null,null,null,null,null,null,null,null,null,null,null,null,{"$f":"IF(COUNTBLANK(Sociodemograficos[[#This Row],[Nombres y Apellidos]])=0,Sociodemograficos[[#This Row],[Nombres y Apellidos]],\"\")","v":""}]
[null,null,null,null,null,null,null,null,null,null,null,null,null,null,null,null,null,null,null,null,null,null,null,null,null,null,null,null,null,null,null,null,null,null,null,null,null,null,null,null,null,null,null,null,null,null,null,null,null,null,null,{"$f":"IF(COUNTBLANK(Sociodemograficos[[#This Row],[Nombres y Apellidos]])=0,Sociodemograficos[[#This Row],[Nombres y Apellidos]],\"\")","v":""}]
[null,null,null,null,null,null,null,null,null,null,null,null,null,null,null,null,null,null,null,null,null,null,null,null,null,null,null,null,null,null,null,null,null,null,null,null,null,null,null,null,null,null,null,null,null,null,null,null,null,null,null,{"$f":"IF(COUNTBLANK(Sociodemograficos[[#This Row],[Nombres y Apellidos]])=0,Sociodemograficos[[#This Row],[Nombres y Apellidos]],\"\")","v":""}]
[null,null,null,null,null,null,null,null,null,null,null,null,null,null,null,null,null,null,null,null,null,null,null,null,null,null,null,null,null,null,null,null,null,null,null,null,null,null,null,null,null,null,null,null,null,null,null,null,null,null,null,{"$f":"IF(COUNTBLANK(Sociodemograficos[[#This Row],[Nombres y Apellidos]])=0,Sociodemograficos[[#This Row],[Nombres y Apellidos]],\"\")","v":""}]
[null,null,null,null,null,null,null,null,null,null,null,null,null,null,null,null,null,null,null,null,null,null,null,null,null,null,null,null,null,null,null,null,null,null,null,null,null,null,null,null,null,null,null,null,null,null,null,null,null,null,null,{"$f":"IF(COUNTBLANK(Sociodemograficos[[#This Row],[Nombres y Apellidos]])=0,Sociodemograficos[[#This Row],[Nombres y Apellidos]],\"\")","v":""}]
[null,null,null,null,null,null,null,null,null,null,null,null,null,null,null,null,null,null,null,null,null,null,null,null,null,null,null,null,null,null,null,null,null,null,null,null,null,null,null,null,null,null,null,null,null,null,null,null,null,null,null,{"$f":"IF(COUNTBLANK(Sociodemograficos[[#This Row],[Nombres y Apellidos]])=0,Sociodemograficos[[#This Row],[Nombres y Apellidos]],\"\")","v":""}]
[null,null,null,null,null,null,null,null,null,null,null,null,null,null,null,null,null,null,null,null,null,null,null,null,null,null,null,null,null,null,null,null,null,null,null,null,null,null,null,null,null,null,null,null,null,null,null,null,null,null,null,{"$f":"IF(COUNTBLANK(Sociodemograficos[[#This Row],[Nombres y Apellidos]])=0,Sociodemograficos[[#This Row],[Nombres y Apellidos]],\"\")","v":""}]
[null,null,null,null,null,null,null,null,null,null,null,null,null,null,null,null,null,null,null,null,null,null,null,null,null,null,null,null,null,null,null,null,null,null,null,null,null,null,null,null,null,null,null,null,null,null,null,null,null,null,null,{"$f":"IF(COUNTBLANK(Sociodemograficos[[#This Row],[Nombres y Apellidos]])=0,Sociodemograficos[[#This Row],[Nombres y Apellidos]],\"\")","v":""}]
[null,null,null,null,null,null,null,null,null,null,null,null,null,null,null,null,null,null,null,null,null,null,null,null,null,null,null,null,null,null,null,null,null,null,null,null,null,null,null,null,null,null,null,null,null,null,null,null,null,null,null,{"$f":"IF(COUNTBLANK(Sociodemograficos[[#This Row],[Nombres y Apellidos]])=0,Sociodemograficos[[#This Row],[Nombres y Apellidos]],\"\")","v":""}]
[null,null,null,null,null,null,null,null,null,null,null,null,null,null,null,null,null,null,null,null,null,null,null,null,null,null,null,null,null,null,null,null,null,null,null,null,null,null,null,null,null,null,null,null,null,null,null,null,null,null,null,{"$f":"IF(COUNTBLANK(Sociodemograficos[[#This Row],[Nombres y Apellidos]])=0,Sociodemograficos[[#This Row],[Nombres y Apellidos]],\"\")","v":""}]
[null,null,null,null,null,null,null,null,null,null,null,null,null,null,null,null,null,null,null,null,null,null,null,null,null,null,null,null,null,null,null,null,null,null,null,null,null,null,null,null,null,null,null,null,null,null,null,null,null,null,null,{"$f":"IF(COUNTBLANK(Sociodemograficos[[#This Row],[Nombres y Apellidos]])=0,Sociodemograficos[[#This Row],[Nombres y Apellidos]],\"\")","v":""}]
[null,null,null,null,null,null,null,null,null,null,null,null,null,null,null,null,null,null,null,null,null,null,null,null,null,null,null,null,null,null,null,null,null,null,null,null,null,null,null,null,null,null,null,null,null,null,null,null,null,null,null,{"$f":"IF(COUNTBLANK(Sociodemograficos[[#This Row],[Nombres y Apellidos]])=0,Sociodemograficos[[#This Row],[Nombres y Apellidos]],\"\")","v":""}]
[null,null,null,null,null,null,null,null,null,null,null,null,null,null,null,null,null,null,null,null,null,null,null,null,null,null,null,null,null,null,null,null,null,null,null,null,null,null,null,null,null,null,null,null,null,null,null,null,null,null,null,{"$f":"IF(COUNTBLANK(Sociodemograficos[[#This Row],[Nombres y Apellidos]])=0,Sociodemograficos[[#This Row],[Nombres y Apellidos]],\"\")","v":""}]
[null,null,null,null,null,null,null,null,null,null,null,null,null,null,null,null,null,null,null,null,null,null,null,null,null,null,null,null,null,null,null,null,null,null,null,null,null,null,null,null,null,null,null,null,null,null,null,null,null,null,null,{"$f":"IF(COUNTBLANK(Sociodemograficos[[#This Row],[Nombres y Apellidos]])=0,Sociodemograficos[[#This Row],[Nombres y Apellidos]],\"\")","v":""}]
[null,null,null,null,null,null,null,null,null,null,null,null,null,null,null,null,null,null,null,null,null,null,null,null,null,null,null,null,null,null,null,null,null,null,null,null,null,null,null,null,null,null,null,null,null,null,null,null,null,null,null,{"$f":"IF(COUNTBLANK(Sociodemograficos[[#This Row],[Nombres y Apellidos]])=0,Sociodemograficos[[#This Row],[Nombres y Apellidos]],\"\")","v":""}]
[null,null,null,null,null,null,null,null,null,null,null,null,null,null,null,null,null,null,null,null,null,null,null,null,null,null,null,null,null,null,null,null,null,null,null,null,null,null,null,null,null,null,null,null,null,null,null,null,null,null,null,{"$f":"IF(COUNTBLANK(Sociodemograficos[[#This Row],[Nombres y Apellidos]])=0,Sociodemograficos[[#This Row],[Nombres y Apellidos]],\"\")","v":""}]
[null,null,null,null,null,null,null,null,null,null,null,null,null,null,null,null,null,null,null,null,null,null,null,null,null,null,null,null,null,null,null,null,null,null,null,null,null,null,null,null,null,null,null,null,null,null,null,null,null,null,null,{"$f":"IF(COUNTBLANK(Sociodemograficos[[#This Row],[Nombres y Apellidos]])=0,Sociodemograficos[[#This Row],[Nombres y Apellidos]],\"\")","v":""}]
[null,null,null,null,null,null,null,null,null,null,null,null,null,null,null,null,null,null,null,null,null,null,null,null,null,null,null,null,null,null,null,null,null,null,null,null,null,null,null,null,null,null,null,null,null,null,null,null,null,null,null,{"$f":"IF(COUNTBLANK(Sociodemograficos[[#This Row],[Nombres y Apellidos]])=0,Sociodemograficos[[#This Row],[Nombres y Apellidos]],\"\")","v":""}]
[null,null,null,null,null,null,null,null,null,null,null,null,null,null,null,null,null,null,null,null,null,null,null,null,null,null,null,null,null,null,null,null,null,null,null,null,null,null,null,null,null,null,null,null,null,null,null,null,null,null,null,{"$f":"IF(COUNTBLANK(Sociodemograficos[[#This Row],[Nombres y Apellidos]])=0,Sociodemograficos[[#This Row],[Nombres y Apellidos]],\"\")","v":""}]
[null,null,null,null,null,null,null,null,null,null,null,null,null,null,null,null,null,null,null,null,null,null,null,null,null,null,null,null,null,null,null,null,null,null,null,null,null,null,null,null,null,null,null,null,null,null,null,null,null,null,null,{"$f":"IF(COUNTBLANK(Sociodemograficos[[#This Row],[Nombres y Apellidos]])=0,Sociodemograficos[[#This Row],[Nombres y Apellidos]],\"\")","v":""}]
[null,null,null,null,null,null,null,null,null,null,null,null,null,null,null,null,null,null,null,null,null,null,null,null,null,null,null,null,null,null,null,null,null,null,null,null,null,null,null,null,null,null,null,null,null,null,null,null,null,null,null,{"$f":"IF(COUNTBLANK(Sociodemograficos[[#This Row],[Nombres y Apellidos]])=0,Sociodemograficos[[#This Row],[Nombres y Apellidos]],\"\")","v":""}]
[null,null,null,null,null,null,null,null,null,null,null,null,null,null,null,null,null,null,null,null,null,null,null,null,null,null,null,null,null,null,null,null,null,null,null,null,null,null,null,null,null,null,null,null,null,null,null,null,null,null,null,{"$f":"IF(COUNTBLANK(Sociodemograficos[[#This Row],[Nombres y Apellidos]])=0,Sociodemograficos[[#This Row],[Nombres y Apellidos]],\"\")","v":""}]
[null,null,null,null,null,null,null,null,null,null,null,null,null,null,null,null,null,null,null,null,null,null,null,null,null,null,null,null,null,null,null,null,null,null,null,null,null,null,null,null,null,null,null,null,null,null,null,null,null,null,null,{"$f":"IF(COUNTBLANK(Sociodemograficos[[#This Row],[Nombres y Apellidos]])=0,Sociodemograficos[[#This Row],[Nombres y Apellidos]],\"\")","v":""}]
[null,null,null,null,null,null,null,null,null,null,null,null,null,null,null,null,null,null,null,null,null,null,null,null,null,null,null,null,null,null,null,null,null,null,null,null,null,null,null,null,null,null,null,null,null,null,null,null,null,null,null,{"$f":"IF(COUNTBLANK(Sociodemograficos[[#This Row],[Nombres y Apellidos]])=0,Sociodemograficos[[#This Row],[Nombres y Apellidos]],\"\")","v":""}]
[null,null,null,null,null,null,null,null,null,null,null,null,null,null,null,null,null,null,null,null,null,null,null,null,null,null,null,null,null,null,null,null,null,null,null,null,null,null,null,null,null,null,null,null,null,null,null,null,null,null,null,{"$f":"IF(COUNTBLANK(Sociodemograficos[[#This Row],[Nombres y Apellidos]])=0,Sociodemograficos[[#This Row],[Nombres y Apellidos]],\"\")","v":""}]
[null,null,null,null,null,null,null,null,null,null,null,null,null,null,null,null,null,null,null,null,null,null,null,null,null,null,null,null,null,null,null,null,null,null,null,null,null,null,null,null,null,null,null,null,null,null,null,null,null,null,null,{"$f":"IF(COUNTBLANK(Sociodemograficos[[#This Row],[Nombres y Apellidos]])=0,Sociodemograficos[[#This Row],[Nombres y Apellidos]],\"\")","v":""}]
[null,null,null,null,null,null,null,null,null,null,null,null,null,null,null,null,null,null,null,null,null,null,null,null,null,null,null,null,null,null,null,null,null,null,null,null,null,null,null,null,null,null,null,null,null,null,null,null,null,null,null,{"$f":"IF(COUNTBLANK(Sociodemograficos[[#This Row],[Nombres y Apellidos]])=0,Sociodemograficos[[#This Row],[Nombres y Apellidos]],\"\")","v":""}]
[null,null,null,null,null,null,null,null,null,null,null,null,null,null,null,null,null,null,null,null,null,null,null,null,null,null,null,null,null,null,null,null,null,null,null,null,null,null,null,null,null,null,null,null,null,null,null,null,null,null,null,{"$f":"IF(COUNTBLANK(Sociodemograficos[[#This Row],[Nombres y Apellidos]])=0,Sociodemograficos[[#This Row],[Nombres y Apellidos]],\"\")","v":""}]
[null,null,null,null,null,null,null,null,null,null,null,null,null,null,null,null,null,null,null,null,null,null,null,null,null,null,null,null,null,null,null,null,null,null,null,null,null,null,null,null,null,null,null,null,null,null,null,null,null,null,null,{"$f":"IF(COUNTBLANK(Sociodemograficos[[#This Row],[Nombres y Apellidos]])=0,Sociodemograficos[[#This Row],[Nombres y Apellidos]],\"\")","v":""}]
[null,null,null,null,null,null,null,null,null,null,null,null,null,null,null,null,null,null,null,null,null,null,null,null,null,null,null,null,null,null,null,null,null,null,null,null,null,null,null,null,null,null,null,null,null,null,null,null,null,null,null,{"$f":"IF(COUNTBLANK(Sociodemograficos[[#This Row],[Nombres y Apellidos]])=0,Sociodemograficos[[#This Row],[Nombres y Apellidos]],\"\")","v":""}]
[null,null,null,null,null,null,null,null,null,null,null,null,null,null,null,null,null,null,null,null,null,null,null,null,null,null,null,null,null,null,null,null,null,null,null,null,null,null,null,null,null,null,null,null,null,null,null,null,null,null,null,{"$f":"IF(COUNTBLANK(Sociodemograficos[[#This Row],[Nombres y Apellidos]])=0,Sociodemograficos[[#This Row],[Nombres y Apellidos]],\"\")","v":""}]
[null,null,null,null,null,null,null,null,null,null,null,null,null,null,null,null,null,null,null,null,null,null,null,null,null,null,null,null,null,null,null,null,null,null,null,null,null,null,null,null,null,null,null,null,null,null,null,null,null,null,null,{"$f":"IF(COUNTBLANK(Sociodemograficos[[#This Row],[Nombres y Apellidos]])=0,Sociodemograficos[[#This Row],[Nombres y Apellidos]],\"\")","v":""}]
[null,null,null,null,null,null,null,null,null,null,null,null,null,null,null,null,null,null,null,null,null,null,null,null,null,null,null,null,null,null,null,null,null,null,null,null,null,null,null,null,null,null,null,null,null,null,null,null,null,null,null,{"$f":"IF(COUNTBLANK(Sociodemograficos[[#This Row],[Nombres y Apellidos]])=0,Sociodemograficos[[#This Row],[Nombres y Apellidos]],\"\")","v":""}]
[null,null,null,null,null,null,null,null,null,null,null,null,null,null,null,null,null,null,null,null,null,null,null,null,null,null,null,null,null,null,null,null,null,null,null,null,null,null,null,null,null,null,null,null,null,null,null,null,null,null,null,{"$f":"IF(COUNTBLANK(Sociodemograficos[[#This Row],[Nombres y Apellidos]])=0,Sociodemograficos[[#This Row],[Nombres y Apellidos]],\"\")","v":""}]
[null,null,null,null,null,null,null,null,null,null,null,null,null,null,null,null,null,null,null,null,null,null,null,null,null,null,null,null,null,null,null,null,null,null,null,null,null,null,null,null,null,null,null,null,null,null,null,null,null,null,null,{"$f":"IF(COUNTBLANK(Sociodemograficos[[#This Row],[Nombres y Apellidos]])=0,Sociodemograficos[[#This Row],[Nombres y Apellidos]],\"\")","v":""}]
[null,null,null,null,null,null,null,null,null,null,null,null,null,null,null,null,null,null,null,null,null,null,null,null,null,null,null,null,null,null,null,null,null,null,null,null,null,null,null,null,null,null,null,null,null,null,null,null,null,null,null,{"$f":"IF(COUNTBLANK(Sociodemograficos[[#This Row],[Nombres y Apellidos]])=0,Sociodemograficos[[#This Row],[Nombres y Apellidos]],\"\")","v":""}]
[null,null,null,null,null,null,null,null,null,null,null,null,null,null,null,null,null,null,null,null,null,null,null,null,null,null,null,null,null,null,null,null,null,null,null,null,null,null,null,null,null,null,null,null,null,null,null,null,null,null,null,{"$f":"IF(COUNTBLANK(Sociodemograficos[[#This Row],[Nombres y Apellidos]])=0,Sociodemograficos[[#This Row],[Nombres y Apellidos]],\"\")","v":""}]
[null,null,null,null,null,null,null,null,null,null,null,null,null,null,null,null,null,null,null,null,null,null,null,null,null,null,null,null,null,null,null,null,null,null,null,null,null,null,null,null,null,null,null,null,null,null,null,null,null,null,null,{"$f":"IF(COUNTBLANK(Sociodemograficos[[#This Row],[Nombres y Apellidos]])=0,Sociodemograficos[[#This Row],[Nombres y Apellidos]],\"\")","v":""}]
[null,null,null,null,null,null,null,null,null,null,null,null,null,null,null,null,null,null,null,null,null,null,null,null,null,null,null,null,null,null,null,null,null,null,null,null,null,null,null,null,null,null,null,null,null,null,null,null,null,null,null,{"$f":"IF(COUNTBLANK(Sociodemograficos[[#This Row],[Nombres y Apellidos]])=0,Sociodemograficos[[#This Row],[Nombres y Apellidos]],\"\")","v":""}]
[null,null,null,null,null,null,null,null,null,null,null,null,null,null,null,null,null,null,null,null,null,null,null,null,null,null,null,null,null,null,null,null,null,null,null,null,null,null,null,null,null,null,null,null,null,null,null,null,null,null,null,{"$f":"IF(COUNTBLANK(Sociodemograficos[[#This Row],[Nombres y Apellidos]])=0,Sociodemograficos[[#This Row],[Nombres y Apellidos]],\"\")","v":""}]
[null,null,null,null,null,null,null,null,null,null,null,null,null,null,null,null,null,null,null,null,null,null,null,null,null,null,null,null,null,null,null,null,null,null,null,null,null,null,null,null,null,null,null,null,null,null,null,null,null,null,null,{"$f":"IF(COUNTBLANK(Sociodemograficos[[#This Row],[Nombres y Apellidos]])=0,Sociodemograficos[[#This Row],[Nombres y Apellidos]],\"\")","v":""}]
[null,null,null,null,null,null,null,null,null,null,null,null,null,null,null,null,null,null,null,null,null,null,null,null,null,null,null,null,null,null,null,null,null,null,null,null,null,null,null,null,null,null,null,null,null,null,null,null,null,null,null,{"$f":"IF(COUNTBLANK(Sociodemograficos[[#This Row],[Nombres y Apellidos]])=0,Sociodemograficos[[#This Row],[Nombres y Apellidos]],\"\")","v":""}]
[null,null,null,null,null,null,null,null,null,null,null,null,null,null,null,null,null,null,null,null,null,null,null,null,null,null,null,null,null,null,null,null,null,null,null,null,null,null,null,null,null,null,null,null,null,null,null,null,null,null,null,{"$f":"IF(COUNTBLANK(Sociodemograficos[[#This Row],[Nombres y Apellidos]])=0,Sociodemograficos[[#This Row],[Nombres y Apellidos]],\"\")","v":""}]
[null,null,null,null,null,null,null,null,null,null,null,null,null,null,null,null,null,null,null,null,null,null,null,null,null,null,null,null,null,null,null,null,null,null,null,null,null,null,null,null,null,null,null,null,null,null,null,null,null,null,null,{"$f":"IF(COUNTBLANK(Sociodemograficos[[#This Row],[Nombres y Apellidos]])=0,Sociodemograficos[[#This Row],[Nombres y Apellidos]],\"\")","v":""}]
[null,null,null,null,null,null,null,null,null,null,null,null,null,null,null,null,null,null,null,null,null,null,null,null,null,null,null,null,null,null,null,null,null,null,null,null,null,null,null,null,null,null,null,null,null,null,null,null,null,null,null,{"$f":"IF(COUNTBLANK(Sociodemograficos[[#This Row],[Nombres y Apellidos]])=0,Sociodemograficos[[#This Row],[Nombres y Apellidos]],\"\")","v":""}]
[null,null,null,null,null,null,null,null,null,null,null,null,null,null,null,null,null,null,null,null,null,null,null,null,null,null,null,null,null,null,null,null,null,null,null,null,null,null,null,null,null,null,null,null,null,null,null,null,null,null,null,{"$f":"IF(COUNTBLANK(Sociodemograficos[[#This Row],[Nombres y Apellidos]])=0,Sociodemograficos[[#This Row],[Nombres y Apellidos]],\"\")","v":""}]
[null,null,null,null,null,null,null,null,null,null,null,null,null,null,null,null,null,null,null,null,null,null,null,null,null,null,null,null,null,null,null,null,null,null,null,null,null,null,null,null,null,null,null,null,null,null,null,null,null,null,null,{"$f":"IF(COUNTBLANK(Sociodemograficos[[#This Row],[Nombres y Apellidos]])=0,Sociodemograficos[[#This Row],[Nombres y Apellidos]],\"\")","v":""}]
[null,null,null,null,null,null,null,null,null,null,null,null,null,null,null,null,null,null,null,null,null,null,null,null,null,null,null,null,null,null,null,null,null,null,null,null,null,null,null,null,null,null,null,null,null,null,null,null,null,null,null,{"$f":"IF(COUNTBLANK(Sociodemograficos[[#This Row],[Nombres y Apellidos]])=0,Sociodemograficos[[#This Row],[Nombres y Apellidos]],\"\")","v":""}]
[null,null,null,null,null,null,null,null,null,null,null,null,null,null,null,null,null,null,null,null,null,null,null,null,null,null,null,null,null,null,null,null,null,null,null,null,null,null,null,null,null,null,null,null,null,null,null,null,null,null,null,{"$f":"IF(COUNTBLANK(Sociodemograficos[[#This Row],[Nombres y Apellidos]])=0,Sociodemograficos[[#This Row],[Nombres y Apellidos]],\"\")","v":""}]
[null,null,null,null,null,null,null,null,null,null,null,null,null,null,null,null,null,null,null,null,null,null,null,null,null,null,null,null,null,null,null,null,null,null,null,null,null,null,null,null,null,null,null,null,null,null,null,null,null,null,null,{"$f":"IF(COUNTBLANK(Sociodemograficos[[#This Row],[Nombres y Apellidos]])=0,Sociodemograficos[[#This Row],[Nombres y Apellidos]],\"\")","v":""}]
[null,null,null,null,null,null,null,null,null,null,null,null,null,null,null,null,null,null,null,null,null,null,null,null,null,null,null,null,null,null,null,null,null,null,null,null,null,null,null,null,null,null,null,null,null,null,null,null,null,null,null,{"$f":"IF(COUNTBLANK(Sociodemograficos[[#This Row],[Nombres y Apellidos]])=0,Sociodemograficos[[#This Row],[Nombres y Apellidos]],\"\")","v":""}]
[null,null,null,null,null,null,null,null,null,null,null,null,null,null,null,null,null,null,null,null,null,null,null,null,null,null,null,null,null,null,null,null,null,null,null,null,null,null,null,null,null,null,null,null,null,null,null,null,null,null,null,{"$f":"IF(COUNTBLANK(Sociodemograficos[[#This Row],[Nombres y Apellidos]])=0,Sociodemograficos[[#This Row],[Nombres y Apellidos]],\"\")","v":""}]
[null,null,null,null,null,null,null,null,null,null,null,null,null,null,null,null,null,null,null,null,null,null,null,null,null,null,null,null,null,null,null,null,null,null,null,null,null,null,null,null,null,null,null,null,null,null,null,null,null,null,null,{"$f":"IF(COUNTBLANK(Sociodemograficos[[#This Row],[Nombres y Apellidos]])=0,Sociodemograficos[[#This Row],[Nombres y Apellidos]],\"\")","v":""}]
[null,null,null,null,null,null,null,null,null,null,null,null,null,null,null,null,null,null,null,null,null,null,null,null,null,null,null,null,null,null,null,null,null,null,null,null,null,null,null,null,null,null,null,null,null,null,null,null,null,null,null,{"$f":"IF(COUNTBLANK(Sociodemograficos[[#This Row],[Nombres y Apellidos]])=0,Sociodemograficos[[#This Row],[Nombres y Apellidos]],\"\")","v":""}]
[null,null,null,null,null,null,null,null,null,null,null,null,null,null,null,null,null,null,null,null,null,null,null,null,null,null,null,null,null,null,null,null,null,null,null,null,null,null,null,null,null,null,null,null,null,null,null,null,null,null,null,{"$f":"IF(COUNTBLANK(Sociodemograficos[[#This Row],[Nombres y Apellidos]])=0,Sociodemograficos[[#This Row],[Nombres y Apellidos]],\"\")","v":""}]
[null,null,null,null,null,null,null,null,null,null,null,null,null,null,null,null,null,null,null,null,null,null,null,null,null,null,null,null,null,null,null,null,null,null,null,null,null,null,null,null,null,null,null,null,null,null,null,null,null,null,null,{"$f":"IF(COUNTBLANK(Sociodemograficos[[#This Row],[Nombres y Apellidos]])=0,Sociodemograficos[[#This Row],[Nombres y Apellidos]],\"\")","v":""}]
[null,null,null,null,null,null,null,null,null,null,null,null,null,null,null,null,null,null,null,null,null,null,null,null,null,null,null,null,null,null,null,null,null,null,null,null,null,null,null,null,null,null,null,null,null,null,null,null,null,null,null,{"$f":"IF(COUNTBLANK(Sociodemograficos[[#This Row],[Nombres y Apellidos]])=0,Sociodemograficos[[#This Row],[Nombres y Apellidos]],\"\")","v":""}]
[null,null,null,null,null,null,null,null,null,null,null,null,null,null,null,null,null,null,null,null,null,null,null,null,null,null,null,null,null,null,null,null,null,null,null,null,null,null,null,null,null,null,null,null,null,null,null,null,null,null,null,{"$f":"IF(COUNTBLANK(Sociodemograficos[[#This Row],[Nombres y Apellidos]])=0,Sociodemograficos[[#This Row],[Nombres y Apellidos]],\"\")","v":""}]
[null,null,null,null,null,null,null,null,null,null,null,null,null,null,null,null,null,null,null,null,null,null,null,null,null,null,null,null,null,null,null,null,null,null,null,null,null,null,null,null,null,null,null,null,null,null,null,null,null,null,null,{"$f":"IF(COUNTBLANK(Sociodemograficos[[#This Row],[Nombres y Apellidos]])=0,Sociodemograficos[[#This Row],[Nombres y Apellidos]],\"\")","v":""}]
[null,null,null,null,null,null,null,null,null,null,null,null,null,null,null,null,null,null,null,null,null,null,null,null,null,null,null,null,null,null,null,null,null,null,null,null,null,null,null,null,null,null,null,null,null,null,null,null,null,null,null,{"$f":"IF(COUNTBLANK(Sociodemograficos[[#This Row],[Nombres y Apellidos]])=0,Sociodemograficos[[#This Row],[Nombres y Apellidos]],\"\")","v":""}]
[null,null,null,null,null,null,null,null,null,null,null,null,null,null,null,null,null,null,null,null,null,null,null,null,null,null,null,null,null,null,null,null,null,null,null,null,null,null,null,null,null,null,null,null,null,null,null,null,null,null,null,{"$f":"IF(COUNTBLANK(Sociodemograficos[[#This Row],[Nombres y Apellidos]])=0,Sociodemograficos[[#This Row],[Nombres y Apellidos]],\"\")","v":""}]
[null,null,null,null,null,null,null,null,null,null,null,null,null,null,null,null,null,null,null,null,null,null,null,null,null,null,null,null,null,null,null,null,null,null,null,null,null,null,null,null,null,null,null,null,null,null,null,null,null,null,null,{"$f":"IF(COUNTBLANK(Sociodemograficos[[#This Row],[Nombres y Apellidos]])=0,Sociodemograficos[[#This Row],[Nombres y Apellidos]],\"\")","v":""}]
[null,null,null,null,null,null,null,null,null,null,null,null,null,null,null,null,null,null,null,null,null,null,null,null,null,null,null,null,null,null,null,null,null,null,null,null,null,null,null,null,null,null,null,null,null,null,null,null,null,null,null,{"$f":"IF(COUNTBLANK(Sociodemograficos[[#This Row],[Nombres y Apellidos]])=0,Sociodemograficos[[#This Row],[Nombres y Apellidos]],\"\")","v":""}]
[null,null,null,null,null,null,null,null,null,null,null,null,null,null,null,null,null,null,null,null,null,null,null,null,null,null,null,null,null,null,null,null,null,null,null,null,null,null,null,null,null,null,null,null,null,null,null,null,null,null,null,{"$f":"IF(COUNTBLANK(Sociodemograficos[[#This Row],[Nombres y Apellidos]])=0,Sociodemograficos[[#This Row],[Nombres y Apellidos]],\"\")","v":""}]
[null,null,null,null,null,null,null,null,null,null,null,null,null,null,null,null,null,null,null,null,null,null,null,null,null,null,null,null,null,null,null,null,null,null,null,null,null,null,null,null,null,null,null,null,null,null,null,null,null,null,null,{"$f":"IF(COUNTBLANK(Sociodemograficos[[#This Row],[Nombres y Apellidos]])=0,Sociodemograficos[[#This Row],[Nombres y Apellidos]],\"\")","v":""}]
[null,null,null,null,null,null,null,null,null,null,null,null,null,null,null,null,null,null,null,null,null,null,null,null,null,null,null,null,null,null,null,null,null,null,null,null,null,null,null,null,null,null,null,null,null,null,null,null,null,null,null,{"$f":"IF(COUNTBLANK(Sociodemograficos[[#This Row],[Nombres y Apellidos]])=0,Sociodemograficos[[#This Row],[Nombres y Apellidos]],\"\")","v":""}]
[null,null,null,null,null,null,null,null,null,null,null,null,null,null,null,null,null,null,null,null,null,null,null,null,null,null,null,null,null,null,null,null,null,null,null,null,null,null,null,null,null,null,null,null,null,null,null,null,null,null,null,{"$f":"IF(COUNTBLANK(Sociodemograficos[[#This Row],[Nombres y Apellidos]])=0,Sociodemograficos[[#This Row],[Nombres y Apellidos]],\"\")","v":""}]
[null,null,null,null,null,null,null,null,null,null,null,null,null,null,null,null,null,null,null,null,null,null,null,null,null,null,null,null,null,null,null,null,null,null,null,null,null,null,null,null,null,null,null,null,null,null,null,null,null,null,null,{"$f":"IF(COUNTBLANK(Sociodemograficos[[#This Row],[Nombres y Apellidos]])=0,Sociodemograficos[[#This Row],[Nombres y Apellidos]],\"\")","v":""}]
[null,null,null,null,null,null,null,null,null,null,null,null,null,null,null,null,null,null,null,null,null,null,null,null,null,null,null,null,null,null,null,null,null,null,null,null,null,null,null,null,null,null,null,null,null,null,null,null,null,null,null,{"$f":"IF(COUNTBLANK(Sociodemograficos[[#This Row],[Nombres y Apellidos]])=0,Sociodemograficos[[#This Row],[Nombres y Apellidos]],\"\")","v":""}]
[null,null,null,null,null,null,null,null,null,null,null,null,null,null,null,null,null,null,null,null,null,null,null,null,null,null,null,null,null,null,null,null,null,null,null,null,null,null,null,null,null,null,null,null,null,null,null,null,null,null,null,{"$f":"IF(COUNTBLANK(Sociodemograficos[[#This Row],[Nombres y Apellidos]])=0,Sociodemograficos[[#This Row],[Nombres y Apellidos]],\"\")","v":""}]
[null,null,null,null,null,null,null,null,null,null,null,null,null,null,null,null,null,null,null,null,null,null,null,null,null,null,null,null,null,null,null,null,null,null,null,null,null,null,null,null,null,null,null,null,null,null,null,null,null,null,null,{"$f":"IF(COUNTBLANK(Sociodemograficos[[#This Row],[Nombres y Apellidos]])=0,Sociodemograficos[[#This Row],[Nombres y Apellidos]],\"\")","v":""}]
[null,null,null,null,null,null,null,null,null,null,null,null,null,null,null,null,null,null,null,null,null,null,null,null,null,null,null,null,null,null,null,null,null,null,null,null,null,null,null,null,null,null,null,null,null,null,null,null,null,null,null,{"$f":"IF(COUNTBLANK(Sociodemograficos[[#This Row],[Nombres y Apellidos]])=0,Sociodemograficos[[#This Row],[Nombres y Apellidos]],\"\")","v":""}]
[null,null,null,null,null,null,null,null,null,null,null,null,null,null,null,null,null,null,null,null,null,null,null,null,null,null,null,null,null,null,null,null,null,null,null,null,null,null,null,null,null,null,null,null,null,null,null,null,null,null,null,{"$f":"IF(COUNTBLANK(Sociodemograficos[[#This Row],[Nombres y Apellidos]])=0,Sociodemograficos[[#This Row],[Nombres y Apellidos]],\"\")","v":""}]
[null,null,null,null,null,null,null,null,null,null,null,null,null,null,null,null,null,null,null,null,null,null,null,null,null,null,null,null,null,null,null,null,null,null,null,null,null,null,null,null,null,null,null,null,null,null,null,null,null,null,null,{"$f":"IF(COUNTBLANK(Sociodemograficos[[#This Row],[Nombres y Apellidos]])=0,Sociodemograficos[[#This Row],[Nombres y Apellidos]],\"\")","v":""}]
[null,null,null,null,null,null,null,null,null,null,null,null,null,null,null,null,null,null,null,null,null,null,null,null,null,null,null,null,null,null,null,null,null,null,null,null,null,null,null,null,null,null,null,null,null,null,null,null,null,null,null,{"$f":"IF(COUNTBLANK(Sociodemograficos[[#This Row],[Nombres y Apellidos]])=0,Sociodemograficos[[#This Row],[Nombres y Apellidos]],\"\")","v":""}]
[null,null,null,null,null,null,null,null,null,null,null,null,null,null,null,null,null,null,null,null,null,null,null,null,null,null,null,null,null,null,null,null,null,null,null,null,null,null,null,null,null,null,null,null,null,null,null,null,null,null,null,{"$f":"IF(COUNTBLANK(Sociodemograficos[[#This Row],[Nombres y Apellidos]])=0,Sociodemograficos[[#This Row],[Nombres y Apellidos]],\"\")","v":""}]
[null,null,null,null,null,null,null,null,null,null,null,null,null,null,null,null,null,null,null,null,null,null,null,null,null,null,null,null,null,null,null,null,null,null,null,null,null,null,null,null,null,null,null,null,null,null,null,null,null,null,null,{"$f":"IF(COUNTBLANK(Sociodemograficos[[#This Row],[Nombres y Apellidos]])=0,Sociodemograficos[[#This Row],[Nombres y Apellidos]],\"\")","v":""}]
[null,null,null,null,null,null,null,null,null,null,null,null,null,null,null,null,null,null,null,null,null,null,null,null,null,null,null,null,null,null,null,null,null,null,null,null,null,null,null,null,null,null,null,null,null,null,null,null,null,null,null,{"$f":"IF(COUNTBLANK(Sociodemograficos[[#This Row],[Nombres y Apellidos]])=0,Sociodemograficos[[#This Row],[Nombres y Apellidos]],\"\")","v":""}]
[null,null,null,null,null,null,null,null,null,null,null,null,null,null,null,null,null,null,null,null,null,null,null,null,null,null,null,null,null,null,null,null,null,null,null,null,null,null,null,null,null,null,null,null,null,null,null,null,null,null,null,{"$f":"IF(COUNTBLANK(Sociodemograficos[[#This Row],[Nombres y Apellidos]])=0,Sociodemograficos[[#This Row],[Nombres y Apellidos]],\"\")","v":""}]
[null,null,null,null,null,null,null,null,null,null,null,null,null,null,null,null,null,null,null,null,null,null,null,null,null,null,null,null,null,null,null,null,null,null,null,null,null,null,null,null,null,null,null,null,null,null,null,null,null,null,null,{"$f":"IF(COUNTBLANK(Sociodemograficos[[#This Row],[Nombres y Apellidos]])=0,Sociodemograficos[[#This Row],[Nombres y Apellidos]],\"\")","v":""}]
[null,null,null,null,null,null,null,null,null,null,null,null,null,null,null,null,null,null,null,null,null,null,null,null,null,null,null,null,null,null,null,null,null,null,null,null,null,null,null,null,null,null,null,null,null,null,null,null,null,null,null,{"$f":"IF(COUNTBLANK(Sociodemograficos[[#This Row],[Nombres y Apellidos]])=0,Sociodemograficos[[#This Row],[Nombres y Apellidos]],\"\")","v":""}]
[null,null,null,null,null,null,null,null,null,null,null,null,null,null,null,null,null,null,null,null,null,null,null,null,null,null,null,null,null,null,null,null,null,null,null,null,null,null,null,null,null,null,null,null,null,null,null,null,null,null,null,{"$f":"IF(COUNTBLANK(Sociodemograficos[[#This Row],[Nombres y Apellidos]])=0,Sociodemograficos[[#This Row],[Nombres y Apellidos]],\"\")","v":""}]
[null,null,null,null,null,null,null,null,null,null,null,null,null,null,null,null,null,null,null,null,null,null,null,null,null,null,null,null,null,null,null,null,null,null,null,null,null,null,null,null,null,null,null,null,null,null,null,null,null,null,null,{"$f":"IF(COUNTBLANK(Sociodemograficos[[#This Row],[Nombres y Apellidos]])=0,Sociodemograficos[[#This Row],[Nombres y Apellidos]],\"\")","v":""}]
[null,null,null,null,null,null,null,null,null,null,null,null,null,null,null,null,null,null,null,null,null,null,null,null,null,null,null,null,null,null,null,null,null,null,null,null,null,null,null,null,null,null,null,null,null,null,null,null,null,null,null,{"$f":"IF(COUNTBLANK(Sociodemograficos[[#This Row],[Nombres y Apellidos]])=0,Sociodemograficos[[#This Row],[Nombres y Apellidos]],\"\")","v":""}]
[null,null,null,null,null,null,null,null,null,null,null,null,null,null,null,null,null,null,null,null,null,null,null,null,null,null,null,null,null,null,null,null,null,null,null,null,null,null,null,null,null,null,null,null,null,null,null,null,null,null,null,{"$f":"IF(COUNTBLANK(Sociodemograficos[[#This Row],[Nombres y Apellidos]])=0,Sociodemograficos[[#This Row],[Nombres y Apellidos]],\"\")","v":""}]
[null,null,null,null,null,null,null,null,null,null,null,null,null,null,null,null,null,null,null,null,null,null,null,null,null,null,null,null,null,null,null,null,null,null,null,null,null,null,null,null,null,null,null,null,null,null,null,null,null,null,null,{"$f":"IF(COUNTBLANK(Sociodemograficos[[#This Row],[Nombres y Apellidos]])=0,Sociodemograficos[[#This Row],[Nombres y Apellidos]],\"\")","v":""}]
[null,null,null,null,null,null,null,null,null,null,null,null,null,null,null,null,null,null,null,null,null,null,null,null,null,null,null,null,null,null,null,null,null,null,null,null,null,null,null,null,null,null,null,null,null,null,null,null,null,null,null,{"$f":"IF(COUNTBLANK(Sociodemograficos[[#This Row],[Nombres y Apellidos]])=0,Sociodemograficos[[#This Row],[Nombres y Apellidos]],\"\")","v":""}]
[null,null,null,null,null,null,null,null,null,null,null,null,null,null,null,null,null,null,null,null,null,null,null,null,null,null,null,null,null,null,null,null,null,null,null,null,null,null,null,null,null,null,null,null,null,null,null,null,null,null,null,{"$f":"IF(COUNTBLANK(Sociodemograficos[[#This Row],[Nombres y Apellidos]])=0,Sociodemograficos[[#This Row],[Nombres y Apellidos]],\"\")","v":""}]
[null,null,null,null,null,null,null,null,null,null,null,null,null,null,null,null,null,null,null,null,null,null,null,null,null,null,null,null,null,null,null,null,null,null,null,null,null,null,null,null,null,null,null,null,null,null,null,null,null,null,null,{"$f":"IF(COUNTBLANK(Sociodemograficos[[#This Row],[Nombres y Apellidos]])=0,Sociodemograficos[[#This Row],[Nombres y Apellidos]],\"\")","v":""}]
[null,null,null,null,null,null,null,null,null,null,null,null,null,null,null,null,null,null,null,null,null,null,null,null,null,null,null,null,null,null,null,null,null,null,null,null,null,null,null,null,null,null,null,null,null,null,null,null,null,null,null,{"$f":"IF(COUNTBLANK(Sociodemograficos[[#This Row],[Nombres y Apellidos]])=0,Sociodemograficos[[#This Row],[Nombres y Apellidos]],\"\")","v":""}]
[null,null,null,null,null,null,null,null,null,null,null,null,null,null,null,null,null,null,null,null,null,null,null,null,null,null,null,null,null,null,null,null,null,null,null,null,null,null,null,null,null,null,null,null,null,null,null,null,null,null,null,{"$f":"IF(COUNTBLANK(Sociodemograficos[[#This Row],[Nombres y Apellidos]])=0,Sociodemograficos[[#This Row],[Nombres y Apellidos]],\"\")","v":""}]
[null,null,null,null,null,null,null,null,null,null,null,null,null,null,null,null,null,null,null,null,null,null,null,null,null,null,null,null,null,null,null,null,null,null,null,null,null,null,null,null,null,null,null,null,null,null,null,null,null,null,null,{"$f":"IF(COUNTBLANK(Sociodemograficos[[#This Row],[Nombres y Apellidos]])=0,Sociodemograficos[[#This Row],[Nombres y Apellidos]],\"\")","v":""}]
[null,null,null,null,null,null,null,null,null,null,null,null,null,null,null,null,null,null,null,null,null,null,null,null,null,null,null,null,null,null,null,null,null,null,null,null,null,null,null,null,null,null,null,null,null,null,null,null,null,null,null,{"$f":"IF(COUNTBLANK(Sociodemograficos[[#This Row],[Nombres y Apellidos]])=0,Sociodemograficos[[#This Row],[Nombres y Apellidos]],\"\")","v":""}]
[null,null,null,null,null,null,null,null,null,null,null,null,null,null,null,null,null,null,null,null,null,null,null,null,null,null,null,null,null,null,null,null,null,null,null,null,null,null,null,null,null,null,null,null,null,null,null,null,null,null,null,{"$f":"IF(COUNTBLANK(Sociodemograficos[[#This Row],[Nombres y Apellidos]])=0,Sociodemograficos[[#This Row],[Nombres y Apellidos]],\"\")","v":""}]
[null,null,null,null,null,null,null,null,null,null,null,null,null,null,null,null,null,null,null,null,null,null,null,null,null,null,null,null,null,null,null,null,null,null,null,null,null,null,null,null,null,null,null,null,null,null,null,null,null,null,null,{"$f":"IF(COUNTBLANK(Sociodemograficos[[#This Row],[Nombres y Apellidos]])=0,Sociodemograficos[[#This Row],[Nombres y Apellidos]],\"\")","v":""}]
[null,null,null,null,null,null,null,null,null,null,null,null,null,null,null,null,null,null,null,null,null,null,null,null,null,null,null,null,null,null,null,null,null,null,null,null,null,null,null,null,null,null,null,null,null,null,null,null,null,null,null,{"$f":"IF(COUNTBLANK(Sociodemograficos[[#This Row],[Nombres y Apellidos]])=0,Sociodemograficos[[#This Row],[Nombres y Apellidos]],\"\")","v":""}]
[null,null,null,null,null,null,null,null,null,null,null,null,null,null,null,null,null,null,null,null,null,null,null,null,null,null,null,null,null,null,null,null,null,null,null,null,null,null,null,null,null,null,null,null,null,null,null,null,null,null,null,{"$f":"IF(COUNTBLANK(Sociodemograficos[[#This Row],[Nombres y Apellidos]])=0,Sociodemograficos[[#This Row],[Nombres y Apellidos]],\"\")","v":""}]
[null,null,null,null,null,null,null,null,null,null,null,null,null,null,null,null,null,null,null,null,null,null,null,null,null,null,null,null,null,null,null,null,null,null,null,null,null,null,null,null,null,null,null,null,null,null,null,null,null,null,null,{"$f":"IF(COUNTBLANK(Sociodemograficos[[#This Row],[Nombres y Apellidos]])=0,Sociodemograficos[[#This Row],[Nombres y Apellidos]],\"\")","v":""}]
[null,null,null,null,null,null,null,null,null,null,null,null,null,null,null,null,null,null,null,null,null,null,null,null,null,null,null,null,null,null,null,null,null,null,null,null,null,null,null,null,null,null,null,null,null,null,null,null,null,null,null,{"$f":"IF(COUNTBLANK(Sociodemograficos[[#This Row],[Nombres y Apellidos]])=0,Sociodemograficos[[#This Row],[Nombres y Apellidos]],\"\")","v":""}]
[null,null,null,null,null,null,null,null,null,null,null,null,null,null,null,null,null,null,null,null,null,null,null,null,null,null,null,null,null,null,null,null,null,null,null,null,null,null,null,null,null,null,null,null,null,null,null,null,null,null,null,{"$f":"IF(COUNTBLANK(Sociodemograficos[[#This Row],[Nombres y Apellidos]])=0,Sociodemograficos[[#This Row],[Nombres y Apellidos]],\"\")","v":""}]
[null,null,null,null,null,null,null,null,null,null,null,null,null,null,null,null,null,null,null,null,null,null,null,null,null,null,null,null,null,null,null,null,null,null,null,null,null,null,null,null,null,null,null,null,null,null,null,null,null,null,null,{"$f":"IF(COUNTBLANK(Sociodemograficos[[#This Row],[Nombres y Apellidos]])=0,Sociodemograficos[[#This Row],[Nombres y Apellidos]],\"\")","v":""}]
[null,null,null,null,null,null,null,null,null,null,null,null,null,null,null,null,null,null,null,null,null,null,null,null,null,null,null,null,null,null,null,null,null,null,null,null,null,null,null,null,null,null,null,null,null,null,null,null,null,null,null,{"$f":"IF(COUNTBLANK(Sociodemograficos[[#This Row],[Nombres y Apellidos]])=0,Sociodemograficos[[#This Row],[Nombres y Apellidos]],\"\")","v":""}]
[null,null,null,null,null,null,null,null,null,null,null,null,null,null,null,null,null,null,null,null,null,null,null,null,null,null,null,null,null,null,null,null,null,null,null,null,null,null,null,null,null,null,null,null,null,null,null,null,null,null,null,{"$f":"IF(COUNTBLANK(Sociodemograficos[[#This Row],[Nombres y Apellidos]])=0,Sociodemograficos[[#This Row],[Nombres y Apellidos]],\"\")","v":""}]
[null,null,null,null,null,null,null,null,null,null,null,null,null,null,null,null,null,null,null,null,null,null,null,null,null,null,null,null,null,null,null,null,null,null,null,null,null,null,null,null,null,null,null,null,null,null,null,null,null,null,null,{"$f":"IF(COUNTBLANK(Sociodemograficos[[#This Row],[Nombres y Apellidos]])=0,Sociodemograficos[[#This Row],[Nombres y Apellidos]],\"\")","v":""}]
[null,null,null,null,null,null,null,null,null,null,null,null,null,null,null,null,null,null,null,null,null,null,null,null,null,null,null,null,null,null,null,null,null,null,null,null,null,null,null,null,null,null,null,null,null,null,null,null,null,null,null,{"$f":"IF(COUNTBLANK(Sociodemograficos[[#This Row],[Nombres y Apellidos]])=0,Sociodemograficos[[#This Row],[Nombres y Apellidos]],\"\")","v":""}]
[null,null,null,null,null,null,null,null,null,null,null,null,null,null,null,null,null,null,null,null,null,null,null,null,null,null,null,null,null,null,null,null,null,null,null,null,null,null,null,null,null,null,null,null,null,null,null,null,null,null,null,{"$f":"IF(COUNTBLANK(Sociodemograficos[[#This Row],[Nombres y Apellidos]])=0,Sociodemograficos[[#This Row],[Nombres y Apellidos]],\"\")","v":""}]
[null,null,null,null,null,null,null,null,null,null,null,null,null,null,null,null,null,null,null,null,null,null,null,null,null,null,null,null,null,null,null,null,null,null,null,null,null,null,null,null,null,null,null,null,null,null,null,null,null,null,null,{"$f":"IF(COUNTBLANK(Sociodemograficos[[#This Row],[Nombres y Apellidos]])=0,Sociodemograficos[[#This Row],[Nombres y Apellidos]],\"\")","v":""}]
[null,null,null,null,null,null,null,null,null,null,null,null,null,null,null,null,null,null,null,null,null,null,null,null,null,null,null,null,null,null,null,null,null,null,null,null,null,null,null,null,null,null,null,null,null,null,null,null,null,null,null,{"$f":"IF(COUNTBLANK(Sociodemograficos[[#This Row],[Nombres y Apellidos]])=0,Sociodemograficos[[#This Row],[Nombres y Apellidos]],\"\")","v":""}]
[null,null,null,null,null,null,null,null,null,null,null,null,null,null,null,null,null,null,null,null,null,null,null,null,null,null,null,null,null,null,null,null,null,null,null,null,null,null,null,null,null,null,null,null,null,null,null,null,null,null,null,{"$f":"IF(COUNTBLANK(Sociodemograficos[[#This Row],[Nombres y Apellidos]])=0,Sociodemograficos[[#This Row],[Nombres y Apellidos]],\"\")","v":""}]
[null,null,null,null,null,null,null,null,null,null,null,null,null,null,null,null,null,null,null,null,null,null,null,null,null,null,null,null,null,null,null,null,null,null,null,null,null,null,null,null,null,null,null,null,null,null,null,null,null,null,null,{"$f":"IF(COUNTBLANK(Sociodemograficos[[#This Row],[Nombres y Apellidos]])=0,Sociodemograficos[[#This Row],[Nombres y Apellidos]],\"\")","v":""}]
[null,null,null,null,null,null,null,null,null,null,null,null,null,null,null,null,null,null,null,null,null,null,null,null,null,null,null,null,null,null,null,null,null,null,null,null,null,null,null,null,null,null,null,null,null,null,null,null,null,null,null,{"$f":"IF(COUNTBLANK(Sociodemograficos[[#This Row],[Nombres y Apellidos]])=0,Sociodemograficos[[#This Row],[Nombres y Apellidos]],\"\")","v":""}]
[null,null,null,null,null,null,null,null,null,null,null,null,null,null,null,null,null,null,null,null,null,null,null,null,null,null,null,null,null,null,null,null,null,null,null,null,null,null,null,null,null,null,null,null,null,null,null,null,null,null,null,{"$f":"IF(COUNTBLANK(Sociodemograficos[[#This Row],[Nombres y Apellidos]])=0,Sociodemograficos[[#This Row],[Nombres y Apellidos]],\"\")","v":""}]

{"sheet":"Consultas","index":1,"n_rows":103,"n_cols":16,"rows_kept":103,"cut":false,"hidden":false,"merged":[[4,1,4,3],[4,5,4,7],[4,9,4,11],[0,1,0,11]]}
[null,"PLANTILLA PARA CONSULTAR INFORMACIÓN SOCIODEMOGRÁFICA DE LOS COLABORADORES DE LA ORGANIZACIÓN"]
[]
[null,"Documento de identidad:"]
[]
[null,"Información personal",null,null,null,"Información ocupacional",null,null,null,"Contacto emergencia"]
[null,"Nombres y apellidos",null,{"$f":"IFERROR(VLOOKUP(D3,'BD Sociodemográfica'!$B:$AZ,P6,FALSE),\"\")","v":""},null,"Agrupador 1",null,{"$f":"IFERROR(VLOOKUP($D$3,'BD Sociodemográfica'!$B$1:$AZ$5951,Consultas!P99,FALSE),\"\")","v":""},null,"Contacto emergencia",null,{"$f":"IFERROR(VLOOKUP($D$3,'BD Sociodemográfica'!$B$1:$AZ$5951,Consultas!P85,FALSE),\"\")","v":""},null,null,null,51]
[]
[null,"Grupo étnico",null,{"$f":"IFERROR(VLOOKUP($D$3,'BD Sociodemográfica'!$B$1:$AZ$5951,Consultas!P8,FALSE),\"\")","v":""},null,"Agrupador 2",null,{"$f":"IFERROR(VLOOKUP($D$3,'BD Sociodemográfica'!$B$1:$AZ$5951,Consultas!P101,FALSE),\"\")","v":""},null,"Parentesco contacto",null,{"$f":"IFERROR(VLOOKUP($D$3,'BD Sociodemográfica'!$B$1:$AZ$5951,Consultas!P87,FALSE),\"\")","v":""},null,null,null,2]
[]
[null,"Fecha nacimiento",null,{"$f":"IFERROR(VLOOKUP($D$3,'BD Sociodemográfica'!$B$1:$AZ$5951,Consultas!P10,FALSE),\"\")","v":""},null,"Agrupador 3",null,{"$f":"IFERROR(VLOOKUP($D$3,'BD Sociodemográfica'!$B$1:$AZ$5951,Consultas!P103,FALSE),\"\")","v":""},null,"Teléfono fijo contacto",null,{"$f":"IFERROR(VLOOKUP($D$3,'BD Sociodemográfica'!$B$1:$AZ$5951,Consultas!P89,FALSE),\"\")","v":""},null,null,null,3]
[]
[null,"Rango edad",null,{"$f":"IFERROR(VLOOKUP($D$3,'BD Sociodemográfica'!$B$1:$AZ$5951,Consultas!P12,FALSE),\"\")","v":""},null,"Municipio donde trabaja",null,{"$f":"IFERROR(VLOOKUP($D$3,'BD Sociodemográfica'!$B$1:$AZ$5951,Consultas!P40,FALSE),\"\")","v":""},null,"Disponibilidad llamadas al fijo",null,{"$f":"IFERROR(VLOOKUP($D$3,'BD Sociodemográfica'!$B$1:$AZ$5951,Consultas!P91,FALSE),\"\")","v":""},null,null,null,4]
[]
[null,"Genéro",null,{"$f":"IFERROR(VLOOKUP($D$3,'BD Sociodemográfica'!$B$1:$AZ$5951,Consultas!P14,FALSE),\"\")","v":""},null,"Área de trabajo",null,{"$f":"IFERROR(VLOOKUP($D$3,'BD Sociodemográfica'!$B$1:$AZ$5951,Consultas!P42,FALSE),\"\")","v":""},null,"Teléfono móvil contacto",null,{"$f":"IFERROR(VLOOKUP($D$3,'BD Sociodemográfica'!$B$1:$AZ$5951,Consultas!P93,FALSE),\"\")","v":""},null,null,null,5]
[]
[null,"Estado Civil",null,{"$f":"IFERROR(VLOOKUP($D$3,'BD Sociodemográfica'!$B$1:$AZ$5951,Consultas!P16,FALSE),\"\")","v":""},null,"Años en la organización",null,{"$f":"IFERROR(VLOOKUP($D$3,'BD Sociodemográfica'!$B$1:$AZ$5951,Consultas!P44,FALSE),\"\")","v":""},null,"Disponibilidad llamadas al móvil",null,{"$f":"IFERROR(VLOOKUP($D$3,'BD Sociodemográfica'!$B$1:$AZ$5951,Consultas!P95,FALSE),\"\")","v":""},null,null,null,6]
[]
[null,"Escolaridad",null,{"$f":"IFERROR(VLOOKUP($D$3,'BD Sociodemográfica'!$B$1:$AZ$5951,Consultas!P18,FALSE),\"\")","v":""},null,"Cargo",null,{"$f":"IFERROR(VLOOKUP($D$3,'BD Sociodemográfica'!$B$1:$AZ$5951,Consultas!P46,FALSE),\"\")","v":""},null,"Municipio donde vive el contacto",null,{"$f":"IFERROR(VLOOKUP($D$3,'BD Sociodemográfica'!$B$1:$AZ$5951,Consultas!P97,FALSE),\"\")","v":""},null,null,null,7]
[]
[null,"Ocupación",null,{"$f":"IFERROR(VLOOKUP($D$3,'BD Sociodemográfica'!$B$1:$AZ$5951,Consultas!P20,FALSE),\"\")","v":""},null,"Años en el cargo",null,{"$f":"IFERROR(VLOOKUP($D$3,'BD Sociodemográfica'!$B$1:$AZ$5951,Consultas!P48,FALSE),\"\")","v":""},null,null,null,null,null,null,null,8]
[]
[null,"Municipio donde vive",null,{"$f":"IFERROR(VLOOKUP($D$3,'BD Sociodemográfica'!$B$1:$AZ$5951,Consultas!P22,FALSE),\"\")","v":""},null,"Colaboradores a cargo",null,{"$f":"IFERROR(VLOOKUP($D$3,'BD Sociodemográfica'!$B$1:$AZ$5951,Consultas!P50,FALSE),\"\")","v":""},null,null,null,null,null,null,null,9]
[]
[null,"Estrato socioeconómico",null,{"$f":"IFERROR(VLOOKUP($D$3,'BD Sociodemográfica'!$B$1:$AZ$5951,Consultas!P24,FALSE),\"\")","v":""},null,"Tipo de contrato",null,{"$f":"IFERROR(VLOOKUP($D$3,'BD Sociodemográfica'!$B$1:$AZ$5951,Consultas!P52,FALSE),\"\")","v":""},null,null,null,null,null,null,null,10]
[]
[null,"Tipo de vivienda",null,{"$f":"IFERROR(VLOOKUP($D$3,'BD Sociodemográfica'!$B$1:$AZ$5951,Consultas!P26,FALSE),\"\")","v":""},null,"Tipo de salario",null,{"$f":"IFERROR(VLOOKUP($D$3,'BD Sociodemográfica'!$B$1:$AZ$5951,Consultas!P54,FALSE),\"\")","v":""},null,null,null,null,null,null,null,11]
[]
[null,"Zona de la vivienda",null,{"$f":"IFERROR(VLOOKUP($D$3,'BD Sociodemográfica'!$B$1:$AZ$5951,Consultas!P28,FALSE),\"\")","v":""},null,"Rango de ingresos",null,{"$f":"IFERROR(VLOOKUP($D$3,'BD Sociodemográfica'!$B$1:$AZ$5951,Consultas!P56,FALSE),\"\")","v":""},null,null,null,null,null,null,null,12]
[]
[null,"Persona que con vive",null,{"$f":"IFERROR(VLOOKUP($D$3,'BD Sociodemográfica'!$B$1:$AZ$5951,Consultas!P30,FALSE),\"\")","v":""},null,"Horas de trabajo diarias",null,{"$f":"IFERROR(VLOOKUP($D$3,'BD Sociodemográfica'!$B$1:$AZ$5951,Consultas!P58,FALSE),\"\")","v":""},null,null,null,null,null,null,null,13]
[]
[null,"Grupo familiar",null,{"$f":"IFERROR(VLOOKUP($D$3,'BD Sociodemográfica'!$B$1:$AZ$5951,Consultas!P32,FALSE),\"\")","v":""},null,"Turno de trabajo",null,{"$f":"IFERROR(VLOOKUP($D$3,'BD Sociodemográfica'!$B$1:$AZ$5951,Consultas!P60,FALSE),\"\")","v":""},null,null,null,null,null,null,null,14]
[]
[null,"Cabeza de familia",null,{"$f":"IFERROR(VLOOKUP($D$3,'BD Sociodemográfica'!$B$1:$AZ$5951,Consultas!P34,FALSE),\"\")","v":""},null,"Días de descanso al mes",null,{"$f":"IFERROR(VLOOKUP($D$3,'BD Sociodemográfica'!$B$1:$AZ$5951,Consultas!P62,FALSE),\"\")","v":""},null,null,null,null,null,null,null,15]
[]
[null,"Número de hijos",null,{"$f":"IFERROR(VLOOKUP($D$3,'BD Sociodemográfica'!$B$1:$AZ$5951,Consultas!P36,FALSE),\"\")","v":""},null,"Transporte para ir al trabajo",null,{"$f":"IFERROR(VLOOKUP($D$3,'BD Sociodemográfica'!$B$1:$AZ$5951,Consultas!P64,FALSE),\"\")","v":""},null,null,null,null,null,null,null,16]
[]
[null,"Personas que dependen econ.",null,{"$f":"IFERROR(VLOOKUP($D$3,'BD Sociodemográfica'!$B$1:$AZ$5951,Consultas!P38,FALSE),\"\")","v":""},null,"Tiempo de traslado casa-trabajo",null,{"$f":"IFERROR(VLOOKUP($D$3,'BD Sociodemográfica'!$B$1:$AZ$5951,Consultas!P66,FALSE),\"\")","v":""},null,null,null,null,null,null,null,17]
[]
[null,"Actividades de preferencia",null,{"$f":"IFERROR(VLOOKUP($D$3,'BD Sociodemográfica'!$B$1:$AZ$5951,Consultas!P67,FALSE),\"\")","v":""},null,"Medios de comunicación",null,{"$f":"IFERROR(VLOOKUP($D$3,'BD Sociodemográfica'!$B$1:$AZ$5951,Consultas!P71,FALSE),\"\")","v":""},null,null,null,null,null,null,null,18]
[]
[null,"Posesión de mascotas",null,{"$f":"IFERROR(VLOOKUP($D$3,'BD Sociodemográfica'!$B$1:$AZ$5951,Consultas!P69,FALSE),\"\")","v":""},null,null,null,null,null,null,null,null,null,null,null,19]
[]
[null,"Redes sociales",null,{"$f":"IFERROR(VLOOKUP($D$3,'BD Sociodemográfica'!$B$1:$AZ$5951,Consultas!P73,FALSE),\"\")","v":""},null,null,null,null,null,null,null,null,null,null,null,20]
[]
[null,null,null,null,null,null,null,null,null,null,null,null,null,null,null,21]
[]
[null,null,null,null,null,null,null,null,null,null,null,null,null,null,null,22]
[]
[null,null,null,null,null,null,null,null,null,null,null,null,null,null,null,23]
[]
[null,null,null,null,null,null,null,null,null,null,null,null,null,null,null,24]
[]
[null,null,null,null,null,null,null,null,null,null,null,null,null,null,null,25]
[]
[null,null,null,null,null,null,null,null,null,null,null,null,null,null,null,26]
[]
[null,null,null,null,null,null,null,null,null,null,null,null,null,null,null,27]
[]
[null,null,null,null,null,null,null,null,null,null,null,null,null,null,null,28]
[]
[null,null,null,null,null,null,null,null,null,null,null,null,null,null,null,29]
[]
[null,null,null,null,null,null,null,null,null,null,null,null,null,null,null,30]
[]
[null,null,null,null,null,null,null,null,null,null,null,null,null,null,null,31]
[null,null,null,null,null,null,null,null,null,null,null,null,null,null,null,32]
[]
[null,null,null,null,null,null,null,null,null,null,null,null,null,null,null,33]
[]
[null,null,null,null,null,null,null,null,null,null,null,null,null,null,null,34]
[]
[null,null,null,null,null,null,null,null,null,null,null,null,null,null,null,35]
[]
[null,null,null,null,null,null,null,null,null,null,null,null,null,null,null,36]
[]
[null,null,null,null,null,null,null,null,null,null,null,null,null,null,null,37]
[]
[null,null,null,null,null,null,null,null,null,null,null,null,null,null,null,38]
[]
[null,null,null,null,null,null,null,null,null,null,null,null,null,null,null,39]
[]
[null,null,null,null,null,null,null,null,null,null,null,null,null,null,null,40]
[]
[null,null,null,null,null,null,null,null,null,null,null,null,null,null,null,41]
[]
[null,null,null,null,null,null,null,null,null,null,null,null,null,null,null,42]
[]
[null,null,null,null,null,null,null,null,null,null,null,null,null,null,null,43]
[]
[null,null,null,null,null,null,null,null,null,null,null,null,null,null,null,44]
[]
[null,null,null,null,null,null,null,null,null,null,null,null,null,null,null,45]
[]
[null,null,null,null,null,null,null,null,null,null,null,null,null,null,null,46]
[]
[null,null,null,null,null,null,null,null,null,null,null,null,null,null,null,47]
[]
[null,null,null,null,null,null,null,null,null,null,null,null,null,null,null,48]
[]
[null,null,null,null,null,null,null,null,null,null,null,null,null,null,null,49]
[]
[null,null,null,null,null,null,null,null,null,null,null,null,null,null,null,50]